Workbook

Sheet Cover and navigation
A1: Asian Water Development Outlook 2020 Data management system
A7: This document captures all the data used in the Asian Water Development Outlook (AWDO) 2020 and includes every calculation used in the creation of the report. It is not intended that this document be used on its own without prior understanding of AWDO. For further information about the methodology, data sources, analysis, or findings of AWDO please find them here: https://www.adb.org/publications/series/asian-water-development-outlook This document is navigated using a series of Macros. Please ensure that Macros are enabled and click the buttons to direct you to certain sheets. The visual on the right shows the hierarchy of all the sheets in this system, each box is an active button that when clicked will take you to your desired sheet. In each sheet, there are buttons on the top line to direct you as well. Alternatively, it is still possible to navigate the sheet by flicking through the tabs at the bottom of the screen. ADB gratefully acknowledges the authors of AWDO 2020 and recognizes the efforts of the writers and contributors to the individual key dimension (KD) reports and the Organisation for Economic Co-operation and Development (OECD) studies on governance and finance, which form the building blocks of AWDO 2020. Full author attribution and references can be found in the AWDO 2020 report. This resource was funded by the Australian Government through the Australian Water Partnership and implemented by the International WaterCentre, Griffith University, and the University of Queensland.​ The views expressed in this resource are the authors' alone and are not necessarily the views of the Australian Government. The Australian Government neither endorses the views in this resource nor vouches for the accuracy or completeness of the information contained within. The Australian Government, its officers, employees and agents, accept no liability for any loss, damage or expense arising out of, or in connection with, any reliance on any omissions or inaccuracies in the material contained in this resource.

Sheet Notes
A1: Atypical methods and data sources
A7: KD | B7: Sheet | C7: Economies impacted | D7: Note
A8: 1 | B8: KD1 Summary | C8: Afghanistan | D8: Affordability Afghanistan 2013 as determined by KD-team was 3; has been set back to 1 make the result more logical
A9: 1 | B9: KD1 Summary | C9: Hong Kong, China; Nauru; Singapore | D9: For urban economies we have taken as KD1 score the average of the KD2-KD5 scores; the sub-indicators are KD1/4; they are only included here in this table to enable to calculate NWSI and regional scores
A10: 1 | B10: KD1 Summary | C10: Taipei, China | D10: For Taipei, China no estimate could be given by the KD-team; the 2020 estimate is based on the KD1-GNI relation. The 2016 and 2013 scores are the same as the 2020 score
A11: 1 | B11: KD1.1 | C11: Micronesia, Federated States of; Lao People’s Democratic Republic | D11: National figure (not rural specific) was used
A12: 1 | B12: KD1.2 | C12: Micronesia, Federated States of; Kiribati | D12: National figure (not rural specific) was used
A13: 1 | B13: KD1.2 | C13: Brunei Darussalam | D13: 2013 JMP data was used for all years
A14: 1 | B14: KD1.3 | C14: Cook Islands; Marshall Islands; Palau; Tuvalu | D14: Used the AWDO 2016 KD1 indicator 3 figure for all years
A15: 1 | B15: KD1.3 | C15: Niue | D15: Estimated health outcomes the same as the regional average
A16: 1 | B16: KD1.4 | C16: Cook Islands; Micronesia, Federated States of; Kiribati; Lao People’s Democratic Republic; Maldives; Myanmar; Niue; Turkmenistan; Tuvalu; Samoa | D16: Calculated HFC using GDP and a regional average HFCE
A17: 1 | B17: KD1.4 | C17: Papua New Guinea | D17: Calculated HFC for appropriate years by using HFC from 2005 multiplied by CPI
A18: 1 | B18: KD1.4 | C18: Myanmar; Niue; Tuvalu | D18: 2013 population taken from nearest year with data
A19: 1 | B19: KD1.4 | C19: Niue | D19: 2016 population taken from nearest year with data
A20: 1 | B20: KD1.4 | C20: Cambodia; Kiribati; Marshall Islands; Solomon Islands; Turkmenistan | D20: 2013 CPI estimates the same as regional average
A21: 1 | B21: KD1.4 | C21: Cook Islands; Kiribati; Marshall Islands; Solomon Islands; Turkmenistan | D21: 2020 CPI estimates the same as regional average
A22: 1 | B22: KD1.4 | C22: Cambodia | D22: 2020 CPI filled through expert opinion
A23: 1 | B23: KD1.4 | C23: Myanmar | D23: 2013 exchange rate filled through expert opinion
A24: 1 | B24: KD1.4 | C24: Brunei Darussalam; Japan; New Zealand | D24: 2020 costed estimated the same as regional average
A25: 1 | B25: KD1.4 | C25: Australia; Korea, Republic of | D25: IBNet used to estimate 2020 cost
A26: 2 | B26: KD2 Summary | C26: All | D26: Throughout KD2 data gaps have been identified with ND
A27: 2 | B27: KD2 Summary | C27: Micronesia, Federated States of; Niue; Taipei, China | D27: Several data gaps at the indicator level have been filled by expert opinion. These include; Micronesia (Federated States of) Broad Economy and Agriculture in all years Niue KD2 in all years Taipei (China) Broad Economici and Industry in all years
A28: 2 | B28: KD2.1 | C28: Many | D28: Calculation error caused all economies except for Afghanistan's Reliability/Resilience score to be miscalculated for 2013
A29: 2 | B29: KD2.1.1.1 | C29: Nauru; Solomon Islands | D29: Rainfall data used was from 1960 - 1990
A30: 2 | B30: KD2.1.2 | C30: Fiji; Maldives; Singapore | D30: Expert opinion was used in these economies to determine water stress
A31: 2 | B31: KD2.2.1 | C31: Nauru; Pakistan; Papua New Guinea | D31: Expert opinion was used in these economies to determine agricultural water productivity
A32: 2 | B32: KD2.2.2 | C32: Armenia | D32: Expert opinion was used in Armenia to determine agricultural self-sufficiency
A33: 2 | B33: KD2.3.3 | C33: China, People’s Republic of; Malaysia | D33: Expert opinion was used in these economies to determine energy self-sufficiency
A34: 2 | B34: KD2.4.1 | C34: China, People's Republic of | D34: Calculation error caused China's industrial productivity to be omitted from original calculations
A35: 2 | B35: KD2.4.1 | C35: Bangladesh; Bhutan | D35: Expert opinion was used in these economies to determine industrial water productivity
A36: 2 | B36: KD2.4.2 | C36: Solomon Islands; Timor-Leste | D36: Expert opinion was used in these economies to determine industrial self-sufficiency
A37: 3 | B37: KD3 Summary | C37: Taipei, China | D37: For Taipei, China no estimate could be given by the KD-team; the 2020 estimate is based on the KD3-GNI relation. The 2016 and 2013 scores are the same as the 2020 score
A38: 3 | B38: KD3.1 | C38: Brunei Darussalam; Cook Island; Japan; Kiribati; Micronesia, Federated States of; Niue; Korea, Republic of; Taipei, China | D38: No urban household water data available.
A39: 3 | B39: KD3.1 | C39: Brunei Darussalam; Cook Island; Japan; Niue; Korea, Republic of; | D39: National data used when Urban data for At Least Basic was missing. National At Least Basic score was >= 95% or supported by independent review.
A40: 3 | B40: KD3.1 | C40: Micronesia, Federated States of; Niue | D40: National data used when Urban data for At Least Basic was missing. National At Least Basic score was < 95%.
A41: 3 | B41: KD3.1 | C41: Japan; New Zealand; Korea, Republic of | D41: National data used when Urban data for Safely Managed was unavailable and economy is developed or has an urban population >80%.
A42: 3 | B42: KD3.1 | C42: Afghanistan; Armenia; Azerbaijan; Brunei Darussalam; Cook Islands; Fiji; Georgia; India; Indonesia; Kazakhstan; Kiribati; Malaysia; Maldives; Marshall Islands; Micronesia, Federated States of; Mongolia; Myanmar; Nauru; Niue; Palau; Papua New Guinea; Samoa; Solomon Islands; Taipei, China; Tajikistan; Thailand; Timor-Leste; Tonga; Vanuatu; Viet Nam | D42: Safely managed data missing, assumed as 0%
A43: 3 | B43: KD3.2 | C43: Brunei Darussalam; Cook Island; Japan; Kiribati; Micronesia, Federated States of; Niue; Korea, Republic of; Taipei, China | D43: No urban household water data available.
A44: 3 | B44: KD3.2 | C44: Australia; Brunei Darussalam; Cook Island; Japan; Niue; Korea, Republic of; | D44: National data used when Urban data for At Least Basic was missing. National At Least Basic score was >= 95% or supported by independent review.
A45: 3 | B45: KD3.2 | C45: Micronesia, Federated States of; Niue | D45: National data used when Urban data for At Least Basic was missing. National At Least Basic score was < 95%.
A46: 3 | B46: KD3.2 | C46: Japan; New Zealand; Korea, Republic of | D46: National data used when Urban data for Safely Managed was unavailable and economy is developed or has an urban population >80%.
A47: 3 | B47: KD3.2 | C47: Afghanistan; Bangladesh; Bhutan; Brunei Darussalam; Cambodia; Cook Islands; Fiji; India; Indonesia; Kiribati; Kyrgyz Republic; Malaysia; Maldives; Marshall Islands; Micronesia, Federated States of; Mongolia; Myanmar; Nauru; Nepal; Niue; Pakistan; Palau; Papua New Guinea; Solomon Islands; Sri Lanka; Taipei, China; Tajikistan; Thailand; Timor-Leste; Tonga; Turkmenistan; Uzbekistan; Vanuatu; Viet Nam | D47: Safely managed data missing, assumed as 0%
A48: 3 | B48: KD3.2 | C48: Brunei Darussalam | D48: 2013 JMP data was used for all years
A49: 3 | B49: KD3.3 | C49: All | D49: New Facility / Replacement Costs not factored into affordability for Safely Managed Water and Sanitation. This index only estimates the affordability maintaining and operating existing infrastructure.
A50: 3 | B50: KD3.3 | C50: Cook Islands; Maldives; Micronesia, Federated States of; Nauru; Niue; Samoa; Solomon Islands; Tuvalu; | D50: Consumptive Household Expenditure taken from HIES reports
A51: 3 | B51: KD3.3 | C51: Australia; Brunei Darussalam; Hong Kong, China; Japan; Korea, Republic of; New Zealand; Singapore; | D51: Alternative sources were used (note, all of these values have been derived for a single year, but it assumed that they have remained constant from 2013 - 2019)
A52: 3 | B52: KD3.3 | C52: Turkmenistan | D52: No household consumptive expenditure data was available for Turkmenistan. Averaged the affordability indicator for all "…stan" economies for estimate
A53: 3 | B53: KD3.3 | C53: Cambodia; Cook Islands; Kiribati; Marshall Islands; Micronesia, Federated States of; Singapore; Solomon Islands; Turkmenistan | D53: World Bank data used to fill CPI gaps
A54: 3 | B54: KD3.3 | C54: Kiribati | D54: Averaged "Households and NPISHs final consumption expenditure (% of GDP)" indicator from World Bank (data range: 1972 - 1992)
A55: 3 | B55: KD3.3 | C55: Lao People's Democratic Republic | D55: Households and NPISHs final consumption expenditure (% of GDP)
A56: 3 | B56: KD3.3 | C56: Singapore | D56: Households and NPISHs final consumption expenditure (% of GDP)
A57: 3 | B57: KD3.3 | C57: Papua New Guinea | D57: Averaged "Households and NPISHs final consumption expenditure (% of GDP)" indicator from World Bank (data range: 1961 - 2004)
A58: 3 | B58: KD3.4 | C58: All | D58: If a storm or flood was not included in ED-DAT data, it was not incorporated into analysis
A59: 4 | B59: KD4 Summary | C59: Maldives | D59: These economies were missing a CASCI score, therefore it was assumed the same as EGI
A60: 4 | B60: KD4 Summary | C60: Cook Islands; Hong Kong, China; Marshall Islands; Nauru; Niue; Tuvalu | D60: These economies were missing an EGI score, therefore it was assumed the same as the CASCI
A61: 4 | B61: KD4 Summary | C61: Palau | D61: Palau's 2016 and 2020 EGI scores were assumed the same as 2013
A62: 4 | B62: KD4.1 | C62: Cook Islands; Fiji; Kiribati; Marshall Islands; Micronesia, Federated States of; Nauru; Niue; Palau; Samoa; Tonga; Tuvalu; Vanuatu | D62: A different reference was used for these economies groundwater data. This reference is; Stewart, G., Walker, K., Fontaine, K., Dixon-Jain, P. & Norman, R. (2014). Pacific Island Groundwater Vulnerability to Future Climates Dataset. Geoscience Australia, Canberra
A63: 4 | B63: KD4.1 | C63: Cook Islands; Fiji; Micronesia, Federated States of; Myanmar; Palau; Samoa; Tonga | D63: Expert opinion was used in these economies to determine water quality
A64: 4 | B64: KD4.1 | C64: All | D64: Groundwater does not use a standard method to calculate the trend, please see methodology report for more information
A65: 4 | B65: KD4.1 | C65: Cook Islands; Kiribati; Marshall Islands; Micronesia, Federated States of; Palau; Samoa; Tonga; Tuvalu | D65: Expert opinion was used in these economies to determine land coverage alteration
A66: 4 | B66: KD4.1 | C66: Japan | D66: Groundwater for Japan not used for all years due to interference from recent Earthquake
A67: 5 | B67: KD5 Summary | C67: Pakistan | D67: Expert opinion was used to determine Pakistan's 2020 climatic risk
A68: 5 | B68: KD5.2 | C68: Tuvalu | D68: Tuvalu was assessed using expert opinion to be an outlier for ODA as a % of GDP and was therefore altered for analysis
A69: 5 | B69: KD5.2 | C69: Azerbaijan; Bangladesh; Bhutan; Brunei Darussalam; Cook Islands; Fiji; Indonesia; Kazakhstan; Kiribati; Korea, Republic of; Lao People's Democratic Republic; Maldives; Micronesia, Federated States of; Myanmar; Nauru; Nepal; Niue; Pakistan; Palau; Papua New Guinea; Singapore; Taipei, China; Tonga; Turkmenistan; Tuvalu; Uzbekistan; Vanuatu | D69: Expert opinion was used in these economies to determine Drought Populations Affected for 2020
A70: 5 | B70: KD5.2 | C70: Afghanistan; Bhutan; Brunei Darussalam; Indonesia; Kiribati; Maldives; Marshall Islands; Micronesia, Federated States of; Myanmar; Samoa; Singapore; Tuvalu; Uzbekistan | D70: Expert opinion was used in these economies to determine Hydrological Populations Affected for 2020
A71: 5 | B71: KD5.2 | C71: Azerbaijan; Brunei Darussalam; Indonesia; Myanmar; Nauru; Singapore | D71: Expert opinion was used in these economies to determine Meteorological Populations Affected for 2020
A72: 5 | B72: KD5.2 | C72: Cook Islands; Fiji; Kiribati; Marshall Islands; Micronesia, Federated States of; Nauru; Niue; Palau; Samoa; Tonga; Tuvalu | D72: Expert opinion was used in these economies to determine Lack of Governance for 2020
A73: 5 | B73: KD5.2 | C73: Cook Islands; Hong Kong, China; Kiribati; Marshall Islands; Micronesia, Federated States of; Nauru; Niue; Palau; Samoa; Solomon Islands; Taipei, China; Tonga; Tuvalu; Vanuatu | D73: Expert opinion was used in these economies to determine Environmental Vulnerability (Drought) for 2020
A74: 5 | B74: KD5.2 | C74: Hong Kong, China; Taipei, China | D74: Expert opinion was used in these economies to determine Environmental Vulnerability (Flood & Storm) for 2020
A75: 5 | B75: KD5.2 | C75: Cook Islands; Korea, Republic of; Lao People's Democratic Republic; Marshall Islands; Nauru; Niue; Palau; Tuvalu | D75: ADB statistics were used in these economies to determine Dependent Populations for 2020
A76: 5 | B76: KD5.2 | C76: Brunei Darussalam; Cambodia; Cook Islands; Hong Kong, China; Korea, Republic of; Lao People's Democratic Republic; Marshall Islands; Nauru; Niue; Palau; Taipei, China; Thailand | D76: Expert opinion was used in these economies to determine Population Vulnerability for 2020
A77: 5 | B77: KD5.2 | C77: Cook Islands; Niue | D77: Expert opinion was used in these economies to determine Economic Capacity for 2020
A78: 5 | B78: KD5.2 | C78: Hong Kong, China; Taipei, China | D78: Expert opinion was used in these economies to determine Reservoir Capacity for 2020
A79: 5 | B79: KD5.2 | C79: Cook Islands; Niue; Palau | D79: Expert opinion was used in these economies to determine ICT Capacity for 2020
A80: 5 | B80: KD5.2 | C80: Cook Islands; Fiji; Kiribati; Micronesia, Federated States of; Nauru; Niue; Tonga | D80: Expert opinion was used in these economies to determine Educational Capacity for 2020
A81: 5 | B81: KD5.2 | C81: Cook Islands; Kiribati; Marshall Islands; Micronesia, Federated States of; Nauru; Niue; Palau; Papua New Guinea; Samoa; Solomon Islands; Taipei, China; Tonga; Tuvalu; Vanuatu | D81: Expert opinion was used in these economies to determine Agricultural Infrastructure for 2020
A82: 5 | B82: KD5.2 | C82: Cook Islands; Niue; Taipei, China | D82: ADB statistics were used in these economies to determine GDP for 2020
A83: 5 | B83: KD5.2 | C83: China, People's Republic of; Indonesia; Niue | D83: ADB statistics were used in these economies to determine ODA as a % of GDP for 2020
A84: 5 | B84: KD5.2 | C84: Hong Kong, China | D84: ADB statistics were used in these economies to determine Infant Mortality for 2020
A85: 5 | B85: KD5.2 | C85: Brunei Darussalam; Singapore | D85: World Bank statistics were used in these economies to determine Fresh Water Withdrawal for 2020
A86: 5 | B86: KD5.2 | C86: Afghanistan; China, People's Republic of; Kiribati; Kyrgyz Republic; Lao People's Democratic Republic; Micronesia, Federated States of; New Zealand; Philippines; Singapore; Viet Nam | D86: World Bank statistics were used in these economies to determine % of Pop Below $1.9 per day for 2020
A87: 5 | B87: KD5.2 | C87: Kyrgyz Republic; Lao People's Democratic Republic; Viet Nam | D87: World Bank statistics were used in these economies to determine Literacy Rate for 2020
A88: 5 | B88: KD5.2 | C88: Afghanistan; China, People's Republic of; Hong Kong, China; Turkmenistan | D88: World Bank statistics were used in these economies to determine Primary School Enrolment Rate for 2020
A89: 5 | B89: KD5.3 | C89: Azerbaijan; Bangladesh; Bhutan; Brunei Darussalam; Cook Islands; Fiji; Indonesia; Kazakhstan; Kiribati; Korea, Republic of; Lao People's Democratic Republic; Maldives; Micronesia, Federated States of; Myanmar; Nauru; Nepal; Niue; Pakistan; Palau; Papua New Guinea; Samoa; Singapore; Taipei, China; Tonga; Turkmenistan; Tuvalu; Uzbekistan; Vanuatu | D89: Expert opinion was used in these economies to determine Drought Populations Affected for 2016
A90: 5 | B90: KD5.3 | C90: Afghanistan; Bhutan; Brunei Darussalam; Indonesia; Kiribati; Maldives; Marshall Islands; Micronesia, Federated States of; Myanmar; Samoa; Singapore; Tuvalu; Uzbekistan | D90: Expert opinion was used in these economies to determine Hydrological Populations Affected for 2016
A91: 5 | B91: KD5.3 | C91: Azerbaijan; Brunei Darussalam; Indonesia; Myanmar; Nauru; Singapore | D91: Expert opinion was used in these economies to determine Meteorological Populations Affected for 2016
A92: 5 | B92: KD5.3 | C92: Cook Islands; Fiji; Kiribati; Marshall Islands; Micronesia, Federated States of; Nauru; Niue; Palau; Samoa; Tonga; Tuvalu | D92: Expert opinion was used in these economies to determine Lack of Governance for 2016
A93: 5 | B93: KD5.3 | C93: Cook Islands; Hong Kong, China; Kiribati; Marshall Islands; Micronesia, Federated States of; Nauru; Niue; Palau; Samoa; Solomon Islands; Taipei, China; Tonga; Tuvalu; Vanuatu | D93: Expert opinion was used in these economies to determine Environmental Vulnerability (Drought) for 2016
A94: 5 | B94: KD5.3 | C94: Hong Kong, China; Taipei, China | D94: Expert opinion was used in these economies to determine Environmental Vulnerability (Flood & Storm) for 2016
A95: 5 | B95: KD5.3 | C95: Cook Islands; Korea, Republic of; Lao People's Democratic Republic; Marshall Islands; Nauru; Niue; Palau; Tuvalu | D95: ADB statistics were used in these economies to determine Dependent Populations for 2016
A96: 5 | B96: KD5.3 | C96: Brunei Darussalam; Cambodia; Cook Islands; Hong Kong, China; Korea, Republic of; Lao People's Democratic Republic; Marshall Islands; Nauru; Niue; Palau; Taipei, China; Thailand | D96: Expert opinion was used in these economies to determine Population Vulnerability for 2016
A97: 5 | B97: KD5.3 | C97: Cook Islands; Niue; Taipei, China | D97: ADB statistics were used in these economies to determine GDP for 2016
A98: 5 | B98: KD5.3 | C98: China, People's Republic of; Cook Islands; Indonesia; Niue | D98: ADB statistics were used in these economies to determine ODA as a % of GDP for 2016
A99: 5 | B99: KD5.3 | C99: Hong Kong, China; Taipei, China | D99: ADB statistics were used in these economies to determine Infant Mortality for 2016
A100: 5 | B100: KD5.3 | C100: Cook Islands; Niue | D100: Expert opinion was used in these economies to determine Economic Capacity for 2016
A101: 5 | B101: KD5.3 | C101: Hong Kong, China; Taipei, China | D101: Expert opinion was used in these economies to determine Reservoir Capacity for 2016
A102: 5 | B102: KD5.3 | C102: Cook Islands; Niue; Palau | D102: Expert opinion was used in these economies to determine ICT Capacity for 2016
A103: 5 | B103: KD5.3 | C103: Cook Islands; Fiji; Kiribati; Micronesia, Federated States of; Nauru; Niue; Tonga | D103: Expert opinion was used in these economies to determine Educational Capacity for 2016
A104: 5 | B104: KD5.3 | C104: Cook Islands; Kiribati; Marshall Islands; Micronesia, Federated States of; Nauru; Niue; Palau; Papua New Guinea; Samoa; Solomon Islands; Taipei, China; Tonga; Tuvalu; Vanuatu | D104: Expert opinion was used in these economies to determine Agricultural Infrastructure for 2016
A105: 5 | B105: KD5.4 | C105: Azerbaijan; Bangladesh; Bhutan; Brunei Darussalam; Cook Islands; Fiji; Indonesia; Kazakhstan; Kiribati; Korea, Republic of; Lao People's Democratic Republic; Maldives; Micronesia, Federated States of; Myanmar; Nauru; Nepal; Niue; Pakistan; Palau; Papua New Guinea; Samoa; Singapore; Taipei, China; Tonga; Turkmenistan; Tuvalu; Uzbekistan; Vanuatu | D105: Expert opinion was used in these economies to determine Drought Populations Affected for 2013
A106: 5 | B106: KD5.4 | C106: Afghanistan; Bhutan; Brunei Darussalam; Indonesia; Kiribati; Maldives; Marshall Islands; Micronesia, Federated States of; Myanmar; Samoa; Singapore; Tuvalu; Uzbekistan | D106: Expert opinion was used in these economies to determine Hydrological Populations Affected for 2013
A107: 5 | B107: KD5.4 | C107: Azerbaijan; Brunei Darussalam; Indonesia; Myanmar; Nauru; Singapore | D107: Expert opinion was used in these economies to determine Meteorological Populations Affected for 2013
A108: 5 | B108: KD5.4 | C108: Cook Islands; Fiji; Kiribati; Marshall Islands; Micronesia, Federated States of; Nauru; Niue; Palau; Samoa; Tonga; Tuvalu | D108: Expert opinion was used in these economies to determine Lack of Governance for 2013
A109: 5 | B109: KD5.4 | C109: Cook Islands; Hong Kong, China; Kiribati; Marshall Islands; Micronesia, Federated States of; Nauru; Niue; Palau; Samoa; Solomon Islands; Taipei, China; Tonga; Tuvalu; Vanuatu | D109: Expert opinion was used in these economies to determine Environmental Vulnerability (Drought) for 2013
A110: 5 | B110: KD5.4 | C110: Hong Kong, China; Taipei, China | D110: Expert opinion was used in these economies to determine Environmental Vulnerability (Flood & Storm) for 2013
A111: 5 | B111: KD5.4 | C111: Cook Islands; Korea, Republic of; Lao People's Democratic Republic; Marshall Islands; Nauru; Niue; Palau; Tuvalu | D111: ADB statistics were used in these economies to determine Dependent Populations for 2013
A112: 5 | B112: KD5.4 | C112: Brunei Darussalam; Cambodia; Cook Islands; Hong Kong, China; Korea, Republic of; Lao People's Democratic Republic; Marshall Islands; Nauru; Niue; Palau; Taipei, China; Thailand | D112: Expert opinion was used in these economies to determine Population Vulnerability for 2013
A113: 5 | B113: KD5.4 | C113: Cook Islands; Niue; Taipei, China | D113: ADB statistics were used in these economies to determine GDP for 2013
A114: 5 | B114: KD5.4 | C114: China, People's Republic of; Indonesia; Niue | D114: ADB statistics were used in these economies to determine ODA as a % of GDP for 2013
A115: 5 | B115: KD5.4 | C115: Hong Kong, China | D115: ADB statistics were used in these economies to determine Infant Mortality for 2013
A116: 5 | B116: KD5.4 | C116: Cook Islands; Niue | D116: Expert opinion was used in these economies to determine Economic Capacity for 2013
A117: 5 | B117: KD5.4 | C117: Hong Kong, China; Taipei, China | D117: Expert opinion was used in these economies to determine Reservoir Capacity for 2013
A118: 5 | B118: KD5.4 | C118: Cook Islands; Niue; Palau | D118: Expert opinion was used in these economies to determine ICT Capacity for 2013
A119: 5 | B119: KD5.4 | C119: Cook Islands; Fiji; Kiribati; Micronesia, Federated States of; Nauru; Niue; Tonga | D119: Expert opinion was used in these economies to determine Educational Capacity for 2013
A120: 5 | B120: KD5.4 | C120: Cook Islands; Kiribati; Marshall Islands; Micronesia, Federated States of; Nauru; Niue; Palau; Papua New Guinea; Samoa; Solomon Islands; Taipei, China; Tonga; Tuvalu; Vanuatu | D120: Expert opinion was used in these economies to determine Agricultural Infrastructure for 2013

Sheet NWSI Index
A1: National Water Security Index for AWDO 2020
A7: Economies | B7: AWDO 2013 | H7: AWDO 2016 | N7: AWDO 2020
B8: KD1 Rating | C8: KD2 Rating | D8: KD3 Rating | E8: KD4 Rating | F8: KD5 Rating | G8: NWSI | H8: KD1 Rating | I8: KD2 Rating | J8: KD3 Rating | K8: KD4 Rating | L8: KD5 Rating | M8: NWSI | N8: KD1 Rating | O8: KD2 Rating | P8: KD3 Rating | Q8: KD4 Rating | R8: KD5 Rating | S8: NWSI
A9: Afghanistan | B9: =VLOOKUP('NWSI Scores'!B9,$B$62:$C$66,2) -> 1 | C9: =VLOOKUP('NWSI Scores'!C9,$B$62:$C$66,2) -> 2 | D9: =VLOOKUP('NWSI Scores'!D9,$B$62:$C$66,2) -> 2 | E9: =VLOOKUP('NWSI Scores'!E9,$B$62:$C$66,2) -> 2 | F9: =VLOOKUP('NWSI Scores'!F9,$B$62:$C$66,2) -> 1 | G9: =VLOOKUP('NWSI Scores'!G9,$A$62:$C$66,3) -> 1 | H9: =VLOOKUP('NWSI Scores'!H9,$B$62:$C$66,2) -> 1 | I9: =VLOOKUP('NWSI Scores'!I9,$B$62:$C$66,2) -> 1 | J9: =VLOOKUP('NWSI Scores'!J9,$B$62:$C$66,2) -> 2 | K9: =VLOOKUP('NWSI Scores'!K9,$B$62:$C$66,2) -> 2 | L9: =VLOOKUP('NWSI Scores'!L9,$B$62:$C$66,2) -> 1 | M9: =VLOOKUP('NWSI Scores'!M9,$A$62:$C$66,3) -> 1 | N9: =VLOOKUP('NWSI Scores'!N9,$B$62:$C$66,2) -> 1 | O9: =VLOOKUP('NWSI Scores'!O9,$B$62:$C$66,2) -> 1 | P9: =VLOOKUP('NWSI Scores'!P9,$B$62:$C$66,2) -> 2 | Q9: =VLOOKUP('NWSI Scores'!Q9,$B$62:$C$66,2) -> 2 | R9: =VLOOKUP('NWSI Scores'!R9,$B$62:$C$66,2) -> 1 | S9: =VLOOKUP('NWSI Scores'!S9,$A$62:$C$66,3) -> 1
A10: Armenia | B10: =VLOOKUP('NWSI Scores'!B10,$B$62:$C$66,2) -> 3 | C10: =VLOOKUP('NWSI Scores'!C10,$B$62:$C$66,2) -> 2 | D10: =VLOOKUP('NWSI Scores'!D10,$B$62:$C$66,2) -> 3 | E10: =VLOOKUP('NWSI Scores'!E10,$B$62:$C$66,2) -> 2 | F10: =VLOOKUP('NWSI Scores'!F10,$B$62:$C$66,2) -> 4 | G10: =VLOOKUP('NWSI Scores'!G10,$A$62:$C$66,3) -> 3 | H10: =VLOOKUP('NWSI Scores'!H10,$B$62:$C$66,2) -> 4 | I10: =VLOOKUP('NWSI Scores'!I10,$B$62:$C$66,2) -> 3 | J10: =VLOOKUP('NWSI Scores'!J10,$B$62:$C$66,2) -> 3 | K10: =VLOOKUP('NWSI Scores'!K10,$B$62:$C$66,2) -> 3 | L10: =VLOOKUP('NWSI Scores'!L10,$B$62:$C$66,2) -> 4 | M10: =VLOOKUP('NWSI Scores'!M10,$A$62:$C$66,3) -> 3 | N10: =VLOOKUP('NWSI Scores'!N10,$B$62:$C$66,2) -> 4 | O10: =VLOOKUP('NWSI Scores'!O10,$B$62:$C$66,2) -> 2 | P10: =VLOOKUP('NWSI Scores'!P10,$B$62:$C$66,2) -> 3 | Q10: =VLOOKUP('NWSI Scores'!Q10,$B$62:$C$66,2) -> 2 | R10: =VLOOKUP('NWSI Scores'!R10,$B$62:$C$66,2) -> 4 | S10: =VLOOKUP('NWSI Scores'!S10,$A$62:$C$66,3) -> 3
A11: Australia | B11: =VLOOKUP('NWSI Scores'!B11,$B$62:$C$66,2) -> 5 | C11: =VLOOKUP('NWSI Scores'!C11,$B$62:$C$66,2) -> 4 | D11: =VLOOKUP('NWSI Scores'!D11,$B$62:$C$66,2) -> 4 | E11: =VLOOKUP('NWSI Scores'!E11,$B$62:$C$66,2) -> 3 | F11: =VLOOKUP('NWSI Scores'!F11,$B$62:$C$66,2) -> 5 | G11: =VLOOKUP('NWSI Scores'!G11,$A$62:$C$66,3) -> 4 | H11: =VLOOKUP('NWSI Scores'!H11,$B$62:$C$66,2) -> 5 | I11: =VLOOKUP('NWSI Scores'!I11,$B$62:$C$66,2) -> 4 | J11: =VLOOKUP('NWSI Scores'!J11,$B$62:$C$66,2) -> 4 | K11: =VLOOKUP('NWSI Scores'!K11,$B$62:$C$66,2) -> 3 | L11: =VLOOKUP('NWSI Scores'!L11,$B$62:$C$66,2) -> 5 | M11: =VLOOKUP('NWSI Scores'!M11,$A$62:$C$66,3) -> 4 | N11: =VLOOKUP('NWSI Scores'!N11,$B$62:$C$66,2) -> 4 | O11: =VLOOKUP('NWSI Scores'!O11,$B$62:$C$66,2) -> 4 | P11: =VLOOKUP('NWSI Scores'!P11,$B$62:$C$66,2) -> 4 | Q11: =VLOOKUP('NWSI Scores'!Q11,$B$62:$C$66,2) -> 3 | R11: =VLOOKUP('NWSI Scores'!R11,$B$62:$C$66,2) -> 5 | S11: =VLOOKUP('NWSI Scores'!S11,$A$62:$C$66,3) -> 4
A12: Azerbaijan | B12: =VLOOKUP('NWSI Scores'!B12,$B$62:$C$66,2) -> 2 | C12: =VLOOKUP('NWSI Scores'!C12,$B$62:$C$66,2) -> 3 | D12: =VLOOKUP('NWSI Scores'!D12,$B$62:$C$66,2) -> 3 | E12: =VLOOKUP('NWSI Scores'!E12,$B$62:$C$66,2) -> 2 | F12: =VLOOKUP('NWSI Scores'!F12,$B$62:$C$66,2) -> 3 | G12: =VLOOKUP('NWSI Scores'!G12,$A$62:$C$66,3) -> 3 | H12: =VLOOKUP('NWSI Scores'!H12,$B$62:$C$66,2) -> 2 | I12: =VLOOKUP('NWSI Scores'!I12,$B$62:$C$66,2) -> 3 | J12: =VLOOKUP('NWSI Scores'!J12,$B$62:$C$66,2) -> 3 | K12: =VLOOKUP('NWSI Scores'!K12,$B$62:$C$66,2) -> 2 | L12: =VLOOKUP('NWSI Scores'!L12,$B$62:$C$66,2) -> 3 | M12: =VLOOKUP('NWSI Scores'!M12,$A$62:$C$66,3) -> 3 | N12: =VLOOKUP('NWSI Scores'!N12,$B$62:$C$66,2) -> 2 | O12: =VLOOKUP('NWSI Scores'!O12,$B$62:$C$66,2) -> 3 | P12: =VLOOKUP('NWSI Scores'!P12,$B$62:$C$66,2) -> 3 | Q12: =VLOOKUP('NWSI Scores'!Q12,$B$62:$C$66,2) -> 2 | R12: =VLOOKUP('NWSI Scores'!R12,$B$62:$C$66,2) -> 3 | S12: =VLOOKUP('NWSI Scores'!S12,$A$62:$C$66,3) -> 3
A13: Bangladesh | B13: =VLOOKUP('NWSI Scores'!B13,$B$62:$C$66,2) -> 1 | C13: =VLOOKUP('NWSI Scores'!C13,$B$62:$C$66,2) -> 2 | D13: =VLOOKUP('NWSI Scores'!D13,$B$62:$C$66,2) -> 2 | E13: =VLOOKUP('NWSI Scores'!E13,$B$62:$C$66,2) -> 2 | F13: =VLOOKUP('NWSI Scores'!F13,$B$62:$C$66,2) -> 2 | G13: =VLOOKUP('NWSI Scores'!G13,$A$62:$C$66,3) -> 2 | H13: =VLOOKUP('NWSI Scores'!H13,$B$62:$C$66,2) -> 2 | I13: =VLOOKUP('NWSI Scores'!I13,$B$62:$C$66,2) -> 2 | J13: =VLOOKUP('NWSI Scores'!J13,$B$62:$C$66,2) -> 3 | K13: =VLOOKUP('NWSI Scores'!K13,$B$62:$C$66,2) -> 2 | L13: =VLOOKUP('NWSI Scores'!L13,$B$62:$C$66,2) -> 2 | M13: =VLOOKUP('NWSI Scores'!M13,$A$62:$C$66,3) -> 2 | N13: =VLOOKUP('NWSI Scores'!N13,$B$62:$C$66,2) -> 2 | O13: =VLOOKUP('NWSI Scores'!O13,$B$62:$C$66,2) -> 2 | P13: =VLOOKUP('NWSI Scores'!P13,$B$62:$C$66,2) -> 3 | Q13: =VLOOKUP('NWSI Scores'!Q13,$B$62:$C$66,2) -> 2 | R13: =VLOOKUP('NWSI Scores'!R13,$B$62:$C$66,2) -> 2 | S13: =VLOOKUP('NWSI Scores'!S13,$A$62:$C$66,3) -> 2
A14: Bhutan | B14: =VLOOKUP('NWSI Scores'!B14,$B$62:$C$66,2) -> 1 | C14: =VLOOKUP('NWSI Scores'!C14,$B$62:$C$66,2) -> 2 | D14: =VLOOKUP('NWSI Scores'!D14,$B$62:$C$66,2) -> 3 | E14: =VLOOKUP('NWSI Scores'!E14,$B$62:$C$66,2) -> 3 | F14: =VLOOKUP('NWSI Scores'!F14,$B$62:$C$66,2) -> 3 | G14: =VLOOKUP('NWSI Scores'!G14,$A$62:$C$66,3) -> 3 | H14: =VLOOKUP('NWSI Scores'!H14,$B$62:$C$66,2) -> 1 | I14: =VLOOKUP('NWSI Scores'!I14,$B$62:$C$66,2) -> 2 | J14: =VLOOKUP('NWSI Scores'!J14,$B$62:$C$66,2) -> 3 | K14: =VLOOKUP('NWSI Scores'!K14,$B$62:$C$66,2) -> 3 | L14: =VLOOKUP('NWSI Scores'!L14,$B$62:$C$66,2) -> 3 | M14: =VLOOKUP('NWSI Scores'!M14,$A$62:$C$66,3) -> 3 | N14: =VLOOKUP('NWSI Scores'!N14,$B$62:$C$66,2) -> 2 | O14: =VLOOKUP('NWSI Scores'!O14,$B$62:$C$66,2) -> 2 | P14: =VLOOKUP('NWSI Scores'!P14,$B$62:$C$66,2) -> 3 | Q14: =VLOOKUP('NWSI Scores'!Q14,$B$62:$C$66,2) -> 3 | R14: =VLOOKUP('NWSI Scores'!R14,$B$62:$C$66,2) -> 3 | S14: =VLOOKUP('NWSI Scores'!S14,$A$62:$C$66,3) -> 3
A15: Brunei Darussalam | B15: =VLOOKUP('NWSI Scores'!B15,$B$62:$C$66,2) -> 3 | C15: =VLOOKUP('NWSI Scores'!C15,$B$62:$C$66,2) -> 3 | D15: =VLOOKUP('NWSI Scores'!D15,$B$62:$C$66,2) -> 3 | E15: =VLOOKUP('NWSI Scores'!E15,$B$62:$C$66,2) -> 3 | F15: =VLOOKUP('NWSI Scores'!F15,$B$62:$C$66,2) -> 4 | G15: =VLOOKUP('NWSI Scores'!G15,$A$62:$C$66,3) -> 3 | H15: =VLOOKUP('NWSI Scores'!H15,$B$62:$C$66,2) -> 3 | I15: =VLOOKUP('NWSI Scores'!I15,$B$62:$C$66,2) -> 3 | J15: =VLOOKUP('NWSI Scores'!J15,$B$62:$C$66,2) -> 3 | K15: =VLOOKUP('NWSI Scores'!K15,$B$62:$C$66,2) -> 3 | L15: =VLOOKUP('NWSI Scores'!L15,$B$62:$C$66,2) -> 4 | M15: =VLOOKUP('NWSI Scores'!M15,$A$62:$C$66,3) -> 3 | N15: =VLOOKUP('NWSI Scores'!N15,$B$62:$C$66,2) -> 3 | O15: =VLOOKUP('NWSI Scores'!O15,$B$62:$C$66,2) -> 3 | P15: =VLOOKUP('NWSI Scores'!P15,$B$62:$C$66,2) -> 3 | Q15: =VLOOKUP('NWSI Scores'!Q15,$B$62:$C$66,2) -> 3 | R15: =VLOOKUP('NWSI Scores'!R15,$B$62:$C$66,2) -> 4 | S15: =VLOOKUP('NWSI Scores'!S15,$A$62:$C$66,3) -> 3
A16: Cambodia | B16: =VLOOKUP('NWSI Scores'!B16,$B$62:$C$66,2) -> 1 | C16: =VLOOKUP('NWSI Scores'!C16,$B$62:$C$66,2) -> 2 | D16: =VLOOKUP('NWSI Scores'!D16,$B$62:$C$66,2) -> 2 | E16: =VLOOKUP('NWSI Scores'!E16,$B$62:$C$66,2) -> 3 | F16: =VLOOKUP('NWSI Scores'!F16,$B$62:$C$66,2) -> 2 | G16: =VLOOKUP('NWSI Scores'!G16,$A$62:$C$66,3) -> 2 | H16: =VLOOKUP('NWSI Scores'!H16,$B$62:$C$66,2) -> 1 | I16: =VLOOKUP('NWSI Scores'!I16,$B$62:$C$66,2) -> 2 | J16: =VLOOKUP('NWSI Scores'!J16,$B$62:$C$66,2) -> 3 | K16: =VLOOKUP('NWSI Scores'!K16,$B$62:$C$66,2) -> 3 | L16: =VLOOKUP('NWSI Scores'!L16,$B$62:$C$66,2) -> 3 | M16: =VLOOKUP('NWSI Scores'!M16,$A$62:$C$66,3) -> 2 | N16: =VLOOKUP('NWSI Scores'!N16,$B$62:$C$66,2) -> 2 | O16: =VLOOKUP('NWSI Scores'!O16,$B$62:$C$66,2) -> 2 | P16: =VLOOKUP('NWSI Scores'!P16,$B$62:$C$66,2) -> 3 | Q16: =VLOOKUP('NWSI Scores'!Q16,$B$62:$C$66,2) -> 3 | R16: =VLOOKUP('NWSI Scores'!R16,$B$62:$C$66,2) -> 2 | S16: =VLOOKUP('NWSI Scores'!S16,$A$62:$C$66,3) -> 2
A17: China, People’s Republic of | B17: =VLOOKUP('NWSI Scores'!B17,$B$62:$C$66,2) -> 2 | C17: =VLOOKUP('NWSI Scores'!C17,$B$62:$C$66,2) -> 3 | D17: =VLOOKUP('NWSI Scores'!D17,$B$62:$C$66,2) -> 4 | E17: =VLOOKUP('NWSI Scores'!E17,$B$62:$C$66,2) -> 2 | F17: =VLOOKUP('NWSI Scores'!F17,$B$62:$C$66,2) -> 1 | G17: =VLOOKUP('NWSI Scores'!G17,$A$62:$C$66,3) -> 2 | H17: =VLOOKUP('NWSI Scores'!H17,$B$62:$C$66,2) -> 3 | I17: =VLOOKUP('NWSI Scores'!I17,$B$62:$C$66,2) -> 3 | J17: =VLOOKUP('NWSI Scores'!J17,$B$62:$C$66,2) -> 4 | K17: =VLOOKUP('NWSI Scores'!K17,$B$62:$C$66,2) -> 2 | L17: =VLOOKUP('NWSI Scores'!L17,$B$62:$C$66,2) -> 3 | M17: =VLOOKUP('NWSI Scores'!M17,$A$62:$C$66,3) -> 3 | N17: =VLOOKUP('NWSI Scores'!N17,$B$62:$C$66,2) -> 3 | O17: =VLOOKUP('NWSI Scores'!O17,$B$62:$C$66,2) -> 4 | P17: =VLOOKUP('NWSI Scores'!P17,$B$62:$C$66,2) -> 4 | Q17: =VLOOKUP('NWSI Scores'!Q17,$B$62:$C$66,2) -> 2 | R17: =VLOOKUP('NWSI Scores'!R17,$B$62:$C$66,2) -> 3 | S17: =VLOOKUP('NWSI Scores'!S17,$A$62:$C$66,3) -> 3
A18: Cook Islands | B18: =VLOOKUP('NWSI Scores'!B18,$B$62:$C$66,2) -> 4 | C18: =VLOOKUP('NWSI Scores'!C18,$B$62:$C$66,2) -> 1 | D18: =VLOOKUP('NWSI Scores'!D18,$B$62:$C$66,2) -> 2 | E18: =VLOOKUP('NWSI Scores'!E18,$B$62:$C$66,2) -> 4 | F18: =VLOOKUP('NWSI Scores'!F18,$B$62:$C$66,2) -> 3 | G18: =VLOOKUP('NWSI Scores'!G18,$A$62:$C$66,3) -> 3 | H18: =VLOOKUP('NWSI Scores'!H18,$B$62:$C$66,2) -> 4 | I18: =VLOOKUP('NWSI Scores'!I18,$B$62:$C$66,2) -> 1 | J18: =VLOOKUP('NWSI Scores'!J18,$B$62:$C$66,2) -> 2 | K18: =VLOOKUP('NWSI Scores'!K18,$B$62:$C$66,2) -> 4 | L18: =VLOOKUP('NWSI Scores'!L18,$B$62:$C$66,2) -> 4 | M18: =VLOOKUP('NWSI Scores'!M18,$A$62:$C$66,3) -> 3 | N18: =VLOOKUP('NWSI Scores'!N18,$B$62:$C$66,2) -> 4 | O18: =VLOOKUP('NWSI Scores'!O18,$B$62:$C$66,2) -> 2 | P18: =VLOOKUP('NWSI Scores'!P18,$B$62:$C$66,2) -> 2 | Q18: =VLOOKUP('NWSI Scores'!Q18,$B$62:$C$66,2) -> 4 | R18: =VLOOKUP('NWSI Scores'!R18,$B$62:$C$66,2) -> 4 | S18: =VLOOKUP('NWSI Scores'!S18,$A$62:$C$66,3) -> 3
A19: Fiji | B19: =VLOOKUP('NWSI Scores'!B19,$B$62:$C$66,2) -> 2 | C19: =VLOOKUP('NWSI Scores'!C19,$B$62:$C$66,2) -> 3 | D19: =VLOOKUP('NWSI Scores'!D19,$B$62:$C$66,2) -> 2 | E19: =VLOOKUP('NWSI Scores'!E19,$B$62:$C$66,2) -> 2 | F19: =VLOOKUP('NWSI Scores'!F19,$B$62:$C$66,2) -> 3 | G19: =VLOOKUP('NWSI Scores'!G19,$A$62:$C$66,3) -> 2 | H19: =VLOOKUP('NWSI Scores'!H19,$B$62:$C$66,2) -> 2 | I19: =VLOOKUP('NWSI Scores'!I19,$B$62:$C$66,2) -> 3 | J19: =VLOOKUP('NWSI Scores'!J19,$B$62:$C$66,2) -> 2 | K19: =VLOOKUP('NWSI Scores'!K19,$B$62:$C$66,2) -> 2 | L19: =VLOOKUP('NWSI Scores'!L19,$B$62:$C$66,2) -> 3 | M19: =VLOOKUP('NWSI Scores'!M19,$A$62:$C$66,3) -> 2 | N19: =VLOOKUP('NWSI Scores'!N19,$B$62:$C$66,2) -> 3 | O19: =VLOOKUP('NWSI Scores'!O19,$B$62:$C$66,2) -> 3 | P19: =VLOOKUP('NWSI Scores'!P19,$B$62:$C$66,2) -> 2 | Q19: =VLOOKUP('NWSI Scores'!Q19,$B$62:$C$66,2) -> 3 | R19: =VLOOKUP('NWSI Scores'!R19,$B$62:$C$66,2) -> 3 | S19: =VLOOKUP('NWSI Scores'!S19,$A$62:$C$66,3) -> 2
A20: Georgia | B20: =VLOOKUP('NWSI Scores'!B20,$B$62:$C$66,2) -> 3 | C20: =VLOOKUP('NWSI Scores'!C20,$B$62:$C$66,2) -> 2 | D20: =VLOOKUP('NWSI Scores'!D20,$B$62:$C$66,2) -> 2 | E20: =VLOOKUP('NWSI Scores'!E20,$B$62:$C$66,2) -> 1 | F20: =VLOOKUP('NWSI Scores'!F20,$B$62:$C$66,2) -> 4 | G20: =VLOOKUP('NWSI Scores'!G20,$A$62:$C$66,3) -> 3 | H20: =VLOOKUP('NWSI Scores'!H20,$B$62:$C$66,2) -> 3 | I20: =VLOOKUP('NWSI Scores'!I20,$B$62:$C$66,2) -> 2 | J20: =VLOOKUP('NWSI Scores'!J20,$B$62:$C$66,2) -> 3 | K20: =VLOOKUP('NWSI Scores'!K20,$B$62:$C$66,2) -> 2 | L20: =VLOOKUP('NWSI Scores'!L20,$B$62:$C$66,2) -> 4 | M20: =VLOOKUP('NWSI Scores'!M20,$A$62:$C$66,3) -> 3 | N20: =VLOOKUP('NWSI Scores'!N20,$B$62:$C$66,2) -> 3 | O20: =VLOOKUP('NWSI Scores'!O20,$B$62:$C$66,2) -> 2 | P20: =VLOOKUP('NWSI Scores'!P20,$B$62:$C$66,2) -> 3 | Q20: =VLOOKUP('NWSI Scores'!Q20,$B$62:$C$66,2) -> 2 | R20: =VLOOKUP('NWSI Scores'!R20,$B$62:$C$66,2) -> 4 | S20: =VLOOKUP('NWSI Scores'!S20,$A$62:$C$66,3) -> 3
A21: Hongkong, China | B21: =VLOOKUP('NWSI Scores'!B21,$B$62:$C$66,2) -> 3 | C21: =VLOOKUP('NWSI Scores'!C21,$B$62:$C$66,2) -> 3 | D21: =VLOOKUP('NWSI Scores'!D21,$B$62:$C$66,2) -> 5 | E21: =VLOOKUP('NWSI Scores'!E21,$B$62:$C$66,2) -> 2 | F21: =VLOOKUP('NWSI Scores'!F21,$B$62:$C$66,2) -> 4 | G21: =VLOOKUP('NWSI Scores'!G21,$A$62:$C$66,3) -> 4 | H21: =VLOOKUP('NWSI Scores'!H21,$B$62:$C$66,2) -> 4 | I21: =VLOOKUP('NWSI Scores'!I21,$B$62:$C$66,2) -> 3 | J21: =VLOOKUP('NWSI Scores'!J21,$B$62:$C$66,2) -> 5 | K21: =VLOOKUP('NWSI Scores'!K21,$B$62:$C$66,2) -> 3 | L21: =VLOOKUP('NWSI Scores'!L21,$B$62:$C$66,2) -> 4 | M21: =VLOOKUP('NWSI Scores'!M21,$A$62:$C$66,3) -> 4 | N21: =VLOOKUP('NWSI Scores'!N21,$B$62:$C$66,2) -> 4 | O21: =VLOOKUP('NWSI Scores'!O21,$B$62:$C$66,2) -> 3 | P21: =VLOOKUP('NWSI Scores'!P21,$B$62:$C$66,2) -> 5 | Q21: =VLOOKUP('NWSI Scores'!Q21,$B$62:$C$66,2) -> 3 | R21: =VLOOKUP('NWSI Scores'!R21,$B$62:$C$66,2) -> 4 | S21: =VLOOKUP('NWSI Scores'!S21,$A$62:$C$66,3) -> 4
A22: India | B22: =VLOOKUP('NWSI Scores'!B22,$B$62:$C$66,2) -> 1 | C22: =VLOOKUP('NWSI Scores'!C22,$B$62:$C$66,2) -> 2 | D22: =VLOOKUP('NWSI Scores'!D22,$B$62:$C$66,2) -> 2 | E22: =VLOOKUP('NWSI Scores'!E22,$B$62:$C$66,2) -> 1 | F22: =VLOOKUP('NWSI Scores'!F22,$B$62:$C$66,2) -> 3 | G22: =VLOOKUP('NWSI Scores'!G22,$A$62:$C$66,3) -> 2 | H22: =VLOOKUP('NWSI Scores'!H22,$B$62:$C$66,2) -> 1 | I22: =VLOOKUP('NWSI Scores'!I22,$B$62:$C$66,2) -> 2 | J22: =VLOOKUP('NWSI Scores'!J22,$B$62:$C$66,2) -> 2 | K22: =VLOOKUP('NWSI Scores'!K22,$B$62:$C$66,2) -> 1 | L22: =VLOOKUP('NWSI Scores'!L22,$B$62:$C$66,2) -> 3 | M22: =VLOOKUP('NWSI Scores'!M22,$A$62:$C$66,3) -> 2 | N22: =VLOOKUP('NWSI Scores'!N22,$B$62:$C$66,2) -> 1 | O22: =VLOOKUP('NWSI Scores'!O22,$B$62:$C$66,2) -> 2 | P22: =VLOOKUP('NWSI Scores'!P22,$B$62:$C$66,2) -> 2 | Q22: =VLOOKUP('NWSI Scores'!Q22,$B$62:$C$66,2) -> 1 | R22: =VLOOKUP('NWSI Scores'!R22,$B$62:$C$66,2) -> 3 | S22: =VLOOKUP('NWSI Scores'!S22,$A$62:$C$66,3) -> 2
A23: Indonesia | B23: =VLOOKUP('NWSI Scores'!B23,$B$62:$C$66,2) -> 2 | C23: =VLOOKUP('NWSI Scores'!C23,$B$62:$C$66,2) -> 2 | D23: =VLOOKUP('NWSI Scores'!D23,$B$62:$C$66,2) -> 2 | E23: =VLOOKUP('NWSI Scores'!E23,$B$62:$C$66,2) -> 3 | F23: =VLOOKUP('NWSI Scores'!F23,$B$62:$C$66,2) -> 2 | G23: =VLOOKUP('NWSI Scores'!G23,$A$62:$C$66,3) -> 2 | H23: =VLOOKUP('NWSI Scores'!H23,$B$62:$C$66,2) -> 2 | I23: =VLOOKUP('NWSI Scores'!I23,$B$62:$C$66,2) -> 2 | J23: =VLOOKUP('NWSI Scores'!J23,$B$62:$C$66,2) -> 2 | K23: =VLOOKUP('NWSI Scores'!K23,$B$62:$C$66,2) -> 3 | L23: =VLOOKUP('NWSI Scores'!L23,$B$62:$C$66,2) -> 2 | M23: =VLOOKUP('NWSI Scores'!M23,$A$62:$C$66,3) -> 3 | N23: =VLOOKUP('NWSI Scores'!N23,$B$62:$C$66,2) -> 2 | O23: =VLOOKUP('NWSI Scores'!O23,$B$62:$C$66,2) -> 3 | P23: =VLOOKUP('NWSI Scores'!P23,$B$62:$C$66,2) -> 2 | Q23: =VLOOKUP('NWSI Scores'!Q23,$B$62:$C$66,2) -> 3 | R23: =VLOOKUP('NWSI Scores'!R23,$B$62:$C$66,2) -> 2 | S23: =VLOOKUP('NWSI Scores'!S23,$A$62:$C$66,3) -> 3
A24: Japan | B24: =VLOOKUP('NWSI Scores'!B24,$B$62:$C$66,2) -> 4 | C24: =VLOOKUP('NWSI Scores'!C24,$B$62:$C$66,2) -> 3 | D24: =VLOOKUP('NWSI Scores'!D24,$B$62:$C$66,2) -> 4 | E24: =VLOOKUP('NWSI Scores'!E24,$B$62:$C$66,2) -> 4 | F24: =VLOOKUP('NWSI Scores'!F24,$B$62:$C$66,2) -> 5 | G24: =VLOOKUP('NWSI Scores'!G24,$A$62:$C$66,3) -> 4 | H24: =VLOOKUP('NWSI Scores'!H24,$B$62:$C$66,2) -> 4 | I24: =VLOOKUP('NWSI Scores'!I24,$B$62:$C$66,2) -> 3 | J24: =VLOOKUP('NWSI Scores'!J24,$B$62:$C$66,2) -> 4 | K24: =VLOOKUP('NWSI Scores'!K24,$B$62:$C$66,2) -> 4 | L24: =VLOOKUP('NWSI Scores'!L24,$B$62:$C$66,2) -> 5 | M24: =VLOOKUP('NWSI Scores'!M24,$A$62:$C$66,3) -> 4 | N24: =VLOOKUP('NWSI Scores'!N24,$B$62:$C$66,2) -> 4 | O24: =VLOOKUP('NWSI Scores'!O24,$B$62:$C$66,2) -> 3 | P24: =VLOOKUP('NWSI Scores'!P24,$B$62:$C$66,2) -> 4 | Q24: =VLOOKUP('NWSI Scores'!Q24,$B$62:$C$66,2) -> 4 | R24: =VLOOKUP('NWSI Scores'!R24,$B$62:$C$66,2) -> 5 | S24: =VLOOKUP('NWSI Scores'!S24,$A$62:$C$66,3) -> 4
A25: Kazakhstan | B25: =VLOOKUP('NWSI Scores'!B25,$B$62:$C$66,2) -> 3 | C25: =VLOOKUP('NWSI Scores'!C25,$B$62:$C$66,2) -> 4 | D25: =VLOOKUP('NWSI Scores'!D25,$B$62:$C$66,2) -> 3 | E25: =VLOOKUP('NWSI Scores'!E25,$B$62:$C$66,2) -> 1 | F25: =VLOOKUP('NWSI Scores'!F25,$B$62:$C$66,2) -> 4 | G25: =VLOOKUP('NWSI Scores'!G25,$A$62:$C$66,3) -> 3 | H25: =VLOOKUP('NWSI Scores'!H25,$B$62:$C$66,2) -> 3 | I25: =VLOOKUP('NWSI Scores'!I25,$B$62:$C$66,2) -> 4 | J25: =VLOOKUP('NWSI Scores'!J25,$B$62:$C$66,2) -> 4 | K25: =VLOOKUP('NWSI Scores'!K25,$B$62:$C$66,2) -> 2 | L25: =VLOOKUP('NWSI Scores'!L25,$B$62:$C$66,2) -> 4 | M25: =VLOOKUP('NWSI Scores'!M25,$A$62:$C$66,3) -> 3 | N25: =VLOOKUP('NWSI Scores'!N25,$B$62:$C$66,2) -> 4 | O25: =VLOOKUP('NWSI Scores'!O25,$B$62:$C$66,2) -> 4 | P25: =VLOOKUP('NWSI Scores'!P25,$B$62:$C$66,2) -> 4 | Q25: =VLOOKUP('NWSI Scores'!Q25,$B$62:$C$66,2) -> 2 | R25: =VLOOKUP('NWSI Scores'!R25,$B$62:$C$66,2) -> 4 | S25: =VLOOKUP('NWSI Scores'!S25,$A$62:$C$66,3) -> 3
A26: Kiribati | B26: =VLOOKUP('NWSI Scores'!B26,$B$62:$C$66,2) -> 1 | C26: =VLOOKUP('NWSI Scores'!C26,$B$62:$C$66,2) -> 2 | D26: =VLOOKUP('NWSI Scores'!D26,$B$62:$C$66,2) -> 1 | E26: =VLOOKUP('NWSI Scores'!E26,$B$62:$C$66,2) -> 3 | F26: =VLOOKUP('NWSI Scores'!F26,$B$62:$C$66,2) -> 1 | G26: =VLOOKUP('NWSI Scores'!G26,$A$62:$C$66,3) -> 2 | H26: =VLOOKUP('NWSI Scores'!H26,$B$62:$C$66,2) -> 1 | I26: =VLOOKUP('NWSI Scores'!I26,$B$62:$C$66,2) -> 2 | J26: =VLOOKUP('NWSI Scores'!J26,$B$62:$C$66,2) -> 1 | K26: =VLOOKUP('NWSI Scores'!K26,$B$62:$C$66,2) -> 3 | L26: =VLOOKUP('NWSI Scores'!L26,$B$62:$C$66,2) -> 1 | M26: =VLOOKUP('NWSI Scores'!M26,$A$62:$C$66,3) -> 2 | N26: =VLOOKUP('NWSI Scores'!N26,$B$62:$C$66,2) -> 1 | O26: =VLOOKUP('NWSI Scores'!O26,$B$62:$C$66,2) -> 2 | P26: =VLOOKUP('NWSI Scores'!P26,$B$62:$C$66,2) -> 1 | Q26: =VLOOKUP('NWSI Scores'!Q26,$B$62:$C$66,2) -> 4 | R26: =VLOOKUP('NWSI Scores'!R26,$B$62:$C$66,2) -> 1 | S26: =VLOOKUP('NWSI Scores'!S26,$A$62:$C$66,3) -> 2
A27: Korea, Republic of | B27: =VLOOKUP('NWSI Scores'!B27,$B$62:$C$66,2) -> 5 | C27: =VLOOKUP('NWSI Scores'!C27,$B$62:$C$66,2) -> 3 | D27: =VLOOKUP('NWSI Scores'!D27,$B$62:$C$66,2) -> 4 | E27: =VLOOKUP('NWSI Scores'!E27,$B$62:$C$66,2) -> 3 | F27: =VLOOKUP('NWSI Scores'!F27,$B$62:$C$66,2) -> 5 | G27: =VLOOKUP('NWSI Scores'!G27,$A$62:$C$66,3) -> 4 | H27: =VLOOKUP('NWSI Scores'!H27,$B$62:$C$66,2) -> 5 | I27: =VLOOKUP('NWSI Scores'!I27,$B$62:$C$66,2) -> 3 | J27: =VLOOKUP('NWSI Scores'!J27,$B$62:$C$66,2) -> 4 | K27: =VLOOKUP('NWSI Scores'!K27,$B$62:$C$66,2) -> 3 | L27: =VLOOKUP('NWSI Scores'!L27,$B$62:$C$66,2) -> 5 | M27: =VLOOKUP('NWSI Scores'!M27,$A$62:$C$66,3) -> 4 | N27: =VLOOKUP('NWSI Scores'!N27,$B$62:$C$66,2) -> 5 | O27: =VLOOKUP('NWSI Scores'!O27,$B$62:$C$66,2) -> 4 | P27: =VLOOKUP('NWSI Scores'!P27,$B$62:$C$66,2) -> 4 | Q27: =VLOOKUP('NWSI Scores'!Q27,$B$62:$C$66,2) -> 2 | R27: =VLOOKUP('NWSI Scores'!R27,$B$62:$C$66,2) -> 5 | S27: =VLOOKUP('NWSI Scores'!S27,$A$62:$C$66,3) -> 4
A28: Kyrgyz Republic | B28: =VLOOKUP('NWSI Scores'!B28,$B$62:$C$66,2) -> 2 | C28: =VLOOKUP('NWSI Scores'!C28,$B$62:$C$66,2) -> 2 | D28: =VLOOKUP('NWSI Scores'!D28,$B$62:$C$66,2) -> 4 | E28: =VLOOKUP('NWSI Scores'!E28,$B$62:$C$66,2) -> 3 | F28: =VLOOKUP('NWSI Scores'!F28,$B$62:$C$66,2) -> 3 | G28: =VLOOKUP('NWSI Scores'!G28,$A$62:$C$66,3) -> 3 | H28: =VLOOKUP('NWSI Scores'!H28,$B$62:$C$66,2) -> 3 | I28: =VLOOKUP('NWSI Scores'!I28,$B$62:$C$66,2) -> 2 | J28: =VLOOKUP('NWSI Scores'!J28,$B$62:$C$66,2) -> 4 | K28: =VLOOKUP('NWSI Scores'!K28,$B$62:$C$66,2) -> 3 | L28: =VLOOKUP('NWSI Scores'!L28,$B$62:$C$66,2) -> 3 | M28: =VLOOKUP('NWSI Scores'!M28,$A$62:$C$66,3) -> 3 | N28: =VLOOKUP('NWSI Scores'!N28,$B$62:$C$66,2) -> 3 | O28: =VLOOKUP('NWSI Scores'!O28,$B$62:$C$66,2) -> 2 | P28: =VLOOKUP('NWSI Scores'!P28,$B$62:$C$66,2) -> 4 | Q28: =VLOOKUP('NWSI Scores'!Q28,$B$62:$C$66,2) -> 3 | R28: =VLOOKUP('NWSI Scores'!R28,$B$62:$C$66,2) -> 4 | S28: =VLOOKUP('NWSI Scores'!S28,$A$62:$C$66,3) -> 3
A29: Lao People’s Democratic Republic | B29: =VLOOKUP('NWSI Scores'!B29,$B$62:$C$66,2) -> 1 | C29: =VLOOKUP('NWSI Scores'!C29,$B$62:$C$66,2) -> 1 | D29: =VLOOKUP('NWSI Scores'!D29,$B$62:$C$66,2) -> 3 | E29: =VLOOKUP('NWSI Scores'!E29,$B$62:$C$66,2) -> 3 | F29: =VLOOKUP('NWSI Scores'!F29,$B$62:$C$66,2) -> 2 | G29: =VLOOKUP('NWSI Scores'!G29,$A$62:$C$66,3) -> 2 | H29: =VLOOKUP('NWSI Scores'!H29,$B$62:$C$66,2) -> 1 | I29: =VLOOKUP('NWSI Scores'!I29,$B$62:$C$66,2) -> 2 | J29: =VLOOKUP('NWSI Scores'!J29,$B$62:$C$66,2) -> 3 | K29: =VLOOKUP('NWSI Scores'!K29,$B$62:$C$66,2) -> 3 | L29: =VLOOKUP('NWSI Scores'!L29,$B$62:$C$66,2) -> 2 | M29: =VLOOKUP('NWSI Scores'!M29,$A$62:$C$66,3) -> 2 | N29: =VLOOKUP('NWSI Scores'!N29,$B$62:$C$66,2) -> 1 | O29: =VLOOKUP('NWSI Scores'!O29,$B$62:$C$66,2) -> 2 | P29: =VLOOKUP('NWSI Scores'!P29,$B$62:$C$66,2) -> 4 | Q29: =VLOOKUP('NWSI Scores'!Q29,$B$62:$C$66,2) -> 3 | R29: =VLOOKUP('NWSI Scores'!R29,$B$62:$C$66,2) -> 2 | S29: =VLOOKUP('NWSI Scores'!S29,$A$62:$C$66,3) -> 2
A30: Malaysia | B30: =VLOOKUP('NWSI Scores'!B30,$B$62:$C$66,2) -> 3 | C30: =VLOOKUP('NWSI Scores'!C30,$B$62:$C$66,2) -> 3 | D30: =VLOOKUP('NWSI Scores'!D30,$B$62:$C$66,2) -> 2 | E30: =VLOOKUP('NWSI Scores'!E30,$B$62:$C$66,2) -> 3 | F30: =VLOOKUP('NWSI Scores'!F30,$B$62:$C$66,2) -> 4 | G30: =VLOOKUP('NWSI Scores'!G30,$A$62:$C$66,3) -> 3 | H30: =VLOOKUP('NWSI Scores'!H30,$B$62:$C$66,2) -> 3 | I30: =VLOOKUP('NWSI Scores'!I30,$B$62:$C$66,2) -> 4 | J30: =VLOOKUP('NWSI Scores'!J30,$B$62:$C$66,2) -> 2 | K30: =VLOOKUP('NWSI Scores'!K30,$B$62:$C$66,2) -> 3 | L30: =VLOOKUP('NWSI Scores'!L30,$B$62:$C$66,2) -> 4 | M30: =VLOOKUP('NWSI Scores'!M30,$A$62:$C$66,3) -> 3 | N30: =VLOOKUP('NWSI Scores'!N30,$B$62:$C$66,2) -> 3 | O30: =VLOOKUP('NWSI Scores'!O30,$B$62:$C$66,2) -> 3 | P30: =VLOOKUP('NWSI Scores'!P30,$B$62:$C$66,2) -> 2 | Q30: =VLOOKUP('NWSI Scores'!Q30,$B$62:$C$66,2) -> 3 | R30: =VLOOKUP('NWSI Scores'!R30,$B$62:$C$66,2) -> 4 | S30: =VLOOKUP('NWSI Scores'!S30,$A$62:$C$66,3) -> 3
A31: Maldives | B31: =VLOOKUP('NWSI Scores'!B31,$B$62:$C$66,2) -> 3 | C31: =VLOOKUP('NWSI Scores'!C31,$B$62:$C$66,2) -> 2 | D31: =VLOOKUP('NWSI Scores'!D31,$B$62:$C$66,2) -> 2 | E31: =VLOOKUP('NWSI Scores'!E31,$B$62:$C$66,2) -> 1 | F31: =VLOOKUP('NWSI Scores'!F31,$B$62:$C$66,2) -> 3 | G31: =VLOOKUP('NWSI Scores'!G31,$A$62:$C$66,3) -> 2 | H31: =VLOOKUP('NWSI Scores'!H31,$B$62:$C$66,2) -> 4 | I31: =VLOOKUP('NWSI Scores'!I31,$B$62:$C$66,2) -> 2 | J31: =VLOOKUP('NWSI Scores'!J31,$B$62:$C$66,2) -> 2 | K31: =VLOOKUP('NWSI Scores'!K31,$B$62:$C$66,2) -> 1 | L31: =VLOOKUP('NWSI Scores'!L31,$B$62:$C$66,2) -> 3 | M31: =VLOOKUP('NWSI Scores'!M31,$A$62:$C$66,3) -> 3 | N31: =VLOOKUP('NWSI Scores'!N31,$B$62:$C$66,2) -> 5 | O31: =VLOOKUP('NWSI Scores'!O31,$B$62:$C$66,2) -> 2 | P31: =VLOOKUP('NWSI Scores'!P31,$B$62:$C$66,2) -> 2 | Q31: =VLOOKUP('NWSI Scores'!Q31,$B$62:$C$66,2) -> 1 | R31: =VLOOKUP('NWSI Scores'!R31,$B$62:$C$66,2) -> 3 | S31: =VLOOKUP('NWSI Scores'!S31,$A$62:$C$66,3) -> 3
A32: Marshall Islands | B32: =VLOOKUP('NWSI Scores'!B32,$B$62:$C$66,2) -> 2 | C32: =VLOOKUP('NWSI Scores'!C32,$B$62:$C$66,2) -> 1 | D32: =VLOOKUP('NWSI Scores'!D32,$B$62:$C$66,2) -> 1 | E32: =VLOOKUP('NWSI Scores'!E32,$B$62:$C$66,2) -> 1 | F32: =VLOOKUP('NWSI Scores'!F32,$B$62:$C$66,2) -> 2 | G32: =VLOOKUP('NWSI Scores'!G32,$A$62:$C$66,3) -> 2 | H32: =VLOOKUP('NWSI Scores'!H32,$B$62:$C$66,2) -> 2 | I32: =VLOOKUP('NWSI Scores'!I32,$B$62:$C$66,2) -> 1 | J32: =VLOOKUP('NWSI Scores'!J32,$B$62:$C$66,2) -> 1 | K32: =VLOOKUP('NWSI Scores'!K32,$B$62:$C$66,2) -> 1 | L32: =VLOOKUP('NWSI Scores'!L32,$B$62:$C$66,2) -> 2 | M32: =VLOOKUP('NWSI Scores'!M32,$A$62:$C$66,3) -> 1 | N32: =VLOOKUP('NWSI Scores'!N32,$B$62:$C$66,2) -> 2 | O32: =VLOOKUP('NWSI Scores'!O32,$B$62:$C$66,2) -> 1 | P32: =VLOOKUP('NWSI Scores'!P32,$B$62:$C$66,2) -> 2 | Q32: =VLOOKUP('NWSI Scores'!Q32,$B$62:$C$66,2) -> 3 | R32: =VLOOKUP('NWSI Scores'!R32,$B$62:$C$66,2) -> 2 | S32: =VLOOKUP('NWSI Scores'!S32,$A$62:$C$66,3) -> 2
A33: Micronesia, Federated States of | B33: =VLOOKUP('NWSI Scores'!B33,$B$62:$C$66,2) -> 2 | C33: =VLOOKUP('NWSI Scores'!C33,$B$62:$C$66,2) -> 1 | D33: =VLOOKUP('NWSI Scores'!D33,$B$62:$C$66,2) -> 1 | E33: =VLOOKUP('NWSI Scores'!E33,$B$62:$C$66,2) -> 2 | F33: =VLOOKUP('NWSI Scores'!F33,$B$62:$C$66,2) -> 1 | G33: =VLOOKUP('NWSI Scores'!G33,$A$62:$C$66,3) -> 1 | H33: =VLOOKUP('NWSI Scores'!H33,$B$62:$C$66,2) -> 2 | I33: =VLOOKUP('NWSI Scores'!I33,$B$62:$C$66,2) -> 1 | J33: =VLOOKUP('NWSI Scores'!J33,$B$62:$C$66,2) -> 1 | K33: =VLOOKUP('NWSI Scores'!K33,$B$62:$C$66,2) -> 2 | L33: =VLOOKUP('NWSI Scores'!L33,$B$62:$C$66,2) -> 1 | M33: =VLOOKUP('NWSI Scores'!M33,$A$62:$C$66,3) -> 1 | N33: =VLOOKUP('NWSI Scores'!N33,$B$62:$C$66,2) -> 2 | O33: =VLOOKUP('NWSI Scores'!O33,$B$62:$C$66,2) -> 1 | P33: =VLOOKUP('NWSI Scores'!P33,$B$62:$C$66,2) -> 1 | Q33: =VLOOKUP('NWSI Scores'!Q33,$B$62:$C$66,2) -> 3 | R33: =VLOOKUP('NWSI Scores'!R33,$B$62:$C$66,2) -> 1 | S33: =VLOOKUP('NWSI Scores'!S33,$A$62:$C$66,3) -> 2
A34: Mongolia | B34: =VLOOKUP('NWSI Scores'!B34,$B$62:$C$66,2) -> 2 | C34: =VLOOKUP('NWSI Scores'!C34,$B$62:$C$66,2) -> 2 | D34: =VLOOKUP('NWSI Scores'!D34,$B$62:$C$66,2) -> 2 | E34: =VLOOKUP('NWSI Scores'!E34,$B$62:$C$66,2) -> 2 | F34: =VLOOKUP('NWSI Scores'!F34,$B$62:$C$66,2) -> 3 | G34: =VLOOKUP('NWSI Scores'!G34,$A$62:$C$66,3) -> 2 | H34: =VLOOKUP('NWSI Scores'!H34,$B$62:$C$66,2) -> 2 | I34: =VLOOKUP('NWSI Scores'!I34,$B$62:$C$66,2) -> 2 | J34: =VLOOKUP('NWSI Scores'!J34,$B$62:$C$66,2) -> 2 | K34: =VLOOKUP('NWSI Scores'!K34,$B$62:$C$66,2) -> 3 | L34: =VLOOKUP('NWSI Scores'!L34,$B$62:$C$66,2) -> 4 | M34: =VLOOKUP('NWSI Scores'!M34,$A$62:$C$66,3) -> 3 | N34: =VLOOKUP('NWSI Scores'!N34,$B$62:$C$66,2) -> 1 | O34: =VLOOKUP('NWSI Scores'!O34,$B$62:$C$66,2) -> 2 | P34: =VLOOKUP('NWSI Scores'!P34,$B$62:$C$66,2) -> 2 | Q34: =VLOOKUP('NWSI Scores'!Q34,$B$62:$C$66,2) -> 3 | R34: =VLOOKUP('NWSI Scores'!R34,$B$62:$C$66,2) -> 4 | S34: =VLOOKUP('NWSI Scores'!S34,$A$62:$C$66,3) -> 3
A35: Myanmar | B35: =VLOOKUP('NWSI Scores'!B35,$B$62:$C$66,2) -> 1 | C35: =VLOOKUP('NWSI Scores'!C35,$B$62:$C$66,2) -> 2 | D35: =VLOOKUP('NWSI Scores'!D35,$B$62:$C$66,2) -> 1 | E35: =VLOOKUP('NWSI Scores'!E35,$B$62:$C$66,2) -> 2 | F35: =VLOOKUP('NWSI Scores'!F35,$B$62:$C$66,2) -> 2 | G35: =VLOOKUP('NWSI Scores'!G35,$A$62:$C$66,3) -> 2 | H35: =VLOOKUP('NWSI Scores'!H35,$B$62:$C$66,2) -> 1 | I35: =VLOOKUP('NWSI Scores'!I35,$B$62:$C$66,2) -> 2 | J35: =VLOOKUP('NWSI Scores'!J35,$B$62:$C$66,2) -> 2 | K35: =VLOOKUP('NWSI Scores'!K35,$B$62:$C$66,2) -> 3 | L35: =VLOOKUP('NWSI Scores'!L35,$B$62:$C$66,2) -> 2 | M35: =VLOOKUP('NWSI Scores'!M35,$A$62:$C$66,3) -> 2 | N35: =VLOOKUP('NWSI Scores'!N35,$B$62:$C$66,2) -> 1 | O35: =VLOOKUP('NWSI Scores'!O35,$B$62:$C$66,2) -> 2 | P35: =VLOOKUP('NWSI Scores'!P35,$B$62:$C$66,2) -> 2 | Q35: =VLOOKUP('NWSI Scores'!Q35,$B$62:$C$66,2) -> 2 | R35: =VLOOKUP('NWSI Scores'!R35,$B$62:$C$66,2) -> 2 | S35: =VLOOKUP('NWSI Scores'!S35,$A$62:$C$66,3) -> 2
A36: Nauru | B36: =VLOOKUP('NWSI Scores'!B36,$B$62:$C$66,2) -> 2 | C36: =VLOOKUP('NWSI Scores'!C36,$B$62:$C$66,2) -> 1 | D36: =VLOOKUP('NWSI Scores'!D36,$B$62:$C$66,2) -> 1 | E36: =VLOOKUP('NWSI Scores'!E36,$B$62:$C$66,2) -> 4 | F36: =VLOOKUP('NWSI Scores'!F36,$B$62:$C$66,2) -> 3 | G36: =VLOOKUP('NWSI Scores'!G36,$A$62:$C$66,3) -> 2 | H36: =VLOOKUP('NWSI Scores'!H36,$B$62:$C$66,2) -> 2 | I36: =VLOOKUP('NWSI Scores'!I36,$B$62:$C$66,2) -> 2 | J36: =VLOOKUP('NWSI Scores'!J36,$B$62:$C$66,2) -> 1 | K36: =VLOOKUP('NWSI Scores'!K36,$B$62:$C$66,2) -> 4 | L36: =VLOOKUP('NWSI Scores'!L36,$B$62:$C$66,2) -> 4 | M36: =VLOOKUP('NWSI Scores'!M36,$A$62:$C$66,3) -> 3 | N36: =VLOOKUP('NWSI Scores'!N36,$B$62:$C$66,2) -> 2 | O36: =VLOOKUP('NWSI Scores'!O36,$B$62:$C$66,2) -> 1 | P36: =VLOOKUP('NWSI Scores'!P36,$B$62:$C$66,2) -> 1 | Q36: =VLOOKUP('NWSI Scores'!Q36,$B$62:$C$66,2) -> 4 | R36: =VLOOKUP('NWSI Scores'!R36,$B$62:$C$66,2) -> 4 | S36: =VLOOKUP('NWSI Scores'!S36,$A$62:$C$66,3) -> 2
A37: Nepal | B37: =VLOOKUP('NWSI Scores'!B37,$B$62:$C$66,2) -> 1 | C37: =VLOOKUP('NWSI Scores'!C37,$B$62:$C$66,2) -> 2 | D37: =VLOOKUP('NWSI Scores'!D37,$B$62:$C$66,2) -> 3 | E37: =VLOOKUP('NWSI Scores'!E37,$B$62:$C$66,2) -> 2 | F37: =VLOOKUP('NWSI Scores'!F37,$B$62:$C$66,2) -> 2 | G37: =VLOOKUP('NWSI Scores'!G37,$A$62:$C$66,3) -> 2 | H37: =VLOOKUP('NWSI Scores'!H37,$B$62:$C$66,2) -> 1 | I37: =VLOOKUP('NWSI Scores'!I37,$B$62:$C$66,2) -> 2 | J37: =VLOOKUP('NWSI Scores'!J37,$B$62:$C$66,2) -> 3 | K37: =VLOOKUP('NWSI Scores'!K37,$B$62:$C$66,2) -> 3 | L37: =VLOOKUP('NWSI Scores'!L37,$B$62:$C$66,2) -> 3 | M37: =VLOOKUP('NWSI Scores'!M37,$A$62:$C$66,3) -> 2 | N37: =VLOOKUP('NWSI Scores'!N37,$B$62:$C$66,2) -> 1 | O37: =VLOOKUP('NWSI Scores'!O37,$B$62:$C$66,2) -> 2 | P37: =VLOOKUP('NWSI Scores'!P37,$B$62:$C$66,2) -> 2 | Q37: =VLOOKUP('NWSI Scores'!Q37,$B$62:$C$66,2) -> 3 | R37: =VLOOKUP('NWSI Scores'!R37,$B$62:$C$66,2) -> 3 | S37: =VLOOKUP('NWSI Scores'!S37,$A$62:$C$66,3) -> 2
A38: New Zealand | B38: =VLOOKUP('NWSI Scores'!B38,$B$62:$C$66,2) -> 5 | C38: =VLOOKUP('NWSI Scores'!C38,$B$62:$C$66,2) -> 3 | D38: =VLOOKUP('NWSI Scores'!D38,$B$62:$C$66,2) -> 5 | E38: =VLOOKUP('NWSI Scores'!E38,$B$62:$C$66,2) -> 3 | F38: =VLOOKUP('NWSI Scores'!F38,$B$62:$C$66,2) -> 5 | G38: =VLOOKUP('NWSI Scores'!G38,$A$62:$C$66,3) -> 4 | H38: =VLOOKUP('NWSI Scores'!H38,$B$62:$C$66,2) -> 5 | I38: =VLOOKUP('NWSI Scores'!I38,$B$62:$C$66,2) -> 3 | J38: =VLOOKUP('NWSI Scores'!J38,$B$62:$C$66,2) -> 5 | K38: =VLOOKUP('NWSI Scores'!K38,$B$62:$C$66,2) -> 3 | L38: =VLOOKUP('NWSI Scores'!L38,$B$62:$C$66,2) -> 5 | M38: =VLOOKUP('NWSI Scores'!M38,$A$62:$C$66,3) -> 4 | N38: =VLOOKUP('NWSI Scores'!N38,$B$62:$C$66,2) -> 5 | O38: =VLOOKUP('NWSI Scores'!O38,$B$62:$C$66,2) -> 3 | P38: =VLOOKUP('NWSI Scores'!P38,$B$62:$C$66,2) -> 5 | Q38: =VLOOKUP('NWSI Scores'!Q38,$B$62:$C$66,2) -> 3 | R38: =VLOOKUP('NWSI Scores'!R38,$B$62:$C$66,2) -> 5 | S38: =VLOOKUP('NWSI Scores'!S38,$A$62:$C$66,3) -> 4
A39: Niue | B39: =VLOOKUP('NWSI Scores'!B39,$B$62:$C$66,2) -> 3 | C39: =VLOOKUP('NWSI Scores'!C39,$B$62:$C$66,2) -> 1 | D39: =VLOOKUP('NWSI Scores'!D39,$B$62:$C$66,2) -> 2 | E39: =VLOOKUP('NWSI Scores'!E39,$B$62:$C$66,2) -> 3 | F39: =VLOOKUP('NWSI Scores'!F39,$B$62:$C$66,2) -> 3 | G39: =VLOOKUP('NWSI Scores'!G39,$A$62:$C$66,3) -> 2 | H39: =VLOOKUP('NWSI Scores'!H39,$B$62:$C$66,2) -> 3 | I39: =VLOOKUP('NWSI Scores'!I39,$B$62:$C$66,2) -> 1 | J39: =VLOOKUP('NWSI Scores'!J39,$B$62:$C$66,2) -> 2 | K39: =VLOOKUP('NWSI Scores'!K39,$B$62:$C$66,2) -> 3 | L39: =VLOOKUP('NWSI Scores'!L39,$B$62:$C$66,2) -> 4 | M39: =VLOOKUP('NWSI Scores'!M39,$A$62:$C$66,3) -> 2 | N39: =VLOOKUP('NWSI Scores'!N39,$B$62:$C$66,2) -> 3 | O39: =VLOOKUP('NWSI Scores'!O39,$B$62:$C$66,2) -> 1 | P39: =VLOOKUP('NWSI Scores'!P39,$B$62:$C$66,2) -> 2 | Q39: =VLOOKUP('NWSI Scores'!Q39,$B$62:$C$66,2) -> 3 | R39: =VLOOKUP('NWSI Scores'!R39,$B$62:$C$66,2) -> 4 | S39: =VLOOKUP('NWSI Scores'!S39,$A$62:$C$66,3) -> 3
A40: Pakistan | B40: =VLOOKUP('NWSI Scores'!B40,$B$62:$C$66,2) -> 1 | C40: =VLOOKUP('NWSI Scores'!C40,$B$62:$C$66,2) -> 2 | D40: =VLOOKUP('NWSI Scores'!D40,$B$62:$C$66,2) -> 2 | E40: =VLOOKUP('NWSI Scores'!E40,$B$62:$C$66,2) -> 1 | F40: =VLOOKUP('NWSI Scores'!F40,$B$62:$C$66,2) -> 1 | G40: =VLOOKUP('NWSI Scores'!G40,$A$62:$C$66,3) -> 1 | H40: =VLOOKUP('NWSI Scores'!H40,$B$62:$C$66,2) -> 1 | I40: =VLOOKUP('NWSI Scores'!I40,$B$62:$C$66,2) -> 2 | J40: =VLOOKUP('NWSI Scores'!J40,$B$62:$C$66,2) -> 2 | K40: =VLOOKUP('NWSI Scores'!K40,$B$62:$C$66,2) -> 2 | L40: =VLOOKUP('NWSI Scores'!L40,$B$62:$C$66,2) -> 2 | M40: =VLOOKUP('NWSI Scores'!M40,$A$62:$C$66,3) -> 2 | N40: =VLOOKUP('NWSI Scores'!N40,$B$62:$C$66,2) -> 1 | O40: =VLOOKUP('NWSI Scores'!O40,$B$62:$C$66,2) -> 2 | P40: =VLOOKUP('NWSI Scores'!P40,$B$62:$C$66,2) -> 2 | Q40: =VLOOKUP('NWSI Scores'!Q40,$B$62:$C$66,2) -> 1 | R40: =VLOOKUP('NWSI Scores'!R40,$B$62:$C$66,2) -> 2 | S40: =VLOOKUP('NWSI Scores'!S40,$A$62:$C$66,3) -> 2
A41: Palau | B41: =VLOOKUP('NWSI Scores'!B41,$B$62:$C$66,2) -> 4 | C41: =VLOOKUP('NWSI Scores'!C41,$B$62:$C$66,2) -> 2 | D41: =VLOOKUP('NWSI Scores'!D41,$B$62:$C$66,2) -> 2 | E41: =VLOOKUP('NWSI Scores'!E41,$B$62:$C$66,2) -> 2 | F41: =VLOOKUP('NWSI Scores'!F41,$B$62:$C$66,2) -> 3 | G41: =VLOOKUP('NWSI Scores'!G41,$A$62:$C$66,3) -> 3 | H41: =VLOOKUP('NWSI Scores'!H41,$B$62:$C$66,2) -> 4 | I41: =VLOOKUP('NWSI Scores'!I41,$B$62:$C$66,2) -> 2 | J41: =VLOOKUP('NWSI Scores'!J41,$B$62:$C$66,2) -> 3 | K41: =VLOOKUP('NWSI Scores'!K41,$B$62:$C$66,2) -> 2 | L41: =VLOOKUP('NWSI Scores'!L41,$B$62:$C$66,2) -> 4 | M41: =VLOOKUP('NWSI Scores'!M41,$A$62:$C$66,3) -> 3 | N41: =VLOOKUP('NWSI Scores'!N41,$B$62:$C$66,2) -> 4 | O41: =VLOOKUP('NWSI Scores'!O41,$B$62:$C$66,2) -> 2 | P41: =VLOOKUP('NWSI Scores'!P41,$B$62:$C$66,2) -> 3 | Q41: =VLOOKUP('NWSI Scores'!Q41,$B$62:$C$66,2) -> 3 | R41: =VLOOKUP('NWSI Scores'!R41,$B$62:$C$66,2) -> 4 | S41: =VLOOKUP('NWSI Scores'!S41,$A$62:$C$66,3) -> 3
A42: Papua New Guinea | B42: =VLOOKUP('NWSI Scores'!B42,$B$62:$C$66,2) -> 1 | C42: =VLOOKUP('NWSI Scores'!C42,$B$62:$C$66,2) -> 2 | D42: =VLOOKUP('NWSI Scores'!D42,$B$62:$C$66,2) -> 1 | E42: =VLOOKUP('NWSI Scores'!E42,$B$62:$C$66,2) -> 3 | F42: =VLOOKUP('NWSI Scores'!F42,$B$62:$C$66,2) -> 2 | G42: =VLOOKUP('NWSI Scores'!G42,$A$62:$C$66,3) -> 1 | H42: =VLOOKUP('NWSI Scores'!H42,$B$62:$C$66,2) -> 1 | I42: =VLOOKUP('NWSI Scores'!I42,$B$62:$C$66,2) -> 2 | J42: =VLOOKUP('NWSI Scores'!J42,$B$62:$C$66,2) -> 1 | K42: =VLOOKUP('NWSI Scores'!K42,$B$62:$C$66,2) -> 3 | L42: =VLOOKUP('NWSI Scores'!L42,$B$62:$C$66,2) -> 2 | M42: =VLOOKUP('NWSI Scores'!M42,$A$62:$C$66,3) -> 2 | N42: =VLOOKUP('NWSI Scores'!N42,$B$62:$C$66,2) -> 1 | O42: =VLOOKUP('NWSI Scores'!O42,$B$62:$C$66,2) -> 2 | P42: =VLOOKUP('NWSI Scores'!P42,$B$62:$C$66,2) -> 1 | Q42: =VLOOKUP('NWSI Scores'!Q42,$B$62:$C$66,2) -> 3 | R42: =VLOOKUP('NWSI Scores'!R42,$B$62:$C$66,2) -> 2 | S42: =VLOOKUP('NWSI Scores'!S42,$A$62:$C$66,3) -> 2
A43: Philippines | B43: =VLOOKUP('NWSI Scores'!B43,$B$62:$C$66,2) -> 1 | C43: =VLOOKUP('NWSI Scores'!C43,$B$62:$C$66,2) -> 2 | D43: =VLOOKUP('NWSI Scores'!D43,$B$62:$C$66,2) -> 3 | E43: =VLOOKUP('NWSI Scores'!E43,$B$62:$C$66,2) -> 3 | F43: =VLOOKUP('NWSI Scores'!F43,$B$62:$C$66,2) -> 2 | G43: =VLOOKUP('NWSI Scores'!G43,$A$62:$C$66,3) -> 2 | H43: =VLOOKUP('NWSI Scores'!H43,$B$62:$C$66,2) -> 2 | I43: =VLOOKUP('NWSI Scores'!I43,$B$62:$C$66,2) -> 2 | J43: =VLOOKUP('NWSI Scores'!J43,$B$62:$C$66,2) -> 4 | K43: =VLOOKUP('NWSI Scores'!K43,$B$62:$C$66,2) -> 4 | L43: =VLOOKUP('NWSI Scores'!L43,$B$62:$C$66,2) -> 3 | M43: =VLOOKUP('NWSI Scores'!M43,$A$62:$C$66,3) -> 3 | N43: =VLOOKUP('NWSI Scores'!N43,$B$62:$C$66,2) -> 2 | O43: =VLOOKUP('NWSI Scores'!O43,$B$62:$C$66,2) -> 2 | P43: =VLOOKUP('NWSI Scores'!P43,$B$62:$C$66,2) -> 4 | Q43: =VLOOKUP('NWSI Scores'!Q43,$B$62:$C$66,2) -> 4 | R43: =VLOOKUP('NWSI Scores'!R43,$B$62:$C$66,2) -> 3 | S43: =VLOOKUP('NWSI Scores'!S43,$A$62:$C$66,3) -> 3
A44: Samoa | B44: =VLOOKUP('NWSI Scores'!B44,$B$62:$C$66,2) -> 3 | C44: =VLOOKUP('NWSI Scores'!C44,$B$62:$C$66,2) -> 2 | D44: =VLOOKUP('NWSI Scores'!D44,$B$62:$C$66,2) -> 2 | E44: =VLOOKUP('NWSI Scores'!E44,$B$62:$C$66,2) -> 2 | F44: =VLOOKUP('NWSI Scores'!F44,$B$62:$C$66,2) -> 2 | G44: =VLOOKUP('NWSI Scores'!G44,$A$62:$C$66,3) -> 2 | H44: =VLOOKUP('NWSI Scores'!H44,$B$62:$C$66,2) -> 3 | I44: =VLOOKUP('NWSI Scores'!I44,$B$62:$C$66,2) -> 2 | J44: =VLOOKUP('NWSI Scores'!J44,$B$62:$C$66,2) -> 3 | K44: =VLOOKUP('NWSI Scores'!K44,$B$62:$C$66,2) -> 3 | L44: =VLOOKUP('NWSI Scores'!L44,$B$62:$C$66,2) -> 3 | M44: =VLOOKUP('NWSI Scores'!M44,$A$62:$C$66,3) -> 3 | N44: =VLOOKUP('NWSI Scores'!N44,$B$62:$C$66,2) -> 3 | O44: =VLOOKUP('NWSI Scores'!O44,$B$62:$C$66,2) -> 2 | P44: =VLOOKUP('NWSI Scores'!P44,$B$62:$C$66,2) -> 3 | Q44: =VLOOKUP('NWSI Scores'!Q44,$B$62:$C$66,2) -> 3 | R44: =VLOOKUP('NWSI Scores'!R44,$B$62:$C$66,2) -> 3 | S44: =VLOOKUP('NWSI Scores'!S44,$A$62:$C$66,3) -> 3
A45: Singapore | B45: =VLOOKUP('NWSI Scores'!B45,$B$62:$C$66,2) -> 3 | C45: =VLOOKUP('NWSI Scores'!C45,$B$62:$C$66,2) -> 3 | D45: =VLOOKUP('NWSI Scores'!D45,$B$62:$C$66,2) -> 4 | E45: =VLOOKUP('NWSI Scores'!E45,$B$62:$C$66,2) -> 1 | F45: =VLOOKUP('NWSI Scores'!F45,$B$62:$C$66,2) -> 5 | G45: =VLOOKUP('NWSI Scores'!G45,$A$62:$C$66,3) -> 3 | H45: =VLOOKUP('NWSI Scores'!H45,$B$62:$C$66,2) -> 4 | I45: =VLOOKUP('NWSI Scores'!I45,$B$62:$C$66,2) -> 3 | J45: =VLOOKUP('NWSI Scores'!J45,$B$62:$C$66,2) -> 5 | K45: =VLOOKUP('NWSI Scores'!K45,$B$62:$C$66,2) -> 2 | L45: =VLOOKUP('NWSI Scores'!L45,$B$62:$C$66,2) -> 5 | M45: =VLOOKUP('NWSI Scores'!M45,$A$62:$C$66,3) -> 4 | N45: =VLOOKUP('NWSI Scores'!N45,$B$62:$C$66,2) -> 4 | O45: =VLOOKUP('NWSI Scores'!O45,$B$62:$C$66,2) -> 3 | P45: =VLOOKUP('NWSI Scores'!P45,$B$62:$C$66,2) -> 4 | Q45: =VLOOKUP('NWSI Scores'!Q45,$B$62:$C$66,2) -> 1 | R45: =VLOOKUP('NWSI Scores'!R45,$B$62:$C$66,2) -> 5 | S45: =VLOOKUP('NWSI Scores'!S45,$A$62:$C$66,3) -> 4
A46: Solomon Islands | B46: =VLOOKUP('NWSI Scores'!B46,$B$62:$C$66,2) -> 1 | C46: =VLOOKUP('NWSI Scores'!C46,$B$62:$C$66,2) -> 3 | D46: =VLOOKUP('NWSI Scores'!D46,$B$62:$C$66,2) -> 2 | E46: =VLOOKUP('NWSI Scores'!E46,$B$62:$C$66,2) -> 2 | F46: =VLOOKUP('NWSI Scores'!F46,$B$62:$C$66,2) -> 3 | G46: =VLOOKUP('NWSI Scores'!G46,$A$62:$C$66,3) -> 2 | H46: =VLOOKUP('NWSI Scores'!H46,$B$62:$C$66,2) -> 1 | I46: =VLOOKUP('NWSI Scores'!I46,$B$62:$C$66,2) -> 3 | J46: =VLOOKUP('NWSI Scores'!J46,$B$62:$C$66,2) -> 1 | K46: =VLOOKUP('NWSI Scores'!K46,$B$62:$C$66,2) -> 2 | L46: =VLOOKUP('NWSI Scores'!L46,$B$62:$C$66,2) -> 2 | M46: =VLOOKUP('NWSI Scores'!M46,$A$62:$C$66,3) -> 2 | N46: =VLOOKUP('NWSI Scores'!N46,$B$62:$C$66,2) -> 1 | O46: =VLOOKUP('NWSI Scores'!O46,$B$62:$C$66,2) -> 3 | P46: =VLOOKUP('NWSI Scores'!P46,$B$62:$C$66,2) -> 1 | Q46: =VLOOKUP('NWSI Scores'!Q46,$B$62:$C$66,2) -> 2 | R46: =VLOOKUP('NWSI Scores'!R46,$B$62:$C$66,2) -> 2 | S46: =VLOOKUP('NWSI Scores'!S46,$A$62:$C$66,3) -> 2
A47: Sri Lanka | B47: =VLOOKUP('NWSI Scores'!B47,$B$62:$C$66,2) -> 2 | C47: =VLOOKUP('NWSI Scores'!C47,$B$62:$C$66,2) -> 2 | D47: =VLOOKUP('NWSI Scores'!D47,$B$62:$C$66,2) -> 3 | E47: =VLOOKUP('NWSI Scores'!E47,$B$62:$C$66,2) -> 2 | F47: =VLOOKUP('NWSI Scores'!F47,$B$62:$C$66,2) -> 2 | G47: =VLOOKUP('NWSI Scores'!G47,$A$62:$C$66,3) -> 2 | H47: =VLOOKUP('NWSI Scores'!H47,$B$62:$C$66,2) -> 3 | I47: =VLOOKUP('NWSI Scores'!I47,$B$62:$C$66,2) -> 2 | J47: =VLOOKUP('NWSI Scores'!J47,$B$62:$C$66,2) -> 3 | K47: =VLOOKUP('NWSI Scores'!K47,$B$62:$C$66,2) -> 2 | L47: =VLOOKUP('NWSI Scores'!L47,$B$62:$C$66,2) -> 2 | M47: =VLOOKUP('NWSI Scores'!M47,$A$62:$C$66,3) -> 2 | N47: =VLOOKUP('NWSI Scores'!N47,$B$62:$C$66,2) -> 3 | O47: =VLOOKUP('NWSI Scores'!O47,$B$62:$C$66,2) -> 2 | P47: =VLOOKUP('NWSI Scores'!P47,$B$62:$C$66,2) -> 3 | Q47: =VLOOKUP('NWSI Scores'!Q47,$B$62:$C$66,2) -> 2 | R47: =VLOOKUP('NWSI Scores'!R47,$B$62:$C$66,2) -> 2 | S47: =VLOOKUP('NWSI Scores'!S47,$A$62:$C$66,3) -> 2
A48: Taipei, China | B48: =VLOOKUP('NWSI Scores'!B48,$B$62:$C$66,2) -> 4 | C48: =VLOOKUP('NWSI Scores'!C48,$B$62:$C$66,2) -> 3 | D48: =VLOOKUP('NWSI Scores'!D48,$B$62:$C$66,2) -> 4 | E48: =VLOOKUP('NWSI Scores'!E48,$B$62:$C$66,2) -> 2 | F48: =VLOOKUP('NWSI Scores'!F48,$B$62:$C$66,2) -> 3 | G48: =VLOOKUP('NWSI Scores'!G48,$A$62:$C$66,3) -> 3 | H48: =VLOOKUP('NWSI Scores'!H48,$B$62:$C$66,2) -> 4 | I48: =VLOOKUP('NWSI Scores'!I48,$B$62:$C$66,2) -> 3 | J48: =VLOOKUP('NWSI Scores'!J48,$B$62:$C$66,2) -> 4 | K48: =VLOOKUP('NWSI Scores'!K48,$B$62:$C$66,2) -> 3 | L48: =VLOOKUP('NWSI Scores'!L48,$B$62:$C$66,2) -> 4 | M48: =VLOOKUP('NWSI Scores'!M48,$A$62:$C$66,3) -> 3 | N48: =VLOOKUP('NWSI Scores'!N48,$B$62:$C$66,2) -> 4 | O48: =VLOOKUP('NWSI Scores'!O48,$B$62:$C$66,2) -> 3 | P48: =VLOOKUP('NWSI Scores'!P48,$B$62:$C$66,2) -> 4 | Q48: =VLOOKUP('NWSI Scores'!Q48,$B$62:$C$66,2) -> 3 | R48: =VLOOKUP('NWSI Scores'!R48,$B$62:$C$66,2) -> 4 | S48: =VLOOKUP('NWSI Scores'!S48,$A$62:$C$66,3) -> 4
A49: Tajikistan | B49: =VLOOKUP('NWSI Scores'!B49,$B$62:$C$66,2) -> 1 | C49: =VLOOKUP('NWSI Scores'!C49,$B$62:$C$66,2) -> 1 | D49: =VLOOKUP('NWSI Scores'!D49,$B$62:$C$66,2) -> 2 | E49: =VLOOKUP('NWSI Scores'!E49,$B$62:$C$66,2) -> 2 | F49: =VLOOKUP('NWSI Scores'!F49,$B$62:$C$66,2) -> 3 | G49: =VLOOKUP('NWSI Scores'!G49,$A$62:$C$66,3) -> 2 | H49: =VLOOKUP('NWSI Scores'!H49,$B$62:$C$66,2) -> 1 | I49: =VLOOKUP('NWSI Scores'!I49,$B$62:$C$66,2) -> 2 | J49: =VLOOKUP('NWSI Scores'!J49,$B$62:$C$66,2) -> 2 | K49: =VLOOKUP('NWSI Scores'!K49,$B$62:$C$66,2) -> 3 | L49: =VLOOKUP('NWSI Scores'!L49,$B$62:$C$66,2) -> 3 | M49: =VLOOKUP('NWSI Scores'!M49,$A$62:$C$66,3) -> 2 | N49: =VLOOKUP('NWSI Scores'!N49,$B$62:$C$66,2) -> 2 | O49: =VLOOKUP('NWSI Scores'!O49,$B$62:$C$66,2) -> 1 | P49: =VLOOKUP('NWSI Scores'!P49,$B$62:$C$66,2) -> 2 | Q49: =VLOOKUP('NWSI Scores'!Q49,$B$62:$C$66,2) -> 3 | R49: =VLOOKUP('NWSI Scores'!R49,$B$62:$C$66,2) -> 4 | S49: =VLOOKUP('NWSI Scores'!S49,$A$62:$C$66,3) -> 2
A50: Thailand | B50: =VLOOKUP('NWSI Scores'!B50,$B$62:$C$66,2) -> 3 | C50: =VLOOKUP('NWSI Scores'!C50,$B$62:$C$66,2) -> 3 | D50: =VLOOKUP('NWSI Scores'!D50,$B$62:$C$66,2) -> 2 | E50: =VLOOKUP('NWSI Scores'!E50,$B$62:$C$66,2) -> 2 | F50: =VLOOKUP('NWSI Scores'!F50,$B$62:$C$66,2) -> 2 | G50: =VLOOKUP('NWSI Scores'!G50,$A$62:$C$66,3) -> 2 | H50: =VLOOKUP('NWSI Scores'!H50,$B$62:$C$66,2) -> 3 | I50: =VLOOKUP('NWSI Scores'!I50,$B$62:$C$66,2) -> 3 | J50: =VLOOKUP('NWSI Scores'!J50,$B$62:$C$66,2) -> 2 | K50: =VLOOKUP('NWSI Scores'!K50,$B$62:$C$66,2) -> 2 | L50: =VLOOKUP('NWSI Scores'!L50,$B$62:$C$66,2) -> 2 | M50: =VLOOKUP('NWSI Scores'!M50,$A$62:$C$66,3) -> 2 | N50: =VLOOKUP('NWSI Scores'!N50,$B$62:$C$66,2) -> 3 | O50: =VLOOKUP('NWSI Scores'!O50,$B$62:$C$66,2) -> 3 | P50: =VLOOKUP('NWSI Scores'!P50,$B$62:$C$66,2) -> 2 | Q50: =VLOOKUP('NWSI Scores'!Q50,$B$62:$C$66,2) -> 2 | R50: =VLOOKUP('NWSI Scores'!R50,$B$62:$C$66,2) -> 2 | S50: =VLOOKUP('NWSI Scores'!S50,$A$62:$C$66,3) -> 2
A51: Timor-Leste | B51: =VLOOKUP('NWSI Scores'!B51,$B$62:$C$66,2) -> 1 | C51: =VLOOKUP('NWSI Scores'!C51,$B$62:$C$66,2) -> 3 | D51: =VLOOKUP('NWSI Scores'!D51,$B$62:$C$66,2) -> 1 | E51: =VLOOKUP('NWSI Scores'!E51,$B$62:$C$66,2) -> 2 | F51: =VLOOKUP('NWSI Scores'!F51,$B$62:$C$66,2) -> 3 | G51: =VLOOKUP('NWSI Scores'!G51,$A$62:$C$66,3) -> 2 | H51: =VLOOKUP('NWSI Scores'!H51,$B$62:$C$66,2) -> 1 | I51: =VLOOKUP('NWSI Scores'!I51,$B$62:$C$66,2) -> 3 | J51: =VLOOKUP('NWSI Scores'!J51,$B$62:$C$66,2) -> 1 | K51: =VLOOKUP('NWSI Scores'!K51,$B$62:$C$66,2) -> 3 | L51: =VLOOKUP('NWSI Scores'!L51,$B$62:$C$66,2) -> 4 | M51: =VLOOKUP('NWSI Scores'!M51,$A$62:$C$66,3) -> 2 | N51: =VLOOKUP('NWSI Scores'!N51,$B$62:$C$66,2) -> 1 | O51: =VLOOKUP('NWSI Scores'!O51,$B$62:$C$66,2) -> 2 | P51: =VLOOKUP('NWSI Scores'!P51,$B$62:$C$66,2) -> 1 | Q51: =VLOOKUP('NWSI Scores'!Q51,$B$62:$C$66,2) -> 3 | R51: =VLOOKUP('NWSI Scores'!R51,$B$62:$C$66,2) -> 3 | S51: =VLOOKUP('NWSI Scores'!S51,$A$62:$C$66,3) -> 2
A52: Tonga | B52: =VLOOKUP('NWSI Scores'!B52,$B$62:$C$66,2) -> 3 | C52: =VLOOKUP('NWSI Scores'!C52,$B$62:$C$66,2) -> 1 | D52: =VLOOKUP('NWSI Scores'!D52,$B$62:$C$66,2) -> 2 | E52: =VLOOKUP('NWSI Scores'!E52,$B$62:$C$66,2) -> 3 | F52: =VLOOKUP('NWSI Scores'!F52,$B$62:$C$66,2) -> 3 | G52: =VLOOKUP('NWSI Scores'!G52,$A$62:$C$66,3) -> 3 | H52: =VLOOKUP('NWSI Scores'!H52,$B$62:$C$66,2) -> 3 | I52: =VLOOKUP('NWSI Scores'!I52,$B$62:$C$66,2) -> 1 | J52: =VLOOKUP('NWSI Scores'!J52,$B$62:$C$66,2) -> 2 | K52: =VLOOKUP('NWSI Scores'!K52,$B$62:$C$66,2) -> 3 | L52: =VLOOKUP('NWSI Scores'!L52,$B$62:$C$66,2) -> 3 | M52: =VLOOKUP('NWSI Scores'!M52,$A$62:$C$66,3) -> 3 | N52: =VLOOKUP('NWSI Scores'!N52,$B$62:$C$66,2) -> 4 | O52: =VLOOKUP('NWSI Scores'!O52,$B$62:$C$66,2) -> 1 | P52: =VLOOKUP('NWSI Scores'!P52,$B$62:$C$66,2) -> 2 | Q52: =VLOOKUP('NWSI Scores'!Q52,$B$62:$C$66,2) -> 4 | R52: =VLOOKUP('NWSI Scores'!R52,$B$62:$C$66,2) -> 2 | S52: =VLOOKUP('NWSI Scores'!S52,$A$62:$C$66,3) -> 3
A53: Turkmenistan | B53: =VLOOKUP('NWSI Scores'!B53,$B$62:$C$66,2) -> 3 | C53: =VLOOKUP('NWSI Scores'!C53,$B$62:$C$66,2) -> 3 | D53: =VLOOKUP('NWSI Scores'!D53,$B$62:$C$66,2) -> 3 | E53: =VLOOKUP('NWSI Scores'!E53,$B$62:$C$66,2) -> 2 | F53: =VLOOKUP('NWSI Scores'!F53,$B$62:$C$66,2) -> 3 | G53: =VLOOKUP('NWSI Scores'!G53,$A$62:$C$66,3) -> 3 | H53: =VLOOKUP('NWSI Scores'!H53,$B$62:$C$66,2) -> 3 | I53: =VLOOKUP('NWSI Scores'!I53,$B$62:$C$66,2) -> 3 | J53: =VLOOKUP('NWSI Scores'!J53,$B$62:$C$66,2) -> 3 | K53: =VLOOKUP('NWSI Scores'!K53,$B$62:$C$66,2) -> 2 | L53: =VLOOKUP('NWSI Scores'!L53,$B$62:$C$66,2) -> 3 | M53: =VLOOKUP('NWSI Scores'!M53,$A$62:$C$66,3) -> 3 | N53: =VLOOKUP('NWSI Scores'!N53,$B$62:$C$66,2) -> 3 | O53: =VLOOKUP('NWSI Scores'!O53,$B$62:$C$66,2) -> 3 | P53: =VLOOKUP('NWSI Scores'!P53,$B$62:$C$66,2) -> 3 | Q53: =VLOOKUP('NWSI Scores'!Q53,$B$62:$C$66,2) -> 2 | R53: =VLOOKUP('NWSI Scores'!R53,$B$62:$C$66,2) -> 3 | S53: =VLOOKUP('NWSI Scores'!S53,$A$62:$C$66,3) -> 3
A54: Tuvalu | B54: =VLOOKUP('NWSI Scores'!B54,$B$62:$C$66,2) -> 3 | C54: =VLOOKUP('NWSI Scores'!C54,$B$62:$C$66,2) -> 1 | D54: =VLOOKUP('NWSI Scores'!D54,$B$62:$C$66,2) -> 2 | E54: =VLOOKUP('NWSI Scores'!E54,$B$62:$C$66,2) -> 3 | F54: =VLOOKUP('NWSI Scores'!F54,$B$62:$C$66,2) -> 1 | G54: =VLOOKUP('NWSI Scores'!G54,$A$62:$C$66,3) -> 2 | H54: =VLOOKUP('NWSI Scores'!H54,$B$62:$C$66,2) -> 3 | I54: =VLOOKUP('NWSI Scores'!I54,$B$62:$C$66,2) -> 1 | J54: =VLOOKUP('NWSI Scores'!J54,$B$62:$C$66,2) -> 2 | K54: =VLOOKUP('NWSI Scores'!K54,$B$62:$C$66,2) -> 3 | L54: =VLOOKUP('NWSI Scores'!L54,$B$62:$C$66,2) -> 1 | M54: =VLOOKUP('NWSI Scores'!M54,$A$62:$C$66,3) -> 2 | N54: =VLOOKUP('NWSI Scores'!N54,$B$62:$C$66,2) -> 3 | O54: =VLOOKUP('NWSI Scores'!O54,$B$62:$C$66,2) -> 1 | P54: =VLOOKUP('NWSI Scores'!P54,$B$62:$C$66,2) -> 2 | Q54: =VLOOKUP('NWSI Scores'!Q54,$B$62:$C$66,2) -> 4 | R54: =VLOOKUP('NWSI Scores'!R54,$B$62:$C$66,2) -> 1 | S54: =VLOOKUP('NWSI Scores'!S54,$A$62:$C$66,3) -> 2
A55: Uzbekistan | B55: =VLOOKUP('NWSI Scores'!B55,$B$62:$C$66,2) -> 2 | C55: =VLOOKUP('NWSI Scores'!C55,$B$62:$C$66,2) -> 2 | D55: =VLOOKUP('NWSI Scores'!D55,$B$62:$C$66,2) -> 3 | E55: =VLOOKUP('NWSI Scores'!E55,$B$62:$C$66,2) -> 2 | F55: =VLOOKUP('NWSI Scores'!F55,$B$62:$C$66,2) -> 2 | G55: =VLOOKUP('NWSI Scores'!G55,$A$62:$C$66,3) -> 2 | H55: =VLOOKUP('NWSI Scores'!H55,$B$62:$C$66,2) -> 3 | I55: =VLOOKUP('NWSI Scores'!I55,$B$62:$C$66,2) -> 2 | J55: =VLOOKUP('NWSI Scores'!J55,$B$62:$C$66,2) -> 4 | K55: =VLOOKUP('NWSI Scores'!K55,$B$62:$C$66,2) -> 2 | L55: =VLOOKUP('NWSI Scores'!L55,$B$62:$C$66,2) -> 2 | M55: =VLOOKUP('NWSI Scores'!M55,$A$62:$C$66,3) -> 3 | N55: =VLOOKUP('NWSI Scores'!N55,$B$62:$C$66,2) -> 3 | O55: =VLOOKUP('NWSI Scores'!O55,$B$62:$C$66,2) -> 2 | P55: =VLOOKUP('NWSI Scores'!P55,$B$62:$C$66,2) -> 4 | Q55: =VLOOKUP('NWSI Scores'!Q55,$B$62:$C$66,2) -> 2 | R55: =VLOOKUP('NWSI Scores'!R55,$B$62:$C$66,2) -> 2 | S55: =VLOOKUP('NWSI Scores'!S55,$A$62:$C$66,3) -> 3
A56: Vanuatu | B56: =VLOOKUP('NWSI Scores'!B56,$B$62:$C$66,2) -> 1 | C56: =VLOOKUP('NWSI Scores'!C56,$B$62:$C$66,2) -> 2 | D56: =VLOOKUP('NWSI Scores'!D56,$B$62:$C$66,2) -> 2 | E56: =VLOOKUP('NWSI Scores'!E56,$B$62:$C$66,2) -> 2 | F56: =VLOOKUP('NWSI Scores'!F56,$B$62:$C$66,2) -> 2 | G56: =VLOOKUP('NWSI Scores'!G56,$A$62:$C$66,3) -> 2 | H56: =VLOOKUP('NWSI Scores'!H56,$B$62:$C$66,2) -> 1 | I56: =VLOOKUP('NWSI Scores'!I56,$B$62:$C$66,2) -> 2 | J56: =VLOOKUP('NWSI Scores'!J56,$B$62:$C$66,2) -> 1 | K56: =VLOOKUP('NWSI Scores'!K56,$B$62:$C$66,2) -> 3 | L56: =VLOOKUP('NWSI Scores'!L56,$B$62:$C$66,2) -> 2 | M56: =VLOOKUP('NWSI Scores'!M56,$A$62:$C$66,3) -> 2 | N56: =VLOOKUP('NWSI Scores'!N56,$B$62:$C$66,2) -> 1 | O56: =VLOOKUP('NWSI Scores'!O56,$B$62:$C$66,2) -> 2 | P56: =VLOOKUP('NWSI Scores'!P56,$B$62:$C$66,2) -> 1 | Q56: =VLOOKUP('NWSI Scores'!Q56,$B$62:$C$66,2) -> 3 | R56: =VLOOKUP('NWSI Scores'!R56,$B$62:$C$66,2) -> 2 | S56: =VLOOKUP('NWSI Scores'!S56,$A$62:$C$66,3) -> 2
A57: Viet Nam | B57: =VLOOKUP('NWSI Scores'!B57,$B$62:$C$66,2) -> 1 | C57: =VLOOKUP('NWSI Scores'!C57,$B$62:$C$66,2) -> 2 | D57: =VLOOKUP('NWSI Scores'!D57,$B$62:$C$66,2) -> 2 | E57: =VLOOKUP('NWSI Scores'!E57,$B$62:$C$66,2) -> 2 | F57: =VLOOKUP('NWSI Scores'!F57,$B$62:$C$66,2) -> 3 | G57: =VLOOKUP('NWSI Scores'!G57,$A$62:$C$66,3) -> 2 | H57: =VLOOKUP('NWSI Scores'!H57,$B$62:$C$66,2) -> 2 | I57: =VLOOKUP('NWSI Scores'!I57,$B$62:$C$66,2) -> 2 | J57: =VLOOKUP('NWSI Scores'!J57,$B$62:$C$66,2) -> 2 | K57: =VLOOKUP('NWSI Scores'!K57,$B$62:$C$66,2) -> 3 | L57: =VLOOKUP('NWSI Scores'!L57,$B$62:$C$66,2) -> 4 | M57: =VLOOKUP('NWSI Scores'!M57,$A$62:$C$66,3) -> 2 | N57: =VLOOKUP('NWSI Scores'!N57,$B$62:$C$66,2) -> 2 | O57: =VLOOKUP('NWSI Scores'!O57,$B$62:$C$66,2) -> 2 | P57: =VLOOKUP('NWSI Scores'!P57,$B$62:$C$66,2) -> 2 | Q57: =VLOOKUP('NWSI Scores'!Q57,$B$62:$C$66,2) -> 3 | R57: =VLOOKUP('NWSI Scores'!R57,$B$62:$C$66,2) -> 3 | S57: =VLOOKUP('NWSI Scores'!S57,$A$62:$C$66,3) -> 2
A61: 100 scale | B61: 20 scale | C61: index
A62: 0 | B62: 0 | C62: 1
A63: 42 | B63: 8.4 | C63: 2
A64: 60 | B64: 12 | C64: 3
A65: 78 | B65: 15.6 | C65: 4
A66: 96 | B66: 19.2 | C66: 5

Sheet NWSI Scores
A1: National Water Security Scores for AWDO 2020
A7: Economies | B7: AWDO 2013 | H7: AWDO 2016 | N7: AWDO 2020
B8: KD1 | C8: KD2 | D8: KD3 | E8: KD4 | F8: KD5 | G8: NWSI | H8: KD1 | I8: KD2 | J8: KD3 | K8: KD4 | L8: KD5 | M8: NWSI | N8: KD1 | O8: KD2 | P8: KD3 | Q8: KD4 | R8: KD5 | S8: NWSI
A9: Afghanistan | B9: =VLOOKUP($A9,'KD1 Summary'!$A:$S,6,FALSE) -> 4 | C9: =VLOOKUP($A9,'KD2 Summary'!$A:$S,6,FALSE) -> 8.4375 | D9: =VLOOKUP($A9,'KD3 Summary'!$A:$Y,8,FALSE) -> 8.823529412 | E9: =VLOOKUP($A9,'KD4 Summary'!$A:$P,5,FALSE) -> 11.0367893 | F9: =VLOOKUP($A9,'KD5 Summary'!$A:$S,6,FALSE) -> 6.907775001 | G9: =SUM(B9:F9) -> 39.20559371 | H9: =VLOOKUP($A9,'KD1 Summary'!$A:$S,12,FALSE) -> 4 | I9: =VLOOKUP($A9,'KD2 Summary'!$A:$S,12,FALSE) -> 7.520833333 | J9: =VLOOKUP($A9,'KD3 Summary'!$A:$Y,16,FALSE) -> 10 | K9: =VLOOKUP($A9,'KD4 Summary'!$A:$P,10,FALSE) -> 11.0367893 | L9: =VLOOKUP($A9,'KD5 Summary'!$A:$S,12,FALSE) -> 7.42146717 | M9: =SUM(H9:L9) -> 39.9790898 | N9: =VLOOKUP($A9,'KD1 Summary'!$A:$S,18,FALSE) -> 4 | O9: =VLOOKUP($A9,'KD2 Summary'!$A:$S,18,FALSE) -> 7.520833333 | P9: =VLOOKUP($A9,'KD3 Summary'!$A:$Y,24,FALSE) -> 10 | Q9: =VLOOKUP($A9,'KD4 Summary'!$A:$P,15,FALSE) -> 10.60200669 | R9: =VLOOKUP($A9,'KD5 Summary'!$A:$S,18,FALSE) -> 7.340074612 | S9: =SUM(N9:R9) -> 39.46291463
A10: Armenia | B10: =VLOOKUP($A10,'KD1 Summary'!$A:$S,6,FALSE) -> 13 | C10: =VLOOKUP($A10,'KD2 Summary'!$A:$S,6,FALSE) -> 11.5625 | D10: =VLOOKUP($A10,'KD3 Summary'!$A:$Y,8,FALSE) -> 14.41176471 | E10: =VLOOKUP($A10,'KD4 Summary'!$A:$P,5,FALSE) -> 10.06688963 | F10: =VLOOKUP($A10,'KD5 Summary'!$A:$S,6,FALSE) -> 16.54170818 | G10: =SUM(B10:F10) -> 65.58286252 | H10: ='KD1 Summary'!L11 -> 16 | I10: =VLOOKUP($A10,'KD2 Summary'!$A:$S,12,FALSE) -> 12.22916667 | J10: =VLOOKUP($A10,'KD3 Summary'!$A:$Y,16,FALSE) -> 15 | K10: =VLOOKUP($A10,'KD4 Summary'!$A:$P,10,FALSE) -> 12.37458194 | L10: =VLOOKUP($A10,'KD5 Summary'!$A:$S,12,FALSE) -> 16.65800194 | M10: 72.26175055 | N10: =VLOOKUP($A10,'KD1 Summary'!$A:$S,18,FALSE) -> 17 | O10: =VLOOKUP($A10,'KD2 Summary'!$A:$S,18,FALSE) -> 11.5625 | P10: =VLOOKUP($A10,'KD3 Summary'!$A:$Y,24,FALSE) -> 14.70588235 | Q10: =VLOOKUP($A10,'KD4 Summary'!$A:$P,15,FALSE) -> 11.93979933 | R10: =VLOOKUP($A10,'KD5 Summary'!$A:$S,18,FALSE) -> 16.57929463 | S10: 71.78747631
A11: Australia | B11: =VLOOKUP($A11,'KD1 Summary'!$A:$S,6,FALSE) -> 20 | C11: =VLOOKUP($A11,'KD2 Summary'!$A:$S,6,FALSE) -> 15.95833333 | D11: =VLOOKUP($A11,'KD3 Summary'!$A:$Y,8,FALSE) -> 17.64705882 | E11: =VLOOKUP($A11,'KD4 Summary'!$A:$P,5,FALSE) -> 13.77926421 | F11: =VLOOKUP($A11,'KD5 Summary'!$A:$S,6,FALSE) -> 20 | G11: 87.38465637 | H11: ='KD1 Summary'!L12 -> 20 | I11: =VLOOKUP($A11,'KD2 Summary'!$A:$S,12,FALSE) -> 15.70833333 | J11: =VLOOKUP($A11,'KD3 Summary'!$A:$Y,16,FALSE) -> 17.64705882 | K11: =VLOOKUP($A11,'KD4 Summary'!$A:$P,10,FALSE) -> 14.98327759 | L11: =VLOOKUP($A11,'KD5 Summary'!$A:$S,12,FALSE) -> 20 | M11: 88.33866975 | N11: =VLOOKUP($A11,'KD1 Summary'!$A:$S,18,FALSE) -> 19 | O11: =VLOOKUP($A11,'KD2 Summary'!$A:$S,18,FALSE) -> 15.70833333 | P11: =VLOOKUP($A11,'KD3 Summary'!$A:$Y,24,FALSE) -> 17.64705882 | Q11: =VLOOKUP($A11,'KD4 Summary'!$A:$P,15,FALSE) -> 15.4180602 | R11: =VLOOKUP($A11,'KD5 Summary'!$A:$S,18,FALSE) -> 20 | S11: 87.77345236
A12: Azerbaijan | B12: =VLOOKUP($A12,'KD1 Summary'!$A:$S,6,FALSE) -> 10 | C12: =VLOOKUP($A12,'KD2 Summary'!$A:$S,6,FALSE) -> 15.10416667 | D12: =VLOOKUP($A12,'KD3 Summary'!$A:$Y,8,FALSE) -> 14.70588235 | E12: =VLOOKUP($A12,'KD4 Summary'!$A:$P,5,FALSE) -> 9.632107023 | F12: =VLOOKUP($A12,'KD5 Summary'!$A:$S,6,FALSE) -> 14.16058556 | G12: 63.6027416 | H12: ='KD1 Summary'!L13 -> 11 | I12: =VLOOKUP($A12,'KD2 Summary'!$A:$S,12,FALSE) -> 14.77083333 | J12: =VLOOKUP($A12,'KD3 Summary'!$A:$Y,16,FALSE) -> 14.70588235 | K12: =VLOOKUP($A12,'KD4 Summary'!$A:$P,10,FALSE) -> 10.8361204 | L12: =VLOOKUP($A12,'KD5 Summary'!$A:$S,12,FALSE) -> 15.50678479 | M12: 66.81962088 | N12: =VLOOKUP($A12,'KD1 Summary'!$A:$S,18,FALSE) -> 11 | O12: =VLOOKUP($A12,'KD2 Summary'!$A:$S,18,FALSE) -> 14.4375 | P12: =VLOOKUP($A12,'KD3 Summary'!$A:$Y,24,FALSE) -> 14.70588235 | Q12: =VLOOKUP($A12,'KD4 Summary'!$A:$P,15,FALSE) -> 10.06688963 | R12: =VLOOKUP($A12,'KD5 Summary'!$A:$S,18,FALSE) -> 14.93176551 | S12: 65.14203749
A13: Bangladesh | B13: =VLOOKUP($A13,'KD1 Summary'!$A:$S,6,FALSE) -> 8 | C13: =VLOOKUP($A13,'KD2 Summary'!$A:$S,6,FALSE) -> 9.979166667 | D13: =VLOOKUP($A13,'KD3 Summary'!$A:$Y,8,FALSE) -> 11.76470588 | E13: =VLOOKUP($A13,'KD4 Summary'!$A:$P,5,FALSE) -> 8.528428094 | F13: =VLOOKUP($A13,'KD5 Summary'!$A:$S,6,FALSE) -> 8.52011156 | G13: 46.7924122 | H13: ='KD1 Summary'!L14 -> 9 | I13: =VLOOKUP($A13,'KD2 Summary'!$A:$S,12,FALSE) -> 11.39583333 | J13: =VLOOKUP($A13,'KD3 Summary'!$A:$Y,16,FALSE) -> 12.05882353 | K13: =VLOOKUP($A13,'KD4 Summary'!$A:$P,10,FALSE) -> 8.963210702 | L13: =VLOOKUP($A13,'KD5 Summary'!$A:$S,12,FALSE) -> 10.14823393 | M13: 51.5661015 | N13: =VLOOKUP($A13,'KD1 Summary'!$A:$S,18,FALSE) -> 9 | O13: =VLOOKUP($A13,'KD2 Summary'!$A:$S,18,FALSE) -> 11.8125 | P13: =VLOOKUP($A13,'KD3 Summary'!$A:$Y,24,FALSE) -> 12.05882353 | Q13: =VLOOKUP($A13,'KD4 Summary'!$A:$P,15,FALSE) -> 8.963210702 | R13: =VLOOKUP($A13,'KD5 Summary'!$A:$S,18,FALSE) -> 10.97926864 | S13: 52.81380287
A14: Bhutan | B14: =VLOOKUP($A14,'KD1 Summary'!$A:$S,6,FALSE) -> 7 | C14: =VLOOKUP($A14,'KD2 Summary'!$A:$S,6,FALSE) -> 11 | D14: =VLOOKUP($A14,'KD3 Summary'!$A:$Y,8,FALSE) -> 13.82352941 | E14: =VLOOKUP($A14,'KD4 Summary'!$A:$P,5,FALSE) -> 15.18394649 | F14: =VLOOKUP($A14,'KD5 Summary'!$A:$S,6,FALSE) -> 13.05695085 | G14: 60.06442675 | H14: ='KD1 Summary'!L15 -> 8 | I14: =VLOOKUP($A14,'KD2 Summary'!$A:$S,12,FALSE) -> 11.66666667 | J14: =VLOOKUP($A14,'KD3 Summary'!$A:$Y,16,FALSE) -> 13.82352941 | K14: =VLOOKUP($A14,'KD4 Summary'!$A:$P,10,FALSE) -> 14.31438127 | L14: =VLOOKUP($A14,'KD5 Summary'!$A:$S,12,FALSE) -> 13.41678069 | M14: 61.22135804 | N14: =VLOOKUP($A14,'KD1 Summary'!$A:$S,18,FALSE) -> 10 | O14: =VLOOKUP($A14,'KD2 Summary'!$A:$S,18,FALSE) -> 11.16666667 | P14: =VLOOKUP($A14,'KD3 Summary'!$A:$Y,24,FALSE) -> 13.82352941 | Q14: =VLOOKUP($A14,'KD4 Summary'!$A:$P,15,FALSE) -> 13.87959866 | R14: =VLOOKUP($A14,'KD5 Summary'!$A:$S,18,FALSE) -> 13.90731481 | S14: 62.77710955
A15: Brunei Darussalam | B15: =VLOOKUP($A15,'KD1 Summary'!$A:$S,6,FALSE) -> 14 | C15: =VLOOKUP($A15,'KD2 Summary'!$A:$S,6,FALSE) -> 14.125 | D15: =VLOOKUP($A15,'KD3 Summary'!$A:$Y,8,FALSE) -> 12.64705882 | E15: =VLOOKUP($A15,'KD4 Summary'!$A:$P,5,FALSE) -> 14.91452991 | F15: =VLOOKUP($A15,'KD5 Summary'!$A:$S,6,FALSE) -> 18.65762916 | G15: 74.3442179 | H15: ='KD1 Summary'!L16 -> 14 | I15: =VLOOKUP($A15,'KD2 Summary'!$A:$S,12,FALSE) -> 14.4375 | J15: =VLOOKUP($A15,'KD3 Summary'!$A:$Y,16,FALSE) -> 12.64705882 | K15: =VLOOKUP($A15,'KD4 Summary'!$A:$P,10,FALSE) -> 14.91452991 | L15: =VLOOKUP($A15,'KD5 Summary'!$A:$S,12,FALSE) -> 18.16684475 | M15: 74.16593349 | N15: =VLOOKUP($A15,'KD1 Summary'!$A:$S,18,FALSE) -> 14 | O15: =VLOOKUP($A15,'KD2 Summary'!$A:$S,18,FALSE) -> 14.25 | P15: =VLOOKUP($A15,'KD3 Summary'!$A:$Y,24,FALSE) -> 12.64705882 | Q15: =VLOOKUP($A15,'KD4 Summary'!$A:$P,15,FALSE) -> 15.47008547 | R15: =VLOOKUP($A15,'KD5 Summary'!$A:$S,18,FALSE) -> 19.10708759 | S15: 75.47423189
A16: Cambodia | B16: =VLOOKUP($A16,'KD1 Summary'!$A:$S,6,FALSE) -> 6 | C16: =VLOOKUP($A16,'KD2 Summary'!$A:$S,6,FALSE) -> 11.66666667 | D16: =VLOOKUP($A16,'KD3 Summary'!$A:$Y,8,FALSE) -> 11.76470588 | E16: =VLOOKUP($A16,'KD4 Summary'!$A:$P,5,FALSE) -> 14.98327759 | F16: =VLOOKUP($A16,'KD5 Summary'!$A:$S,6,FALSE) -> 11.33464817 | G16: 55.74929831 | H16: ='KD1 Summary'!L17 -> 8 | I16: =VLOOKUP($A16,'KD2 Summary'!$A:$S,12,FALSE) -> 10 | J16: =VLOOKUP($A16,'KD3 Summary'!$A:$Y,16,FALSE) -> 13.23529412 | K16: =VLOOKUP($A16,'KD4 Summary'!$A:$P,10,FALSE) -> 14.98327759 | L16: =VLOOKUP($A16,'KD5 Summary'!$A:$S,12,FALSE) -> 12.34251447 | M16: 58.56108618 | N16: =VLOOKUP($A16,'KD1 Summary'!$A:$S,18,FALSE) -> 9 | O16: =VLOOKUP($A16,'KD2 Summary'!$A:$S,18,FALSE) -> 10 | P16: =VLOOKUP($A16,'KD3 Summary'!$A:$Y,24,FALSE) -> 13.23529412 | Q16: =VLOOKUP($A16,'KD4 Summary'!$A:$P,15,FALSE) -> 15.4180602 | R16: =VLOOKUP($A16,'KD5 Summary'!$A:$S,18,FALSE) -> 9.811049407 | S16: 57.46440372
A17: China, People’s Republic of | B17: =VLOOKUP($A17,'KD1 Summary'!$A:$S,6,FALSE) -> 11 | C17: =VLOOKUP($A17,'KD2 Summary'!$A:$S,6,FALSE) -> 12 | D17: =VLOOKUP($A17,'KD3 Summary'!$A:$Y,8,FALSE) -> 16.76470588 | E17: =VLOOKUP($A17,'KD4 Summary'!$A:$P,5,FALSE) -> 10.06688963 | F17: =VLOOKUP($A17,'KD5 Summary'!$A:$S,6,FALSE) -> 8.005298157 | G17: 57.83689367 | H17: ='KD1 Summary'!L18 -> 14 | I17: =VLOOKUP($A17,'KD2 Summary'!$A:$S,12,FALSE) -> 15.27083333 | J17: =VLOOKUP($A17,'KD3 Summary'!$A:$Y,16,FALSE) -> 17.94117647 | K17: =VLOOKUP($A17,'KD4 Summary'!$A:$P,10,FALSE) -> 11.60535117 | L17: =VLOOKUP($A17,'KD5 Summary'!$A:$S,12,FALSE) -> 12.44251127 | M17: 71.25987225 | N17: =VLOOKUP($A17,'KD1 Summary'!$A:$S,18,FALSE) -> 14 | O17: =VLOOKUP($A17,'KD2 Summary'!$A:$S,18,FALSE) -> 16.0625 | P17: =VLOOKUP($A17,'KD3 Summary'!$A:$Y,24,FALSE) -> 17.94117647 | Q17: =VLOOKUP($A17,'KD4 Summary'!$A:$P,15,FALSE) -> 10.8361204 | R17: =VLOOKUP($A17,'KD5 Summary'!$A:$S,18,FALSE) -> 13.53521613 | S17: 72.375013
A18: Cook Islands | B18: =VLOOKUP($A18,'KD1 Summary'!$A:$S,6,FALSE) -> 17 | C18: =VLOOKUP($A18,'KD2 Summary'!$A:$S,6,FALSE) -> 7.5 | D18: =VLOOKUP($A18,'KD3 Summary'!$A:$Y,8,FALSE) -> 10.58823529 | E18: =VLOOKUP($A18,'KD4 Summary'!$A:$P,5,FALSE) -> 17.5 | F18: =VLOOKUP($A18,'KD5 Summary'!$A:$S,6,FALSE) -> 13.71064658 | G18: 66.29888188 | H18: ='KD1 Summary'!L19 -> 18 | I18: =VLOOKUP($A18,'KD2 Summary'!$A:$S,12,FALSE) -> 8 | J18: =VLOOKUP($A18,'KD3 Summary'!$A:$Y,16,FALSE) -> 10.58823529 | K18: =VLOOKUP($A18,'KD4 Summary'!$A:$P,10,FALSE) -> 17.5 | L18: =VLOOKUP($A18,'KD5 Summary'!$A:$S,12,FALSE) -> 16.36090636 | M18: 70.44914165 | N18: =VLOOKUP($A18,'KD1 Summary'!$A:$S,18,FALSE) -> 18 | O18: =VLOOKUP($A18,'KD2 Summary'!$A:$S,18,FALSE) -> 9 | P18: =VLOOKUP($A18,'KD3 Summary'!$A:$Y,24,FALSE) -> 10.58823529 | Q18: =VLOOKUP($A18,'KD4 Summary'!$A:$P,15,FALSE) -> 18.88888889 | R18: =VLOOKUP($A18,'KD5 Summary'!$A:$S,18,FALSE) -> 16.03927207 | S18: 72.51639625
A19: Fiji | B19: =VLOOKUP($A19,'KD1 Summary'!$A:$S,6,FALSE) -> 9 | C19: =VLOOKUP($A19,'KD2 Summary'!$A:$S,6,FALSE) -> 13.5625 | D19: =VLOOKUP($A19,'KD3 Summary'!$A:$Y,8,FALSE) -> 8.823529412 | E19: =VLOOKUP($A19,'KD4 Summary'!$A:$P,5,FALSE) -> 11.00334448 | F19: =VLOOKUP($A19,'KD5 Summary'!$A:$S,6,FALSE) -> 13.88922363 | G19: 56.27859752 | H19: ='KD1 Summary'!L20 -> 11 | I19: =VLOOKUP($A19,'KD2 Summary'!$A:$S,12,FALSE) -> 13.22916667 | J19: =VLOOKUP($A19,'KD3 Summary'!$A:$Y,16,FALSE) -> 8.823529412 | K19: =VLOOKUP($A19,'KD4 Summary'!$A:$P,10,FALSE) -> 11.77257525 | L19: =VLOOKUP($A19,'KD5 Summary'!$A:$S,12,FALSE) -> 14.91715097 | M19: 59.7424223 | N19: =VLOOKUP($A19,'KD1 Summary'!$A:$S,18,FALSE) -> 12 | O19: =VLOOKUP($A19,'KD2 Summary'!$A:$S,18,FALSE) -> 13.5625 | P19: =VLOOKUP($A19,'KD3 Summary'!$A:$Y,24,FALSE) -> 9.117647059 | Q19: =VLOOKUP($A19,'KD4 Summary'!$A:$P,15,FALSE) -> 12.54180602 | R19: =VLOOKUP($A19,'KD5 Summary'!$A:$S,18,FALSE) -> 12.25870469 | S19: 59.48065777
A20: Georgia | B20: =VLOOKUP($A20,'KD1 Summary'!$A:$S,6,FALSE) -> 14 | C20: =VLOOKUP($A20,'KD2 Summary'!$A:$S,6,FALSE) -> 9.583333333 | D20: =VLOOKUP($A20,'KD3 Summary'!$A:$Y,8,FALSE) -> 11.76470588 | E20: =VLOOKUP($A20,'KD4 Summary'!$A:$P,5,FALSE) -> 7.959866221 | F20: =VLOOKUP($A20,'KD5 Summary'!$A:$S,6,FALSE) -> 17.10950417 | G20: 60.4174096 | H20: ='KD1 Summary'!L21 -> 14 | I20: =VLOOKUP($A20,'KD2 Summary'!$A:$S,12,FALSE) -> 10.0625 | J20: =VLOOKUP($A20,'KD3 Summary'!$A:$Y,16,FALSE) -> 12.05882353 | K20: =VLOOKUP($A20,'KD4 Summary'!$A:$P,10,FALSE) -> 9.163879599 | L20: =VLOOKUP($A20,'KD5 Summary'!$A:$S,12,FALSE) -> 17.53107159 | M20: 62.81627472 | N20: =VLOOKUP($A20,'KD1 Summary'!$A:$S,18,FALSE) -> 14 | O20: =VLOOKUP($A20,'KD2 Summary'!$A:$S,18,FALSE) -> 10 | P20: =VLOOKUP($A20,'KD3 Summary'!$A:$Y,24,FALSE) -> 13.23529412 | Q20: =VLOOKUP($A20,'KD4 Summary'!$A:$P,15,FALSE) -> 9.498327759 | R20: =VLOOKUP($A20,'KD5 Summary'!$A:$S,18,FALSE) -> 17.71578681 | S20: 64.44940869
A21: Hong Kong, China | B21: =VLOOKUP($A21,'KD1 Summary'!$A:$S,6,FALSE) -> 15.1 | C21: =VLOOKUP($A21,'KD2 Summary'!$A:$S,6,FALSE) -> 15.33333333 | D21: =VLOOKUP($A21,'KD3 Summary'!$A:$Y,8,FALSE) -> 19.41176471 | E21: =VLOOKUP($A21,'KD4 Summary'!$A:$P,5,FALSE) -> 10 | F21: =VLOOKUP($A21,'KD5 Summary'!$A:$S,6,FALSE) -> 18.43742645 | G21: 78.28252449 | H21: ='KD1 Summary'!L22 -> 15.9 | I21: =VLOOKUP($A21,'KD2 Summary'!$A:$S,12,FALSE) -> 14.33333333 | J21: =VLOOKUP($A21,'KD3 Summary'!$A:$Y,16,FALSE) -> 19.70588235 | K21: =VLOOKUP($A21,'KD4 Summary'!$A:$P,10,FALSE) -> 14 | L21: =VLOOKUP($A21,'KD5 Summary'!$A:$S,12,FALSE) -> 18.4517665 | M21: 82.39098219 | N21: =VLOOKUP($A21,'KD1 Summary'!$A:$S,18,FALSE) -> 15.9 | O21: =VLOOKUP($A21,'KD2 Summary'!$A:$S,18,FALSE) -> 15.33333333 | P21: =VLOOKUP($A21,'KD3 Summary'!$A:$Y,24,FALSE) -> 19.41176471 | Q21: =VLOOKUP($A21,'KD4 Summary'!$A:$P,15,FALSE) -> 12 | R21: =VLOOKUP($A21,'KD5 Summary'!$A:$S,18,FALSE) -> 18.82350168 | S21: 81.46859972
A22: India | B22: =VLOOKUP($A22,'KD1 Summary'!$A:$S,6,FALSE) -> 5 | C22: =VLOOKUP($A22,'KD2 Summary'!$A:$S,6,FALSE) -> 9.708333333 | D22: =VLOOKUP($A22,'KD3 Summary'!$A:$Y,8,FALSE) -> 9.411764706 | E22: =VLOOKUP($A22,'KD4 Summary'!$A:$P,5,FALSE) -> 7.759197324 | F22: =VLOOKUP($A22,'KD5 Summary'!$A:$S,6,FALSE) -> 14.18510978 | G22: 46.06440515 | H22: ='KD1 Summary'!L23 -> 6 | I22: =VLOOKUP($A22,'KD2 Summary'!$A:$S,12,FALSE) -> 11.125 | J22: =VLOOKUP($A22,'KD3 Summary'!$A:$Y,16,FALSE) -> 9.705882353 | K22: =VLOOKUP($A22,'KD4 Summary'!$A:$P,10,FALSE) -> 8.093645485 | L22: =VLOOKUP($A22,'KD5 Summary'!$A:$S,12,FALSE) -> 14.99490145 | M22: 49.91942928 | N22: =VLOOKUP($A22,'KD1 Summary'!$A:$S,18,FALSE) -> 6 | O22: =VLOOKUP($A22,'KD2 Summary'!$A:$S,18,FALSE) -> 10.875 | P22: =VLOOKUP($A22,'KD3 Summary'!$A:$Y,24,FALSE) -> 9.705882353 | Q22: =VLOOKUP($A22,'KD4 Summary'!$A:$P,15,FALSE) -> 8.093645485 | R22: =VLOOKUP($A22,'KD5 Summary'!$A:$S,18,FALSE) -> 12.12052812 | S22: 46.79505596
A23: Indonesia | B23: =VLOOKUP($A23,'KD1 Summary'!$A:$S,6,FALSE) -> 9 | C23: =VLOOKUP($A23,'KD2 Summary'!$A:$S,6,FALSE) -> 10.64583333 | D23: =VLOOKUP($A23,'KD3 Summary'!$A:$Y,8,FALSE) -> 11.47058824 | E23: =VLOOKUP($A23,'KD4 Summary'!$A:$P,5,FALSE) -> 13.97993311 | F23: =VLOOKUP($A23,'KD5 Summary'!$A:$S,6,FALSE) -> 11.09289521 | G23: 56.18924989 | H23: ='KD1 Summary'!L24 -> 10 | I23: =VLOOKUP($A23,'KD2 Summary'!$A:$S,12,FALSE) -> 11.97916667 | J23: =VLOOKUP($A23,'KD3 Summary'!$A:$Y,16,FALSE) -> 11.47058824 | K23: =VLOOKUP($A23,'KD4 Summary'!$A:$P,10,FALSE) -> 15.18394649 | L23: =VLOOKUP($A23,'KD5 Summary'!$A:$S,12,FALSE) -> 11.83094697 | M23: 60.46464836 | N23: =VLOOKUP($A23,'KD1 Summary'!$A:$S,18,FALSE) -> 11 | O23: =VLOOKUP($A23,'KD2 Summary'!$A:$S,18,FALSE) -> 12.22916667 | P23: =VLOOKUP($A23,'KD3 Summary'!$A:$Y,24,FALSE) -> 11.47058824 | Q23: =VLOOKUP($A23,'KD4 Summary'!$A:$P,15,FALSE) -> 14.41471572 | R23: =VLOOKUP($A23,'KD5 Summary'!$A:$S,18,FALSE) -> 11.90026064 | S23: 61.01473126
A24: Japan | B24: =VLOOKUP($A24,'KD1 Summary'!$A:$S,6,FALSE) -> 18 | C24: =VLOOKUP($A24,'KD2 Summary'!$A:$S,6,FALSE) -> 15.02083333 | D24: =VLOOKUP($A24,'KD3 Summary'!$A:$Y,8,FALSE) -> 18.23529412 | E24: =VLOOKUP($A24,'KD4 Summary'!$A:$P,5,FALSE) -> 15.73076923 | F24: =VLOOKUP($A24,'KD5 Summary'!$A:$S,6,FALSE) -> 19.98337336 | G24: 86.97027004 | H24: ='KD1 Summary'!L25 -> 19 | I24: =VLOOKUP($A24,'KD2 Summary'!$A:$S,12,FALSE) -> 14.41666667 | J24: =VLOOKUP($A24,'KD3 Summary'!$A:$Y,16,FALSE) -> 18.52941176 | K24: =VLOOKUP($A24,'KD4 Summary'!$A:$P,10,FALSE) -> 16.5 | L24: =VLOOKUP($A24,'KD5 Summary'!$A:$S,12,FALSE) -> 19.96876738 | M24: 88.41484581 | N24: =VLOOKUP($A24,'KD1 Summary'!$A:$S,18,FALSE) -> 19 | O24: =VLOOKUP($A24,'KD2 Summary'!$A:$S,18,FALSE) -> 14.25 | P24: =VLOOKUP($A24,'KD3 Summary'!$A:$Y,24,FALSE) -> 18.52941176 | Q24: =VLOOKUP($A24,'KD4 Summary'!$A:$P,15,FALSE) -> 16.5 | R24: =VLOOKUP($A24,'KD5 Summary'!$A:$S,18,FALSE) -> 19.6307064 | S24: 87.91011817
A25: Kazakhstan | B25: =VLOOKUP($A25,'KD1 Summary'!$A:$S,6,FALSE) -> 12 | C25: =VLOOKUP($A25,'KD2 Summary'!$A:$S,6,FALSE) -> 15.75 | D25: =VLOOKUP($A25,'KD3 Summary'!$A:$Y,8,FALSE) -> 14.70588235 | E25: =VLOOKUP($A25,'KD4 Summary'!$A:$P,5,FALSE) -> 8.193979933 | F25: =VLOOKUP($A25,'KD5 Summary'!$A:$S,6,FALSE) -> 15.82639886 | G25: 66.47626115 | H25: ='KD1 Summary'!L26 -> 15 | I25: =VLOOKUP($A25,'KD2 Summary'!$A:$S,12,FALSE) -> 15.75 | J25: =VLOOKUP($A25,'KD3 Summary'!$A:$Y,16,FALSE) -> 15.88235294 | K25: =VLOOKUP($A25,'KD4 Summary'!$A:$P,10,FALSE) -> 9.397993311 | L25: =VLOOKUP($A25,'KD5 Summary'!$A:$S,12,FALSE) -> 16.59177163 | M25: 72.62211789 | N25: =VLOOKUP($A25,'KD1 Summary'!$A:$S,18,FALSE) -> 16 | O25: =VLOOKUP($A25,'KD2 Summary'!$A:$S,18,FALSE) -> 16.08333333 | P25: =VLOOKUP($A25,'KD3 Summary'!$A:$Y,24,FALSE) -> 15.88235294 | Q25: =VLOOKUP($A25,'KD4 Summary'!$A:$P,15,FALSE) -> 9.397993311 | R25: =VLOOKUP($A25,'KD5 Summary'!$A:$S,18,FALSE) -> 16.33073345 | S25: 73.69441304
A26: Kiribati | B26: =VLOOKUP($A26,'KD1 Summary'!$A:$S,6,FALSE) -> 7 | C26: =VLOOKUP($A26,'KD2 Summary'!$A:$S,6,FALSE) -> 10 | D26: =VLOOKUP($A26,'KD3 Summary'!$A:$Y,8,FALSE) -> 5.588235294 | E26: =VLOOKUP($A26,'KD4 Summary'!$A:$P,5,FALSE) -> 14.90384615 | F26: =VLOOKUP($A26,'KD5 Summary'!$A:$S,6,FALSE) -> 8.259549764 | G26: 45.75163121 | H26: ='KD1 Summary'!L27 -> 7 | I26: =VLOOKUP($A26,'KD2 Summary'!$A:$S,12,FALSE) -> 10.25 | J26: =VLOOKUP($A26,'KD3 Summary'!$A:$Y,16,FALSE) -> 5.588235294 | K26: =VLOOKUP($A26,'KD4 Summary'!$A:$P,10,FALSE) -> 14.90384615 | L26: =VLOOKUP($A26,'KD5 Summary'!$A:$S,12,FALSE) -> 8.048953646 | M26: 45.79103509 | N26: =VLOOKUP($A26,'KD1 Summary'!$A:$S,18,FALSE) -> 7 | O26: =VLOOKUP($A26,'KD2 Summary'!$A:$S,18,FALSE) -> 11.25 | P26: =VLOOKUP($A26,'KD3 Summary'!$A:$Y,24,FALSE) -> 5.882352941 | Q26: =VLOOKUP($A26,'KD4 Summary'!$A:$P,15,FALSE) -> 16.15384615 | R26: =VLOOKUP($A26,'KD5 Summary'!$A:$S,18,FALSE) -> 7.941894256 | S26: 48.22809335
A27: Korea, Republic of | B27: =VLOOKUP($A27,'KD1 Summary'!$A:$S,6,FALSE) -> 20 | C27: =VLOOKUP($A27,'KD2 Summary'!$A:$S,6,FALSE) -> 15.29166667 | D27: =VLOOKUP($A27,'KD3 Summary'!$A:$Y,8,FALSE) -> 18.23529412 | E27: =VLOOKUP($A27,'KD4 Summary'!$A:$P,5,FALSE) -> 12.14046823 | F27: =VLOOKUP($A27,'KD5 Summary'!$A:$S,6,FALSE) -> 19.47360442 | G27: 85.14103343 | H27: ='KD1 Summary'!L28 -> 20 | I27: =VLOOKUP($A27,'KD2 Summary'!$A:$S,12,FALSE) -> 15.375 | J27: =VLOOKUP($A27,'KD3 Summary'!$A:$Y,16,FALSE) -> 18.23529412 | K27: =VLOOKUP($A27,'KD4 Summary'!$A:$P,10,FALSE) -> 12.04013378 | L27: =VLOOKUP($A27,'KD5 Summary'!$A:$S,12,FALSE) -> 19.73849612 | M27: 85.38892401 | N27: =VLOOKUP($A27,'KD1 Summary'!$A:$S,18,FALSE) -> 20 | O27: =VLOOKUP($A27,'KD2 Summary'!$A:$S,18,FALSE) -> 15.625 | P27: =VLOOKUP($A27,'KD3 Summary'!$A:$Y,24,FALSE) -> 18.23529412 | Q27: =VLOOKUP($A27,'KD4 Summary'!$A:$P,15,FALSE) -> 10.40133779 | R27: =VLOOKUP($A27,'KD5 Summary'!$A:$S,18,FALSE) -> 19.74104489 | S27: 84.0026768
A28: Kyrgyz Republic | B28: =VLOOKUP($A28,'KD1 Summary'!$A:$S,6,FALSE) -> 10 | C28: =VLOOKUP($A28,'KD2 Summary'!$A:$S,6,FALSE) -> 11.375 | D28: =VLOOKUP($A28,'KD3 Summary'!$A:$Y,8,FALSE) -> 16.17647059 | E28: =VLOOKUP($A28,'KD4 Summary'!$A:$P,5,FALSE) -> 12.34113712 | F28: =VLOOKUP($A28,'KD5 Summary'!$A:$S,6,FALSE) -> 12.74476596 | G28: 62.63737367 | H28: ='KD1 Summary'!L29 -> 13 | I28: =VLOOKUP($A28,'KD2 Summary'!$A:$S,12,FALSE) -> 10.79166667 | J28: =VLOOKUP($A28,'KD3 Summary'!$A:$Y,16,FALSE) -> 16.17647059 | K28: =VLOOKUP($A28,'KD4 Summary'!$A:$P,10,FALSE) -> 14.98327759 | L28: =VLOOKUP($A28,'KD5 Summary'!$A:$S,12,FALSE) -> 13.28658728 | M28: 68.23800212 | N28: =VLOOKUP($A28,'KD1 Summary'!$A:$S,18,FALSE) -> 13 | O28: =VLOOKUP($A28,'KD2 Summary'!$A:$S,18,FALSE) -> 10.79166667 | P28: =VLOOKUP($A28,'KD3 Summary'!$A:$Y,24,FALSE) -> 16.17647059 | Q28: =VLOOKUP($A28,'KD4 Summary'!$A:$P,15,FALSE) -> 14.98327759 | R28: =VLOOKUP($A28,'KD5 Summary'!$A:$S,18,FALSE) -> 17.63314325 | S28: 72.5845581
A29: Lao People’s Democratic Republic | B29: =VLOOKUP($A29,'KD1 Summary'!$A:$S,6,FALSE) -> 4 | C29: =VLOOKUP($A29,'KD2 Summary'!$A:$S,6,FALSE) -> 7.979166667 | D29: =VLOOKUP($A29,'KD3 Summary'!$A:$Y,8,FALSE) -> 13.52941176 | E29: =VLOOKUP($A29,'KD4 Summary'!$A:$P,5,FALSE) -> 12.57525084 | F29: =VLOOKUP($A29,'KD5 Summary'!$A:$S,6,FALSE) -> 11.10541576 | G29: 49.18924503 | H29: ='KD1 Summary'!L30 -> 7 | I29: =VLOOKUP($A29,'KD2 Summary'!$A:$S,12,FALSE) -> 9.895833333 | J29: =VLOOKUP($A29,'KD3 Summary'!$A:$Y,16,FALSE) -> 14.70588235 | K29: =VLOOKUP($A29,'KD4 Summary'!$A:$P,10,FALSE) -> 13.01003344 | L29: =VLOOKUP($A29,'KD5 Summary'!$A:$S,12,FALSE) -> 10.88822764 | M29: 55.49997678 | N29: =VLOOKUP($A29,'KD1 Summary'!$A:$S,18,FALSE) -> 7 | O29: =VLOOKUP($A29,'KD2 Summary'!$A:$S,18,FALSE) -> 9.229166667 | P29: =VLOOKUP($A29,'KD3 Summary'!$A:$Y,24,FALSE) -> 15.88235294 | Q29: =VLOOKUP($A29,'KD4 Summary'!$A:$P,15,FALSE) -> 13.01003344 | R29: =VLOOKUP($A29,'KD5 Summary'!$A:$S,18,FALSE) -> 10.1261115 | S29: 55.24766456
A30: Malaysia | B30: =VLOOKUP($A30,'KD1 Summary'!$A:$S,6,FALSE) -> 13 | C30: =VLOOKUP($A30,'KD2 Summary'!$A:$S,6,FALSE) -> 15.45833333 | D30: =VLOOKUP($A30,'KD3 Summary'!$A:$Y,8,FALSE) -> 11.47058824 | E30: =VLOOKUP($A30,'KD4 Summary'!$A:$P,5,FALSE) -> 13.77926421 | F30: =VLOOKUP($A30,'KD5 Summary'!$A:$S,6,FALSE) -> 18.67127364 | G30: 72.37945942 | H30: ='KD1 Summary'!L31 -> 13 | I30: =VLOOKUP($A30,'KD2 Summary'!$A:$S,12,FALSE) -> 15.85416667 | J30: =VLOOKUP($A30,'KD3 Summary'!$A:$Y,16,FALSE) -> 11.47058824 | K30: =VLOOKUP($A30,'KD4 Summary'!$A:$P,10,FALSE) -> 14.98327759 | L30: =VLOOKUP($A30,'KD5 Summary'!$A:$S,12,FALSE) -> 17.97825174 | M30: 73.28628423 | N30: =VLOOKUP($A30,'KD1 Summary'!$A:$S,18,FALSE) -> 14 | O30: =VLOOKUP($A30,'KD2 Summary'!$A:$S,18,FALSE) -> 15.52083333 | P30: =VLOOKUP($A30,'KD3 Summary'!$A:$Y,24,FALSE) -> 11.47058824 | Q30: =VLOOKUP($A30,'KD4 Summary'!$A:$P,15,FALSE) -> 15.4180602 | R30: =VLOOKUP($A30,'KD5 Summary'!$A:$S,18,FALSE) -> 18.24902242 | S30: 74.65850419
A31: Maldives | B31: =VLOOKUP($A31,'KD1 Summary'!$A:$S,6,FALSE) -> 15 | C31: =VLOOKUP($A31,'KD2 Summary'!$A:$S,6,FALSE) -> 10.66666667 | D31: =VLOOKUP($A31,'KD3 Summary'!$A:$Y,8,FALSE) -> 9.411764706 | E31: =VLOOKUP($A31,'KD4 Summary'!$A:$P,5,FALSE) -> 3.076923077 | F31: =VLOOKUP($A31,'KD5 Summary'!$A:$S,6,FALSE) -> 15.00072247 | G31: 53.15607692 | H31: ='KD1 Summary'!L32 -> 19 | I31: =VLOOKUP($A31,'KD2 Summary'!$A:$S,12,FALSE) -> 10.66666667 | J31: =VLOOKUP($A31,'KD3 Summary'!$A:$Y,16,FALSE) -> 9.705882353 | K31: =VLOOKUP($A31,'KD4 Summary'!$A:$P,10,FALSE) -> 6.153846154 | L31: =VLOOKUP($A31,'KD5 Summary'!$A:$S,12,FALSE) -> 14.93348784 | M31: 60.45988301 | N31: =VLOOKUP($A31,'KD1 Summary'!$A:$S,18,FALSE) -> 20 | O31: =VLOOKUP($A31,'KD2 Summary'!$A:$S,18,FALSE) -> 10.66666667 | P31: =VLOOKUP($A31,'KD3 Summary'!$A:$Y,24,FALSE) -> 9.705882353 | Q31: =VLOOKUP($A31,'KD4 Summary'!$A:$P,15,FALSE) -> 7.692307692 | R31: =VLOOKUP($A31,'KD5 Summary'!$A:$S,18,FALSE) -> 14.81653708 | S31: 62.88139379
A32: Marshall Islands | B32: =VLOOKUP($A32,'KD1 Summary'!$A:$S,6,FALSE) -> 10 | C32: =VLOOKUP($A32,'KD2 Summary'!$A:$S,6,FALSE) -> 7 | D32: =VLOOKUP($A32,'KD3 Summary'!$A:$Y,8,FALSE) -> 7.352941176 | E32: =VLOOKUP($A32,'KD4 Summary'!$A:$P,5,FALSE) -> 6.666666667 | F32: =VLOOKUP($A32,'KD5 Summary'!$A:$S,6,FALSE) -> 11.84198819 | G32: 42.86159603 | H32: ='KD1 Summary'!L33 -> 10 | I32: =VLOOKUP($A32,'KD2 Summary'!$A:$S,12,FALSE) -> 7.666666667 | J32: =VLOOKUP($A32,'KD3 Summary'!$A:$Y,16,FALSE) -> 7.352941176 | K32: =VLOOKUP($A32,'KD4 Summary'!$A:$P,10,FALSE) -> 6.666666667 | L32: =VLOOKUP($A32,'KD5 Summary'!$A:$S,12,FALSE) -> 9.072810033 | M32: 40.75908454 | N32: =VLOOKUP($A32,'KD1 Summary'!$A:$S,18,FALSE) -> 9 | O32: =VLOOKUP($A32,'KD2 Summary'!$A:$S,18,FALSE) -> 7 | P32: =VLOOKUP($A32,'KD3 Summary'!$A:$Y,24,FALSE) -> 9.117647059 | Q32: =VLOOKUP($A32,'KD4 Summary'!$A:$P,15,FALSE) -> 15 | R32: =VLOOKUP($A32,'KD5 Summary'!$A:$S,18,FALSE) -> 8.635393284 | S32: 48.75304034
A33: Micronesia, Federated States of | B33: =VLOOKUP($A33,'KD1 Summary'!$A:$S,6,FALSE) -> 10 | C33: =VLOOKUP($A33,'KD2 Summary'!$A:$S,6,FALSE) -> 6 | D33: =VLOOKUP($A33,'KD3 Summary'!$A:$Y,8,FALSE) -> 5.294117647 | E33: =VLOOKUP($A33,'KD4 Summary'!$A:$P,5,FALSE) -> 10 | F33: =VLOOKUP($A33,'KD5 Summary'!$A:$S,6,FALSE) -> 8.189747887 | G33: 39.48386553 | H33: ='KD1 Summary'!L34 -> 9 | I33: =VLOOKUP($A33,'KD2 Summary'!$A:$S,12,FALSE) -> 6 | J33: =VLOOKUP($A33,'KD3 Summary'!$A:$Y,16,FALSE) -> 4.411764706 | K33: =VLOOKUP($A33,'KD4 Summary'!$A:$P,10,FALSE) -> 10 | L33: =VLOOKUP($A33,'KD5 Summary'!$A:$S,12,FALSE) -> 8.255341809 | M33: 37.66710652 | N33: =VLOOKUP($A33,'KD1 Summary'!$A:$S,18,FALSE) -> 11 | O33: =VLOOKUP($A33,'KD2 Summary'!$A:$S,18,FALSE) -> 6 | P33: =VLOOKUP($A33,'KD3 Summary'!$A:$Y,24,FALSE) -> 4.705882353 | Q33: =VLOOKUP($A33,'KD4 Summary'!$A:$P,15,FALSE) -> 12.97658863 | R33: =VLOOKUP($A33,'KD5 Summary'!$A:$S,18,FALSE) -> 7.354114283 | S33: 42.03658526
A34: Mongolia | B34: =VLOOKUP($A34,'KD1 Summary'!$A:$S,6,FALSE) -> 9 | C34: =VLOOKUP($A34,'KD2 Summary'!$A:$S,6,FALSE) -> 10.16666667 | D34: =VLOOKUP($A34,'KD3 Summary'!$A:$Y,8,FALSE) -> 10.88235294 | E34: =VLOOKUP($A34,'KD4 Summary'!$A:$P,5,FALSE) -> 11.23745819 | F34: =VLOOKUP($A34,'KD5 Summary'!$A:$S,6,FALSE) -> 14.08236893 | G34: 55.36884674 | H34: ='KD1 Summary'!L35 -> 9 | I34: =VLOOKUP($A34,'KD2 Summary'!$A:$S,12,FALSE) -> 10.5625 | J34: =VLOOKUP($A34,'KD3 Summary'!$A:$Y,16,FALSE) -> 11.47058824 | K34: =VLOOKUP($A34,'KD4 Summary'!$A:$P,10,FALSE) -> 13.64548495 | L34: =VLOOKUP($A34,'KD5 Summary'!$A:$S,12,FALSE) -> 17.90342285 | M34: 62.58199603 | N34: =VLOOKUP($A34,'KD1 Summary'!$A:$S,18,FALSE) -> 8 | O34: =VLOOKUP($A34,'KD2 Summary'!$A:$S,18,FALSE) -> 10.89583333 | P34: =VLOOKUP($A34,'KD3 Summary'!$A:$Y,24,FALSE) -> 11.47058824 | Q34: =VLOOKUP($A34,'KD4 Summary'!$A:$P,15,FALSE) -> 13.21070234 | R34: =VLOOKUP($A34,'KD5 Summary'!$A:$S,18,FALSE) -> 17.51986466 | S34: 61.09698857
A35: Myanmar | B35: =VLOOKUP($A35,'KD1 Summary'!$A:$S,6,FALSE) -> 5 | C35: =VLOOKUP($A35,'KD2 Summary'!$A:$S,6,FALSE) -> 10.20833333 | D35: =VLOOKUP($A35,'KD3 Summary'!$A:$Y,8,FALSE) -> 8.235294118 | E35: =VLOOKUP($A35,'KD4 Summary'!$A:$P,5,FALSE) -> 11.90635452 | F35: =VLOOKUP($A35,'KD5 Summary'!$A:$S,6,FALSE) -> 8.849287346 | G35: 44.19926931 | H35: ='KD1 Summary'!L36 -> 5 | I35: =VLOOKUP($A35,'KD2 Summary'!$A:$S,12,FALSE) -> 10.79166667 | J35: =VLOOKUP($A35,'KD3 Summary'!$A:$Y,16,FALSE) -> 9.705882353 | K35: =VLOOKUP($A35,'KD4 Summary'!$A:$P,10,FALSE) -> 12.24080268 | L35: =VLOOKUP($A35,'KD5 Summary'!$A:$S,12,FALSE) -> 9.309643907 | M35: 47.0479956 | N35: =VLOOKUP($A35,'KD1 Summary'!$A:$S,18,FALSE) -> 6 | O35: =VLOOKUP($A35,'KD2 Summary'!$A:$S,18,FALSE) -> 10.79166667 | P35: =VLOOKUP($A35,'KD3 Summary'!$A:$Y,24,FALSE) -> 9.411764706 | Q35: =VLOOKUP($A35,'KD4 Summary'!$A:$P,15,FALSE) -> 11.90635452 | R35: =VLOOKUP($A35,'KD5 Summary'!$A:$S,18,FALSE) -> 10.21849827 | S35: 48.32828416
A36: Nauru | B36: =VLOOKUP($A36,'KD1 Summary'!$A:$S,6,FALSE) -> 10.3 | C36: =VLOOKUP($A36,'KD2 Summary'!$A:$S,6,FALSE) -> 7 | D36: =VLOOKUP($A36,'KD3 Summary'!$A:$Y,8,FALSE) -> 7.058823529 | E36: =VLOOKUP($A36,'KD4 Summary'!$A:$P,5,FALSE) -> 17.5 | F36: =VLOOKUP($A36,'KD5 Summary'!$A:$S,6,FALSE) -> 14.52299097 | G36: 56.3818145 | H36: ='KD1 Summary'!L37 -> 11.5 | I36: =VLOOKUP($A36,'KD2 Summary'!$A:$S,12,FALSE) -> 11 | J36: =VLOOKUP($A36,'KD3 Summary'!$A:$Y,16,FALSE) -> 7.058823529 | K36: =VLOOKUP($A36,'KD4 Summary'!$A:$P,10,FALSE) -> 17.5 | L36: =VLOOKUP($A36,'KD5 Summary'!$A:$S,12,FALSE) -> 15.82504842 | M36: 62.88387195 | N36: =VLOOKUP($A36,'KD1 Summary'!$A:$S,18,FALSE) -> 11.2 | O36: =VLOOKUP($A36,'KD2 Summary'!$A:$S,18,FALSE) -> 7 | P36: =VLOOKUP($A36,'KD3 Summary'!$A:$Y,24,FALSE) -> 7.058823529 | Q36: =VLOOKUP($A36,'KD4 Summary'!$A:$P,15,FALSE) -> 17.5 | R36: =VLOOKUP($A36,'KD5 Summary'!$A:$S,18,FALSE) -> 15.74437964 | S36: 58.50320317
A37: Nepal | B37: =VLOOKUP($A37,'KD1 Summary'!$A:$S,6,FALSE) -> 5 | C37: =VLOOKUP($A37,'KD2 Summary'!$A:$S,6,FALSE) -> 9.979166667 | D37: =VLOOKUP($A37,'KD3 Summary'!$A:$Y,8,FALSE) -> 12.35294118 | E37: =VLOOKUP($A37,'KD4 Summary'!$A:$P,5,FALSE) -> 11.90635452 | F37: =VLOOKUP($A37,'KD5 Summary'!$A:$S,6,FALSE) -> 11.48014195 | G37: 50.71860431 | H37: ='KD1 Summary'!L38 -> 5 | I37: =VLOOKUP($A37,'KD2 Summary'!$A:$S,12,FALSE) -> 9.666666667 | J37: =VLOOKUP($A37,'KD3 Summary'!$A:$Y,16,FALSE) -> 12.64705882 | K37: =VLOOKUP($A37,'KD4 Summary'!$A:$P,10,FALSE) -> 13.11036789 | L37: =VLOOKUP($A37,'KD5 Summary'!$A:$S,12,FALSE) -> 12.75901803 | M37: 53.18311141 | N37: =VLOOKUP($A37,'KD1 Summary'!$A:$S,18,FALSE) -> 6 | O37: =VLOOKUP($A37,'KD2 Summary'!$A:$S,18,FALSE) -> 9.666666667 | P37: =VLOOKUP($A37,'KD3 Summary'!$A:$Y,24,FALSE) -> 11.17647059 | Q37: =VLOOKUP($A37,'KD4 Summary'!$A:$P,15,FALSE) -> 13.11036789 | R37: =VLOOKUP($A37,'KD5 Summary'!$A:$S,18,FALSE) -> 12.37174402 | S37: 52.32524916
A38: New Zealand | B38: =VLOOKUP($A38,'KD1 Summary'!$A:$S,6,FALSE) -> 20 | C38: =VLOOKUP($A38,'KD2 Summary'!$A:$S,6,FALSE) -> 14.72916667 | D38: =VLOOKUP($A38,'KD3 Summary'!$A:$Y,8,FALSE) -> 19.70588235 | E38: =VLOOKUP($A38,'KD4 Summary'!$A:$P,5,FALSE) -> 14.31438127 | F38: =VLOOKUP($A38,'KD5 Summary'!$A:$S,6,FALSE) -> 20 | G38: 88.74943029 | H38: ='KD1 Summary'!L39 -> 20 | I38: =VLOOKUP($A38,'KD2 Summary'!$A:$S,12,FALSE) -> 15.14583333 | J38: =VLOOKUP($A38,'KD3 Summary'!$A:$Y,16,FALSE) -> 19.41176471 | K38: =VLOOKUP($A38,'KD4 Summary'!$A:$P,10,FALSE) -> 14.31438127 | L38: =VLOOKUP($A38,'KD5 Summary'!$A:$S,12,FALSE) -> 20 | M38: 88.87197931 | N38: =VLOOKUP($A38,'KD1 Summary'!$A:$S,18,FALSE) -> 20 | O38: =VLOOKUP($A38,'KD2 Summary'!$A:$S,18,FALSE) -> 14.89583333 | P38: =VLOOKUP($A38,'KD3 Summary'!$A:$Y,24,FALSE) -> 19.41176471 | Q38: =VLOOKUP($A38,'KD4 Summary'!$A:$P,15,FALSE) -> 14.74916388 | R38: =VLOOKUP($A38,'KD5 Summary'!$A:$S,18,FALSE) -> 20 | S38: 89.05676192
A39: Niue | B39: =VLOOKUP($A39,'KD1 Summary'!$A:$S,6,FALSE) -> 15 | C39: =VLOOKUP($A39,'KD2 Summary'!$A:$S,6,FALSE) -> 4 | D39: =VLOOKUP($A39,'KD3 Summary'!$A:$Y,8,FALSE) -> 9.117647059 | E39: =VLOOKUP($A39,'KD4 Summary'!$A:$P,5,FALSE) -> 13.33333333 | F39: =VLOOKUP($A39,'KD5 Summary'!$A:$S,6,FALSE) -> 14.09411559 | G39: 55.54509598 | H39: ='KD1 Summary'!L40 -> 15 | I39: =VLOOKUP($A39,'KD2 Summary'!$A:$S,12,FALSE) -> 4 | J39: =VLOOKUP($A39,'KD3 Summary'!$A:$Y,16,FALSE) -> 9.117647059 | K39: =VLOOKUP($A39,'KD4 Summary'!$A:$P,10,FALSE) -> 13.33333333 | L39: =VLOOKUP($A39,'KD5 Summary'!$A:$S,12,FALSE) -> 18.53822236 | M39: =SUM(H39:L39) -> 59.98920275 | N39: =VLOOKUP($A39,'KD1 Summary'!$A:$S,18,FALSE) -> 15 | O39: =VLOOKUP($A39,'KD2 Summary'!$A:$S,18,FALSE) -> 4 | P39: =VLOOKUP($A39,'KD3 Summary'!$A:$Y,24,FALSE) -> 10.29411765 | Q39: =VLOOKUP($A39,'KD4 Summary'!$A:$P,15,FALSE) -> 13.33333333 | R39: =VLOOKUP($A39,'KD5 Summary'!$A:$S,18,FALSE) -> 18.42980008 | S39: =SUM(N39:R39) -> 61.05725106
A40: Pakistan | B40: =VLOOKUP($A40,'KD1 Summary'!$A:$S,6,FALSE) -> 5 | C40: =VLOOKUP($A40,'KD2 Summary'!$A:$S,6,FALSE) -> 9.083333333 | D40: =VLOOKUP($A40,'KD3 Summary'!$A:$Y,8,FALSE) -> 11.17647059 | E40: =VLOOKUP($A40,'KD4 Summary'!$A:$P,5,FALSE) -> 7.324414716 | F40: =VLOOKUP($A40,'KD5 Summary'!$A:$S,6,FALSE) -> 8.110055172 | G40: 40.69427381 | H40: ='KD1 Summary'!L41 -> 5 | I40: =VLOOKUP($A40,'KD2 Summary'!$A:$S,12,FALSE) -> 10.16666667 | J40: =VLOOKUP($A40,'KD3 Summary'!$A:$Y,16,FALSE) -> 10.29411765 | K40: =VLOOKUP($A40,'KD4 Summary'!$A:$P,10,FALSE) -> 8.428093645 | L40: =VLOOKUP($A40,'KD5 Summary'!$A:$S,12,FALSE) -> 8.537430315 | M40: 42.42630827 | N40: =VLOOKUP($A40,'KD1 Summary'!$A:$S,18,FALSE) -> 6 | O40: =VLOOKUP($A40,'KD2 Summary'!$A:$S,18,FALSE) -> 9.916666667 | P40: =VLOOKUP($A40,'KD3 Summary'!$A:$Y,24,FALSE) -> 10.29411765 | Q40: =VLOOKUP($A40,'KD4 Summary'!$A:$P,15,FALSE) -> 7.658862876 | R40: =VLOOKUP($A40,'KD5 Summary'!$A:$S,18,FALSE) -> 8.804130067 | S40: 42.67377726
A41: Palau | B41: =VLOOKUP($A41,'KD1 Summary'!$A:$S,6,FALSE) -> 16 | C41: =VLOOKUP($A41,'KD2 Summary'!$A:$S,6,FALSE) -> 9 | D41: =VLOOKUP($A41,'KD3 Summary'!$A:$Y,8,FALSE) -> 11.17647059 | E41: =VLOOKUP($A41,'KD4 Summary'!$A:$P,5,FALSE) -> 11.53846154 | F41: =VLOOKUP($A41,'KD5 Summary'!$A:$S,6,FALSE) -> 15.06490499 | G41: 62.77983711 | H41: ='KD1 Summary'!L42 -> 18 | I41: =VLOOKUP($A41,'KD2 Summary'!$A:$S,12,FALSE) -> 9.666666667 | J41: =VLOOKUP($A41,'KD3 Summary'!$A:$Y,16,FALSE) -> 13.52941176 | K41: =VLOOKUP($A41,'KD4 Summary'!$A:$P,10,FALSE) -> 11.53846154 | L41: =VLOOKUP($A41,'KD5 Summary'!$A:$S,12,FALSE) -> 16.13600277 | M41: 68.87054274 | N41: =VLOOKUP($A41,'KD1 Summary'!$A:$S,18,FALSE) -> 19 | O41: =VLOOKUP($A41,'KD2 Summary'!$A:$S,18,FALSE) -> 9.666666667 | P41: =VLOOKUP($A41,'KD3 Summary'!$A:$Y,24,FALSE) -> 15 | Q41: =VLOOKUP($A41,'KD4 Summary'!$A:$P,15,FALSE) -> 12.20735786 | R41: =VLOOKUP($A41,'KD5 Summary'!$A:$S,18,FALSE) -> 16.87635462 | S41: 72.75037914
A42: Papua New Guinea | B42: =VLOOKUP($A42,'KD1 Summary'!$A:$S,6,FALSE) -> 4 | C42: =VLOOKUP($A42,'KD2 Summary'!$A:$S,6,FALSE) -> 8.875 | D42: =VLOOKUP($A42,'KD3 Summary'!$A:$Y,8,FALSE) -> 5.294117647 | E42: =VLOOKUP($A42,'KD4 Summary'!$A:$P,5,FALSE) -> 12.97658863 | F42: =VLOOKUP($A42,'KD5 Summary'!$A:$S,6,FALSE) -> 9.950077322 | G42: 41.0957836 | H42: ='KD1 Summary'!L43 -> 4 | I42: =VLOOKUP($A42,'KD2 Summary'!$A:$S,12,FALSE) -> 8.75 | J42: =VLOOKUP($A42,'KD3 Summary'!$A:$Y,16,FALSE) -> 5.588235294 | K42: =VLOOKUP($A42,'KD4 Summary'!$A:$P,10,FALSE) -> 12.97658863 | L42: =VLOOKUP($A42,'KD5 Summary'!$A:$S,12,FALSE) -> 11.3910936 | M42: 42.70591752 | N42: =VLOOKUP($A42,'KD1 Summary'!$A:$S,18,FALSE) -> 4 | O42: =VLOOKUP($A42,'KD2 Summary'!$A:$S,18,FALSE) -> 8.75 | P42: =VLOOKUP($A42,'KD3 Summary'!$A:$Y,24,FALSE) -> 5.588235294 | Q42: =VLOOKUP($A42,'KD4 Summary'!$A:$P,15,FALSE) -> 12.54180602 | R42: =VLOOKUP($A42,'KD5 Summary'!$A:$S,18,FALSE) -> 11.95203168 | S42: 42.832073
A43: Philippines | B43: =VLOOKUP($A43,'KD1 Summary'!$A:$S,6,FALSE) -> 8 | C43: =VLOOKUP($A43,'KD2 Summary'!$A:$S,6,FALSE) -> 11.10416667 | D43: =VLOOKUP($A43,'KD3 Summary'!$A:$Y,8,FALSE) -> 15.29411765 | E43: =VLOOKUP($A43,'KD4 Summary'!$A:$P,5,FALSE) -> 13.21070234 | F43: =VLOOKUP($A43,'KD5 Summary'!$A:$S,6,FALSE) -> 11.09239499 | G43: 58.70138164 | H43: ='KD1 Summary'!L44 -> 11 | I43: =VLOOKUP($A43,'KD2 Summary'!$A:$S,12,FALSE) -> 11.52083333 | J43: =VLOOKUP($A43,'KD3 Summary'!$A:$Y,16,FALSE) -> 16.47058824 | K43: =VLOOKUP($A43,'KD4 Summary'!$A:$P,10,FALSE) -> 15.95317726 | L43: =VLOOKUP($A43,'KD5 Summary'!$A:$S,12,FALSE) -> 12.04248584 | M43: 66.98708467 | N43: =VLOOKUP($A43,'KD1 Summary'!$A:$S,18,FALSE) -> 11 | O43: =VLOOKUP($A43,'KD2 Summary'!$A:$S,18,FALSE) -> 11.25 | P43: =VLOOKUP($A43,'KD3 Summary'!$A:$Y,24,FALSE) -> 16.76470588 | Q43: =VLOOKUP($A43,'KD4 Summary'!$A:$P,15,FALSE) -> 16.72240803 | R43: =VLOOKUP($A43,'KD5 Summary'!$A:$S,18,FALSE) -> 12.0589985 | S43: 67.79611241
A44: Samoa | B44: =VLOOKUP($A44,'KD1 Summary'!$A:$S,6,FALSE) -> 14 | C44: =VLOOKUP($A44,'KD2 Summary'!$A:$S,6,FALSE) -> 10 | D44: =VLOOKUP($A44,'KD3 Summary'!$A:$Y,8,FALSE) -> 11.17647059 | E44: =VLOOKUP($A44,'KD4 Summary'!$A:$P,5,FALSE) -> 10.76923077 | F44: =VLOOKUP($A44,'KD5 Summary'!$A:$S,6,FALSE) -> 11.50693298 | G44: 57.45263434 | H44: ='KD1 Summary'!L45 -> 14 | I44: =VLOOKUP($A44,'KD2 Summary'!$A:$S,12,FALSE) -> 10 | J44: =VLOOKUP($A44,'KD3 Summary'!$A:$Y,16,FALSE) -> 12.64705882 | K44: =VLOOKUP($A44,'KD4 Summary'!$A:$P,10,FALSE) -> 13.84615385 | L44: =VLOOKUP($A44,'KD5 Summary'!$A:$S,12,FALSE) -> 12.315077 | M44: 62.80828967 | N44: =VLOOKUP($A44,'KD1 Summary'!$A:$S,18,FALSE) -> 14 | O44: =VLOOKUP($A44,'KD2 Summary'!$A:$S,18,FALSE) -> 10.25 | P44: =VLOOKUP($A44,'KD3 Summary'!$A:$Y,24,FALSE) -> 12.64705882 | Q44: =VLOOKUP($A44,'KD4 Summary'!$A:$P,15,FALSE) -> 13.84615385 | R44: =VLOOKUP($A44,'KD5 Summary'!$A:$S,18,FALSE) -> 12.03581138 | S44: 62.77902405
A45: Singapore | B45: =VLOOKUP($A45,'KD1 Summary'!$A:$S,6,FALSE) -> 15.5 | C45: =VLOOKUP($A45,'KD2 Summary'!$A:$S,6,FALSE) -> 15 | D45: =VLOOKUP($A45,'KD3 Summary'!$A:$Y,8,FALSE) -> 19.11764706 | E45: =VLOOKUP($A45,'KD4 Summary'!$A:$P,5,FALSE) -> 7.846153846 | F45: =VLOOKUP($A45,'KD5 Summary'!$A:$S,6,FALSE) -> 20 | G45: 77.4638009 | H45: ='KD1 Summary'!L46 -> 15.9 | I45: =VLOOKUP($A45,'KD2 Summary'!$A:$S,12,FALSE) -> 15.44444444 | J45: =VLOOKUP($A45,'KD3 Summary'!$A:$Y,16,FALSE) -> 19.41176471 | K45: =VLOOKUP($A45,'KD4 Summary'!$A:$P,10,FALSE) -> 8.615384615 | L45: =VLOOKUP($A45,'KD5 Summary'!$A:$S,12,FALSE) -> 20 | M45: 79.37159377 | N45: =VLOOKUP($A45,'KD1 Summary'!$A:$S,18,FALSE) -> 15.6 | O45: =VLOOKUP($A45,'KD2 Summary'!$A:$S,18,FALSE) -> 15.44444444 | P45: =VLOOKUP($A45,'KD3 Summary'!$A:$Y,24,FALSE) -> 19.11764706 | Q45: =VLOOKUP($A45,'KD4 Summary'!$A:$P,15,FALSE) -> 7.846153846 | R45: =VLOOKUP($A45,'KD5 Summary'!$A:$S,18,FALSE) -> 20 | S45: 78.00824535
A46: Solomon Islands | B46: =VLOOKUP($A46,'KD1 Summary'!$A:$S,6,FALSE) -> 7 | C46: =VLOOKUP($A46,'KD2 Summary'!$A:$S,6,FALSE) -> 13.5 | D46: =VLOOKUP($A46,'KD3 Summary'!$A:$Y,8,FALSE) -> 8.823529412 | E46: =VLOOKUP($A46,'KD4 Summary'!$A:$P,5,FALSE) -> 10.08547009 | F46: =VLOOKUP($A46,'KD5 Summary'!$A:$S,6,FALSE) -> 12.50890294 | G46: 51.91790243 | H46: ='KD1 Summary'!L47 -> 8 | I46: =VLOOKUP($A46,'KD2 Summary'!$A:$S,12,FALSE) -> 14 | J46: =VLOOKUP($A46,'KD3 Summary'!$A:$Y,16,FALSE) -> 7.941176471 | K46: =VLOOKUP($A46,'KD4 Summary'!$A:$P,10,FALSE) -> 9.52991453 | L46: =VLOOKUP($A46,'KD5 Summary'!$A:$S,12,FALSE) -> 10.06472904 | M46: 49.53582005 | N46: =VLOOKUP($A46,'KD1 Summary'!$A:$S,18,FALSE) -> 7 | O46: =VLOOKUP($A46,'KD2 Summary'!$A:$S,18,FALSE) -> 14 | P46: =VLOOKUP($A46,'KD3 Summary'!$A:$Y,24,FALSE) -> 7.941176471 | Q46: =VLOOKUP($A46,'KD4 Summary'!$A:$P,15,FALSE) -> 9.52991453 | R46: =VLOOKUP($A46,'KD5 Summary'!$A:$S,18,FALSE) -> 10.87642095 | S46: 49.34751195
A47: Sri Lanka | B47: =VLOOKUP($A47,'KD1 Summary'!$A:$S,6,FALSE) -> 11 | C47: =VLOOKUP($A47,'KD2 Summary'!$A:$S,6,FALSE) -> 9.0625 | D47: =VLOOKUP($A47,'KD3 Summary'!$A:$Y,8,FALSE) -> 14.41176471 | E47: =VLOOKUP($A47,'KD4 Summary'!$A:$P,5,FALSE) -> 10.16722408 | F47: =VLOOKUP($A47,'KD5 Summary'!$A:$S,6,FALSE) -> 11.7782255 | G47: 56.41971428 | H47: ='KD1 Summary'!L48 -> 12 | I47: =VLOOKUP($A47,'KD2 Summary'!$A:$S,12,FALSE) -> 10.04166667 | J47: =VLOOKUP($A47,'KD3 Summary'!$A:$Y,16,FALSE) -> 14.41176471 | K47: =VLOOKUP($A47,'KD4 Summary'!$A:$P,10,FALSE) -> 10.60200669 | L47: =VLOOKUP($A47,'KD5 Summary'!$A:$S,12,FALSE) -> 11.43097972 | M47: 58.48641779 | N47: =VLOOKUP($A47,'KD1 Summary'!$A:$S,18,FALSE) -> 14 | O47: =VLOOKUP($A47,'KD2 Summary'!$A:$S,18,FALSE) -> 10.04166667 | P47: =VLOOKUP($A47,'KD3 Summary'!$A:$Y,24,FALSE) -> 14.41176471 | Q47: =VLOOKUP($A47,'KD4 Summary'!$A:$P,15,FALSE) -> 9.732441472 | R47: =VLOOKUP($A47,'KD5 Summary'!$A:$S,18,FALSE) -> 11.76699424 | S47: 59.95286708
A48: Taipei, China | B48: =VLOOKUP($A48,'KD1 Summary'!$A:$S,6,FALSE) -> 17.7 | C48: =VLOOKUP($A48,'KD2 Summary'!$A:$S,6,FALSE) -> 14.16666667 | D48: =VLOOKUP($A48,'KD3 Summary'!$A:$Y,8,FALSE) -> 16.48 | E48: =VLOOKUP($A48,'KD4 Summary'!$A:$P,5,FALSE) -> 9.83277592 | F48: =VLOOKUP($A48,'KD5 Summary'!$A:$S,6,FALSE) -> 14.28789633 | G48: 72.46733892 | H48: ='KD1 Summary'!L49 -> 17.7 | I48: =VLOOKUP($A48,'KD2 Summary'!$A:$S,12,FALSE) -> 14.16666667 | J48: =VLOOKUP($A48,'KD3 Summary'!$A:$Y,16,FALSE) -> 16.48 | K48: =VLOOKUP($A48,'KD4 Summary'!$A:$P,10,FALSE) -> 12.57525084 | L48: =VLOOKUP($A48,'KD5 Summary'!$A:$S,12,FALSE) -> 16.99703853 | M48: 77.91895603 | N48: =VLOOKUP($A48,'KD1 Summary'!$A:$S,18,FALSE) -> 17.7 | O48: =VLOOKUP($A48,'KD2 Summary'!$A:$S,18,FALSE) -> 14.16666667 | P48: =VLOOKUP($A48,'KD3 Summary'!$A:$Y,24,FALSE) -> 16.48 | Q48: =VLOOKUP($A48,'KD4 Summary'!$A:$P,15,FALSE) -> 14.11371237 | R48: =VLOOKUP($A48,'KD5 Summary'!$A:$S,18,FALSE) -> 18.29854662 | S48: 80.75892566
A49: Tajikistan | B49: =VLOOKUP($A49,'KD1 Summary'!$A:$S,6,FALSE) -> 7 | C49: =VLOOKUP($A49,'KD2 Summary'!$A:$S,6,FALSE) -> 8.25 | D49: =VLOOKUP($A49,'KD3 Summary'!$A:$Y,8,FALSE) -> 10.58823529 | E49: =VLOOKUP($A49,'KD4 Summary'!$A:$P,5,FALSE) -> 10.26755853 | F49: =VLOOKUP($A49,'KD5 Summary'!$A:$S,6,FALSE) -> 13.52943315 | G49: 49.63522697 | H49: ='KD1 Summary'!L50 -> 8 | I49: =VLOOKUP($A49,'KD2 Summary'!$A:$S,12,FALSE) -> 8.583333333 | J49: =VLOOKUP($A49,'KD3 Summary'!$A:$Y,16,FALSE) -> 10.88235294 | K49: =VLOOKUP($A49,'KD4 Summary'!$A:$P,10,FALSE) -> 12.14046823 | L49: =VLOOKUP($A49,'KD5 Summary'!$A:$S,12,FALSE) -> 15.03748222 | M49: 54.64363672 | N49: =VLOOKUP($A49,'KD1 Summary'!$A:$S,18,FALSE) -> 9 | O49: =VLOOKUP($A49,'KD2 Summary'!$A:$S,18,FALSE) -> 8.395833333 | P49: =VLOOKUP($A49,'KD3 Summary'!$A:$Y,24,FALSE) -> 11.17647059 | Q49: =VLOOKUP($A49,'KD4 Summary'!$A:$P,15,FALSE) -> 12.14046823 | R49: =VLOOKUP($A49,'KD5 Summary'!$A:$S,18,FALSE) -> 17.39271304 | S49: 58.10548519
A50: Thailand | B50: =VLOOKUP($A50,'KD1 Summary'!$A:$S,6,FALSE) -> 12 | C50: =VLOOKUP($A50,'KD2 Summary'!$A:$S,6,FALSE) -> 13.85416667 | D50: =VLOOKUP($A50,'KD3 Summary'!$A:$Y,8,FALSE) -> 9.117647059 | E50: =VLOOKUP($A50,'KD4 Summary'!$A:$P,5,FALSE) -> 9.732441472 | F50: =VLOOKUP($A50,'KD5 Summary'!$A:$S,6,FALSE) -> 9.542276014 | G50: 54.24653121 | H50: ='KD1 Summary'!L51 -> 13 | I50: =VLOOKUP($A50,'KD2 Summary'!$A:$S,12,FALSE) -> 13.9375 | J50: =VLOOKUP($A50,'KD3 Summary'!$A:$Y,16,FALSE) -> 9.117647059 | K50: =VLOOKUP($A50,'KD4 Summary'!$A:$P,10,FALSE) -> 10.8361204 | L50: =VLOOKUP($A50,'KD5 Summary'!$A:$S,12,FALSE) -> 9.863859293 | M50: 56.75512675 | N50: =VLOOKUP($A50,'KD1 Summary'!$A:$S,18,FALSE) -> 14 | O50: =VLOOKUP($A50,'KD2 Summary'!$A:$S,18,FALSE) -> 14.6875 | P50: =VLOOKUP($A50,'KD3 Summary'!$A:$Y,24,FALSE) -> 9.117647059 | Q50: =VLOOKUP($A50,'KD4 Summary'!$A:$P,15,FALSE) -> 10.06688963 | R50: =VLOOKUP($A50,'KD5 Summary'!$A:$S,18,FALSE) -> 10.77467678 | S50: 58.64671347
A51: Timor-Leste | B51: =VLOOKUP($A51,'KD1 Summary'!$A:$S,6,FALSE) -> 4 | C51: =VLOOKUP($A51,'KD2 Summary'!$A:$S,6,FALSE) -> 12.5 | D51: =VLOOKUP($A51,'KD3 Summary'!$A:$Y,8,FALSE) -> 6.470588235 | E51: =VLOOKUP($A51,'KD4 Summary'!$A:$P,5,FALSE) -> 11.23745819 | F51: =VLOOKUP($A51,'KD5 Summary'!$A:$S,6,FALSE) -> 14.94322671 | G51: 49.15127314 | H51: ='KD1 Summary'!L52 -> 5 | I51: =VLOOKUP($A51,'KD2 Summary'!$A:$S,12,FALSE) -> 12 | J51: =VLOOKUP($A51,'KD3 Summary'!$A:$Y,16,FALSE) -> 6.764705882 | K51: =VLOOKUP($A51,'KD4 Summary'!$A:$P,10,FALSE) -> 13.64548495 | L51: =VLOOKUP($A51,'KD5 Summary'!$A:$S,12,FALSE) -> 15.68356555 | M51: 53.09375638 | N51: =VLOOKUP($A51,'KD1 Summary'!$A:$S,18,FALSE) -> 5 | O51: =VLOOKUP($A51,'KD2 Summary'!$A:$S,18,FALSE) -> 10.66666667 | P51: =VLOOKUP($A51,'KD3 Summary'!$A:$Y,24,FALSE) -> 6.764705882 | Q51: =VLOOKUP($A51,'KD4 Summary'!$A:$P,15,FALSE) -> 13.97993311 | R51: =VLOOKUP($A51,'KD5 Summary'!$A:$S,18,FALSE) -> 13.47353605 | S51: 49.88484171
A52: Tonga | B52: =VLOOKUP($A52,'KD1 Summary'!$A:$S,6,FALSE) -> 15 | C52: =VLOOKUP($A52,'KD2 Summary'!$A:$S,6,FALSE) -> 8.333333333 | D52: =VLOOKUP($A52,'KD3 Summary'!$A:$Y,8,FALSE) -> 10.29411765 | E52: =VLOOKUP($A52,'KD4 Summary'!$A:$P,5,FALSE) -> 13.65384615 | F52: =VLOOKUP($A52,'KD5 Summary'!$A:$S,6,FALSE) -> 14.11144869 | G52: 61.39274582 | H52: ='KD1 Summary'!L53 -> 15 | I52: =VLOOKUP($A52,'KD2 Summary'!$A:$S,12,FALSE) -> 8.333333333 | J52: =VLOOKUP($A52,'KD3 Summary'!$A:$Y,16,FALSE) -> 10.29411765 | K52: =VLOOKUP($A52,'KD4 Summary'!$A:$P,10,FALSE) -> 12.88461538 | L52: =VLOOKUP($A52,'KD5 Summary'!$A:$S,12,FALSE) -> 14.85129197 | M52: 61.36335833 | N52: =VLOOKUP($A52,'KD1 Summary'!$A:$S,18,FALSE) -> 16 | O52: =VLOOKUP($A52,'KD2 Summary'!$A:$S,18,FALSE) -> 8.333333333 | P52: =VLOOKUP($A52,'KD3 Summary'!$A:$Y,24,FALSE) -> 10.29411765 | Q52: =VLOOKUP($A52,'KD4 Summary'!$A:$P,15,FALSE) -> 15.81196581 | R52: =VLOOKUP($A52,'KD5 Summary'!$A:$S,18,FALSE) -> 11.08982119 | S52: 61.52923799
A53: Turkmenistan | B53: =VLOOKUP($A53,'KD1 Summary'!$A:$S,6,FALSE) -> 13 | C53: =VLOOKUP($A53,'KD2 Summary'!$A:$S,6,FALSE) -> 12.125 | D53: =VLOOKUP($A53,'KD3 Summary'!$A:$Y,8,FALSE) -> 14.70588235 | E53: =VLOOKUP($A53,'KD4 Summary'!$A:$P,5,FALSE) -> 10.50167224 | F53: =VLOOKUP($A53,'KD5 Summary'!$A:$S,6,FALSE) -> 12.27851085 | G53: 62.61106544 | H53: ='KD1 Summary'!L54 -> 13 | I53: =VLOOKUP($A53,'KD2 Summary'!$A:$S,12,FALSE) -> 14.70833333 | J53: =VLOOKUP($A53,'KD3 Summary'!$A:$Y,16,FALSE) -> 14.70588235 | K53: =VLOOKUP($A53,'KD4 Summary'!$A:$P,10,FALSE) -> 11.70568562 | L53: =VLOOKUP($A53,'KD5 Summary'!$A:$S,12,FALSE) -> 12.21271957 | M53: 66.33262087 | N53: =VLOOKUP($A53,'KD1 Summary'!$A:$S,18,FALSE) -> 14 | O53: =VLOOKUP($A53,'KD2 Summary'!$A:$S,18,FALSE) -> 14.45833333 | P53: =VLOOKUP($A53,'KD3 Summary'!$A:$Y,24,FALSE) -> 14.70588235 | Q53: =VLOOKUP($A53,'KD4 Summary'!$A:$P,15,FALSE) -> 11.70568562 | R53: =VLOOKUP($A53,'KD5 Summary'!$A:$S,18,FALSE) -> 12.68744595 | S53: 67.55734726
A54: Tuvalu | B54: =VLOOKUP($A54,'KD1 Summary'!$A:$S,6,FALSE) -> 13 | C54: =VLOOKUP($A54,'KD2 Summary'!$A:$S,6,FALSE) -> 6 | D54: =VLOOKUP($A54,'KD3 Summary'!$A:$Y,8,FALSE) -> 10.29411765 | E54: =VLOOKUP($A54,'KD4 Summary'!$A:$P,5,FALSE) -> 13.33333333 | F54: =VLOOKUP($A54,'KD5 Summary'!$A:$S,6,FALSE) -> 4.580884306 | G54: 47.20833529 | H54: ='KD1 Summary'!L55 -> 14 | I54: =VLOOKUP($A54,'KD2 Summary'!$A:$S,12,FALSE) -> 6 | J54: =VLOOKUP($A54,'KD3 Summary'!$A:$Y,16,FALSE) -> 10.29411765 | K54: =VLOOKUP($A54,'KD4 Summary'!$A:$P,10,FALSE) -> 13.33333333 | L54: =VLOOKUP($A54,'KD5 Summary'!$A:$S,12,FALSE) -> 4.682120752 | M54: 48.30957173 | N54: =VLOOKUP($A54,'KD1 Summary'!$A:$S,18,FALSE) -> 14 | O54: =VLOOKUP($A54,'KD2 Summary'!$A:$S,18,FALSE) -> 6 | P54: =VLOOKUP($A54,'KD3 Summary'!$A:$Y,24,FALSE) -> 10.58823529 | Q54: =VLOOKUP($A54,'KD4 Summary'!$A:$P,15,FALSE) -> 17.5 | R54: =VLOOKUP($A54,'KD5 Summary'!$A:$S,18,FALSE) -> 4.843715856 | S54: 52.93195115
A55: Uzbekistan | B55: =VLOOKUP($A55,'KD1 Summary'!$A:$S,6,FALSE) -> 11 | C55: =VLOOKUP($A55,'KD2 Summary'!$A:$S,6,FALSE) -> 9.291666667 | D55: =VLOOKUP($A55,'KD3 Summary'!$A:$Y,8,FALSE) -> 14.70588235 | E55: =VLOOKUP($A55,'KD4 Summary'!$A:$P,5,FALSE) -> 9.732441472 | F55: =VLOOKUP($A55,'KD5 Summary'!$A:$S,6,FALSE) -> 10.97426761 | G55: 55.7042581 | H55: ='KD1 Summary'!L56 -> 15 | I55: =VLOOKUP($A55,'KD2 Summary'!$A:$S,12,FALSE) -> 11.79166667 | J55: =VLOOKUP($A55,'KD3 Summary'!$A:$Y,16,FALSE) -> 15.88235294 | K55: =VLOOKUP($A55,'KD4 Summary'!$A:$P,10,FALSE) -> 9.732441472 | L55: =VLOOKUP($A55,'KD5 Summary'!$A:$S,12,FALSE) -> 11.70635347 | M55: 64.11281455 | N55: =VLOOKUP($A55,'KD1 Summary'!$A:$S,18,FALSE) -> 13 | O55: =VLOOKUP($A55,'KD2 Summary'!$A:$S,18,FALSE) -> 11.79166667 | P55: =VLOOKUP($A55,'KD3 Summary'!$A:$Y,24,FALSE) -> 15.88235294 | Q55: =VLOOKUP($A55,'KD4 Summary'!$A:$P,15,FALSE) -> 9.732441472 | R55: =VLOOKUP($A55,'KD5 Summary'!$A:$S,18,FALSE) -> 11.71991275 | S55: 62.12637382
A56: Vanuatu | B56: =VLOOKUP($A56,'KD1 Summary'!$A:$S,6,FALSE) -> 8 | C56: =VLOOKUP($A56,'KD2 Summary'!$A:$S,6,FALSE) -> 10 | D56: =VLOOKUP($A56,'KD3 Summary'!$A:$Y,8,FALSE) -> 8.823529412 | E56: =VLOOKUP($A56,'KD4 Summary'!$A:$P,5,FALSE) -> 11.96581197 | F56: =VLOOKUP($A56,'KD5 Summary'!$A:$S,6,FALSE) -> 10.85714701 | G56: 49.64648839 | H56: ='KD1 Summary'!L57 -> 8 | I56: =VLOOKUP($A56,'KD2 Summary'!$A:$S,12,FALSE) -> 10.5 | J56: =VLOOKUP($A56,'KD3 Summary'!$A:$Y,16,FALSE) -> 7.941176471 | K56: =VLOOKUP($A56,'KD4 Summary'!$A:$P,10,FALSE) -> 12.73504274 | L56: =VLOOKUP($A56,'KD5 Summary'!$A:$S,12,FALSE) -> 10.53595103 | M56: 49.71217024 | N56: =VLOOKUP($A56,'KD1 Summary'!$A:$S,18,FALSE) -> 8 | O56: =VLOOKUP($A56,'KD2 Summary'!$A:$S,18,FALSE) -> 9.75 | P56: =VLOOKUP($A56,'KD3 Summary'!$A:$Y,24,FALSE) -> 7.941176471 | Q56: =VLOOKUP($A56,'KD4 Summary'!$A:$P,15,FALSE) -> 12.97658863 | R56: =VLOOKUP($A56,'KD5 Summary'!$A:$S,18,FALSE) -> 11.20507287 | S56: 49.87283797
A57: Viet Nam | B57: =VLOOKUP($A57,'KD1 Summary'!$A:$S,6,FALSE) -> 8 | C57: =VLOOKUP($A57,'KD2 Summary'!$A:$S,6,FALSE) -> 9.5 | D57: =VLOOKUP($A57,'KD3 Summary'!$A:$Y,8,FALSE) -> 10.58823529 | E57: =VLOOKUP($A57,'KD4 Summary'!$A:$P,5,FALSE) -> 11.0367893 | F57: =VLOOKUP($A57,'KD5 Summary'!$A:$S,6,FALSE) -> 15.24377541 | G57: 54.3688 | H57: ='KD1 Summary'!L58 -> 9 | I57: =VLOOKUP($A57,'KD2 Summary'!$A:$S,12,FALSE) -> 8.979166667 | J57: =VLOOKUP($A57,'KD3 Summary'!$A:$Y,16,FALSE) -> 10.88235294 | K57: =VLOOKUP($A57,'KD4 Summary'!$A:$P,10,FALSE) -> 13.67892977 | L57: =VLOOKUP($A57,'KD5 Summary'!$A:$S,12,FALSE) -> 15.88482445 | M57: 58.42527382 | N57: =VLOOKUP($A57,'KD1 Summary'!$A:$S,18,FALSE) -> 10 | O57: =VLOOKUP($A57,'KD2 Summary'!$A:$S,18,FALSE) -> 9.479166667 | P57: =VLOOKUP($A57,'KD3 Summary'!$A:$Y,24,FALSE) -> 10.88235294 | Q57: =VLOOKUP($A57,'KD4 Summary'!$A:$P,15,FALSE) -> 14.11371237 | R57: =VLOOKUP($A57,'KD5 Summary'!$A:$S,18,FALSE) -> 15.41790864 | S57: 59.89314062

Sheet KD1 Summary
A1: KD 1 - Rural Household Water Security Summary
A7: Economies | B7: AWDO 2013 | H7: AWDO 2016 | N7: AWDO 2020
B8: Water supply | C8: Sanitation Index | D8: DALY Index | E8: Affordability | F8: KD1 score | G8: KD1 Index | H8: Water supply | I8: Sanitation Index | J8: DALY Index | K8: Affordability | L8: KD1 score | M8: KD1 Index | N8: Water supply | O8: Sanitation | P8: DALY | Q8: Affordability | R8: KD1 score | S8: KD1 Index
B9: max 5 | C9: max 5 | D9: max 5 | E9: max 5 | F9: max 20 | G9: max 5 | H9: max 5 | I9: max 5 | J9: max 5 | K9: max 5 | L9: max 20 | M9: max 5 | N9: max 5 | O9: max 5 | P9: max 5 | Q9: max 5 | R9: max 20 | S9: max 5
A10: Afghanistan | B10: =VLOOKUP($A10,'KD1.1 Water Supply'!$A:$S,19,FALSE) -> 1 | C10: =VLOOKUP($A10,'KD1.2 Sanitation'!$A:$S,19,FALSE) -> 1 | D10: =VLOOKUP($A10,'KD1.3 Health impacts'!$A:$G,7,FALSE) -> 1 | E10: 1 | F10: =SUM(B10:E10) -> 4 | G10: =VLOOKUP(F10,$C$62:$D$66,2) -> 1 | H10: =VLOOKUP($A10,'KD1.1 Water Supply'!$A:$S,13,FALSE) -> 1 | I10: =VLOOKUP($A10,'KD1.2 Sanitation'!$A:$S,13,FALSE) -> 1 | J10: =VLOOKUP($A10,'KD1.3 Health impacts'!$A:$G,5,FALSE) -> 1 | K10: =VLOOKUP($A10,'KD1.4 Affordability'!$A:$V,15,FALSE) -> 1 | L10: =SUM(H10:K10) -> 4 | M10: =VLOOKUP(L10,$C$62:$D$66,2) -> 1 | N10: =VLOOKUP($A10,'KD1.1 Water Supply'!$A:$S,7,FALSE) -> 1 | O10: =VLOOKUP($A10,'KD1.2 Sanitation'!$A:$S,7,FALSE) -> 1 | P10: =VLOOKUP($A10,'KD1.3 Health impacts'!$A:$G,3,FALSE) -> 1 | Q10: =VLOOKUP($A10,'KD1.4 Affordability'!$A:$V,8,FALSE) -> 1 | R10: =SUM(N10:Q10) -> 4 | S10: =VLOOKUP(R10,$C$62:$D$66,2) -> 1
A11: Armenia | B11: =VLOOKUP($A11,'KD1.1 Water Supply'!$A:$S,19,FALSE) -> 3 | C11: =VLOOKUP($A11,'KD1.2 Sanitation'!$A:$S,19,FALSE) -> 2 | D11: =VLOOKUP($A11,'KD1.3 Health impacts'!$A:$G,7,FALSE) -> 4 | E11: =VLOOKUP($A11,'KD1.4 Affordability'!$A:$V,22,FALSE) -> 4 | F11: =SUM(B11:E11) -> 13 | G11: =VLOOKUP(F11,$C$62:$D$66,2) -> 3 | H11: =VLOOKUP($A11,'KD1.1 Water Supply'!$A:$S,13,FALSE) -> 5 | I11: =VLOOKUP($A11,'KD1.2 Sanitation'!$A:$S,13,FALSE) -> 2 | J11: =VLOOKUP($A11,'KD1.3 Health impacts'!$A:$G,5,FALSE) -> 5 | K11: =VLOOKUP($A11,'KD1.4 Affordability'!$A:$V,15,FALSE) -> 4 | L11: 16 | M11: 4 | N11: =VLOOKUP($A11,'KD1.1 Water Supply'!$A:$S,7,FALSE) -> 5 | O11: =VLOOKUP($A11,'KD1.2 Sanitation'!$A:$S,7,FALSE) -> 2 | P11: =VLOOKUP($A11,'KD1.3 Health impacts'!$A:$G,3,FALSE) -> 5 | Q11: =VLOOKUP($A11,'KD1.4 Affordability'!$A:$V,8,FALSE) -> 5 | R11: 17 | S11: =VLOOKUP(R11,C$62:D$66,2) -> 4
A12: Australia | B12: =VLOOKUP($A12,'KD1.1 Water Supply'!$A:$S,19,FALSE) -> 5 | C12: =VLOOKUP($A12,'KD1.2 Sanitation'!$A:$S,19,FALSE) -> 5 | D12: =VLOOKUP($A12,'KD1.3 Health impacts'!$A:$G,7,FALSE) -> 5 | E12: =VLOOKUP($A12,'KD1.4 Affordability'!$A:$V,22,FALSE) -> 5 | F12: 20 | G12: 5 | H12: =VLOOKUP($A12,'KD1.1 Water Supply'!$A:$S,13,FALSE) -> 5 | I12: =VLOOKUP($A12,'KD1.2 Sanitation'!$A:$S,13,FALSE) -> 5 | J12: =VLOOKUP($A12,'KD1.3 Health impacts'!$A:$G,5,FALSE) -> 5 | K12: =VLOOKUP($A12,'KD1.4 Affordability'!$A:$V,15,FALSE) -> 5 | L12: 20 | M12: 5 | N12: =VLOOKUP($A12,'KD1.1 Water Supply'!$A:$S,7,FALSE) -> 5 | O12: =VLOOKUP($A12,'KD1.2 Sanitation'!$A:$S,7,FALSE) -> 5 | P12: =VLOOKUP($A12,'KD1.3 Health impacts'!$A:$G,3,FALSE) -> 5 | Q12: =VLOOKUP($A12,'KD1.4 Affordability'!$A:$V,8,FALSE) -> 4 | R12: 19 | S12: 4
A13: Azerbaijan | B13: =VLOOKUP($A13,'KD1.1 Water Supply'!$A:$S,19,FALSE) -> 2 | C13: =VLOOKUP($A13,'KD1.2 Sanitation'!$A:$S,19,FALSE) -> 2 | D13: =VLOOKUP($A13,'KD1.3 Health impacts'!$A:$G,7,FALSE) -> 3 | E13: =VLOOKUP($A13,'KD1.4 Affordability'!$A:$V,22,FALSE) -> 3 | F13: 10 | G13: 2 | H13: =VLOOKUP($A13,'KD1.1 Water Supply'!$A:$S,13,FALSE) -> 2 | I13: =VLOOKUP($A13,'KD1.2 Sanitation'!$A:$S,13,FALSE) -> 2 | J13: =VLOOKUP($A13,'KD1.3 Health impacts'!$A:$G,5,FALSE) -> 3 | K13: =VLOOKUP($A13,'KD1.4 Affordability'!$A:$V,15,FALSE) -> 4 | L13: 11 | M13: 2 | N13: =VLOOKUP($A13,'KD1.1 Water Supply'!$A:$S,7,FALSE) -> 2 | O13: =VLOOKUP($A13,'KD1.2 Sanitation'!$A:$S,7,FALSE) -> 3 | P13: =VLOOKUP($A13,'KD1.3 Health impacts'!$A:$G,3,FALSE) -> 3 | Q13: =VLOOKUP($A13,'KD1.4 Affordability'!$A:$V,8,FALSE) -> 3 | R13: 11 | S13: 2
A14: Bangladesh | B14: =VLOOKUP($A14,'KD1.1 Water Supply'!$A:$S,19,FALSE) -> 3 | C14: =VLOOKUP($A14,'KD1.2 Sanitation'!$A:$S,19,FALSE) -> 1 | D14: =VLOOKUP($A14,'KD1.3 Health impacts'!$A:$G,7,FALSE) -> 1 | E14: =VLOOKUP($A14,'KD1.4 Affordability'!$A:$V,22,FALSE) -> 3 | F14: 8 | G14: 1 | H14: =VLOOKUP($A14,'KD1.1 Water Supply'!$A:$S,13,FALSE) -> 3 | I14: =VLOOKUP($A14,'KD1.2 Sanitation'!$A:$S,13,FALSE) -> 1 | J14: =VLOOKUP($A14,'KD1.3 Health impacts'!$A:$G,5,FALSE) -> 2 | K14: =VLOOKUP($A14,'KD1.4 Affordability'!$A:$V,15,FALSE) -> 3 | L14: 9 | M14: 2 | N14: =VLOOKUP($A14,'KD1.1 Water Supply'!$A:$S,7,FALSE) -> 3 | O14: =VLOOKUP($A14,'KD1.2 Sanitation'!$A:$S,7,FALSE) -> 1 | P14: =VLOOKUP($A14,'KD1.3 Health impacts'!$A:$G,3,FALSE) -> 2 | Q14: =VLOOKUP($A14,'KD1.4 Affordability'!$A:$V,8,FALSE) -> 3 | R14: 9 | S14: 2
A15: Bhutan | B15: =VLOOKUP($A15,'KD1.1 Water Supply'!$A:$S,19,FALSE) -> 3 | C15: =VLOOKUP($A15,'KD1.2 Sanitation'!$A:$S,19,FALSE) -> 1 | D15: =VLOOKUP($A15,'KD1.3 Health impacts'!$A:$G,7,FALSE) -> 2 | E15: =VLOOKUP($A15,'KD1.4 Affordability'!$A:$V,22,FALSE) -> 1 | F15: 7 | G15: 1 | H15: =VLOOKUP($A15,'KD1.1 Water Supply'!$A:$S,13,FALSE) -> 3 | I15: =VLOOKUP($A15,'KD1.2 Sanitation'!$A:$S,13,FALSE) -> 2 | J15: =VLOOKUP($A15,'KD1.3 Health impacts'!$A:$G,5,FALSE) -> 2 | K15: =VLOOKUP($A15,'KD1.4 Affordability'!$A:$V,15,FALSE) -> 1 | L15: 8 | M15: 1 | N15: =VLOOKUP($A15,'KD1.1 Water Supply'!$A:$S,7,FALSE) -> 4 | O15: =VLOOKUP($A15,'KD1.2 Sanitation'!$A:$S,7,FALSE) -> 2 | P15: =VLOOKUP($A15,'KD1.3 Health impacts'!$A:$G,3,FALSE) -> 3 | Q15: =VLOOKUP($A15,'KD1.4 Affordability'!$A:$V,8,FALSE) -> 1 | R15: 10 | S15: 2
A16: Brunei Darussalam | B16: =VLOOKUP($A16,'KD1.1 Water Supply'!$A:$S,19,FALSE) -> 5 | C16: =VLOOKUP($A16,'KD1.2 Sanitation'!$A:$S,19,FALSE) -> 3 | D16: =VLOOKUP($A16,'KD1.3 Health impacts'!$A:$G,7,FALSE) -> 5 | E16: =VLOOKUP($A16,'KD1.4 Affordability'!$A:$V,22,FALSE) -> 1 | F16: 14 | G16: 3 | H16: =VLOOKUP($A16,'KD1.1 Water Supply'!$A:$S,13,FALSE) -> 5 | I16: =VLOOKUP($A16,'KD1.2 Sanitation'!$A:$S,13,FALSE) -> 3 | J16: =VLOOKUP($A16,'KD1.3 Health impacts'!$A:$G,5,FALSE) -> 5 | K16: =VLOOKUP($A16,'KD1.4 Affordability'!$A:$V,15,FALSE) -> 1 | L16: 14 | M16: 3 | N16: =VLOOKUP($A16,'KD1.1 Water Supply'!$A:$S,7,FALSE) -> 5 | O16: =VLOOKUP($A16,'KD1.2 Sanitation'!$A:$S,7,FALSE) -> 3 | P16: =VLOOKUP($A16,'KD1.3 Health impacts'!$A:$G,3,FALSE) -> 5 | Q16: =VLOOKUP($A16,'KD1.4 Affordability'!$A:$V,8,FALSE) -> 1 | R16: 14 | S16: 3
A17: Cambodia | B17: =VLOOKUP($A17,'KD1.1 Water Supply'!$A:$S,19,FALSE) -> 1 | C17: =VLOOKUP($A17,'KD1.2 Sanitation'!$A:$S,19,FALSE) -> 1 | D17: =VLOOKUP($A17,'KD1.3 Health impacts'!$A:$G,7,FALSE) -> 1 | E17: =VLOOKUP($A17,'KD1.4 Affordability'!$A:$V,22,FALSE) -> 3 | F17: 6 | G17: 1 | H17: =VLOOKUP($A17,'KD1.1 Water Supply'!$A:$S,13,FALSE) -> 2 | I17: =VLOOKUP($A17,'KD1.2 Sanitation'!$A:$S,13,FALSE) -> 1 | J17: =VLOOKUP($A17,'KD1.3 Health impacts'!$A:$G,5,FALSE) -> 2 | K17: =VLOOKUP($A17,'KD1.4 Affordability'!$A:$V,15,FALSE) -> 3 | L17: 8 | M17: 1 | N17: =VLOOKUP($A17,'KD1.1 Water Supply'!$A:$S,7,FALSE) -> 2 | O17: =VLOOKUP($A17,'KD1.2 Sanitation'!$A:$S,7,FALSE) -> 1 | P17: =VLOOKUP($A17,'KD1.3 Health impacts'!$A:$G,3,FALSE) -> 2 | Q17: =VLOOKUP($A17,'KD1.4 Affordability'!$A:$V,8,FALSE) -> 4 | R17: 9 | S17: 2
A18: China, People’s Republic of | B18: =VLOOKUP($A18,'KD1.1 Water Supply'!$A:$S,19,FALSE) -> 2 | C18: =VLOOKUP($A18,'KD1.2 Sanitation'!$A:$S,19,FALSE) -> 2 | D18: =VLOOKUP($A18,'KD1.3 Health impacts'!$A:$G,7,FALSE) -> 4 | E18: =VLOOKUP($A18,'KD1.4 Affordability'!$A:$V,22,FALSE) -> 3 | F18: 11 | G18: 2 | H18: =VLOOKUP($A18,'KD1.1 Water Supply'!$A:$S,13,FALSE) -> 2 | I18: =VLOOKUP($A18,'KD1.2 Sanitation'!$A:$S,13,FALSE) -> 2 | J18: =VLOOKUP($A18,'KD1.3 Health impacts'!$A:$G,5,FALSE) -> 5 | K18: =VLOOKUP($A18,'KD1.4 Affordability'!$A:$V,15,FALSE) -> 5 | L18: 14 | M18: 3 | N18: =VLOOKUP($A18,'KD1.1 Water Supply'!$A:$S,7,FALSE) -> 2 | O18: =VLOOKUP($A18,'KD1.2 Sanitation'!$A:$S,7,FALSE) -> 2 | P18: =VLOOKUP($A18,'KD1.3 Health impacts'!$A:$G,3,FALSE) -> 5 | Q18: =VLOOKUP($A18,'KD1.4 Affordability'!$A:$V,8,FALSE) -> 5 | R18: 14 | S18: 3
A19: Cook Islands | B19: =VLOOKUP($A19,'KD1.1 Water Supply'!$A:$S,19,FALSE) -> 5 | C19: =VLOOKUP($A19,'KD1.2 Sanitation'!$A:$S,19,FALSE) -> 3 | D19: =VLOOKUP($A19,'KD1.3 Health impacts'!$A:$G,7,FALSE) -> 4 | E19: =VLOOKUP($A19,'KD1.4 Affordability'!$A:$V,22,FALSE) -> 5 | F19: 17 | G19: 4 | H19: =VLOOKUP($A19,'KD1.1 Water Supply'!$A:$S,13,FALSE) -> 5 | I19: =VLOOKUP($A19,'KD1.2 Sanitation'!$A:$S,13,FALSE) -> 4 | J19: =VLOOKUP($A19,'KD1.3 Health impacts'!$A:$G,5,FALSE) -> 4 | K19: =VLOOKUP($A19,'KD1.4 Affordability'!$A:$V,15,FALSE) -> 5 | L19: 18 | M19: 4 | N19: =VLOOKUP($A19,'KD1.1 Water Supply'!$A:$S,7,FALSE) -> 5 | O19: =VLOOKUP($A19,'KD1.2 Sanitation'!$A:$S,7,FALSE) -> 4 | P19: =VLOOKUP($A19,'KD1.3 Health impacts'!$A:$G,3,FALSE) -> 4 | Q19: =VLOOKUP($A19,'KD1.4 Affordability'!$A:$V,8,FALSE) -> 5 | R19: 18 | S19: 4
A20: Fiji | B20: =VLOOKUP($A20,'KD1.1 Water Supply'!$A:$S,19,FALSE) -> 3 | C20: =VLOOKUP($A20,'KD1.2 Sanitation'!$A:$S,19,FALSE) -> 2 | D20: =VLOOKUP($A20,'KD1.3 Health impacts'!$A:$G,7,FALSE) -> 2 | E20: =VLOOKUP($A20,'KD1.4 Affordability'!$A:$V,22,FALSE) -> 2 | F20: 9 | G20: 2 | H20: =VLOOKUP($A20,'KD1.1 Water Supply'!$A:$S,13,FALSE) -> 3 | I20: =VLOOKUP($A20,'KD1.2 Sanitation'!$A:$S,13,FALSE) -> 3 | J20: =VLOOKUP($A20,'KD1.3 Health impacts'!$A:$G,5,FALSE) -> 2 | K20: =VLOOKUP($A20,'KD1.4 Affordability'!$A:$V,15,FALSE) -> 3 | L20: 11 | M20: 2 | N20: =VLOOKUP($A20,'KD1.1 Water Supply'!$A:$S,7,FALSE) -> 3 | O20: =VLOOKUP($A20,'KD1.2 Sanitation'!$A:$S,7,FALSE) -> 4 | P20: =VLOOKUP($A20,'KD1.3 Health impacts'!$A:$G,3,FALSE) -> 2 | Q20: =VLOOKUP($A20,'KD1.4 Affordability'!$A:$V,8,FALSE) -> 3 | R20: 12 | S20: 3
A21: Georgia | B21: =VLOOKUP($A21,'KD1.1 Water Supply'!$A:$S,19,FALSE) -> 3 | C21: =VLOOKUP($A21,'KD1.2 Sanitation'!$A:$S,19,FALSE) -> 3 | D21: =VLOOKUP($A21,'KD1.3 Health impacts'!$A:$G,7,FALSE) -> 4 | E21: =VLOOKUP($A21,'KD1.4 Affordability'!$A:$V,22,FALSE) -> 4 | F21: 14 | G21: 3 | H21: =VLOOKUP($A21,'KD1.1 Water Supply'!$A:$S,13,FALSE) -> 3 | I21: =VLOOKUP($A21,'KD1.2 Sanitation'!$A:$S,13,FALSE) -> 2 | J21: =VLOOKUP($A21,'KD1.3 Health impacts'!$A:$G,5,FALSE) -> 5 | K21: =VLOOKUP($A21,'KD1.4 Affordability'!$A:$V,15,FALSE) -> 4 | L21: 14 | M21: 3 | N21: =VLOOKUP($A21,'KD1.1 Water Supply'!$A:$S,7,FALSE) -> 3 | O21: =VLOOKUP($A21,'KD1.2 Sanitation'!$A:$S,7,FALSE) -> 2 | P21: =VLOOKUP($A21,'KD1.3 Health impacts'!$A:$G,3,FALSE) -> 5 | Q21: =VLOOKUP($A21,'KD1.4 Affordability'!$A:$V,8,FALSE) -> 4 | R21: 14 | S21: 3
A22: Hong Kong, China | F22: 15.1 | G22: 3 | L22: 15.9 | M22: 4 | R22: 15.9 | S22: 4
A23: India | B23: =VLOOKUP($A23,'KD1.1 Water Supply'!$A:$S,19,FALSE) -> 2 | C23: =VLOOKUP($A23,'KD1.2 Sanitation'!$A:$S,19,FALSE) -> 1 | D23: =VLOOKUP($A23,'KD1.3 Health impacts'!$A:$G,7,FALSE) -> 1 | E23: =VLOOKUP($A23,'KD1.4 Affordability'!$A:$V,22,FALSE) -> 1 | F23: 5 | G23: 1 | H23: =VLOOKUP($A23,'KD1.1 Water Supply'!$A:$S,13,FALSE) -> 3 | I23: =VLOOKUP($A23,'KD1.2 Sanitation'!$A:$S,13,FALSE) -> 1 | J23: =VLOOKUP($A23,'KD1.3 Health impacts'!$A:$G,5,FALSE) -> 1 | K23: =VLOOKUP($A23,'KD1.4 Affordability'!$A:$V,15,FALSE) -> 1 | L23: 6 | M23: 1 | N23: =VLOOKUP($A23,'KD1.1 Water Supply'!$A:$S,7,FALSE) -> 3 | O23: =VLOOKUP($A23,'KD1.2 Sanitation'!$A:$S,7,FALSE) -> 1 | P23: =VLOOKUP($A23,'KD1.3 Health impacts'!$A:$G,3,FALSE) -> 1 | Q23: =VLOOKUP($A23,'KD1.4 Affordability'!$A:$V,8,FALSE) -> 1 | R23: 6 | S23: 1
A24: Indonesia | B24: =VLOOKUP($A24,'KD1.1 Water Supply'!$A:$S,19,FALSE) -> 2 | C24: =VLOOKUP($A24,'KD1.2 Sanitation'!$A:$S,19,FALSE) -> 1 | D24: =VLOOKUP($A24,'KD1.3 Health impacts'!$A:$G,7,FALSE) -> 2 | E24: =VLOOKUP($A24,'KD1.4 Affordability'!$A:$V,22,FALSE) -> 4 | F24: 9 | G24: 2 | H24: =VLOOKUP($A24,'KD1.1 Water Supply'!$A:$S,13,FALSE) -> 2 | I24: =VLOOKUP($A24,'KD1.2 Sanitation'!$A:$S,13,FALSE) -> 1 | J24: =VLOOKUP($A24,'KD1.3 Health impacts'!$A:$G,5,FALSE) -> 3 | K24: =VLOOKUP($A24,'KD1.4 Affordability'!$A:$V,15,FALSE) -> 4 | L24: 10 | M24: 2 | N24: =VLOOKUP($A24,'KD1.1 Water Supply'!$A:$S,7,FALSE) -> 2 | O24: =VLOOKUP($A24,'KD1.2 Sanitation'!$A:$S,7,FALSE) -> 2 | P24: =VLOOKUP($A24,'KD1.3 Health impacts'!$A:$G,3,FALSE) -> 3 | Q24: =VLOOKUP($A24,'KD1.4 Affordability'!$A:$V,8,FALSE) -> 4 | R24: 11 | S24: 2
A25: Japan | B25: =VLOOKUP($A25,'KD1.1 Water Supply'!$A:$S,19,FALSE) -> 4 | C25: =VLOOKUP($A25,'KD1.2 Sanitation'!$A:$S,19,FALSE) -> 5 | D25: =VLOOKUP($A25,'KD1.3 Health impacts'!$A:$G,7,FALSE) -> 4 | E25: =VLOOKUP($A25,'KD1.4 Affordability'!$A:$V,22,FALSE) -> 5 | F25: 18 | G25: 4 | H25: =VLOOKUP($A25,'KD1.1 Water Supply'!$A:$S,13,FALSE) -> 5 | I25: =VLOOKUP($A25,'KD1.2 Sanitation'!$A:$S,13,FALSE) -> 5 | J25: =VLOOKUP($A25,'KD1.3 Health impacts'!$A:$G,5,FALSE) -> 4 | K25: =VLOOKUP($A25,'KD1.4 Affordability'!$A:$V,15,FALSE) -> 5 | L25: 19 | M25: 4 | N25: =VLOOKUP($A25,'KD1.1 Water Supply'!$A:$S,7,FALSE) -> 5 | O25: =VLOOKUP($A25,'KD1.2 Sanitation'!$A:$S,7,FALSE) -> 5 | P25: =VLOOKUP($A25,'KD1.3 Health impacts'!$A:$G,3,FALSE) -> 4 | Q25: =VLOOKUP($A25,'KD1.4 Affordability'!$A:$V,8,FALSE) -> 5 | R25: 19 | S25: 4
A26: Kazakhstan | B26: =VLOOKUP($A26,'KD1.1 Water Supply'!$A:$S,19,FALSE) -> 2 | C26: =VLOOKUP($A26,'KD1.2 Sanitation'!$A:$S,19,FALSE) -> 4 | D26: =VLOOKUP($A26,'KD1.3 Health impacts'!$A:$G,7,FALSE) -> 3 | E26: =VLOOKUP($A26,'KD1.4 Affordability'!$A:$V,22,FALSE) -> 3 | F26: 12 | G26: 3 | H26: =VLOOKUP($A26,'KD1.1 Water Supply'!$A:$S,13,FALSE) -> 3 | I26: =VLOOKUP($A26,'KD1.2 Sanitation'!$A:$S,13,FALSE) -> 4 | J26: =VLOOKUP($A26,'KD1.3 Health impacts'!$A:$G,5,FALSE) -> 4 | K26: =VLOOKUP($A26,'KD1.4 Affordability'!$A:$V,15,FALSE) -> 4 | L26: 15 | M26: 3 | N26: =VLOOKUP($A26,'KD1.1 Water Supply'!$A:$S,7,FALSE) -> 3 | O26: =VLOOKUP($A26,'KD1.2 Sanitation'!$A:$S,7,FALSE) -> 5 | P26: =VLOOKUP($A26,'KD1.3 Health impacts'!$A:$G,3,FALSE) -> 4 | Q26: =VLOOKUP($A26,'KD1.4 Affordability'!$A:$V,8,FALSE) -> 4 | R26: 16 | S26: 4
A27: Kiribati | B27: =VLOOKUP($A27,'KD1.1 Water Supply'!$A:$S,19,FALSE) -> 2 | C27: =VLOOKUP($A27,'KD1.2 Sanitation'!$A:$S,19,FALSE) -> 1 | D27: =VLOOKUP($A27,'KD1.3 Health impacts'!$A:$G,7,FALSE) -> 1 | E27: =VLOOKUP($A27,'KD1.4 Affordability'!$A:$V,22,FALSE) -> 3 | F27: 7 | G27: 1 | H27: =VLOOKUP($A27,'KD1.1 Water Supply'!$A:$S,13,FALSE) -> 2 | I27: =VLOOKUP($A27,'KD1.2 Sanitation'!$A:$S,13,FALSE) -> 1 | J27: =VLOOKUP($A27,'KD1.3 Health impacts'!$A:$G,5,FALSE) -> 1 | K27: =VLOOKUP($A27,'KD1.4 Affordability'!$A:$V,15,FALSE) -> 3 | L27: 7 | M27: 1 | N27: =VLOOKUP($A27,'KD1.1 Water Supply'!$A:$S,7,FALSE) -> 2 | O27: =VLOOKUP($A27,'KD1.2 Sanitation'!$A:$S,7,FALSE) -> 1 | P27: =VLOOKUP($A27,'KD1.3 Health impacts'!$A:$G,3,FALSE) -> 1 | Q27: =VLOOKUP($A27,'KD1.4 Affordability'!$A:$V,8,FALSE) -> 3 | R27: 7 | S27: 1
A28: Korea, Republic of | B28: =VLOOKUP($A28,'KD1.1 Water Supply'!$A:$S,19,FALSE) -> 5 | C28: =VLOOKUP($A28,'KD1.2 Sanitation'!$A:$S,19,FALSE) -> 5 | D28: =VLOOKUP($A28,'KD1.3 Health impacts'!$A:$G,7,FALSE) -> 5 | E28: =VLOOKUP($A28,'KD1.4 Affordability'!$A:$V,22,FALSE) -> 5 | F28: 20 | G28: 5 | H28: =VLOOKUP($A28,'KD1.1 Water Supply'!$A:$S,13,FALSE) -> 5 | I28: =VLOOKUP($A28,'KD1.2 Sanitation'!$A:$S,13,FALSE) -> 5 | J28: =VLOOKUP($A28,'KD1.3 Health impacts'!$A:$G,5,FALSE) -> 5 | K28: =VLOOKUP($A28,'KD1.4 Affordability'!$A:$V,15,FALSE) -> 5 | L28: 20 | M28: 5 | N28: =VLOOKUP($A28,'KD1.1 Water Supply'!$A:$S,7,FALSE) -> 5 | O28: =VLOOKUP($A28,'KD1.2 Sanitation'!$A:$S,7,FALSE) -> 5 | P28: =VLOOKUP($A28,'KD1.3 Health impacts'!$A:$G,3,FALSE) -> 5 | Q28: =VLOOKUP($A28,'KD1.4 Affordability'!$A:$V,8,FALSE) -> 5 | R28: 20 | S28: 5
A29: Kyrgyz Republic | B29: =VLOOKUP($A29,'KD1.1 Water Supply'!$A:$S,19,FALSE) -> 2 | C29: =VLOOKUP($A29,'KD1.2 Sanitation'!$A:$S,19,FALSE) -> 3 | D29: =VLOOKUP($A29,'KD1.3 Health impacts'!$A:$G,7,FALSE) -> 3 | E29: =VLOOKUP($A29,'KD1.4 Affordability'!$A:$V,22,FALSE) -> 2 | F29: 10 | G29: 2 | H29: =VLOOKUP($A29,'KD1.1 Water Supply'!$A:$S,13,FALSE) -> 2 | I29: =VLOOKUP($A29,'KD1.2 Sanitation'!$A:$S,13,FALSE) -> 5 | J29: =VLOOKUP($A29,'KD1.3 Health impacts'!$A:$G,5,FALSE) -> 3 | K29: =VLOOKUP($A29,'KD1.4 Affordability'!$A:$V,15,FALSE) -> 3 | L29: 13 | M29: 3 | N29: =VLOOKUP($A29,'KD1.1 Water Supply'!$A:$S,7,FALSE) -> 2 | O29: =VLOOKUP($A29,'KD1.2 Sanitation'!$A:$S,7,FALSE) -> 5 | P29: =VLOOKUP($A29,'KD1.3 Health impacts'!$A:$G,3,FALSE) -> 3 | Q29: =VLOOKUP($A29,'KD1.4 Affordability'!$A:$V,8,FALSE) -> 3 | R29: 13 | S29: 3
A30: Lao People’s Democratic Republic | B30: =VLOOKUP($A30,'KD1.1 Water Supply'!$A:$S,19,FALSE) -> 1 | C30: =VLOOKUP($A30,'KD1.2 Sanitation'!$A:$S,19,FALSE) -> 1 | D30: =VLOOKUP($A30,'KD1.3 Health impacts'!$A:$G,7,FALSE) -> 1 | E30: =VLOOKUP($A30,'KD1.4 Affordability'!$A:$V,22,FALSE) -> 1 | F30: 4 | G30: 1 | H30: =VLOOKUP($A30,'KD1.1 Water Supply'!$A:$S,13,FALSE) -> 2 | I30: =VLOOKUP($A30,'KD1.2 Sanitation'!$A:$S,13,FALSE) -> 1 | J30: =VLOOKUP($A30,'KD1.3 Health impacts'!$A:$G,5,FALSE) -> 1 | K30: =VLOOKUP($A30,'KD1.4 Affordability'!$A:$V,15,FALSE) -> 3 | L30: 7 | M30: 1 | N30: =VLOOKUP($A30,'KD1.1 Water Supply'!$A:$S,7,FALSE) -> 2 | O30: =VLOOKUP($A30,'KD1.2 Sanitation'!$A:$S,7,FALSE) -> 1 | P30: =VLOOKUP($A30,'KD1.3 Health impacts'!$A:$G,3,FALSE) -> 1 | Q30: =VLOOKUP($A30,'KD1.4 Affordability'!$A:$V,8,FALSE) -> 3 | R30: 7 | S30: 1
A31: Malaysia | B31: =VLOOKUP($A31,'KD1.1 Water Supply'!$A:$S,19,FALSE) -> 3 | C31: =VLOOKUP($A31,'KD1.2 Sanitation'!$A:$S,19,FALSE) -> 4 | D31: =VLOOKUP($A31,'KD1.3 Health impacts'!$A:$G,7,FALSE) -> 3 | E31: =VLOOKUP($A31,'KD1.4 Affordability'!$A:$V,22,FALSE) -> 3 | F31: 13 | G31: 3 | H31: =VLOOKUP($A31,'KD1.1 Water Supply'!$A:$S,13,FALSE) -> 3 | I31: =VLOOKUP($A31,'KD1.2 Sanitation'!$A:$S,13,FALSE) -> 4 | J31: =VLOOKUP($A31,'KD1.3 Health impacts'!$A:$G,5,FALSE) -> 3 | K31: =VLOOKUP($A31,'KD1.4 Affordability'!$A:$V,15,FALSE) -> 3 | L31: 13 | M31: 3 | N31: =VLOOKUP($A31,'KD1.1 Water Supply'!$A:$S,7,FALSE) -> 3 | O31: =VLOOKUP($A31,'KD1.2 Sanitation'!$A:$S,7,FALSE) -> 4 | P31: =VLOOKUP($A31,'KD1.3 Health impacts'!$A:$G,3,FALSE) -> 3 | Q31: =VLOOKUP($A31,'KD1.4 Affordability'!$A:$V,8,FALSE) -> 4 | R31: 14 | S31: 3
A32: Maldives | B32: =VLOOKUP($A32,'KD1.1 Water Supply'!$A:$S,19,FALSE) -> 3 | C32: =VLOOKUP($A32,'KD1.2 Sanitation'!$A:$S,19,FALSE) -> 2 | D32: =VLOOKUP($A32,'KD1.3 Health impacts'!$A:$G,7,FALSE) -> 5 | E32: =VLOOKUP($A32,'KD1.4 Affordability'!$A:$V,22,FALSE) -> 5 | F32: 15 | G32: 3 | H32: =VLOOKUP($A32,'KD1.1 Water Supply'!$A:$S,13,FALSE) -> 5 | I32: =VLOOKUP($A32,'KD1.2 Sanitation'!$A:$S,13,FALSE) -> 4 | J32: =VLOOKUP($A32,'KD1.3 Health impacts'!$A:$G,5,FALSE) -> 5 | K32: =VLOOKUP($A32,'KD1.4 Affordability'!$A:$V,15,FALSE) -> 5 | L32: 19 | M32: 4 | N32: =VLOOKUP($A32,'KD1.1 Water Supply'!$A:$S,7,FALSE) -> 5 | O32: =VLOOKUP($A32,'KD1.2 Sanitation'!$A:$S,7,FALSE) -> 5 | P32: =VLOOKUP($A32,'KD1.3 Health impacts'!$A:$G,3,FALSE) -> 5 | Q32: =VLOOKUP($A32,'KD1.4 Affordability'!$A:$V,8,FALSE) -> 5 | R32: 20 | S32: 5
A33: Marshall Islands | B33: =VLOOKUP($A33,'KD1.1 Water Supply'!$A:$S,19,FALSE) -> 4 | C33: =VLOOKUP($A33,'KD1.2 Sanitation'!$A:$S,19,FALSE) -> 1 | D33: =VLOOKUP($A33,'KD1.3 Health impacts'!$A:$G,7,FALSE) -> 1 | E33: =VLOOKUP($A33,'KD1.4 Affordability'!$A:$V,22,FALSE) -> 4 | F33: 10 | G33: 2 | H33: =VLOOKUP($A33,'KD1.1 Water Supply'!$A:$S,13,FALSE) -> 4 | I33: =VLOOKUP($A33,'KD1.2 Sanitation'!$A:$S,13,FALSE) -> 1 | J33: =VLOOKUP($A33,'KD1.3 Health impacts'!$A:$G,5,FALSE) -> 1 | K33: =VLOOKUP($A33,'KD1.4 Affordability'!$A:$V,15,FALSE) -> 4 | L33: 10 | M33: 2 | N33: =VLOOKUP($A33,'KD1.1 Water Supply'!$A:$S,7,FALSE) -> 3 | O33: =VLOOKUP($A33,'KD1.2 Sanitation'!$A:$S,7,FALSE) -> 1 | P33: =VLOOKUP($A33,'KD1.3 Health impacts'!$A:$G,3,FALSE) -> 1 | Q33: =VLOOKUP($A33,'KD1.4 Affordability'!$A:$V,8,FALSE) -> 4 | R33: 9 | S33: 2
A34: Micronesia, Federated States of | B34: =VLOOKUP($A34,'KD1.1 Water Supply'!$A:$S,19,FALSE) -> 2 | C34: =VLOOKUP($A34,'KD1.2 Sanitation'!$A:$S,19,FALSE) -> 2 | D34: =VLOOKUP($A34,'KD1.3 Health impacts'!$A:$G,7,FALSE) -> 2 | E34: =VLOOKUP($A34,'KD1.4 Affordability'!$A:$V,22,FALSE) -> 4 | F34: 10 | G34: 2 | H34: =VLOOKUP($A34,'KD1.1 Water Supply'!$A:$S,13,FALSE) -> 2 | I34: =VLOOKUP($A34,'KD1.2 Sanitation'!$A:$S,13,FALSE) -> 2 | J34: =VLOOKUP($A34,'KD1.3 Health impacts'!$A:$G,5,FALSE) -> 2 | K34: =VLOOKUP($A34,'KD1.4 Affordability'!$A:$V,15,FALSE) -> 3 | L34: 9 | M34: 2 | N34: =VLOOKUP($A34,'KD1.1 Water Supply'!$A:$S,7,FALSE) -> 2 | O34: =VLOOKUP($A34,'KD1.2 Sanitation'!$A:$S,7,FALSE) -> 3 | P34: =VLOOKUP($A34,'KD1.3 Health impacts'!$A:$G,3,FALSE) -> 2 | Q34: =VLOOKUP($A34,'KD1.4 Affordability'!$A:$V,8,FALSE) -> 4 | R34: 11 | S34: 2
A35: Mongolia | B35: =VLOOKUP($A35,'KD1.1 Water Supply'!$A:$S,19,FALSE) -> 1 | C35: =VLOOKUP($A35,'KD1.2 Sanitation'!$A:$S,19,FALSE) -> 1 | D35: =VLOOKUP($A35,'KD1.3 Health impacts'!$A:$G,7,FALSE) -> 3 | E35: =VLOOKUP($A35,'KD1.4 Affordability'!$A:$V,22,FALSE) -> 4 | F35: 9 | G35: 2 | H35: =VLOOKUP($A35,'KD1.1 Water Supply'!$A:$S,13,FALSE) -> 1 | I35: =VLOOKUP($A35,'KD1.2 Sanitation'!$A:$S,13,FALSE) -> 1 | J35: =VLOOKUP($A35,'KD1.3 Health impacts'!$A:$G,5,FALSE) -> 3 | K35: =VLOOKUP($A35,'KD1.4 Affordability'!$A:$V,15,FALSE) -> 4 | L35: 9 | M35: 2 | N35: =VLOOKUP($A35,'KD1.1 Water Supply'!$A:$S,7,FALSE) -> 1 | O35: =VLOOKUP($A35,'KD1.2 Sanitation'!$A:$S,7,FALSE) -> 1 | P35: =VLOOKUP($A35,'KD1.3 Health impacts'!$A:$G,3,FALSE) -> 3 | Q35: =VLOOKUP($A35,'KD1.4 Affordability'!$A:$V,8,FALSE) -> 3 | R35: 8 | S35: 1
A36: Myanmar | B36: =VLOOKUP($A36,'KD1.1 Water Supply'!$A:$S,19,FALSE) -> 1 | C36: =VLOOKUP($A36,'KD1.2 Sanitation'!$A:$S,19,FALSE) -> 2 | D36: =VLOOKUP($A36,'KD1.3 Health impacts'!$A:$G,7,FALSE) -> 1 | E36: =VLOOKUP($A36,'KD1.4 Affordability'!$A:$V,22,FALSE) -> 1 | F36: 5 | G36: 1 | H36: =VLOOKUP($A36,'KD1.1 Water Supply'!$A:$S,13,FALSE) -> 2 | I36: =VLOOKUP($A36,'KD1.2 Sanitation'!$A:$S,13,FALSE) -> 1 | J36: =VLOOKUP($A36,'KD1.3 Health impacts'!$A:$G,5,FALSE) -> 1 | K36: =VLOOKUP($A36,'KD1.4 Affordability'!$A:$V,15,FALSE) -> 1 | L36: 5 | M36: 1 | N36: =VLOOKUP($A36,'KD1.1 Water Supply'!$A:$S,7,FALSE) -> 2 | O36: =VLOOKUP($A36,'KD1.2 Sanitation'!$A:$S,7,FALSE) -> 1 | P36: =VLOOKUP($A36,'KD1.3 Health impacts'!$A:$G,3,FALSE) -> 2 | Q36: =VLOOKUP($A36,'KD1.4 Affordability'!$A:$V,8,FALSE) -> 1 | R36: 6 | S36: 1
A37: Nauru | F37: 10.3 | G37: 2 | L37: 11.5 | M37: 2 | R37: 11.2 | S37: 2
A38: Nepal | B38: =VLOOKUP($A38,'KD1.1 Water Supply'!$A:$S,19,FALSE) -> 2 | C38: =VLOOKUP($A38,'KD1.2 Sanitation'!$A:$S,19,FALSE) -> 1 | D38: =VLOOKUP($A38,'KD1.3 Health impacts'!$A:$G,7,FALSE) -> 1 | E38: =VLOOKUP($A38,'KD1.4 Affordability'!$A:$V,22,FALSE) -> 1 | F38: 5 | G38: 1 | H38: =VLOOKUP($A38,'KD1.1 Water Supply'!$A:$S,13,FALSE) -> 2 | I38: =VLOOKUP($A38,'KD1.2 Sanitation'!$A:$S,13,FALSE) -> 1 | J38: =VLOOKUP($A38,'KD1.3 Health impacts'!$A:$G,5,FALSE) -> 1 | K38: =VLOOKUP($A38,'KD1.4 Affordability'!$A:$V,15,FALSE) -> 1 | L38: 5 | M38: 1 | N38: =VLOOKUP($A38,'KD1.1 Water Supply'!$A:$S,7,FALSE) -> 3 | O38: =VLOOKUP($A38,'KD1.2 Sanitation'!$A:$S,7,FALSE) -> 1 | P38: =VLOOKUP($A38,'KD1.3 Health impacts'!$A:$G,3,FALSE) -> 1 | Q38: =VLOOKUP($A38,'KD1.4 Affordability'!$A:$V,8,FALSE) -> 1 | R38: 6 | S38: 1
A39: New Zealand | B39: =VLOOKUP($A39,'KD1.1 Water Supply'!$A:$S,19,FALSE) -> 5 | C39: =VLOOKUP($A39,'KD1.2 Sanitation'!$A:$S,19,FALSE) -> 5 | D39: =VLOOKUP($A39,'KD1.3 Health impacts'!$A:$G,7,FALSE) -> 5 | E39: =VLOOKUP($A39,'KD1.4 Affordability'!$A:$V,22,FALSE) -> 5 | F39: 20 | G39: 5 | H39: =VLOOKUP($A39,'KD1.1 Water Supply'!$A:$S,13,FALSE) -> 5 | I39: =VLOOKUP($A39,'KD1.2 Sanitation'!$A:$S,13,FALSE) -> 5 | J39: =VLOOKUP($A39,'KD1.3 Health impacts'!$A:$G,5,FALSE) -> 5 | K39: =VLOOKUP($A39,'KD1.4 Affordability'!$A:$V,15,FALSE) -> 5 | L39: 20 | M39: 5 | N39: =VLOOKUP($A39,'KD1.1 Water Supply'!$A:$S,7,FALSE) -> 5 | O39: =VLOOKUP($A39,'KD1.2 Sanitation'!$A:$S,7,FALSE) -> 5 | P39: =VLOOKUP($A39,'KD1.3 Health impacts'!$A:$G,3,FALSE) -> 5 | Q39: =VLOOKUP($A39,'KD1.4 Affordability'!$A:$V,8,FALSE) -> 5 | R39: 20 | S39: 5
A40: Niue | B40: =VLOOKUP($A40,'KD1.1 Water Supply'!$A:$S,19,FALSE) -> 4 | C40: =VLOOKUP($A40,'KD1.2 Sanitation'!$A:$S,19,FALSE) -> 4 | D40: =VLOOKUP($A40,'KD1.3 Health impacts'!$A:$G,7,FALSE) -> 2 | E40: =VLOOKUP($A40,'KD1.4 Affordability'!$A:$V,22,FALSE) -> 5 | F40: 15 | G40: 3 | H40: =VLOOKUP($A40,'KD1.1 Water Supply'!$A:$S,13,FALSE) -> 4 | I40: =VLOOKUP($A40,'KD1.2 Sanitation'!$A:$S,13,FALSE) -> 4 | J40: =VLOOKUP($A40,'KD1.3 Health impacts'!$A:$G,5,FALSE) -> 2 | K40: =VLOOKUP($A40,'KD1.4 Affordability'!$A:$V,15,FALSE) -> 5 | L40: 15 | M40: 3 | N40: =VLOOKUP($A40,'KD1.1 Water Supply'!$A:$S,7,FALSE) -> 4 | O40: =VLOOKUP($A40,'KD1.2 Sanitation'!$A:$S,7,FALSE) -> 4 | P40: =VLOOKUP($A40,'KD1.3 Health impacts'!$A:$G,3,FALSE) -> 2 | Q40: =VLOOKUP($A40,'KD1.4 Affordability'!$A:$V,8,FALSE) -> 5 | R40: 15 | S40: 3
A41: Pakistan | B41: =VLOOKUP($A41,'KD1.1 Water Supply'!$A:$S,19,FALSE) -> 2 | C41: =VLOOKUP($A41,'KD1.2 Sanitation'!$A:$S,19,FALSE) -> 1 | D41: =VLOOKUP($A41,'KD1.3 Health impacts'!$A:$G,7,FALSE) -> 1 | E41: =VLOOKUP($A41,'KD1.4 Affordability'!$A:$V,22,FALSE) -> 1 | F41: 5 | G41: 1 | H41: =VLOOKUP($A41,'KD1.1 Water Supply'!$A:$S,13,FALSE) -> 2 | I41: =VLOOKUP($A41,'KD1.2 Sanitation'!$A:$S,13,FALSE) -> 1 | J41: =VLOOKUP($A41,'KD1.3 Health impacts'!$A:$G,5,FALSE) -> 1 | K41: =VLOOKUP($A41,'KD1.4 Affordability'!$A:$V,15,FALSE) -> 1 | L41: 5 | M41: 1 | N41: =VLOOKUP($A41,'KD1.1 Water Supply'!$A:$S,7,FALSE) -> 3 | O41: =VLOOKUP($A41,'KD1.2 Sanitation'!$A:$S,7,FALSE) -> 1 | P41: =VLOOKUP($A41,'KD1.3 Health impacts'!$A:$G,3,FALSE) -> 1 | Q41: =VLOOKUP($A41,'KD1.4 Affordability'!$A:$V,8,FALSE) -> 1 | R41: 6 | S41: 1
A42: Palau | B42: =VLOOKUP($A42,'KD1.1 Water Supply'!$A:$S,19,FALSE) -> 3 | C42: =VLOOKUP($A42,'KD1.2 Sanitation'!$A:$S,19,FALSE) -> 5 | D42: =VLOOKUP($A42,'KD1.3 Health impacts'!$A:$G,7,FALSE) -> 4 | E42: =VLOOKUP($A42,'KD1.4 Affordability'!$A:$V,22,FALSE) -> 4 | F42: 16 | G42: =VLOOKUP(F42,$C$62:$D$66,2) -> 4 | H42: =VLOOKUP($A42,'KD1.1 Water Supply'!$A:$S,13,FALSE) -> 4 | I42: =VLOOKUP($A42,'KD1.2 Sanitation'!$A:$S,13,FALSE) -> 5 | J42: =VLOOKUP($A42,'KD1.3 Health impacts'!$A:$G,5,FALSE) -> 4 | K42: =VLOOKUP($A42,'KD1.4 Affordability'!$A:$V,15,FALSE) -> 5 | L42: 18 | M42: =VLOOKUP(L42,$C$62:$D$66,2) -> 4 | N42: =VLOOKUP($A42,'KD1.1 Water Supply'!$A:$S,7,FALSE) -> 5 | O42: =VLOOKUP($A42,'KD1.2 Sanitation'!$A:$S,7,FALSE) -> 5 | P42: =VLOOKUP($A42,'KD1.3 Health impacts'!$A:$G,3,FALSE) -> 4 | Q42: =VLOOKUP($A42,'KD1.4 Affordability'!$A:$V,8,FALSE) -> 5 | R42: 19 | S42: 4
A43: Papua New Guinea | B43: =VLOOKUP($A43,'KD1.1 Water Supply'!$A:$S,19,FALSE) -> 1 | C43: =VLOOKUP($A43,'KD1.2 Sanitation'!$A:$S,19,FALSE) -> 1 | D43: =VLOOKUP($A43,'KD1.3 Health impacts'!$A:$G,7,FALSE) -> 1 | E43: =VLOOKUP($A43,'KD1.4 Affordability'!$A:$V,22,FALSE) -> 1 | F43: 4 | G43: 1 | H43: =VLOOKUP($A43,'KD1.1 Water Supply'!$A:$S,13,FALSE) -> 1 | I43: =VLOOKUP($A43,'KD1.2 Sanitation'!$A:$S,13,FALSE) -> 1 | J43: =VLOOKUP($A43,'KD1.3 Health impacts'!$A:$G,5,FALSE) -> 1 | K43: =VLOOKUP($A43,'KD1.4 Affordability'!$A:$V,15,FALSE) -> 1 | L43: 4 | M43: 1 | N43: =VLOOKUP($A43,'KD1.1 Water Supply'!$A:$S,7,FALSE) -> 1 | O43: =VLOOKUP($A43,'KD1.2 Sanitation'!$A:$S,7,FALSE) -> 1 | P43: =VLOOKUP($A43,'KD1.3 Health impacts'!$A:$G,3,FALSE) -> 1 | Q43: =VLOOKUP($A43,'KD1.4 Affordability'!$A:$V,8,FALSE) -> 1 | R43: 4 | S43: 1
A44: Philippines | B44: =VLOOKUP($A44,'KD1.1 Water Supply'!$A:$S,19,FALSE) -> 2 | C44: =VLOOKUP($A44,'KD1.2 Sanitation'!$A:$S,19,FALSE) -> 2 | D44: =VLOOKUP($A44,'KD1.3 Health impacts'!$A:$G,7,FALSE) -> 1 | E44: =VLOOKUP($A44,'KD1.4 Affordability'!$A:$V,22,FALSE) -> 3 | F44: 8 | G44: 1 | H44: =VLOOKUP($A44,'KD1.1 Water Supply'!$A:$S,13,FALSE) -> 3 | I44: =VLOOKUP($A44,'KD1.2 Sanitation'!$A:$S,13,FALSE) -> 2 | J44: =VLOOKUP($A44,'KD1.3 Health impacts'!$A:$G,5,FALSE) -> 2 | K44: =VLOOKUP($A44,'KD1.4 Affordability'!$A:$V,15,FALSE) -> 4 | L44: 11 | M44: 2 | N44: =VLOOKUP($A44,'KD1.1 Water Supply'!$A:$S,7,FALSE) -> 3 | O44: =VLOOKUP($A44,'KD1.2 Sanitation'!$A:$S,7,FALSE) -> 2 | P44: =VLOOKUP($A44,'KD1.3 Health impacts'!$A:$G,3,FALSE) -> 2 | Q44: =VLOOKUP($A44,'KD1.4 Affordability'!$A:$V,8,FALSE) -> 4 | R44: 11 | S44: 2
A45: Samoa | B45: =VLOOKUP($A45,'KD1.1 Water Supply'!$A:$S,19,FALSE) -> 3 | C45: =VLOOKUP($A45,'KD1.2 Sanitation'!$A:$S,19,FALSE) -> 4 | D45: =VLOOKUP($A45,'KD1.3 Health impacts'!$A:$G,7,FALSE) -> 3 | E45: =VLOOKUP($A45,'KD1.4 Affordability'!$A:$V,22,FALSE) -> 4 | F45: 14 | G45: 3 | H45: =VLOOKUP($A45,'KD1.1 Water Supply'!$A:$S,13,FALSE) -> 3 | I45: =VLOOKUP($A45,'KD1.2 Sanitation'!$A:$S,13,FALSE) -> 4 | J45: =VLOOKUP($A45,'KD1.3 Health impacts'!$A:$G,5,FALSE) -> 3 | K45: =VLOOKUP($A45,'KD1.4 Affordability'!$A:$V,15,FALSE) -> 4 | L45: 14 | M45: 3 | N45: =VLOOKUP($A45,'KD1.1 Water Supply'!$A:$S,7,FALSE) -> 3 | O45: =VLOOKUP($A45,'KD1.2 Sanitation'!$A:$S,7,FALSE) -> 4 | P45: =VLOOKUP($A45,'KD1.3 Health impacts'!$A:$G,3,FALSE) -> 3 | Q45: =VLOOKUP($A45,'KD1.4 Affordability'!$A:$V,8,FALSE) -> 4 | R45: 14 | S45: 3
A46: Singapore | F46: 15.5 | G46: 3 | L46: 15.9 | M46: 4 | R46: 15.6 | S46: 4
A47: Solomon Islands | B47: =VLOOKUP($A47,'KD1.1 Water Supply'!$A:$S,19,FALSE) -> 2 | C47: =VLOOKUP($A47,'KD1.2 Sanitation'!$A:$S,19,FALSE) -> 1 | D47: =VLOOKUP($A47,'KD1.3 Health impacts'!$A:$G,7,FALSE) -> 1 | E47: =VLOOKUP($A47,'KD1.4 Affordability'!$A:$V,22,FALSE) -> 3 | F47: 7 | G47: 1 | H47: =VLOOKUP($A47,'KD1.1 Water Supply'!$A:$S,13,FALSE) -> 2 | I47: =VLOOKUP($A47,'KD1.2 Sanitation'!$A:$S,13,FALSE) -> 1 | J47: =VLOOKUP($A47,'KD1.3 Health impacts'!$A:$G,5,FALSE) -> 2 | K47: =VLOOKUP($A47,'KD1.4 Affordability'!$A:$V,15,FALSE) -> 3 | L47: 8 | M47: 1 | N47: =VLOOKUP($A47,'KD1.1 Water Supply'!$A:$S,7,FALSE) -> 1 | O47: =VLOOKUP($A47,'KD1.2 Sanitation'!$A:$S,7,FALSE) -> 1 | P47: =VLOOKUP($A47,'KD1.3 Health impacts'!$A:$G,3,FALSE) -> 2 | Q47: =VLOOKUP($A47,'KD1.4 Affordability'!$A:$V,8,FALSE) -> 3 | R47: 7 | S47: 1
A48: Sri Lanka | B48: =VLOOKUP($A48,'KD1.1 Water Supply'!$A:$S,19,FALSE) -> 2 | C48: =VLOOKUP($A48,'KD1.2 Sanitation'!$A:$S,19,FALSE) -> 3 | D48: =VLOOKUP($A48,'KD1.3 Health impacts'!$A:$G,7,FALSE) -> 4 | E48: =VLOOKUP($A48,'KD1.4 Affordability'!$A:$V,22,FALSE) -> 2 | F48: 11 | G48: 2 | H48: =VLOOKUP($A48,'KD1.1 Water Supply'!$A:$S,13,FALSE) -> 2 | I48: =VLOOKUP($A48,'KD1.2 Sanitation'!$A:$S,13,FALSE) -> 3 | J48: =VLOOKUP($A48,'KD1.3 Health impacts'!$A:$G,5,FALSE) -> 4 | K48: =VLOOKUP($A48,'KD1.4 Affordability'!$A:$V,15,FALSE) -> 3 | L48: 12 | M48: 3 | N48: =VLOOKUP($A48,'KD1.1 Water Supply'!$A:$S,7,FALSE) -> 3 | O48: =VLOOKUP($A48,'KD1.2 Sanitation'!$A:$S,7,FALSE) -> 4 | P48: =VLOOKUP($A48,'KD1.3 Health impacts'!$A:$G,3,FALSE) -> 4 | Q48: =VLOOKUP($A48,'KD1.4 Affordability'!$A:$V,8,FALSE) -> 3 | R48: 14 | S48: 3
A49: Taipei, China | F49: 17.7 | G49: 4 | L49: 17.7 | M49: 4 | R49: 17.7 | S49: 4
A50: Tajikistan | B50: =VLOOKUP($A50,'KD1.1 Water Supply'!$A:$S,19,FALSE) -> 1 | C50: =VLOOKUP($A50,'KD1.2 Sanitation'!$A:$S,19,FALSE) -> 3 | D50: =VLOOKUP($A50,'KD1.3 Health impacts'!$A:$G,7,FALSE) -> 2 | E50: =VLOOKUP($A50,'KD1.4 Affordability'!$A:$V,22,FALSE) -> 1 | F50: 7 | G50: 1 | H50: =VLOOKUP($A50,'KD1.1 Water Supply'!$A:$S,13,FALSE) -> 1 | I50: =VLOOKUP($A50,'KD1.2 Sanitation'!$A:$S,13,FALSE) -> 3 | J50: =VLOOKUP($A50,'KD1.3 Health impacts'!$A:$G,5,FALSE) -> 2 | K50: =VLOOKUP($A50,'KD1.4 Affordability'!$A:$V,15,FALSE) -> 2 | L50: 8 | M50: 1 | N50: =VLOOKUP($A50,'KD1.1 Water Supply'!$A:$S,7,FALSE) -> 2 | O50: =VLOOKUP($A50,'KD1.2 Sanitation'!$A:$S,7,FALSE) -> 4 | P50: =VLOOKUP($A50,'KD1.3 Health impacts'!$A:$G,3,FALSE) -> 2 | Q50: =VLOOKUP($A50,'KD1.4 Affordability'!$A:$V,8,FALSE) -> 1 | R50: 9 | S50: 2
A51: Thailand | B51: =VLOOKUP($A51,'KD1.1 Water Supply'!$A:$S,19,FALSE) -> 3 | C51: =VLOOKUP($A51,'KD1.2 Sanitation'!$A:$S,19,FALSE) -> 4 | D51: =VLOOKUP($A51,'KD1.3 Health impacts'!$A:$G,7,FALSE) -> 3 | E51: =VLOOKUP($A51,'KD1.4 Affordability'!$A:$V,22,FALSE) -> 2 | F51: 12 | G51: 3 | H51: =VLOOKUP($A51,'KD1.1 Water Supply'!$A:$S,13,FALSE) -> 4 | I51: =VLOOKUP($A51,'KD1.2 Sanitation'!$A:$S,13,FALSE) -> 4 | J51: =VLOOKUP($A51,'KD1.3 Health impacts'!$A:$G,5,FALSE) -> 3 | K51: =VLOOKUP($A51,'KD1.4 Affordability'!$A:$V,15,FALSE) -> 2 | L51: 13 | M51: 3 | N51: =VLOOKUP($A51,'KD1.1 Water Supply'!$A:$S,7,FALSE) -> 5 | O51: =VLOOKUP($A51,'KD1.2 Sanitation'!$A:$S,7,FALSE) -> 4 | P51: =VLOOKUP($A51,'KD1.3 Health impacts'!$A:$G,3,FALSE) -> 3 | Q51: =VLOOKUP($A51,'KD1.4 Affordability'!$A:$V,8,FALSE) -> 2 | R51: 14 | S51: 3
A52: Timor-Leste | B52: =VLOOKUP($A52,'KD1.1 Water Supply'!$A:$S,19,FALSE) -> 1 | C52: =VLOOKUP($A52,'KD1.2 Sanitation'!$A:$S,19,FALSE) -> 1 | D52: =VLOOKUP($A52,'KD1.3 Health impacts'!$A:$G,7,FALSE) -> 1 | E52: =VLOOKUP($A52,'KD1.4 Affordability'!$A:$V,22,FALSE) -> 1 | F52: 4 | G52: 1 | H52: =VLOOKUP($A52,'KD1.1 Water Supply'!$A:$S,13,FALSE) -> 2 | I52: =VLOOKUP($A52,'KD1.2 Sanitation'!$A:$S,13,FALSE) -> 1 | J52: =VLOOKUP($A52,'KD1.3 Health impacts'!$A:$G,5,FALSE) -> 1 | K52: =VLOOKUP($A52,'KD1.4 Affordability'!$A:$V,15,FALSE) -> 1 | L52: 5 | M52: 1 | N52: =VLOOKUP($A52,'KD1.1 Water Supply'!$A:$S,7,FALSE) -> 2 | O52: =VLOOKUP($A52,'KD1.2 Sanitation'!$A:$S,7,FALSE) -> 1 | P52: =VLOOKUP($A52,'KD1.3 Health impacts'!$A:$G,3,FALSE) -> 1 | Q52: =VLOOKUP($A52,'KD1.4 Affordability'!$A:$V,8,FALSE) -> 1 | R52: 5 | S52: 1
A53: Tonga | B53: =VLOOKUP($A53,'KD1.1 Water Supply'!$A:$S,19,FALSE) -> 5 | C53: =VLOOKUP($A53,'KD1.2 Sanitation'!$A:$S,19,FALSE) -> 3 | D53: =VLOOKUP($A53,'KD1.3 Health impacts'!$A:$G,7,FALSE) -> 3 | E53: =VLOOKUP($A53,'KD1.4 Affordability'!$A:$V,22,FALSE) -> 4 | F53: 15 | G53: 3 | H53: =VLOOKUP($A53,'KD1.1 Water Supply'!$A:$S,13,FALSE) -> 5 | I53: =VLOOKUP($A53,'KD1.2 Sanitation'!$A:$S,13,FALSE) -> 3 | J53: =VLOOKUP($A53,'KD1.3 Health impacts'!$A:$G,5,FALSE) -> 3 | K53: =VLOOKUP($A53,'KD1.4 Affordability'!$A:$V,15,FALSE) -> 4 | L53: 15 | M53: 3 | N53: =VLOOKUP($A53,'KD1.1 Water Supply'!$A:$S,7,FALSE) -> 5 | O53: =VLOOKUP($A53,'KD1.2 Sanitation'!$A:$S,7,FALSE) -> 3 | P53: =VLOOKUP($A53,'KD1.3 Health impacts'!$A:$G,3,FALSE) -> 3 | Q53: =VLOOKUP($A53,'KD1.4 Affordability'!$A:$V,8,FALSE) -> 5 | R53: 16 | S53: 4
A54: Turkmenistan | B54: =VLOOKUP($A54,'KD1.1 Water Supply'!$A:$S,19,FALSE) -> 3 | C54: =VLOOKUP($A54,'KD1.2 Sanitation'!$A:$S,19,FALSE) -> 4 | D54: =VLOOKUP($A54,'KD1.3 Health impacts'!$A:$G,7,FALSE) -> 2 | E54: =VLOOKUP($A54,'KD1.4 Affordability'!$A:$V,22,FALSE) -> 4 | F54: 13 | G54: 3 | H54: =VLOOKUP($A54,'KD1.1 Water Supply'!$A:$S,13,FALSE) -> 3 | I54: =VLOOKUP($A54,'KD1.2 Sanitation'!$A:$S,13,FALSE) -> 4 | J54: =VLOOKUP($A54,'KD1.3 Health impacts'!$A:$G,5,FALSE) -> 2 | K54: =VLOOKUP($A54,'KD1.4 Affordability'!$A:$V,15,FALSE) -> 4 | L54: 13 | M54: 3 | N54: =VLOOKUP($A54,'KD1.1 Water Supply'!$A:$S,7,FALSE) -> 4 | O54: =VLOOKUP($A54,'KD1.2 Sanitation'!$A:$S,7,FALSE) -> 5 | P54: =VLOOKUP($A54,'KD1.3 Health impacts'!$A:$G,3,FALSE) -> 2 | Q54: =VLOOKUP($A54,'KD1.4 Affordability'!$A:$V,8,FALSE) -> 3 | R54: 14 | S54: 3
A55: Tuvalu | B55: =VLOOKUP($A55,'KD1.1 Water Supply'!$A:$S,19,FALSE) -> 4 | C55: =VLOOKUP($A55,'KD1.2 Sanitation'!$A:$S,19,FALSE) -> 2 | D55: =VLOOKUP($A55,'KD1.3 Health impacts'!$A:$G,7,FALSE) -> 3 | E55: =VLOOKUP($A55,'KD1.4 Affordability'!$A:$V,22,FALSE) -> 4 | F55: 13 | G55: 3 | H55: =VLOOKUP($A55,'KD1.1 Water Supply'!$A:$S,13,FALSE) -> 5 | I55: =VLOOKUP($A55,'KD1.2 Sanitation'!$A:$S,13,FALSE) -> 2 | J55: =VLOOKUP($A55,'KD1.3 Health impacts'!$A:$G,5,FALSE) -> 3 | K55: =VLOOKUP($A55,'KD1.4 Affordability'!$A:$V,15,FALSE) -> 4 | L55: 14 | M55: 3 | N55: =VLOOKUP($A55,'KD1.1 Water Supply'!$A:$S,7,FALSE) -> 5 | O55: =VLOOKUP($A55,'KD1.2 Sanitation'!$A:$S,7,FALSE) -> 2 | P55: =VLOOKUP($A55,'KD1.3 Health impacts'!$A:$G,3,FALSE) -> 3 | Q55: =VLOOKUP($A55,'KD1.4 Affordability'!$A:$V,8,FALSE) -> 4 | R55: 14 | S55: 3
A56: Uzbekistan | B56: =VLOOKUP($A56,'KD1.1 Water Supply'!$A:$S,19,FALSE) -> 3 | C56: =VLOOKUP($A56,'KD1.2 Sanitation'!$A:$S,19,FALSE) -> 4 | D56: =VLOOKUP($A56,'KD1.3 Health impacts'!$A:$G,7,FALSE) -> 3 | E56: =VLOOKUP($A56,'KD1.4 Affordability'!$A:$V,22,FALSE) -> 1 | F56: 11 | G56: 2 | H56: =VLOOKUP($A56,'KD1.1 Water Supply'!$A:$S,13,FALSE) -> 3 | I56: =VLOOKUP($A56,'KD1.2 Sanitation'!$A:$S,13,FALSE) -> 5 | J56: =VLOOKUP($A56,'KD1.3 Health impacts'!$A:$G,5,FALSE) -> 4 | K56: =VLOOKUP($A56,'KD1.4 Affordability'!$A:$V,15,FALSE) -> 3 | L56: 15 | M56: 3 | N56: =VLOOKUP($A56,'KD1.1 Water Supply'!$A:$S,7,FALSE) -> 3 | O56: =VLOOKUP($A56,'KD1.2 Sanitation'!$A:$S,7,FALSE) -> 5 | P56: =VLOOKUP($A56,'KD1.3 Health impacts'!$A:$G,3,FALSE) -> 4 | Q56: =VLOOKUP($A56,'KD1.4 Affordability'!$A:$V,8,FALSE) -> 1 | R56: 13 | S56: 3
A57: Vanuatu | B57: =VLOOKUP($A57,'KD1.1 Water Supply'!$A:$S,19,FALSE) -> 2 | C57: =VLOOKUP($A57,'KD1.2 Sanitation'!$A:$S,19,FALSE) -> 1 | D57: =VLOOKUP($A57,'KD1.3 Health impacts'!$A:$G,7,FALSE) -> 1 | E57: =VLOOKUP($A57,'KD1.4 Affordability'!$A:$V,22,FALSE) -> 4 | F57: 8 | G57: 1 | H57: =VLOOKUP($A57,'KD1.1 Water Supply'!$A:$S,13,FALSE) -> 2 | I57: =VLOOKUP($A57,'KD1.2 Sanitation'!$A:$S,13,FALSE) -> 1 | J57: =VLOOKUP($A57,'KD1.3 Health impacts'!$A:$G,5,FALSE) -> 1 | K57: =VLOOKUP($A57,'KD1.4 Affordability'!$A:$V,15,FALSE) -> 4 | L57: 8 | M57: 1 | N57: =VLOOKUP($A57,'KD1.1 Water Supply'!$A:$S,7,FALSE) -> 2 | O57: =VLOOKUP($A57,'KD1.2 Sanitation'!$A:$S,7,FALSE) -> 1 | P57: =VLOOKUP($A57,'KD1.3 Health impacts'!$A:$G,3,FALSE) -> 1 | Q57: =VLOOKUP($A57,'KD1.4 Affordability'!$A:$V,8,FALSE) -> 4 | R57: 8 | S57: 1
A58: Viet Nam | B58: =VLOOKUP($A58,'KD1.1 Water Supply'!$A:$S,19,FALSE) -> 2 | C58: =VLOOKUP($A58,'KD1.2 Sanitation'!$A:$S,19,FALSE) -> 2 | D58: =VLOOKUP($A58,'KD1.3 Health impacts'!$A:$G,7,FALSE) -> 3 | E58: =VLOOKUP($A58,'KD1.4 Affordability'!$A:$V,22,FALSE) -> 1 | F58: 8 | G58: 1 | H58: =VLOOKUP($A58,'KD1.1 Water Supply'!$A:$S,13,FALSE) -> 3 | I58: =VLOOKUP($A58,'KD1.2 Sanitation'!$A:$S,13,FALSE) -> 2 | J58: =VLOOKUP($A58,'KD1.3 Health impacts'!$A:$G,5,FALSE) -> 3 | K58: =VLOOKUP($A58,'KD1.4 Affordability'!$A:$V,15,FALSE) -> 1 | L58: 9 | M58: 2 | N58: =VLOOKUP($A58,'KD1.1 Water Supply'!$A:$S,7,FALSE) -> 3 | O58: =VLOOKUP($A58,'KD1.2 Sanitation'!$A:$S,7,FALSE) -> 2 | P58: =VLOOKUP($A58,'KD1.3 Health impacts'!$A:$G,3,FALSE) -> 3 | Q58: =VLOOKUP($A58,'KD1.4 Affordability'!$A:$V,8,FALSE) -> 2 | R58: 10 | S58: 2
B61: Index scale KD1 stages
B62: 0 | C62: 0 | D62: 1
B63: 42 | C63: 8.4 | D63: 2
B64: 60 | C64: 12 | D64: 3
B65: 78 | C65: 15.6 | D65: 4
B66: 96 | C66: 19.2 | D66: 5

Sheet KD1.1 Water Supply
A1: KD 1.1 - Water supply
A7: Economies | B7: AWDO 2020 | H7: AWDO 2016 | N7: AWDO 2013 (2010
B8: At least basic | C8: Limited | D8: Unimproved | E8: Surface water | F8: Raw score | G8: Index score | H8: At least basic | I8: Limited | J8: Unimproved | K8: Surface water | L8: Raw score | M8: Index score | N8: At least basic | O8: Limited | P8: Unimproved | Q8: Surface water | R8: Raw score | S8: Index score
A9: Afghanistan | B9: 57.32129212 | C9: 4.037241882 | D9: 24.17898117 | E9: 14.46248483 | F9: =((B9*3)+(C9*2)+(D9*1))/100 -> 2.042173413 | G9: =IF(F9=0,0,IF($F9>$C$57,$B$57,IF($F9>$C$58,$B$58,IF($F9>$C$59,$B$59,IF($F9>$C$60,$B$60,$B$61))))) -> 1 | H9: 49.96028095 | I9: 4.559009442 | J9: 28.18740166 | K9: 17.29330795 | L9: =((H9*3)+(I9*2)+(J9*1))/100 -> 1.871862634 | M9: =IF(L9=0,0,IF($L9>$C$57,$B$57,IF($L9>$C$58,$B$58,IF($L9>$C$59,$B$59,IF($L9>$C$60,$B$60,$B$61))))) -> 1 | N9: 40.52486047 | O9: 4.875438441 | P9: 33.53196231 | Q9: 21.06773878 | R9: =((N9*3)+(O9*2)+(P9*1))/100 -> 1.648574206 | S9: =IF(R9=0,0,IF($R9>$C$57,$B$57,IF($R9>$C$58,$B$58,IF($R9>$C$59,$B$59,IF($R9>$C$60,$B$60,$B$61))))) -> 1
A10: Armenia | B10: 99 | C10: 1 | D10: 1 | E10: 1 | F10: 3 | G10: 5 | H10: 99 | I10: 1 | J10: 1 | K10: 1 | L10: 3 | M10: 5 | N10: 96.13772079 | O10: 1.575550393 | P10: 1.820077114 | Q10: 1 | R10: 2.933843403 | S10: =IF(R10=0,0,IF($R10>$C$57,$B$57,IF($R10>$C$58,$B$58,IF($R10>$C$59,$B$59,IF($R10>$C$60,$B$60,$B$61))))) -> 3
A11: Australia | B11: 99 | C11: 1 | D11: 1 | E11: 1 | F11: 3 | G11: 5 | H11: 99 | I11: 1 | J11: 1 | K11: 1 | L11: 3 | M11: 5 | N11: 99 | O11: 1 | P11: 1 | Q11: 1 | R11: 3 | S11: 5
A12: Azerbaijan | B12: 81.57112838 | C12: 5.857733764 | D12: 10.39466266 | E12: 2.176475189 | F12: 2.668235153 | G12: 2 | H12: 78.13950816 | I12: 5.611304445 | J12: 10.97429218 | K12: 5.274895214 | L12: 2.566154256 | M12: =IF(L12=0,0,IF($L12>$C$57,$B$57,IF($L12>$C$58,$B$58,IF($L12>$C$59,$B$59,IF($L12>$C$60,$B$60,$B$61))))) -> 2 | N12: 73.56401454 | O12: 5.282732019 | P12: 11.74713153 | Q12: 9.406121914 | R12: 2.430046392 | S12: 2
A13: Bangladesh | B13: 96.75254739 | C13: 1.632140034 | D13: 1 | E13: 1.209181297 | F13: 2.945219222 | G13: 3 | H13: 96.29042027 | I13: 1.506754849 | J13: 1 | K13: 1.50722109 | L13: 2.928847705 | M13: 3 | N13: 95.74856449 | O13: 1.265260897 | P13: 1.081567135 | Q13: 1.904607481 | R13: 2.908577824 | S13: 3
A14: Brunei Darussalam | B14: 99 | C14: 1 | D14: 1 | E14: 1 | F14: 3 | G14: 5 | H14: 99 | I14: 1 | J14: 1 | K14: 1 | L14: 3 | M14: 5 | N14: 99 | O14: 1 | P14: 1 | Q14: 1 | R14: 3 | S14: 5
A15: Bhutan | B15: 96.73119365 | C15: 3.268806351 | D15: 1 | E15: 1 | F15: 2.977311936 | G15: 4 | H15: 94.8427497 | I15: 3.204990767 | J15: 1 | K15: 1.519882803 | L15: 2.919382306 | M15: 3 | N15: 90.27879427 | O15: 2.251289807 | P15: 2.365838094 | Q15: 5.104077832 | R15: 2.777048005 | S15: 3
A16: China, People’s Republic of | B16: 86.15161125 | C16: 1.687770987 | D16: 11.76216815 | E16: 1 | F16: 2.735925439 | G16: 2 | H16: 83.23252516 | I16: 1.419212292 | J16: 14.0288827 | K16: 1.319379845 | L16: 2.665648828 | M16: 2 | N16: 79.31612355 | O16: 1.085420849 | P16: 17.05116878 | Q16: 2.547286822 | R16: 2.571703811 | S16: 2
A17: Cook Islands | B17: 99 | C17: 1 | D17: 1 | E17: 1 | F17: 3 | G17: 5 | H17: 99 | I17: 1 | J17: 1 | K17: 1 | L17: 3 | M17: 5 | N17: 99 | O17: 1 | P17: 1 | Q17: 1 | R17: 3 | S17: 5
A18: Fiji | B18: 88.7010264 | C18: 1 | D18: 7.229868595 | E18: 4.069105009 | F18: 2.753329478 | G18: 3 | H18: 88.97982193 | I18: 1 | J18: 6.951634243 | K18: 4.068543823 | L18: 2.758911 | M18: 3 | N18: 89.53741301 | O18: 1 | P18: 6.395165537 | Q18: 4.067421451 | R18: 2.770074046 | S18: 3
A19: Micronesia, Federated States of | B19: 78.56647902 | C19: 1 | D19: 21.43352098 | E19: 0 | F19: 2.59132958 | G19: 2 | H19: 79.17329761 | I19: 1 | J19: 13.82670239 | K19: 7 | L19: 2.533465952 | M19: 2 | N19: 81.60057198 | O19: 1 | P19: 11.39942802 | Q19: 7 | R19: 2.58201144 | S19: 2
A20: Georgia | B20: 96.15609516 | C20: 1 | D20: 3.781463141 | E20: 1 | F20: 2.942497486 | G20: 3 | H20: 94.81660961 | I20: 1 | J20: 5.09465864 | K20: 1 | L20: 2.915444875 | M20: 3 | N20: 91.35607756 | O20: 1.67455132 | P20: 6.775479163 | Q20: 1 | R20: 2.841928145 | S20: 3
A21: Indonesia | B21: 81.98209522 | C21: 1.755902766 | D21: 13.19739612 | E21: 3.064605898 | F21: 2.626554873 | G21: 2 | H21: 79.24067095 | I21: 1.338939808 | J21: 15.83473606 | K21: 3.585653186 | L21: 2.562346285 | M21: 2 | N21: 75.54266906 | O21: 1 | P21: 19.35118931 | Q21: 4.280382903 | R21: 2.479791965 | S21: 2
A22: India | B22: 90.99546177 | C22: 1 | D22: 7.049750494 | E22: 1 | F22: 2.820361358 | G22: 3 | H22: 87.86525751 | I22: 2.119502393 | J22: 8.910564111 | K22: 1.104675982 | L22: 2.767453414 | M22: 3 | N22: 83.77113978 | O22: 3.539610088 | P22: 11.39164893 | Q22: 1.297601196 | R22: 2.697842885 | S22: 2
A23: Japan | B23: 99 | C23: 1 | D23: 1 | E23: 1 | F23: 3 | G23: 5 | H23: 98.88958333 | I23: 1 | J23: 1.110416667 | K23: 1 | L23: 2.997791667 | M23: 5 | N23: 98.72875 | O23: 1 | P23: 1.27125 | Q23: 1 | R23: 2.994575 | S23: 4
A24: Kazakhstan | B24: 92.31445982 | C24: 1.48740859 | D24: 6.014693049 | E24: 1 | F24: 2.859328897 | G24: 3 | H24: 88.49551889 | I24: 3.524951446 | J24: 7.1694601 | K24: 1 | L24: 2.797059197 | M24: 3 | N24: 83.52801425 | O24: 6.117258665 | P24: 8.7091495 | Q24: 1.645577585 | R24: 2.715277096 | S24: 2
A25: Kyrgyz Republic | B25: 81.97940601 | C25: 2.448406565 | D25: 2.932428707 | E25: 12.63975872 | F25: 2.537674599 | G25: 2 | H25: 80.80590579 | I25: 2.284999907 | J25: 3.161455697 | K25: 13.7476386 | L25: 2.501491729 | M25: 2 | N25: 78.44687319 | O25: 1.970218753 | P25: 3.619509676 | Q25: 15.96339838 | R25: 2.429005667 | S25: 2
A26: Cambodia | B26: 72.8966363 | C26: 1 | D26: 12.94231371 | E26: 13.91301453 | F26: 2.336322226 | G26: 2 | H26: 68.33435296 | I26: 1 | J26: 14.8602204 | K26: 16.53673137 | L26: 2.218632793 | M26: 2 | N26: 62.23681717 | O26: 1 | P26: 17.41742932 | Q26: 20.03502049 | R26: 2.061278808 | S26: 1
A27: Kiribati | B27: 71.61597712 | C27: 1 | D27: 27.49713772 | E27: 1 | F27: 2.443450691 | G27: 2 | H27: 67.80625957 | I27: 1 | J27: 31.35403443 | K27: 1 | L27: 2.367728131 | M27: 2 | N27: 62.72663617 | O27: 1 | P27: 36.49656338 | Q27: 1 | R27: 2.266764719 | S27: 2
A28: Korea, Republic of | B28: 99 | C28: 1 | D28: 1 | E28: 1 | F28: 3 | G28: 5 | H28: 99 | I28: 1 | J28: 1 | K28: 1 | L28: 3 | M28: 5 | N28: 99 | O28: 1 | P28: 1 | Q28: 1 | R28: 3 | S28: 5
A29: Lao People’s Democratic Republic | B29: 75.58232284 | C29: 1.244084282 | D29: 19.00311145 | E29: 4.17048143 | F29: 2.482382485 | G29: 2 | H29: 68.88106552 | I29: 1.28872079 | J29: 20.81135454 | K29: 9.018859145 | L29: 2.300319927 | M29: 2 | N29: 59.99104309 | O29: 1.303248824 | P29: 23.22234533 | Q29: 15.48336276 | R29: 2.058019722 | S29: 1
A30: Sri Lanka | B30: 87.71959694 | C30: 3.663519572 | D30: 6.688344215 | E30: 1.928539271 | F30: 2.771741742 | G30: 3 | H30: 85.67607416 | I30: 3.414417101 | J30: 8.294797069 | K30: 2.614711671 | L30: 2.721518537 | M30: 2 | N30: 82.93879229 | O30: 3.094865301 | P30: 10.43673421 | Q30: 3.529608206 | R30: 2.654428417 | S30: 2
A31: Maldives | B31: 99 | C31: 1 | D31: 1 | E31: 1 | F31: 3 | G31: 5 | H31: 99 | I31: 1 | J31: 1 | K31: 1 | L31: 3 | M31: 5 | N31: 96.55276273 | O31: 1 | P31: 3.177976434 | Q31: 1 | R31: 2.948362646 | S31: 3
A32: Marshall Islands | B32: 94.35404 | C32: 5.38596 | D32: 1 | E32: 1 | F32: 2.9483404 | G32: 3 | H32: 95.764706 | I32: 3.855294 | J32: 1 | K32: 1 | L32: 2.96004706 | M32: 4 | N32: 97.639882 | O32: 1.820118 | P32: 1 | Q32: 1 | R32: 2.97559882 | S32: 4
A33: Myanmar | B33: 76.90591354 | C33: 1 | D33: 11.62344687 | E33: 11.47063959 | F33: 2.443411875 | G33: 2 | H33: 72.98385977 | I33: 1 | J33: 13.01555174 | K33: 13.21346586 | L33: 2.339671311 | M33: 2 | N33: 61.97230045 | O33: 7.618773769 | P33: 14.87169156 | Q33: 15.53723423 | R33: 2.160261404 | S33: 1
A34: Mongolia | B34: 55.87466912 | C34: 3.323092401 | D34: 19.47472572 | E34: 21.32751276 | F34: 1.937449179 | G34: 1 | H34: 51.05532943 | I34: 4.377029125 | J34: 19.80084247 | K34: 24.76679898 | L34: 1.81720889 | M34: 1 | N34: 44.12980279 | O34: 6.282018467 | P34: 20.2356648 | Q34: 29.35251394 | R34: 1.651891101 | S34: 1
A35: Malaysia | B35: 89.33715854 | C35: 1 | D35: 10.12358296 | E35: 0 | F35: 2.801350586 | G35: 3 | H35: 90.23139171 | I35: 1 | J35: 9.223951999 | K35: 0 | L35: 2.819181271 | M35: 3 | N35: 91.42370261 | O35: 1 | P35: 8.02444405 | Q35: 0 | R35: 2.842955519 | S35: 3
A36: Niue | B36: 98.19874214 | C36: 1 | D36: 1.801257862 | E36: 1 | F36: 2.983974843 | G36: 4 | H36: 98.19874214 | I36: 1 | J36: 1.801257862 | K36: 1 | L36: 2.983974843 | M36: 4 | N36: 98.54213836 | O36: 1 | P36: 1.457861635 | Q36: 1 | R36: 2.990842767 | S36: 4
A37: Nepal | B37: 88.73224089 | C37: 2.676859171 | D37: 6.453866976 | E37: 2.137032964 | F37: 2.78004308 | G37: 3 | H37: 86.85468366 | I37: 2.430851867 | J37: 8.34023351 | K37: 2.374230964 | L37: 2.737659882 | M37: 2 | N37: 84.33767234 | O37: 2.116443812 | P37: 10.85538889 | Q37: 2.690494964 | R37: 2.681012935 | S37: 2
A38: New Zealand | B38: 99 | C38: 1 | D38: 1 | E38: 1 | F38: 3 | G38: 5 | H38: 99 | I38: 1 | J38: 1 | K38: 1 | L38: 3 | M38: 5 | N38: 99 | O38: 1 | P38: 1 | Q38: 1 | R38: 3 | S38: 5
A39: Pakistan | B39: 89.88374298 | C39: 1 | D39: 6.19891501 | E39: 3.166708821 | F39: 2.77850144 | G39: 3 | H39: 88.31372205 | I39: 1.813720318 | J39: 5.942879467 | K39: 3.92967816 | L39: 2.745114863 | M39: 2 | N39: 86.2390371 | O39: 3.212493546 | P39: 5.601498744 | Q39: 4.946970612 | R39: 2.707435971 | S39: 2
A40: Philippines | B40: 89.9595977 | C40: 2.69372664 | D40: 7.346675664 | E40: 1 | F40: 2.82612922 | G40: 3 | H40: 88.03743019 | I40: 2.964501124 | J40: 8.219004876 | K40: 1 | L40: 2.782602977 | M40: 3 | N40: 85.49253776 | O40: 3.307536184 | P40: 9.140756172 | Q40: 2.059169888 | R40: 2.722334418 | S40: 2
A41: Palau | B41: 99 | C41: 1 | D41: 1 | E41: 1 | F41: 3 | G41: 5 | H41: 97 | I41: 1 | J41: 3 | K41: 1 | L41: 2.96 | M41: 4 | N41: 90.10673052 | O41: 1 | P41: 9.893269481 | Q41: 1 | R41: 2.82213461 | S41: 3
A42: Papua New Guinea | B42: 34.62688693 | C42: 1.42574833 | D42: 5.845827251 | E42: 58.10153749 | F42: 1.125779847 | G42: 1 | H42: 32.75992952 | I42: 1.348877099 | J42: 11.13025049 | K42: 54.76094288 | L42: 1.121077933 | M42: 1 | N42: 30.27065298 | O42: 1.246382125 | P42: 18.17614815 | Q42: 50.30681674 | R42: 1.114808713 | S42: 1
A43: Solomon Islands | B43: 60.60177274 | C43: 6.470956813 | D43: 18.20872695 | E43: 14.71854349 | F43: 2.129559588 | G43: 1 | H43: 64.22599838 | I43: 6.263546428 | J43: 16.7987968 | K43: 12.7116584 | L43: 2.220038848 | M43: 2 | N43: 69.13928893 | O43: 5.906009535 | P43: 14.91888993 | Q43: 10.0358116 | R43: 2.341487758 | S43: 2
A44: Thailand | B44: 99 | C44: 1 | D44: 1 | E44: 1 | F44: 3 | G44: 5 | H44: 98.65859594 | I44: 1 | J44: 1 | K44: 1 | L44: 2.989757878 | M44: 4 | N44: 96.63911071 | O44: 1 | P44: 2.337441267 | Q44: 1 | R44: 2.942547734 | S44: 3
A45: Tajikistan | B45: 75.63837836 | C45: 3.001105209 | D45: 2.827713651 | E45: 18.53280278 | F45: 2.357450591 | G45: 2 | H45: 69.7259006 | I45: 3.47292889 | J45: 3.745789035 | K45: 23.05538147 | L45: 2.198693486 | M45: 1 | N45: 61.99971381 | O45: 3.944910254 | P45: 4.969889546 | Q45: 29.08548639 | R45: 1.988588515 | S45: 1
A46: Turkmenistan | B46: 97.572682 | C46: 2.427318 | D46: 1 | E46: 1 | F46: 2.98572682 | G46: 4 | H46: 95.87459009 | I46: 1.94015947 | J46: 1 | K46: 1.787585306 | L46: 2.925040892 | M46: 3 | N46: 91.30826657 | O46: 1.288720418 | P46: 1.121706892 | Q46: 6.281306122 | R46: 2.776239474 | S46: 3
A47: Timor-Leste | B47: 69.69430257 | C47: 2.582140995 | D47: 21.3776026 | E47: 6.345953829 | F47: 2.356247923 | G47: 2 | H47: 63.18111745 | I47: 4.63996585 | J47: 25.39660144 | K47: 6.78231526 | L47: 2.242198855 | M47: 2 | N47: 54.94997541 | O47: 6.930627529 | P47: 30.75526656 | Q47: 7.364130502 | R47: 2.094664479 | S47: 1
A48: Tonga | B48: 99 | C48: 1 | D48: 1 | E48: 1 | F48: 3 | G48: 5 | H48: 99 | I48: 1 | J48: 1 | K48: 1 | L48: 3 | M48: 5 | N48: 99 | O48: 1 | P48: 1 | Q48: 1 | R48: 3 | S48: 5
A49: Tuvalu | B49: 98.78 | C49: 1 | D49: 1.22 | E49: 1 | F49: 2.9956 | G49: 5 | H49: 98.78 | I49: 1 | J49: 1.22 | K49: 1 | L49: 2.9956 | M49: 5 | N49: 98.22 | O49: 1 | P49: 1.78 | Q49: 1 | R49: 2.9844 | S49: 4
A50: Uzbekistan | B50: 96.07258236 | C50: 1 | D50: 1 | E50: 3.927417637 | F50: 2.912177471 | G50: 3 | H50: 95.42513233 | I50: 1 | J50: 1 | K50: 4.574867667 | L50: 2.89275397 | M50: 3 | N50: 93.42445373 | O50: 1 | P50: 1.181359699 | Q50: 5.39418657 | R50: 2.834547209 | S50: 3
A51: Viet Nam | B51: 92.63541199 | C51: 1 | D51: 7.364588009 | E51: 1 | F51: 2.87270824 | G51: 3 | H51: 89.78262736 | I51: 1 | J51: 8.778846816 | K51: 1.438525825 | L51: 2.801267289 | M51: 3 | N51: 85.33341533 | O51: 1 | P51: 9.585626129 | Q51: 4.435459356 | R51: 2.675858721 | S51: 2
A52: Vanuatu | B52: 88.48513287 | C52: 1.256381197 | D52: 1 | E52: 10.25848593 | F52: 2.68968161 | G52: 2 | H52: 86.16116338 | I52: 1.223383658 | J52: 2.927997722 | K52: 9.687455243 | L52: 2.638582552 | M52: 2 | N52: 82.89361424 | O52: 1.176988438 | P52: 7.022900355 | Q52: 8.906496963 | R52: 2.5805772 | S52: 2
A53: Samoa | B53: 96.79035539 | C53: 1 | D53: 2.031850684 | E53: 1 | F53: 2.944029169 | G53: 3 | H53: 95.81052013 | I53: 1.459043454 | J53: 2.377375191 | K53: 1 | L53: 2.927270225 | M53: 3 | N53: 94.07184991 | O53: 2.769667395 | P53: 2.854401064 | Q53: 1 | R53: 2.906092856 | S53: 3
B55: Water index
B56: Index stage | C56: Raw score
B57: 5 | C57: 2.995
B58: 4 | C58: 2.95
B59: 3 | C59: 2.75
B60: 2 | C60: 2.2
B61: 1 | C61: 0

Sheet KD1.2 Sanitation
A1: KD 1.2 - Sanitation
A7: Economies | B7: AWDO 2020 | H7: AWDO 2016 | N7: AWDO 2013
B8: At least basic | C8: Limited | D8: Unimproved | E8: Open defecation | F8: Raw score | G8: Index score | H8: At least basic | I8: Limited | J8: Unimproved | K8: Open defecation | L8: Raw score | M8: Index score | N8: At least basic | O8: Limited | P8: Unimproved | Q8: Open defecation | R8: Raw score | S8: Index score
A9: Afghanistan | B9: 37.05230367 | C9: 5.918051922 | D9: 39.985917 | E9: 17.04372741 | F9: =((B9*3)+(C9*2)+(D9*1))/100 -> 1.629789319 | G9: =IF(F9=0,0,IF($F9>$C$57,$B$57,IF($F9>$C$58,$B$58,IF($F9>$C$59,$B$59,IF($F9>$C$60,$B$60,$B$61))))) -> 1 | H9: 34.17293727 | I9: 5.496993597 | J9: 40.60046945 | K9: 19.72959968 | L9: =((H9*3)+(I9*2)+(J9*1))/100 -> 1.541132685 | M9: =IF(L9=0,0,IF($L9>$C$57,$B$57,IF($L9>$C$58,$B$58,IF($L9>$C$59,$B$59,IF($L9>$C$60,$B$60,$B$61))))) -> 1 | N9: 30.34245036 | O9: 4.926914203 | P9: 41.41987272 | Q9: 23.31076272 | R9: =((N9*3)+(O9*2)+(P9*1))/100 -> 1.423010522 | S9: =IF(R9=0,0,IF($R9>$C$57,$B$57,IF($R9>$C$58,$B$58,IF($R9>$C$59,$B$59,IF($R9>$C$60,$B$60,$B$61))))) -> 1
A10: Armenia | B10: 83.21558421 | C10: 1.334227338 | D10: 15.45018845 | E10: 1 | F10: =((B10*3)+(C10*2)+(D10*1))/100 -> 2.677653958 | G10: =IF(F10=0,0,IF($F10>$C$57,$B$57,IF($F10>$C$58,$B$58,IF($F10>$C$59,$B$59,IF($F10>$C$60,$B$60,$B$61))))) -> 2 | H10: 82.10959785 | I10: 1.851572401 | J10: 16.03882975 | K10: 1 | L10: 2.660707681 | M10: =IF(L10=0,0,IF($L10>$C$57,$B$57,IF($L10>$C$58,$B$58,IF($L10>$C$59,$B$59,IF($L10>$C$60,$B$60,$B$61))))) -> 2 | N10: 80.64643611 | O10: 2.529879081 | P10: 16.82368481 | Q10: 1 | R10: 2.638227513 | S10: =IF(R10=0,0,IF($R10>$C$57,$B$57,IF($R10>$C$58,$B$58,IF($R10>$C$59,$B$59,IF($R10>$C$60,$B$60,$B$61))))) -> 2
A11: Australia | B11: 99 | C11: 1 | D11: 1 | E11: 1 | F11: 3 | G11: 5 | H11: 99 | I11: 1 | J11: 1 | K11: 1 | L11: 3 | M11: 5 | N11: 99 | O11: 1 | P11: 1 | Q11: 1 | R11: 3 | S11: 5
A12: Azerbaijan | B12: 87.63876172 | C12: 1.447227398 | D12: 10.56608333 | E12: 1 | F12: 2.763768233 | G12: 3 | H12: 85.40538207 | I12: 1.410346363 | J12: 12.83634401 | K12: 1 | L12: 2.718731829 | M12: 2 | N12: 75.89396899 | O12: 1.840716702 | P12: 21.95038355 | Q12: 1 | R12: 2.533137239 | S12: 2
A13: Bangladesh | B13: 46.85735758 | C13: 17.5466128 | D13: 35.59602962 | E13: 1 | F13: 2.11261328 | G13: 1 | H13: 41.86089334 | I13: 16.48729715 | J13: 38.62500533 | K13: 3.026804189 | L13: 1.971822796 | M13: 1 | N13: 35.05040445 | O13: 15.22341283 | P13: 41.41042675 | Q13: 8.315755968 | R13: 1.770084658 | S13: 1
A14: Brunei Darussalam | B14: 96.34904195 | C14: 1 | D14: 1.050958054 | E14: 2.6 | F14: 2.920980839 | G14: 3 | H14: 96.34904195 | I14: 1 | J14: 1.050958054 | K14: 2.6 | L14: 2.920980839 | M14: 3 | N14: 96.34904195 | O14: 1 | P14: 1.050958054 | Q14: 2.6 | R14: 2.920980839 | S14: 3
A15: Bhutan | B15: 67.01143797 | C15: 5.124918423 | D15: 27.86364361 | E15: 1 | F15: 2.391477944 | G15: 2 | H15: 62.22489966 | I15: 4.758852284 | J15: 31.45950267 | K15: 1.556745384 | L15: 2.276519062 | M15: 2 | N15: 55.84284858 | O15: 4.270764099 | P15: 35.09887207 | Q15: 4.787515249 | R15: 2.11168946 | S15: 1
A16: China, People’s Republic of | B16: 76.43906586 | C16: 5.524333089 | D16: 17.5858932 | E16: 1 | F16: 2.57951757 | G16: 2 | H16: 70.15652651 | I16: 5.070287247 | J16: 23.62286449 | K16: 1.15032175 | L16: 2.442330185 | M16: 2 | N16: 62.13752876 | O16: 4.107171411 | P16: 31.67215955 | Q16: 2.083140283 | R16: 2.262990886 | S16: 2
A17: Cook Islands | B17: 97.62687221 | C17: 1 | D17: 2.373127795 | E17: 1 | F17: 2.972537444 | G17: 4 | H17: 97.62687221 | I17: 1 | J17: 2.373127795 | K17: 0 | L17: 2.972537444 | M17: 4 | N17: 96.35182857 | O17: 1 | P17: 2.52817143 | Q17: 1.12 | R17: 2.935836571 | S17: 3
A18: Fiji | B18: 94.74825871 | C18: 5.251741294 | D18: 1 | E18: 1 | F18: 2.957482587 | G18: 4 | H18: 92.04328493 | I18: 5.101809013 | J18: 2.595448158 | K18: 1 | L18: 2.88928921 | M18: 3 | N18: 84.61577501 | O18: 4.690114264 | P18: 10.14403959 | Q18: 1 | R18: 2.733715931 | S18: 2
A19: Micronesia, Federated States of | B19: 88.30933155 | C19: 1 | D19: 11.69066845 | E19: 1 | F19: 2.786186631 | G19: 3 | H19: 84.05564485 | I19: 1 | J19: 6.444355147 | K19: 9.5 | L19: 2.606112897 | M19: 2 | N19: 67.04089807 | O19: 1 | P19: 23.45910193 | Q19: 9.5 | R19: 2.265817961 | S19: 2
A20: Georgia | B20: 82.73870871 | C20: 1 | D20: 17.10082784 | E20: 1 | F20: 2.67316954 | G20: 2 | H20: 85.10231125 | I20: 1 | J20: 14.55643394 | K20: 1 | L20: 2.718633677 | M20: 2 | N20: 88.23748823 | O20: 1 | P20: 11.16390874 | Q20: 1 | R20: 2.778763734 | S20: 3
A21: Indonesia | B21: 64.54101458 | C21: 12.21454466 | D21: 6.586173743 | E21: 16.65826702 | F21: 2.246383068 | G21: 2 | H21: 56.93813958 | I21: 12.4624749 | J21: 8.840653894 | K21: 21.75873162 | L21: 2.045800224 | M21: 1 | N21: 47.26862119 | O21: 12.32540029 | P21: 11.84662743 | Q21: 28.55935109 | R21: 1.783032916 | S21: 1
A22: India | B22: 53.23394315 | C22: 7.873866176 | D22: 2.546460905 | E22: 36.34572977 | F22: 1.779960227 | G22: 1 | H22: 44.02019731 | I22: 7.124087329 | J22: 3.010727518 | K22: 45.84498785 | L22: 1.493194941 | M22: 1 | N22: 32.05887592 | O22: 5.800709128 | P22: 3.62974967 | Q22: 58.51066529 | R22: 1.114077957 | S22: 1
A23: Japan | B23: 99 | C23: 1 | D23: 1 | E23: 1 | F23: 3 | G23: 5 | H23: 99 | I23: 1 | J23: 1 | K23: 1 | L23: 3 | M23: 5 | N23: 99 | O23: 1 | P23: 1 | Q23: 1 | R23: 3 | S23: 5
A24: Kazakhstan | B24: 99 | C24: 1 | D24: 1 | E24: 1 | F24: 3 | G24: 5 | H24: 98.62315845 | I24: 1 | J24: 1 | K24: 1 | L24: 2.988694754 | M24: 4 | N24: 98.11971692 | O24: 1 | P24: 1 | Q24: 1 | R24: 2.973591507 | S24: 4
A25: Kyrgyz Republic | B25: 99 | C25: 1 | D25: 1 | E25: 1 | F25: 3 | G25: 5 | H25: 98.96724803 | I25: 1.032751975 | J25: 1 | K25: 1 | L25: 2.99967248 | M25: 5 | N25: 96.70127323 | O25: 1.418387426 | P25: 1.84783317 | Q25: 1 | R25: 2.947884277 | S25: 3
A26: Cambodia | B26: 48.30446465 | C26: 7.156429343 | D26: 3.31706585 | E26: 41.22204016 | F26: 1.625433185 | G26: 1 | H26: 39.69266113 | I26: 6.344313835 | J26: 3.353477487 | K26: 50.60954754 | L26: 1.351200886 | M26: 1 | N26: 28.2717092 | O26: 5.2000404 | P26: 3.402026336 | Q26: 63.12622406 | R26: 0.9861723475 | S26: 1
A27: Kiribati | B27: 47.80288998 | C27: 13.30145001 | D27: 10.44684165 | E27: 28.44881835 | F27: 1.804584116 | G27: 1 | H27: 44.10756583 | I27: 11.24538997 | J27: 12.61000666 | K27: 32.03703754 | L27: 1.674234841 | M27: 1 | N27: 38.92054476 | O27: 8.763898782 | P27: 15.49422666 | Q27: 36.8213298 | R27: 1.497836585 | S27: 1
A28: Korea, Republic of | B28: 99 | C28: 1 | D28: 1 | E28: 1 | F28: 3 | G28: 5 | H28: 99 | I28: 1 | J28: 1 | K28: 1 | L28: 3 | M28: 5 | N28: 99 | O28: 1 | P28: 1 | Q28: 1 | R28: 3 | S28: 5
A29: Lao People’s Democratic Republic | B29: 63.51189504 | C29: 2.834716871 | D29: 2.838888157 | E29: 30.81449993 | F29: 1.99044007 | G29: 1 | H29: 55.61565101 | I29: 2.147994201 | J29: 3.99234628 | K29: 38.24400851 | L29: 1.751352877 | M29: 1 | N29: 44.93939467 | O29: 1.380294942 | P29: 5.530290444 | Q29: 48.15001994 | R29: 1.431090643 | S29: 1
A30: Sri Lanka | B30: 95.99858078 | C30: 3.254264194 | D30: 1 | E30: 1 | F30: 2.955042707 | G30: 4 | H30: 94.23206563 | I30: 2.734800129 | J30: 1.669542827 | K30: 1.363591415 | L30: 2.8983534 | M30: 3 | N30: 91.8441098 | O30: 2.074783671 | P30: 3.813383559 | Q30: 2.267722965 | R30: 2.834952803 | S30: 3
A31: Maldives | B31: 99 | C31: 1 | D31: 1 | E31: 1 | F31: 3 | G31: 5 | H31: 97.02095316 | I31: 1 | J31: 1.988208175 | K31: 1 | L31: 2.950510677 | M31: 4 | N31: 88.04308093 | O31: 1.387039564 | P31: 4.789996728 | Q31: 5.779882775 | R31: 2.716933187 | S31: 2
A32: Marshall Islands | B32: 58.52803095 | C32: 6.915126944 | D32: 2.746842105 | E32: 31.81 | F32: 1.921611888 | G32: 1 | H32: 58.58345611 | I32: 6.921675465 | J32: 3.014868421 | K32: 31.48 | L32: 1.926085877 | M32: 1 | N32: 58.65735633 | O32: 6.930406827 | P32: 3.372236842 | Q32: 31.04 | R32: 1.932051195 | S32: 1
A33: Myanmar | B33: 59.25420927 | C33: 8.367227649 | D33: 19.41790735 | E33: 12.96065574 | F33: 2.139149904 | G33: 1 | H33: 60.54956448 | I33: 8.550143464 | J33: 18.05029206 | K33: 12.85 | L33: 2.167992724 | M33: 1 | N33: 62.27670476 | O33: 8.794031217 | P33: 16.226805 | Q33: 12.70245902 | R33: 2.206449817 | S33: 2
A34: Mongolia | B34: 41.51800478 | C34: 23.61170757 | D34: 4.668690408 | E34: 30.20159724 | F34: 1.764461199 | G34: 1 | H34: 39.30202021 | I34: 23.67140727 | J34: 5.851997476 | K34: 31.17457504 | L34: 1.711008726 | M34: 1 | N34: 35.04291949 | O34: 23.61793826 | P34: 8.218611613 | Q34: 33.12053064 | R34: 1.605832466 | S34: 1
A35: Malaysia | B35: 98.67944894 | C35: 1 | D35: 1.320551057 | E35: 0 | F35: 2.993588979 | G35: 4 | H35: 98.67944894 | I35: 1 | J35: 1 | K35: 1.124860826 | L35: 2.990383468 | M35: 4 | N35: 97.44973048 | O35: 1 | P35: 1.036608303 | Q35: 1.51366122 | R35: 2.953857997 | S35: 4
A36: Niue | B36: 96.77148847 | C36: 1 | D36: 3.22851153 | E36: 1 | F36: 2.955429769 | G36: 4 | H36: 96.77148847 | I36: 1 | J36: 3.22851153 | K36: 1 | L36: 2.955429769 | M36: 4 | N36: 98.15513627 | O36: 1 | P36: 1.844863732 | Q36: 1 | R36: 2.983102725 | S36: 4
A37: Nepal | B37: 60.80631126 | C37: 11.11058653 | D37: 3.200204307 | E37: 24.8828979 | F37: 2.078403111 | G37: 1 | H37: 50.94048527 | I37: 11.53194864 | J37: 3.938727003 | K37: 33.58883909 | L37: 1.798240801 | M37: 1 | N37: 38.67048918 | O37: 11.20932622 | P37: 4.923423932 | Q37: 45.19676068 | R37: 1.433535439 | S37: 1
A38: New Zealand | B38: 99 | C38: 1 | D38: 1 | E38: 1 | F38: 3 | G38: 5 | H38: 99 | I38: 1 | J38: 1 | K38: 1 | L38: 3 | M38: 5 | N38: 99 | O38: 1 | P38: 1 | Q38: 1 | R38: 3 | S38: 5
A39: Pakistan | B39: 50.26586828 | C39: 12.6540945 | D39: 20.67082928 | E39: 16.40920794 | F39: 1.967766231 | G39: 1 | H39: 44.18298526 | I39: 10.50788354 | J39: 21.73377338 | K39: 23.57535783 | L39: 1.752984962 | M39: 1 | N39: 36.8896561 | O39: 6.829087379 | P39: 23.15103218 | Q39: 33.13022434 | R39: 1.474781752 | S39: 1
A40: Philippines | B40: 74.82314949 | C40: 13.42191775 | D40: 4.546587397 | E40: 7.208345362 | F40: 2.558598714 | G40: 2 | H40: 69.81932252 | I40: 15.79790875 | J40: 5.548352047 | K40: 8.834416683 | L40: 2.466021371 | M40: 2 | N40: 63.41259969 | O40: 18.70085028 | P40: 6.884038247 | Q40: 11.00251178 | R40: 2.345235379 | S40: 2
A41: Palau | B41: 99 | C41: 1 | D41: 1 | E41: 1 | F41: 3 | G41: 5 | H41: 99 | I41: 1 | J41: 1 | K41: 1 | L41: 3 | M41: 5 | N41: 99 | O41: 1 | P41: 1 | Q41: 1 | R41: 3 | S41: 5
A42: Papua New Guinea | B42: 7.688107826 | C42: 1.447173238 | D42: 74.33235416 | E42: 16.53236478 | F42: 1.002910241 | G42: 1 | H42: 9.415805569 | I42: 1.819929932 | J42: 72.70937056 | K42: 16.05489394 | L42: 1.045966471 | M42: 1 | N42: 11.69613175 | O42: 2.340209665 | P42: 70.54539243 | Q42: 15.41826615 | R42: 1.10314207 | S42: 1
A43: Solomon Islands | B43: 20.05690246 | C43: 1.91578941 | D43: 9.364423468 | E43: 68.66288466 | F43: 0.7336670967 | G43: 1 | H43: 18.35679194 | I43: 1.753398745 | J43: 11.75508819 | K43: 68.13472113 | L43: 0.7033226149 | M43: 1 | N43: 16.08997791 | O43: 1.536877857 | P43: 14.94264114 | Q43: 67.43050309 | R43: 0.6628633059 | S43: 1
A44: Thailand | B44: 98.32359637 | C44: 1.676403628 | D44: 1 | E44: 1 | F44: 2.993235964 | G44: 4 | H44: 97.60167384 | I44: 2.11107252 | J44: 1 | K44: 1 | L44: 2.980271666 | M44: 4 | N44: 96.4014021 | O44: 2.679974321 | P44: 1 | Q44: 1 | R44: 2.955641549 | S44: 4
A45: Tajikistan | B45: 97.79155024 | C45: 1.549187979 | D45: 1 | E45: 1 | F45: 2.974730267 | G45: 4 | H45: 96.08958996 | I45: 1.855577957 | J45: 1.964548964 | K45: 1 | L45: 2.939444748 | M45: 3 | N45: 93.83485617 | O45: 2.249551338 | P45: 3.390528631 | Q45: 1 | R45: 2.893941998 | S45: 3
A46: Turkmenistan | B46: 99 | C46: 1 | D46: 1 | E46: 1 | F46: 3 | G46: 5 | H46: 98.73250577 | I46: 1 | J46: 1 | K46: 1 | L46: 2.991975173 | M46: 4 | N46: 97.76918222 | O46: 1.076717804 | P46: 1 | Q46: 1 | R46: 2.964609823 | S46: 4
A47: Timor-Leste | B47: 43.81884419 | C47: 6.503742015 | D47: 21.71409712 | E47: 27.96331668 | F47: 1.661781137 | G47: 1 | H47: 40.64099305 | I47: 6.631744315 | J47: 20.44326525 | K47: 32.28399738 | L47: 1.55629733 | M47: 1 | N47: 36.5086659 | O47: 6.697606343 | P47: 18.74882277 | Q47: 38.04490499 | R47: 1.416700332 | S47: 1
A48: Tonga | B48: 92.49405576 | C48: 1.072542888 | D48: 6.433401355 | E48: 1 | F48: 2.860606544 | G48: 3 | H48: 92.49405576 | I48: 1.072542888 | J48: 6.433401355 | K48: 1 | L48: 2.860606544 | M48: 3 | N48: 89.77263722 | O48: 1.040985854 | P48: 9.082550167 | Q48: 1 | R48: 2.804824335 | S48: 3
A49: Tuvalu | B49: 86.18905473 | C49: 4.855721393 | D49: 1 | E49: 8.955223881 | F49: 2.69278607 | G49: 2 | H49: 86.18905473 | I49: 4.855721393 | J49: 1 | K49: 8.955223881 | L49: 2.69278607 | M49: 2 | N49: 82.2464 | O49: 4.6336 | P49: 5.04 | Q49: 8.08 | R49: 2.610464 | S49: 2
A50: Uzbekistan | B50: 99 | C50: 1 | D50: 1 | E50: 1 | F50: 3 | G50: 5 | H50: 99 | I50: 1 | J50: 1 | K50: 1 | L50: 3 | M50: 5 | N50: 97.58723434 | O50: 1 | P50: 2.312765661 | Q50: 1 | R50: 2.970744687 | S50: 4
A51: Viet Nam | B51: 77.67666526 | C51: 4.390587144 | D51: 14.04883426 | E51: 3.883913334 | F51: 2.558600043 | G51: 2 | H51: 71.59415509 | I51: 4.079650956 | J51: 18.2020132 | K51: 6.124180755 | L51: 2.411437804 | M51: 2 | N51: 63.47391432 | O51: 3.67529659 | P51: 22.2460735 | Q51: 10.6047156 | R51: 2.200184096 | S51: 2
A52: Vanuatu | B52: 29.28446063 | C52: 31.5993123 | D52: 38.53009209 | E52: 1 | F52: 1.895820986 | G52: 1 | H52: 36.07606012 | I52: 25.85722856 | J52: 36.94291962 | K52: 1.123791695 | L52: 1.968855571 | M52: 1 | N52: 45.46296962 | O52: 17.8696734 | P52: 34.82668966 | Q52: 1.840667317 | R52: 2.069549453 | S52: 1
A53: Samoa | B53: 98.10146836 | C53: 1 | D53: 1.791418907 | E53: 1 | F53: 2.98095824 | G53: 4 | H53: 97.87899035 | I53: 1 | J53: 2.028655579 | K53: 1 | L53: 2.976656266 | M53: 4 | N53: 97.58235302 | O53: 1 | P53: 2.344971141 | Q53: 1 | R53: 2.970920302 | S53: 4
B55: Sanitation index
B56: Index stage | C56: Raw score
B57: 5 | C57: 2.995
B58: 4 | C58: 2.95
B59: 3 | C59: 2.75
B60: 2 | C60: 2.2
B61: 1 | C61: 0

Sheet KD1.3 Health impacts
A1: KD 1.3 - Health Impacts
A7: Economies | B7: AWDO 2020 | D7: AWDO 2016 | F7: AWDO 2013
B8: DALYs | C8: Index score | D8: Raw score | E8: Index score | F8: Raw score | G8: Index score
A9: Afghanistan | B9: 19.58188355 | C9: =IF(B9=0,0,IF($B9<$C$57,$B$57,IF($B9<$C$58,$B$58,IF($B9<$C$59,$B$59,IF($B9<$C$60,$B$60,$B$61))))) -> 1 | D9: 21.13625886 | E9: =IF(D9=0,0,IF($D9<$C$57,$B$57,IF($D9<$C$58,$B$58,IF($D9<$C$59,$B$59,IF($D9<$C$60,$B$60,$B$61))))) -> 1 | F9: 32.53750185 | G9: =IF(F9=0,0,IF($F9<$C$57,$B$57,IF($F9<$C$58,$B$58,IF($F9<$C$59,$B$59,IF($F9<$C$60,$B$60,$B$61))))) -> 1
A10: Armenia | B10: 0.9474872318 | C10: =IF(B10=0,0,IF($B10<$C$57,$B$57,IF($B10<$C$58,$B$58,IF($B10<$C$59,$B$59,IF($B10<$C$60,$B$60,$B$61))))) -> 5 | D10: 0.9862538547 | E10: =IF(D10=0,0,IF($D10<$C$57,$B$57,IF($D10<$C$58,$B$58,IF($D10<$C$59,$B$59,IF($D10<$C$60,$B$60,$B$61))))) -> 5 | F10: 1.223388855 | G10: =IF(F10=0,0,IF($F10<$C$57,$B$57,IF($F10<$C$58,$B$58,IF($F10<$C$59,$B$59,IF($F10<$C$60,$B$60,$B$61))))) -> 4
A11: Australia | B11: 0.2092826889 | C11: 5 | D11: 0.2061213215 | E11: 5 | F11: 0.1796016749 | G11: 5
A12: Azerbaijan | B12: 2.445182675 | C12: 3 | D12: 2.580149846 | E12: 3 | F12: 3.273656842 | G12: 3
A13: Bangladesh | B13: 8.6696862 | C13: 2 | D13: 9.241833338 | E13: 2 | F13: 13.64234431 | G13: 1
A14: Brunei Darussalam | B14: 0.3231471399 | C14: 5 | D14: 0.3481501934 | E14: 5 | F14: 0.3101917102 | G14: 5
A15: Bhutan | B15: 4.957373487 | C15: 3 | D15: 5.172711736 | E15: 2 | F15: 6.889481933 | G15: 2
A16: China, People’s Republic of | B16: 0.9319654043 | C16: 5 | D16: 0.9588377316 | E16: 5 | F16: 1.156643054 | G16: 4
A17: Cook Islands | C17: 4 | E17: 4 | G17: 4
A18: Fiji | B18: 5.163406007 | C18: 2 | D18: 5.205334157 | E18: 2 | F18: 5.622466756 | G18: 2
A19: Micronesia, Federated States of | B19: 6.435709679 | C19: 2 | D19: 6.635113517 | E19: 2 | F19: 7.929060178 | G19: 2
A20: Georgia | B20: 0.9107705917 | C20: 5 | D20: 0.9234830984 | E20: 5 | F20: 1.022365684 | G20: 4
A21: Indonesia | B21: 4.501758012 | C21: 3 | D21: 4.65347861 | E21: 3 | F21: 5.795559051 | G21: 2
A22: India | B22: 11.95205991 | C22: 1 | D22: 12.58741291 | E22: 1 | F22: 17.52289608 | G22: 1
A23: Japan | B23: 1.10473301 | C23: 4 | D23: 1.09620876 | E23: 4 | F23: 1.072035026 | G23: 4
A24: Kazakhstan | B24: 1.709368571 | C24: 4 | D24: 1.841183164 | E24: 4 | F24: 2.649860651 | G24: 3
A25: Kyrgyz Republic | B25: 2.769938124 | C25: 3 | D25: 2.742837474 | E25: 3 | F25: 3.889471976 | G25: 3
A26: Cambodia | B26: 7.311385943 | C26: 2 | D26: 7.720643068 | E26: 2 | F26: 11.64952428 | G26: 1
A27: Kiribati | B27: 14.63793458 | C27: 1 | D27: 15.72535913 | E27: 1 | F27: 19.11169956 | G27: 1
A28: Korea, Republic of | B28: 0.4470441641 | C28: 5 | D28: 0.4304558088 | E28: 5 | F28: 0.2961796153 | G28: 5
A29: Lao People’s Democratic Republic | B29: 14.27890406 | C29: 1 | D29: 15.12886634 | E29: 1 | F29: 20.86779442 | G29: 1
A30: Sri Lanka | B30: 1.771142982 | C30: 4 | D30: 1.778727539 | E30: 4 | F30: 1.893057515 | G30: 4
A31: Maldives | B31: 0.6502578719 | C31: 5 | D31: 0.6846647225 | E31: 5 | F31: 0.9375251753 | G31: 5
A32: Marshall Islands | C32: 1 | E32: 1 | G32: 1
A33: Myanmar | B33: 9.970366273 | C33: 2 | D33: 10.54106102 | E33: 1 | F33: 14.36852717 | G33: 1
A34: Mongolia | B34: 2.417153745 | C34: 3 | D34: 2.57631505 | E34: 3 | F34: 3.410102307 | G34: 3
A35: Malaysia | B35: 4.031356826 | C35: 3 | D35: 4.008513838 | E35: 3 | F35: 4.081901773 | G35: 3
A36: Niue | C36: 2 | E36: 2 | G36: 2
A37: Nepal | B37: 10.68497768 | C37: 1 | D37: 11.31708013 | E37: 1 | F37: 16.58383396 | G37: 1
A38: New Zealand | B38: 0.2514247552 | C38: 5 | D38: 0.2481987618 | E38: 5 | F38: 0.2239539704 | G38: 5
A39: Pakistan | B39: 18.23801252 | C39: 1 | D39: 19.17797023 | E39: 1 | F39: 24.17873507 | G39: 1
A40: Philippines | B40: 8.290658234 | C40: 2 | D40: 8.561015873 | E40: 2 | F40: 10.10769316 | G40: 1
A41: Palau | C41: 4 | E41: 4 | G41: 4
A42: Papua New Guinea | B42: 17.95818454 | C42: 1 | D42: 19.7518367 | E42: 1 | F42: 23.14131307 | G42: 1
A43: Solomon Islands | B43: 8.788466472 | C43: 2 | D43: 9.169313735 | E43: 2 | F43: 10.73901488 | G43: 1
A44: Thailand | B44: 3.221746009 | C44: 3 | D44: 3.24567498 | E44: 3 | F44: 3.254976292 | G44: 3
A45: Tajikistan | B45: 5.825346313 | C45: 2 | D45: 6.159195132 | E45: 2 | F45: 8.058136404 | G45: 2
A46: Turkmenistan | B46: 6.828778537 | C46: 2 | D46: 7.273490333 | E46: 2 | F46: 9.066609971 | G46: 2
A47: Timor-Leste | B47: 13.53661481 | C47: 1 | D47: 14.43561266 | E47: 1 | F47: 18.91707761 | G47: 1
A48: Tonga | B48: 2.848893256 | C48: 3 | D48: 2.910879652 | E48: 3 | F48: 3.109189986 | G48: 3
A49: Tuvalu | C49: 3 | E49: 3 | G49: 3
A50: Uzbekistan | B50: 1.778194644 | C50: 4 | D50: 1.90645542 | E50: 4 | F50: 2.884571382 | G50: 3
A51: Viet Nam | B51: 3.183553242 | C51: 3 | D51: 3.384026319 | E51: 3 | F51: 4.774649595 | G51: 3
A52: Vanuatu | B52: 12.6580243 | C52: 1 | D52: 13.01501397 | E52: 1 | F52: 14.25174638 | G52: 1
A53: Samoa | B53: 2.707555673 | C53: 3 | D53: 2.742993828 | E53: =IF(D53=0,0,IF($D53<$C$57,$B$57,IF($D53<$C$58,$B$58,IF($D53<$C$59,$B$59,IF($D53<$C$60,$B$60,$B$61))))) -> 3 | F53: 3.324602463 | G53: 3
B55: Health Impacts index
B56: Index stage | C56: DALYs
B57: 5 | C57: 1
B58: 4 | C58: 2
B59: 3 | C59: 5
B60: 2 | C60: 10
B61: 1 | C61: 100

Sheet KD1.4 Affordability
A1: KD 1.4 - Affordability
A7: Economies | B7: AWDO 2020 | I7: AWDO 2016 | P7: AWDO 2013
B8: Cost (USD) | C8: Exchange rate | D8: CPI | E8: Population | F8: HFC (USD PPP) | G8: Raw Score | H8: Index score | I8: Cost (USD) | J8: Exchange rate | K8: CPI | L8: Population | M8: HFC (USD PPP) | N8: Raw Score | O8: Index score | P8: Cost (USD) | Q8: Exchange rate | R8: CPI | S8: Population | T8: HFC (USD PPP) | U8: Raw Score | V8: Index score
A9: Afghanistan | B9: 31.79882693 | C9: 72.08325 | D9: 1.116531113 | E9: 30075020 | F9: 1165894056250 | G9: =(B9*C9*D9)/(F9/E9) -> 0.06601811567 | H9: =IF(G9=0,0,IF($G9<$C$57,$B$57,IF($G9<$C$58,$B$58,IF($G9<$C$59,$B$59,IF($G9<$C$60,$B$60,$B$61))))) -> 1 | I9: 31.79882693 | J9: 61.14346 | K9: 1 | L9: 27101370 | M9: 1044215339540 | N9: =(I9*J9*K9)/(M9/L9) -> 0.05046174758 | O9: =IF(N9=0,0,IF($N9<$C$57,$B$57,IF($N9<$C$58,$B$58,IF($N9<$C$59,$B$59,IF($N9<$C$60,$B$60,$B$61))))) -> 1 | P9: 31.79882693 | Q9: 46.45246 | R9: 0.7258610163 | S9: 24485600 | T9: 727203595730 | U9: =(P9*Q9*R9)/(T9/S9) -> 0.03610173071 | V9: =IF(U9=0,0,IF($U9<$C$57,$B$57,IF($U9<$C$58,$B$58,IF($U9<$C$59,$B$59,IF($U9<$C$60,$B$60,$B$61))))) -> 3
A10: Armenia | B10: 55.74314634 | C10: 482.98795 | D10: 0.9884281581 | E10: 2971300 | F10: 4760883600000 | G10: 0.01660855398 | H10: =IF(G10=0,0,IF($G10<$C$57,$B$57,IF($G10<$C$58,$B$58,IF($G10<$C$59,$B$59,IF($G10<$C$60,$B$60,$B$61))))) -> 5 | I10: 55.74314634 | J10: 477.91831 | K10: 1 | L10: 3004600 | M10: 3915973000000 | N10: 0.02044052856 | O10: =IF(N10=0,0,IF($N10<$C$57,$B$57,IF($N10<$C$58,$B$58,IF($N10<$C$59,$B$59,IF($N10<$C$60,$B$60,$B$61))))) -> 4 | P10: 55.74314634 | Q10: 373.66047 | R10: 1.043394407 | S10: 3044800 | T10: 2829293200000 | U10: 0.02338826217 | V10: =IF(U10=0,0,IF($U10<$C$57,$B$57,IF($U10<$C$58,$B$58,IF($U10<$C$59,$B$59,IF($U10<$C$60,$B$60,$B$61))))) -> 4
A11: Australia | B11: 584.2438913 | C11: 1.33841 | D11: 1.09804401 | E11: 24992900 | F11: 1043350000000 | G11: 0.02056788954 | H11: 4 | I11: 584.2438913 | J11: 1.33109 | K11: 1 | L11: 23816000 | M11: 929163000000 | N11: 0.01993326842 | O11: 5 | P11: 584.2438913 | Q11: 1.09016 | R11: 0.8871986894 | S11: 22031800 | T11: 731012000000 | U11: 0.01703063295 | V11: 5
A12: Azerbaijan | B12: 80.5464883 | C12: 1.70002 | D12: 0.9836538462 | E12: 9939800 | F12: 42144500000 | G12: 0.03176725403 | H12: 3 | I12: 80.5464883 | J12: 1.02456 | K12: 1 | L12: 9649300 | M12: 30595300000 | N12: 0.02602705921 | O12: 4 | P12: 80.5464883 | Q12: 0.80265 | R12: 1.016346154 | S12: 9054350 | T12: 16528300000 | U12: 0.03599511455 | V12: 3
A13: Bangladesh | B13: 33.28883972 | C13: 83.4662 | D13: 1.181327681 | E13: 164600000 | F13: 15935308000000 | G13: 0.03390385244 | H13: 3 | I13: 33.28883972 | J13: 77.94691 | K13: 1 | L13: 158900000 | M13: 10980061000000 | N13: 0.03755058488 | O13: 3 | P13: 33.28883972 | Q13: 69.64929 | R13: 0.6801233259 | S13: 148600000 | T13: 5910930190000 | U13: 0.0396429533 | V13: 3
A14: Brunei Darussalam | B14: 334.5340255 | C14: 1.34892 | D14: 0.9923876959 | E14: 442400 | F14: 3576297520 | G14: 0.05539739439 | H14: 1 | I14: 334.5340255 | J14: 1.37491 | K14: 1 | L14: 412400 | M14: 3517484650 | N14: 0.05392634836 | O14: 1 | P14: 334.5340255 | Q14: 1.36351 | R14: 0.9997378687 | S14: 386800 | T14: 2749800000 | U14: 0.06414608045 | V14: 1
A15: Bhutan | B15: 98.52290568 | C15: 68.38947 | D15: 1.083385149 | E15: 727145 | F15: 86867040000 | G15: 0.06110479999 | H15: 1 | I15: 98.52290568 | J15: 64.15194 | K15: 1 | L15: 757042 | M15: 77003330000 | N15: 0.06213802906 | O15: 1 | P15: 98.52290568 | Q15: 45.72581 | R15: 0.6726726005 | S15: 695822 | T15: 33777890000 | U15: 0.06242635765 | V15: 1
A16: China, People’s Republic of | B16: 61.52648679 | C16: 6.61596 | D16: 1.006903353 | E16: 1395380000 | F16: 34820960000000 | G16: 0.01642458968 | H16: 5 | I16: 61.52648679 | J16: 6.22749 | K16: 1 | L16: 1374620000 | M16: 26598010000000 | N16: 0.01980198237 | O16: 5 | P16: 61.52648679 | Q16: 6.77027 | R16: 1.018737673 | S16: 1340910000 | T16: 14605760000000 | U16: 0.03895883325 | V16: 3
A17: Cook Islands | B17: 133.4582626 | C17: 1.44701 | D17: 1.02 | E17: 18600 | F17: 373537193.5 | G17: 0.009808356981 | H17: 5 | I17: 133.4582626 | J17: 1.43398 | K17: 1 | L17: 18400 | M17: 300933761.2 | N17: 0.01170133656 | O17: 5 | P17: 133.4582626 | Q17: 1.38783 | R17: 0.896265991 | S17: 23700 | T17: 235679510.8 | U17: 0.01669341436 | V17: 5
A18: Fiji | B18: 115.4080513 | C18: 2.08738 | D18: 1.072978304 | E18: 884887 | F18: 6419000000 | G18: 0.03563272248 | H18: 3 | I18: 115.4080513 | J18: 2.09762 | K18: 1 | L18: 869460 | M18: 5472700000 | N18: 0.03846014242 | O18: 3 | P18: 115.4080513 | Q18: 1.91831 | R18: 0.9997641135 | S18: 850700 | T18: 4234800000 | U18: 0.04446271423 | V18: 2
A19: Micronesia, Federated States of | B19: 68.59515501 | C19: 1 | D19: 0.9918061258 | E19: 102622 | F19: 250898907.3 | G19: 0.02782671453 | H19: 4 | I19: 68.59515501 | J19: 1 | K19: 1 | L19: 102289.37 | M19: 218826714.4 | N19: 0.03206443605 | O19: 3 | P19: 68.59515501 | Q19: 1 | R19: 0.8802035226 | S19: 102843 | T19: 209314911.9 | U19: 0.0296654617 | V19: 4
A20: Georgia | B20: 57.27531761 | C20: 2.53411 | D20: 1.111314118 | E20: 3726550 | F20: 24355195660 | G20: 0.02467999858 | H20: 4 | I20: 57.27531761 | J20: 2.26934 | K20: 1 | L20: 3725280 | M20: 20990057360 | N20: 0.02306812892 | O20: 4 | P20: 57.27531761 | Q20: 1.78234 | R20: 0.8721079809 | S20: 3786700 | T20: 14989324210 | U20: 0.02249091723 | V20: 4
A21: Indonesia | B21: 46.41656183 | C21: 14236.93877 | D21: 1.109076565 | E21: 265000000 | F21: 8269753900000000 | G21: 0.02348574833 | H21: 4 | I21: 46.41656183 | J21: 13389.41294 | K21: 1 | L21: 255461700 | M21: 6490929680000000 | N21: 0.02445982794 | O21: 4 | P21: 46.41656183 | Q21: 9090.43333 | R21: 0.8508229005 | S21: 237641330 | T21: 3786062900000000 | U21: 0.02253361524 | V21: 4
A22: India | B22: 59.25747598 | C22: 68.38947 | D22: 1.084337349 | E22: 1332000000 | F22: 112900290000000 | G22: 0.05184489171 | H22: 1 | I22: 59.25747598 | J22: 64.15194 | K22: 1 | L22: 1283000000 | M22: 81264083290000 | N22: 0.06001792261 | O22: 1 | P22: 59.25747598 | Q22: 45.72581 | R22: 0.7493306827 | S22: 1186000000 | T22: 43603230000000 | U22: 0.05522606502 | V22: 1
A23: Japan | B23: 334.5340255 | C23: 110.39958 | D23: 1.013333 | E23: 126529000 | F23: 296922600000000 | G23: 0.01594801827 | H23: 5 | I23: 334.5340255 | J23: 121.04403 | K23: 1 | L23: 127141000 | M23: 293125800000000 | N23: 0.01756366919 | O23: 5 | P23: 334.5340255 | Q23: 87.77988 | R23: 0.96525 | S23: 128070000 | T23: 282864600000000 | U23: 0.01283346408 | V23: 5
A24: Kazakhstan | B24: 137.5506142 | C24: 344.70583 | D24: 0.9943714822 | E24: 18276450 | F24: 30003410300000 | G24: 0.02871977576 | H24: 4 | I24: 137.5506142 | J24: 221.72833 | K24: 1 | L24: 17542810 | M24: 21491895400000 | N24: 0.02489477247 | O24: 4 | P24: 137.5506142 | Q24: 147.355 | R24: 1.004690432 | S24: 16321870 | T24: 9721099600000 | U24: 0.03419118858 | V24: 3
A25: Kyrgyz Republic | B25: 34.98112889 | C25: 68.84032 | D25: 0.9534224849 | E25: 6256730 | F25: 455239500000 | G25: 0.03155510047 | H25: 3 | I25: 34.98112889 | J25: 64.46211 | K25: 1 | L25: 5895060 | M25: 384117700000 | N25: 0.03460686411 | O25: 3 | P25: 34.98112889 | Q25: 45.96426 | R25: 1.014019751 | S25: 5418300 | T25: 183324700000 | U25: 0.04818840723 | V25: 2
A26: Cambodia | B26: 28.29042218 | C26: 4051.1669 | D26: 1.05 | E26: 15642870 | F26: 68743982170000 | G26: 0.02738360447 | H26: 4 | I26: 28.29042218 | J26: 4067.75 | K26: 1 | L26: 15055730 | M26: 55042396670000 | N26: 0.03147735009 | O26: 3 | P26: 28.29042218 | Q26: 4184.91667 | R26: 0.8275979151 | S26: 14125720 | T26: 37256301680000 | U26: 0.03714980026 | V26: 3
A27: Kiribati | B27: 42.05478899 | C27: 1.33841 | D27: 1.02 | E27: 113000 | F27: 167398811.3 | G27: 0.0387552798 | H27: 3 | I27: 42.05478899 | J27: 1.33109 | K27: 1 | L27: 110136 | M27: 158189965.3 | N27: 0.03897384447 | O27: 3 | P27: 42.05478899 | Q27: 1.09016 | R27: 0.9159880723 | S27: 103058 | T27: 120036877.4 | U27: 0.03605475429 | V27: 3
A28: Korea, Republic of | B28: 84.82415974 | C28: 1100.5575 | D28: 1.051885075 | E28: 51606630 | F28: 874617300000000 | G28: 0.005794127309 | H28: 5 | I28: 84.82415974 | J28: 1131.1575 | K28: 1 | L28: 51000000 | M28: 777068100000000 | N28: 0.006297290686 | O28: 5 | P28: 84.82415974 | Q28: 1156.06099 | R28: 0.9105200573 | S28: 49554110 | T28: 649706000000000 | U28: 0.006810086575 | V28: 5
A29: Lao People’s Democratic Republic | B29: 48.67650731 | C29: 8489.23991 | D29: 1.045254042 | E29: 6778750 | F29: 9.267082813e+13 | G29: 0.03159487525 | H29: 3 | I29: 48.67650731 | J29: 8147.90796 | K29: 1 | L29: 6492230 | M29: 7.071087326e+13 | N29: 0.03641440513 | O29: 3 | P29: 48.67650731 | Q29: 8258.77009 | R29: 0.7948870875 | S29: 6041540 | T29: 3.184373416e+13 | U29: 0.06062669485 | V29: 1
A30: Sri Lanka | B30: 98.88246661 | C30: 162.46486 | D30: 1.119634703 | E30: 21670000 | F30: 10081223000000 | G30: 0.038663465 | H30: 3 | I30: 98.88246661 | J30: 135.85691 | K30: 1 | L30: 20966000 | M30: 7376176000000 | N30: 0.03818434406 | O30: 3 | P30: 98.88246661 | Q30: 113.06448 | R30: 0.9132420091 | S30: 20653020 | T30: 4390215000000 | U30: 0.04803183052 | V30: 2
A31: Maldives | B31: 107.2041181 | C31: 15.39084 | D31: 1.033341452 | E31: 512037.63 | F31: 5.008317094e+10 | G31: 0.01743121678 | H31: 5 | I31: 107.2041181 | J31: 15.36633 | K31: 1 | L31: 454434.03 | M31: 4.25602085e+10 | N31: 0.01758930675 | O31: 5 | P31: 107.2041181 | Q31: 12.8 | R31: 0.7573299579 | S31: 393578 | T31: 2.144945086e+10 | U31: 0.01906870549 | V31: 5
A32: Marshall Islands | B32: 71.5305122 | C32: 1 | D32: 1.02 | E32: 54354.09 | F32: 148467575.8 | G32: 0.02671112123 | H32: 4 | I32: 71.5305122 | J32: 1 | K32: 1 | L32: 53952.43 | M32: 129677739.1 | N32: 0.02976027326 | O32: 4 | P32: 71.5305122 | Q32: 1 | R32: 0.9159880723 | S32: 52920.51 | T32: 122899534.5 | U32: 0.02821336817 | V32: 4
A33: Myanmar | B33: 57.02063351 | C33: 1429.80798 | D33: 1.11859094 | E33: 53860000 | F33: 5.548210333e+13 | G33: 0.08853081948 | H33: 1 | I33: 57.02063351 | J33: 1162.61533 | K33: 1 | L33: 52450000 | M33: 4.38516201e+13 | N33: 0.07929173717 | O33: 1 | P33: 57.02063351 | Q33: 640.65342 | R33: 0.7993404908 | S33: 51990000 | T33: 2.274285713e+13 | U33: 0.06675161755 | V33: 1
A34: Mongolia | B34: 59.29974956 | C34: 2472.48405 | D34: 1.165217667 | E34: 3208000 | F34: 15115780770000 | G34: 0.03625744475 | H34: 3 | I34: 59.29974956 | J34: 1970.30917 | K34: 1 | L34: 3026860 | M34: 13568090340000 | N34: 0.02606518702 | O34: 4 | P34: 59.29974956 | Q34: 1357.06417 | R34: 0.6326026993 | S34: 2738620 | T34: 5328170440000 | U34: 0.02616603697 | V34: 4
A35: Malaysia | B35: 173.7003434 | C35: 4.03513 | D35: 1.070035461 | E35: 32400000 | F35: 830212000000 | G35: 0.02926930311 | H35: 4 | I35: 173.7003434 | J35: 3.9055 | K35: 1 | L35: 31200000 | M35: 634553000000 | N35: 0.03335523551 | O35: 3 | P35: 173.7003434 | Q35: 3.22109 | R35: 0.8865248227 | S35: 28588640 | T35: 394893000000 | U35: 0.03590942883 | V35: 3
A36: Niue | B36: 150.8168101 | C36: 1.44526 | D36: 1.06374502 | E36: 1719 | F36: 30098290.29 | G36: 0.01324241896 | H36: 5 | I36: 150.8168101 | J36: 1.43398 | K36: 1 | L36: 1719 | M36: 23545372.63 | N36: 0.01578931007 | O36: 5 | P36: 150.8168101 | Q36: 1.38783 | R36: 0.9911781446 | S36: 1611 | T36: 17302529.12 | U36: 0.01931628884 | V36: 5
A37: Nepal | B37: 42.3935344 | C37: 108.93013 | D37: 1.196 | E37: 29101950 | F37: 2086285470490 | G37: 0.07704193534 | H37: 1 | I37: 42.3935344 | J37: 102.40513 | K37: 1 | L37: 27954440 | M37: 1662961801190 | N37: 0.07297764797 | O37: 1 | P37: 42.3935344 | Q37: 73.26236 | R37: 0.656 | S37: 26252470 | T37: 916993334210 | U37: 0.05832951451 | V37: 1
A38: New Zealand | B38: 334.5340255 | C38: 1.44526 | D38: 1.025089833 | E38: 4885500 | F38: 168930000000 | G38: 0.01433344027 | H38: 5 | I38: 334.5340255 | J38: 1.43398 | K38: 1 | L38: 4595700 | M38: 143186000000 | N38: 0.01539694309 | O38: 5 | P38: 334.5340255 | Q38: 1.38783 | R38: 0.9264122973 | S38: 4350700 | T38: 115501000000 | U38: 0.01620146446 | V38: 5
A39: Pakistan | B39: 76.11941665 | C39: 121.82407 | D39: 1.113342753 | E39: 212820000 | F39: 28243581000000 | G39: 0.07779471992 | H39: 1 | I39: 76.11941665 | J39: 102.76927 | K39: 1 | L39: 191708000 | M39: 21890279000000 | N39: 0.0685090054 | O39: 1 | P39: 76.11941665 | Q39: 85.19382 | R39: 0.6502321356 | S39: 173510000 | T39: 11851316000000 | U39: 0.06173477992 | V39: 1
A40: Philippines | B40: 49.45360898 | C40: 52.66143 | D40: 1.096261682 | E40: 106600000 | F40: 12864928150000 | G40: 0.02365672997 | H40: 4 | I40: 49.45360898 | J40: 45.50284 | K40: 1 | L40: 101562300 | M40: 9825882530000 | N40: 0.02325934356 | O40: 4 | P40: 49.45360898 | Q40: 45.10966 | R40: 0.9345794393 | S40: 93135100 | T40: 6442033000000 | U40: 0.03014214861 | V40: 3
A41: Palau | B41: 163.6327488 | C41: 1 | D41: 0.8413736713 | E41: 17535.66 | F41: 189193970 | G41: 0.01276068446 | H41: 5 | I41: 163.6327488 | J41: 1 | K41: 1 | L41: 17661 | M41: 180199570 | N41: 0.01603731894 | O41: 5 | P41: 163.6327488 | Q41: 1 | R41: 0.8479149632 | S41: 18288.03 | T41: 124265700 | U41: 0.02041917449 | V41: 4
A42: Papua New Guinea | B42: 81.71051268 | C42: 3.27904 | D42: 1.124576271 | E42: 9018940 | F42: 13247736000 | G42: 0.2051291584 | H42: 1 | I42: 81.71051268 | J42: 2.76841 | K42: 1 | L42: 8225620 | M42: 11293152000 | N42: 0.1647638053 | O42: 1 | P42: 81.71051268 | Q42: 2.71929 | R42: 0.7822033898 | S42: 7055430 | T42: 8831824000 | U42: 0.1388437185 | V42: 1
A43: Solomon Islands | B43: 30.03377495 | C43: 7.9525 | D43: 1.02 | E43: 639418 | F43: 5081400000 | G43: 0.03065598297 | H43: 3 | I43: 30.03377495 | J43: 7.91469 | K43: 1 | L43: 625554 | M43: 4796700000 | N43: 0.03100031306 | O43: 3 | P43: 30.03377495 | Q43: 8.0645 | R43: 0.9159880723 | S43: 555453 | T43: 3379500000 | U43: 0.03646465028 | V43: 3
A44: Thailand | B44: 144.3293896 | C44: 32.31023 | D44: 1.019275 | E44: 67831080 | F44: 7794814000000 | G44: 0.04136272782 | H44: 2 | I44: 144.3293896 | J44: 34.24772 | K44: 1 | L44: 67236010 | M44: 6867144000000 | N44: 0.04839630643 | O44: 2 | P44: 144.3293896 | Q44: 31.68571 | R44: 0.9063 | S44: 65921120 | T44: 5537637000000 | U44: 0.04933899418 | V44: 2
A45: Tajikistan | B45: 37.9196468 | C45: 9.15122 | D45: 1.015223597 | E45: 8836900 | F45: 47679300000 | G45: 0.06529426729 | H45: 1 | I45: 37.9196468 | J45: 6.16312 | K45: 1 | L45: 8451600 | M45: 39920100000 | N45: 0.04947800968 | O45: 2 | P45: 37.9196468 | Q45: 4.37897 | R45: 1.044719315 | S45: 7519300 | T45: 20927700000 | U45: 0.06232923388 | V45: 1
A46: Turkmenistan | B46: 122.4328142 | C46: 3.5 | D46: 1.04 | E46: 5850900 | F46: 8.646321116e+10 | G46: 0.03015716628 | H46: 3 | I46: 122.4328142 | J46: 3.5 | K46: 1 | L46: 5565290 | M46: 9.080290327e+10 | N46: 0.02626358104 | O46: 4 | P46: 122.4328142 | Q46: 2.85019 | R46: 0.9323640449 | S46: 5087210 | T46: 5.946546379e+10 | U46: 0.02783376889 | V46: 4
A47: Timor-Leste | B47: 114.2428846 | C47: 1 | D47: 0.9904544349 | E47: 1296311 | F47: 990187640 | G47: 0.1481342103 | H47: 1 | I47: 114.2428846 | J47: 1 | K47: 1 | L47: 1240977 | M47: 883890340 | N47: 0.1603963589 | O47: 1 | P47: 114.2428846 | Q47: 1 | R47: 0.7617840851 | S47: 1109591 | T47: 605447050 | U47: 0.1594952721 | V47: 1
A48: Tonga | B48: 76.9977516 | C48: 2.23657 | D48: 0.9161713598 | E48: 99629.04 | F48: 1060707200 | G48: 0.01481929962 | H48: 5 | I48: 76.9977516 | J48: 2.10576 | K48: 1 | L48: 101165.9 | M48: 819706800 | N48: 0.02001071133 | O48: 4 | P48: 76.9977516 | Q48: 1.90599 | R48: 0.9102035943 | S48: 102780 | T48: 650537304.7 | U48: 0.02110442941 | V48: 4
A49: Tuvalu | B49: 52.81088365 | C49: 1.33841 | D49: 1.077214177 | E49: 11581.97 | F49: 39610667.38 | G49: 0.02226306446 | H49: 4 | I49: 52.81088365 | J49: 1.33109 | K49: 1 | L49: 11174.83 | M49: 32390819.54 | N49: 0.02425212755 | O49: 4 | P49: 52.81088365 | Q49: 1.09016 | R49: 0.9220740347 | S49: 10911.38 | T49: 24138425.23 | U49: 0.02399662788 | V49: 4
A50: Uzbekistan | B50: 59.37728655 | C50: 8069.60583 | D50: 1.114028436 | E50: 32955400 | F50: 219180425250000 | G50: 0.08025900426 | H50: 1 | I50: 59.37728655 | J50: 2567.98667 | K50: 1 | L50: 31298900 | M50: 127249191470000 | N50: 0.03750482602 | O50: 3 | P50: 59.37728655 | Q50: 1578.41667 | R50: 1.019905213 | S50: 28562400 | T50: 41530193040000 | U50: 0.0657404337 | V50: 1
A51: Viet Nam | B51: 76.60084333 | C51: 22602.05 | D51: 1.100411046 | E51: 94700000 | F51: 3745063264610000 | G51: 0.04817560132 | H51: 2 | I51: 76.60084333 | J51: 21697.5675 | K51: 1 | L51: 91710000 | M51: 2849540000000000 | N51: 0.05349171657 | O51: 1 | P51: 76.60084333 | Q51: 18612.91667 | R51: 0.686544495 | S51: 86932500 | T51: 1436289000000000 | U51: 0.05924572358 | V51: 1
A52: Vanuatu | B52: 43.42941189 | C52: 108.77583 | D52: 1.039525692 | E52: 278442.69 | F52: 57372152540 | G52: 0.02383341404 | H52: 4 | I52: 43.42941189 | J52: 108.98917 | K52: 1 | L52: 268598.17 | M52: 53291474100 | N52: 0.02385682306 | O52: 4 | P52: 43.42941189 | Q52: 96.90583 | R52: 0.9333218766 | S52: 239731.4 | T52: 41133000000 | U52: 0.02289284857 | V52: 4
A53: Samoa | B53: 73.37973835 | C53: 2.58728 | D53: 1.073886604 | E53: 197730.6 | F53: 1544100107 | G53: 0.02610817086 | H53: =IF(G53=0,0,IF($G53<$C$57,$B$57,IF($G53<$C$58,$B$58,IF($G53<$C$59,$B$59,IF($G53<$C$60,$B$60,$B$61))))) -> 4 | I53: 73.37973835 | J53: 2.56087 | K53: 1 | L53: 193483.2 | M53: 1399499284 | N53: 0.0259797084 | O53: 4 | P53: 73.37973835 | Q53: 2.48466 | R53: 0.9967510923 | S53: 186405 | T53: 1212835480 | U53: 0.02793093743 | V53: 4
B55: Affordability index
B56: Index stage | C56: <%
B57: 5 | C57: 0.02
B58: 4 | C58: 0.03
B59: 3 | C59: 0.04
B60: 2 | C60: 0.05
B61: 1 | C61: 1

Sheet KD2 Summary
A1: KD 2 - Economic Water Security Summary
A7: Economies | B7: AWDO 2013 | H7: AWDO 2016 | N7: AWDO 2020
B8: Broad Econ | C8: Agriculture | D8: Energy | E8: Industry | F8: Score | G8: Index | H8: Broad Econ | I8: Agriculture | J8: Energy | K8: Industry | L8: Score | M8: Index | N8: Broad Econ | O8: Agriculture | P8: Energy | Q8: Industry | R8: Score | S8: Index
B9: Max 5 | C9: Max 5 | D9: Max 5 | E9: Max 5 | F9: Max 20 | G9: Max 5 | H9: Max 5 | I9: Max 5 | J9: Max 5 | K9: Max 5 | L9: Max 20 | M9: Max 5 | N9: Max 5 | O9: Max 5 | P9: Max 5 | Q9: Max 5 | R9: Max 20 | S9: Max 5
A10: Afghanistan | B10: =VLOOKUP($A10,'KD2.1 Broad Economy'!$A:$AP,40,FALSE) -> 2.4375 | C10: =VLOOKUP($A10,'KD2.2 Agriculture'!$A:$W,21,FALSE) -> 1.5 | D10: =VLOOKUP($A10,'KD2.3 Energy'!$A:$W,21,FALSE) -> 2.5 | E10: =VLOOKUP($A10,'KD2.4 Industry'!$A:$W,21,FALSE) -> 2 | F10: =SUM(B10:E10)*(4/COUNTIF(B10:E10,">0")) -> 8.4375 | G10: =VLOOKUP(F10,$B$60:$C$64,2) -> 2 | H10: =VLOOKUP($A10,'KD2.1 Broad Economy'!$A:$AP,41,FALSE) -> 2.1875 | I10: =VLOOKUP($A10,'KD2.2 Agriculture'!$A:$W,22,FALSE) -> 1.5 | J10: =VLOOKUP($A10,'KD2.3 Energy'!$A:$W,22,FALSE) -> 1.5 | K10: =VLOOKUP($A10,'KD2.4 Industry'!$A:$W,22,FALSE) -> 2.333333333 | L10: =SUM(H10:K10)*(4/COUNTIF(H10:K10,">0")) -> 7.520833333 | M10: =VLOOKUP(L10,$B$60:$C$64,2) -> 1 | N10: =VLOOKUP($A10,'KD2.1 Broad Economy'!$A:$AP,42,FALSE) -> 2.1875 | O10: =VLOOKUP($A10,'KD2.2 Agriculture'!$A:$W,23,FALSE) -> 1.5 | P10: =VLOOKUP($A10,'KD2.3 Energy'!$A:$W,23,FALSE) -> 1.5 | Q10: =VLOOKUP($A10,'KD2.4 Industry'!$A:$W,23,FALSE) -> 2.333333333 | R10: =SUM(N10:Q10)*(4/COUNTIF(N10:Q10,">0")) -> 7.520833333 | S10: =VLOOKUP(R10,$B$60:$C$64,2) -> 1
A11: Armenia | B11: =VLOOKUP($A11,'KD2.1 Broad Economy'!$A:$AP,40,FALSE) -> 2.5625 | C11: =VLOOKUP($A11,'KD2.2 Agriculture'!$A:$W,21,FALSE) -> 4 | D11: =VLOOKUP($A11,'KD2.3 Energy'!$A:$W,21,FALSE) -> 3 | E11: =VLOOKUP($A11,'KD2.4 Industry'!$A:$W,21,FALSE) -> 2 | F11: =SUM(B11:E11)*(4/COUNTIF(B11:E11,">0")) -> 11.5625 | G11: 2 | H11: =VLOOKUP($A11,'KD2.1 Broad Economy'!$A:$AP,41,FALSE) -> 2.5625 | I11: =VLOOKUP($A11,'KD2.2 Agriculture'!$A:$W,22,FALSE) -> 3.666666667 | J11: =VLOOKUP($A11,'KD2.3 Energy'!$A:$W,22,FALSE) -> 3.333333333 | K11: =VLOOKUP($A11,'KD2.4 Industry'!$A:$W,22,FALSE) -> 2.666666667 | L11: =SUM(H11:K11)*(4/COUNTIF(H11:K11,">0")) -> 12.22916667 | M11: 3 | N11: =VLOOKUP($A11,'KD2.1 Broad Economy'!$A:$AP,42,FALSE) -> 2.5625 | O11: =VLOOKUP($A11,'KD2.2 Agriculture'!$A:$W,23,FALSE) -> 3.333333333 | P11: =VLOOKUP($A11,'KD2.3 Energy'!$A:$W,23,FALSE) -> 3.333333333 | Q11: =VLOOKUP($A11,'KD2.4 Industry'!$A:$W,23,FALSE) -> 2.333333333 | R11: =SUM(N11:Q11)*(4/COUNTIF(N11:Q11,">0")) -> 11.5625 | S11: 2
A12: Australia | B12: =VLOOKUP($A12,'KD2.1 Broad Economy'!$A:$AP,40,FALSE) -> 3.625 | C12: =VLOOKUP($A12,'KD2.2 Agriculture'!$A:$W,21,FALSE) -> 3.666666667 | D12: =VLOOKUP($A12,'KD2.3 Energy'!$A:$W,21,FALSE) -> 4 | E12: =VLOOKUP($A12,'KD2.4 Industry'!$A:$W,21,FALSE) -> 4.666666667 | F12: 15.95833333 | G12: 4 | H12: =VLOOKUP($A12,'KD2.1 Broad Economy'!$A:$AP,41,FALSE) -> 3.375 | I12: =VLOOKUP($A12,'KD2.2 Agriculture'!$A:$W,22,FALSE) -> 3.666666667 | J12: =VLOOKUP($A12,'KD2.3 Energy'!$A:$W,22,FALSE) -> 4 | K12: =VLOOKUP($A12,'KD2.4 Industry'!$A:$W,22,FALSE) -> 4.666666667 | L12: 15.70833333 | M12: 4 | N12: =VLOOKUP($A12,'KD2.1 Broad Economy'!$A:$AP,42,FALSE) -> 3.375 | O12: =VLOOKUP($A12,'KD2.2 Agriculture'!$A:$W,23,FALSE) -> 3.666666667 | P12: =VLOOKUP($A12,'KD2.3 Energy'!$A:$W,23,FALSE) -> 4 | Q12: =VLOOKUP($A12,'KD2.4 Industry'!$A:$W,23,FALSE) -> 4.666666667 | R12: 15.70833333 | S12: 4
A13: Azerbaijan | B13: =VLOOKUP($A13,'KD2.1 Broad Economy'!$A:$AP,40,FALSE) -> 3.4375 | C13: =VLOOKUP($A13,'KD2.2 Agriculture'!$A:$W,21,FALSE) -> 3.333333333 | D13: =VLOOKUP($A13,'KD2.3 Energy'!$A:$W,21,FALSE) -> 4 | E13: =VLOOKUP($A13,'KD2.4 Industry'!$A:$W,21,FALSE) -> 4.333333333 | F13: 15.10416667 | G13: 3 | H13: =VLOOKUP($A13,'KD2.1 Broad Economy'!$A:$AP,41,FALSE) -> 3.4375 | I13: =VLOOKUP($A13,'KD2.2 Agriculture'!$A:$W,22,FALSE) -> 3.333333333 | J13: =VLOOKUP($A13,'KD2.3 Energy'!$A:$W,22,FALSE) -> 3.666666667 | K13: =VLOOKUP($A13,'KD2.4 Industry'!$A:$W,22,FALSE) -> 4.333333333 | L13: 14.77083333 | M13: 3 | N13: =VLOOKUP($A13,'KD2.1 Broad Economy'!$A:$AP,42,FALSE) -> 3.4375 | O13: =VLOOKUP($A13,'KD2.2 Agriculture'!$A:$W,23,FALSE) -> 3.333333333 | P13: =VLOOKUP($A13,'KD2.3 Energy'!$A:$W,23,FALSE) -> 4 | Q13: =VLOOKUP($A13,'KD2.4 Industry'!$A:$W,23,FALSE) -> 3.666666667 | R13: 14.4375 | S13: 3
A14: Bangladesh | B14: =VLOOKUP($A14,'KD2.1 Broad Economy'!$A:$AP,40,FALSE) -> 1.8125 | C14: =VLOOKUP($A14,'KD2.2 Agriculture'!$A:$W,21,FALSE) -> 2.333333333 | D14: =VLOOKUP($A14,'KD2.3 Energy'!$A:$W,21,FALSE) -> 3.333333333 | E14: =VLOOKUP($A14,'KD2.4 Industry'!$A:$W,21,FALSE) -> 2.5 | F14: 9.979166667 | G14: 2 | H14: =VLOOKUP($A14,'KD2.1 Broad Economy'!$A:$AP,41,FALSE) -> 2.0625 | I14: =VLOOKUP($A14,'KD2.2 Agriculture'!$A:$W,22,FALSE) -> 3 | J14: =VLOOKUP($A14,'KD2.3 Energy'!$A:$W,22,FALSE) -> 3.333333333 | K14: =VLOOKUP($A14,'KD2.4 Industry'!$A:$W,22,FALSE) -> 3 | L14: 11.39583333 | M14: 2 | N14: =VLOOKUP($A14,'KD2.1 Broad Economy'!$A:$AP,42,FALSE) -> 1.8125 | O14: =VLOOKUP($A14,'KD2.2 Agriculture'!$A:$W,23,FALSE) -> 3.666666667 | P14: =VLOOKUP($A14,'KD2.3 Energy'!$A:$W,23,FALSE) -> 3.333333333 | Q14: =VLOOKUP($A14,'KD2.4 Industry'!$A:$W,23,FALSE) -> 3 | R14: 11.8125 | S14: 2
A15: Bhutan | B15: =VLOOKUP($A15,'KD2.1 Broad Economy'!$A:$AP,40,FALSE) -> 2 | C15: =VLOOKUP($A15,'KD2.2 Agriculture'!$A:$W,21,FALSE) -> 1 | D15: =VLOOKUP($A15,'KD2.3 Energy'!$A:$W,21,FALSE) -> 5 | E15: =VLOOKUP($A15,'KD2.4 Industry'!$A:$W,21,FALSE) -> 3 | F15: 11 | G15: 2 | H15: =VLOOKUP($A15,'KD2.1 Broad Economy'!$A:$AP,41,FALSE) -> 2.666666667 | I15: =VLOOKUP($A15,'KD2.2 Agriculture'!$A:$W,22,FALSE) -> 1 | J15: =VLOOKUP($A15,'KD2.3 Energy'!$A:$W,22,FALSE) -> 5 | K15: =VLOOKUP($A15,'KD2.4 Industry'!$A:$W,22,FALSE) -> 3 | L15: 11.66666667 | M15: 2 | N15: =VLOOKUP($A15,'KD2.1 Broad Economy'!$A:$AP,42,FALSE) -> 2.166666667 | O15: =VLOOKUP($A15,'KD2.2 Agriculture'!$A:$W,23,FALSE) -> 1 | P15: =VLOOKUP($A15,'KD2.3 Energy'!$A:$W,23,FALSE) -> 5 | Q15: =VLOOKUP($A15,'KD2.4 Industry'!$A:$W,23,FALSE) -> 3 | R15: 11.16666667 | S15: 2
A16: Brunei Darussalam | B16: =VLOOKUP($A16,'KD2.1 Broad Economy'!$A:$AP,40,FALSE) -> 2.125 | C16: =VLOOKUP($A16,'KD2.2 Agriculture'!$A:$W,21,FALSE) -> 2.333333333 | D16: =VLOOKUP($A16,'KD2.3 Energy'!$A:$W,21,FALSE) -> 4.666666667 | E16: =VLOOKUP($A16,'KD2.4 Industry'!$A:$W,21,FALSE) -> 5 | F16: 14.125 | G16: 3 | H16: =VLOOKUP($A16,'KD2.1 Broad Economy'!$A:$AP,41,FALSE) -> 2.4375 | I16: =VLOOKUP($A16,'KD2.2 Agriculture'!$A:$W,22,FALSE) -> 2.333333333 | J16: =VLOOKUP($A16,'KD2.3 Energy'!$A:$W,22,FALSE) -> 4.666666667 | K16: =VLOOKUP($A16,'KD2.4 Industry'!$A:$W,22,FALSE) -> 5 | L16: 14.4375 | M16: 3 | N16: =VLOOKUP($A16,'KD2.1 Broad Economy'!$A:$AP,42,FALSE) -> 2.25 | O16: =VLOOKUP($A16,'KD2.2 Agriculture'!$A:$W,23,FALSE) -> 2.333333333 | P16: =VLOOKUP($A16,'KD2.3 Energy'!$A:$W,23,FALSE) -> 4.666666667 | Q16: =VLOOKUP($A16,'KD2.4 Industry'!$A:$W,23,FALSE) -> 5 | R16: 14.25 | S16: 3
A17: Cambodia | B17: =VLOOKUP($A17,'KD2.1 Broad Economy'!$A:$AP,40,FALSE) -> 2.666666667 | C17: =VLOOKUP($A17,'KD2.2 Agriculture'!$A:$W,21,FALSE) -> 2.666666667 | D17: =VLOOKUP($A17,'KD2.3 Energy'!$A:$W,21,FALSE) -> 3 | E17: =VLOOKUP($A17,'KD2.4 Industry'!$A:$W,21,FALSE) -> 3.333333333 | F17: 11.66666667 | G17: 2 | H17: =VLOOKUP($A17,'KD2.1 Broad Economy'!$A:$AP,41,FALSE) -> 2.333333333 | I17: =VLOOKUP($A17,'KD2.2 Agriculture'!$A:$W,22,FALSE) -> 3 | J17: =VLOOKUP($A17,'KD2.3 Energy'!$A:$W,22,FALSE) -> 1.666666667 | K17: =VLOOKUP($A17,'KD2.4 Industry'!$A:$W,22,FALSE) -> 3 | L17: 10 | M17: 2 | N17: =VLOOKUP($A17,'KD2.1 Broad Economy'!$A:$AP,42,FALSE) -> 2 | O17: =VLOOKUP($A17,'KD2.2 Agriculture'!$A:$W,23,FALSE) -> 3 | P17: =VLOOKUP($A17,'KD2.3 Energy'!$A:$W,23,FALSE) -> 1.666666667 | Q17: =VLOOKUP($A17,'KD2.4 Industry'!$A:$W,23,FALSE) -> 3.333333333 | R17: 10 | S17: 2
A18: China, People’s Republic of | B18: =VLOOKUP($A18,'KD2.1 Broad Economy'!$A:$AP,40,FALSE) -> 3 | C18: =VLOOKUP($A18,'KD2.2 Agriculture'!$A:$W,21,FALSE) -> 3.333333333 | D18: =VLOOKUP($A18,'KD2.3 Energy'!$A:$W,21,FALSE) -> 3.666666667 | E18: =VLOOKUP($A18,'KD2.4 Industry'!$A:$W,21,FALSE) -> 2 | F18: 12 | G18: 3 | H18: =VLOOKUP($A18,'KD2.1 Broad Economy'!$A:$AP,41,FALSE) -> 2.9375 | I18: =VLOOKUP($A18,'KD2.2 Agriculture'!$A:$W,22,FALSE) -> 4 | J18: =VLOOKUP($A18,'KD2.3 Energy'!$A:$W,22,FALSE) -> 4 | K18: =VLOOKUP($A18,'KD2.4 Industry'!$A:$W,22,FALSE) -> 4.333333333 | L18: 15.27083333 | M18: 3 | N18: =VLOOKUP($A18,'KD2.1 Broad Economy'!$A:$AP,42,FALSE) -> 3.0625 | O18: =VLOOKUP($A18,'KD2.2 Agriculture'!$A:$W,23,FALSE) -> 4.333333333 | P18: =VLOOKUP($A18,'KD2.3 Energy'!$A:$W,23,FALSE) -> 4 | Q18: =VLOOKUP($A18,'KD2.4 Industry'!$A:$W,23,FALSE) -> 4.666666667 | R18: 16.0625 | S18: 4
A19: Cook Islands | B19: =VLOOKUP($A19,'KD2.1 Broad Economy'!$A:$AP,40,FALSE) -> 1.75 | C19: =VLOOKUP($A19,'KD2.2 Agriculture'!$A:$W,21,FALSE) -> ND | D19: =VLOOKUP($A19,'KD2.3 Energy'!$A:$W,21,FALSE) -> 2 | E19: =VLOOKUP($A19,'KD2.4 Industry'!$A:$W,21,FALSE) -> ND | F19: 7.5 | G19: 1 | H19: =VLOOKUP($A19,'KD2.1 Broad Economy'!$A:$AP,41,FALSE) -> 2 | I19: =VLOOKUP($A19,'KD2.2 Agriculture'!$A:$W,22,FALSE) -> ND | J19: =VLOOKUP($A19,'KD2.3 Energy'!$A:$W,22,FALSE) -> 2 | K19: =VLOOKUP($A19,'KD2.4 Industry'!$A:$W,22,FALSE) -> ND | L19: 8 | M19: 1 | N19: =VLOOKUP($A19,'KD2.1 Broad Economy'!$A:$AP,42,FALSE) -> 2.5 | O19: =VLOOKUP($A19,'KD2.2 Agriculture'!$A:$W,23,FALSE) -> ND | P19: =VLOOKUP($A19,'KD2.3 Energy'!$A:$W,23,FALSE) -> 2 | Q19: =VLOOKUP($A19,'KD2.4 Industry'!$A:$W,23,FALSE) -> ND | R19: 9 | S19: 2
A20: Fiji | B20: =VLOOKUP($A20,'KD2.1 Broad Economy'!$A:$AP,40,FALSE) -> 3.5625 | C20: =VLOOKUP($A20,'KD2.2 Agriculture'!$A:$W,21,FALSE) -> 4.5 | D20: =VLOOKUP($A20,'KD2.3 Energy'!$A:$W,21,FALSE) -> 2.5 | E20: =VLOOKUP($A20,'KD2.4 Industry'!$A:$W,21,FALSE) -> 3 | F20: 13.5625 | G20: 3 | H20: =VLOOKUP($A20,'KD2.1 Broad Economy'!$A:$AP,41,FALSE) -> 3.5625 | I20: =VLOOKUP($A20,'KD2.2 Agriculture'!$A:$W,22,FALSE) -> 4.5 | J20: =VLOOKUP($A20,'KD2.3 Energy'!$A:$W,22,FALSE) -> 2.5 | K20: =VLOOKUP($A20,'KD2.4 Industry'!$A:$W,22,FALSE) -> 2.666666667 | L20: 13.22916667 | M20: 3 | N20: =VLOOKUP($A20,'KD2.1 Broad Economy'!$A:$AP,42,FALSE) -> 3.5625 | O20: =VLOOKUP($A20,'KD2.2 Agriculture'!$A:$W,23,FALSE) -> 4.5 | P20: =VLOOKUP($A20,'KD2.3 Energy'!$A:$W,23,FALSE) -> 2.5 | Q20: =VLOOKUP($A20,'KD2.4 Industry'!$A:$W,23,FALSE) -> 3 | R20: 13.5625 | S20: 3
A21: Georgia | B21: =VLOOKUP($A21,'KD2.1 Broad Economy'!$A:$AP,40,FALSE) -> 3.25 | C21: =VLOOKUP($A21,'KD2.2 Agriculture'!$A:$W,21,FALSE) -> 2.666666667 | D21: =VLOOKUP($A21,'KD2.3 Energy'!$A:$W,21,FALSE) -> 2 | E21: =VLOOKUP($A21,'KD2.4 Industry'!$A:$W,21,FALSE) -> 1.666666667 | F21: 9.583333333 | G21: 2 | H21: =VLOOKUP($A21,'KD2.1 Broad Economy'!$A:$AP,41,FALSE) -> 3.0625 | I21: =VLOOKUP($A21,'KD2.2 Agriculture'!$A:$W,22,FALSE) -> 2.666666667 | J21: =VLOOKUP($A21,'KD2.3 Energy'!$A:$W,22,FALSE) -> 2.333333333 | K21: =VLOOKUP($A21,'KD2.4 Industry'!$A:$W,22,FALSE) -> 2 | L21: 10.0625 | M21: 2 | N21: =VLOOKUP($A21,'KD2.1 Broad Economy'!$A:$AP,42,FALSE) -> 3 | O21: =VLOOKUP($A21,'KD2.2 Agriculture'!$A:$W,23,FALSE) -> 2.666666667 | P21: =VLOOKUP($A21,'KD2.3 Energy'!$A:$W,23,FALSE) -> 2.333333333 | Q21: =VLOOKUP($A21,'KD2.4 Industry'!$A:$W,23,FALSE) -> 2 | R21: 10 | S21: 2
A22: Hong Kong, China | B22: =VLOOKUP($A22,'KD2.1 Broad Economy'!$A:$AP,40,FALSE) -> 1.5 | C22: =VLOOKUP($A22,'KD2.2 Agriculture'!$A:$W,21,FALSE) -> 5 | D22: =VLOOKUP($A22,'KD2.3 Energy'!$A:$W,21,FALSE) -> 4.333333333 | E22: =VLOOKUP($A22,'KD2.4 Industry'!$A:$W,21,FALSE) -> 4.5 | F22: 15.33333333 | G22: 3 | H22: =VLOOKUP($A22,'KD2.1 Broad Economy'!$A:$AP,41,FALSE) -> 1.5 | I22: =VLOOKUP($A22,'KD2.2 Agriculture'!$A:$W,22,FALSE) -> 5 | J22: =VLOOKUP($A22,'KD2.3 Energy'!$A:$W,22,FALSE) -> 4.333333333 | K22: =VLOOKUP($A22,'KD2.4 Industry'!$A:$W,22,FALSE) -> 3.5 | L22: 14.33333333 | M22: 3 | N22: =VLOOKUP($A22,'KD2.1 Broad Economy'!$A:$AP,42,FALSE) -> 1.5 | O22: =VLOOKUP($A22,'KD2.2 Agriculture'!$A:$W,23,FALSE) -> 5 | P22: =VLOOKUP($A22,'KD2.3 Energy'!$A:$W,23,FALSE) -> 4.333333333 | Q22: =VLOOKUP($A22,'KD2.4 Industry'!$A:$W,23,FALSE) -> 4.5 | R22: 15.33333333 | S22: 3
A23: India | B23: =VLOOKUP($A23,'KD2.1 Broad Economy'!$A:$AP,40,FALSE) -> 1.875 | C23: =VLOOKUP($A23,'KD2.2 Agriculture'!$A:$W,21,FALSE) -> 2.666666667 | D23: =VLOOKUP($A23,'KD2.3 Energy'!$A:$W,21,FALSE) -> 2.666666667 | E23: =VLOOKUP($A23,'KD2.4 Industry'!$A:$W,21,FALSE) -> 2.5 | F23: 9.708333333 | G23: 2 | H23: =VLOOKUP($A23,'KD2.1 Broad Economy'!$A:$AP,41,FALSE) -> 2.125 | I23: =VLOOKUP($A23,'KD2.2 Agriculture'!$A:$W,22,FALSE) -> 3 | J23: =VLOOKUP($A23,'KD2.3 Energy'!$A:$W,22,FALSE) -> 3 | K23: =VLOOKUP($A23,'KD2.4 Industry'!$A:$W,22,FALSE) -> 3 | L23: 11.125 | M23: 2 | N23: =VLOOKUP($A23,'KD2.1 Broad Economy'!$A:$AP,42,FALSE) -> 1.875 | O23: =VLOOKUP($A23,'KD2.2 Agriculture'!$A:$W,23,FALSE) -> 3.333333333 | P23: =VLOOKUP($A23,'KD2.3 Energy'!$A:$W,23,FALSE) -> 2.666666667 | Q23: =VLOOKUP($A23,'KD2.4 Industry'!$A:$W,23,FALSE) -> 3 | R23: 10.875 | S23: 2
A24: Indonesia | B24: =VLOOKUP($A24,'KD2.1 Broad Economy'!$A:$AP,40,FALSE) -> 2.3125 | C24: =VLOOKUP($A24,'KD2.2 Agriculture'!$A:$W,21,FALSE) -> 3.333333333 | D24: =VLOOKUP($A24,'KD2.3 Energy'!$A:$W,21,FALSE) -> 3 | E24: =VLOOKUP($A24,'KD2.4 Industry'!$A:$W,21,FALSE) -> 2 | F24: 10.64583333 | G24: 2 | H24: =VLOOKUP($A24,'KD2.1 Broad Economy'!$A:$AP,41,FALSE) -> 2.3125 | I24: =VLOOKUP($A24,'KD2.2 Agriculture'!$A:$W,22,FALSE) -> 3.666666667 | J24: =VLOOKUP($A24,'KD2.3 Energy'!$A:$W,22,FALSE) -> 3.333333333 | K24: =VLOOKUP($A24,'KD2.4 Industry'!$A:$W,22,FALSE) -> 2.666666667 | L24: 11.97916667 | M24: 2 | N24: =VLOOKUP($A24,'KD2.1 Broad Economy'!$A:$AP,42,FALSE) -> 2.5625 | O24: =VLOOKUP($A24,'KD2.2 Agriculture'!$A:$W,23,FALSE) -> 3.666666667 | P24: =VLOOKUP($A24,'KD2.3 Energy'!$A:$W,23,FALSE) -> 3 | Q24: =VLOOKUP($A24,'KD2.4 Industry'!$A:$W,23,FALSE) -> 3 | R24: 12.22916667 | S24: 3
A25: Japan | B25: =VLOOKUP($A25,'KD2.1 Broad Economy'!$A:$AP,40,FALSE) -> 2.6875 | C25: =VLOOKUP($A25,'KD2.2 Agriculture'!$A:$W,21,FALSE) -> 3 | D25: =VLOOKUP($A25,'KD2.3 Energy'!$A:$W,21,FALSE) -> 4.333333333 | E25: =VLOOKUP($A25,'KD2.4 Industry'!$A:$W,21,FALSE) -> 5 | F25: 15.02083333 | G25: 3 | H25: =VLOOKUP($A25,'KD2.1 Broad Economy'!$A:$AP,41,FALSE) -> 2.75 | I25: =VLOOKUP($A25,'KD2.2 Agriculture'!$A:$W,22,FALSE) -> 2.666666667 | J25: =VLOOKUP($A25,'KD2.3 Energy'!$A:$W,22,FALSE) -> 4.333333333 | K25: =VLOOKUP($A25,'KD2.4 Industry'!$A:$W,22,FALSE) -> 4.666666667 | L25: 14.41666667 | M25: 3 | N25: =VLOOKUP($A25,'KD2.1 Broad Economy'!$A:$AP,42,FALSE) -> 2.25 | O25: =VLOOKUP($A25,'KD2.2 Agriculture'!$A:$W,23,FALSE) -> 2.666666667 | P25: =VLOOKUP($A25,'KD2.3 Energy'!$A:$W,23,FALSE) -> 4.333333333 | Q25: =VLOOKUP($A25,'KD2.4 Industry'!$A:$W,23,FALSE) -> 5 | R25: 14.25 | S25: 3
A26: Kazakhstan | B26: =VLOOKUP($A26,'KD2.1 Broad Economy'!$A:$AP,40,FALSE) -> 3.75 | C26: =VLOOKUP($A26,'KD2.2 Agriculture'!$A:$W,21,FALSE) -> 3.666666667 | D26: =VLOOKUP($A26,'KD2.3 Energy'!$A:$W,21,FALSE) -> 4 | E26: =VLOOKUP($A26,'KD2.4 Industry'!$A:$W,21,FALSE) -> 4.333333333 | F26: 15.75 | G26: 4 | H26: =VLOOKUP($A26,'KD2.1 Broad Economy'!$A:$AP,41,FALSE) -> 3.75 | I26: =VLOOKUP($A26,'KD2.2 Agriculture'!$A:$W,22,FALSE) -> 3.666666667 | J26: =VLOOKUP($A26,'KD2.3 Energy'!$A:$W,22,FALSE) -> 4 | K26: =VLOOKUP($A26,'KD2.4 Industry'!$A:$W,22,FALSE) -> 4.333333333 | L26: 15.75 | M26: 4 | N26: =VLOOKUP($A26,'KD2.1 Broad Economy'!$A:$AP,42,FALSE) -> 3.75 | O26: =VLOOKUP($A26,'KD2.2 Agriculture'!$A:$W,23,FALSE) -> 3.666666667 | P26: =VLOOKUP($A26,'KD2.3 Energy'!$A:$W,23,FALSE) -> 4.333333333 | Q26: =VLOOKUP($A26,'KD2.4 Industry'!$A:$W,23,FALSE) -> 4.333333333 | R26: 16.08333333 | S26: 4
A27: Kiribati | B27: =VLOOKUP($A27,'KD2.1 Broad Economy'!$A:$AP,40,FALSE) -> 2 | C27: =VLOOKUP($A27,'KD2.2 Agriculture'!$A:$W,21,FALSE) -> 4.5 | D27: =VLOOKUP($A27,'KD2.3 Energy'!$A:$W,21,FALSE) -> 2.5 | E27: =VLOOKUP($A27,'KD2.4 Industry'!$A:$W,21,FALSE) -> 1 | F27: 10 | G27: 2 | H27: =VLOOKUP($A27,'KD2.1 Broad Economy'!$A:$AP,41,FALSE) -> 2.25 | I27: =VLOOKUP($A27,'KD2.2 Agriculture'!$A:$W,22,FALSE) -> 4.5 | J27: =VLOOKUP($A27,'KD2.3 Energy'!$A:$W,22,FALSE) -> 2.5 | K27: =VLOOKUP($A27,'KD2.4 Industry'!$A:$W,22,FALSE) -> 1 | L27: 10.25 | M27: 2 | N27: =VLOOKUP($A27,'KD2.1 Broad Economy'!$A:$AP,42,FALSE) -> 2.75 | O27: =VLOOKUP($A27,'KD2.2 Agriculture'!$A:$W,23,FALSE) -> 5 | P27: =VLOOKUP($A27,'KD2.3 Energy'!$A:$W,23,FALSE) -> 2.5 | Q27: =VLOOKUP($A27,'KD2.4 Industry'!$A:$W,23,FALSE) -> 1 | R27: 11.25 | S27: 2
A28: Korea, Republic of | B28: =VLOOKUP($A28,'KD2.1 Broad Economy'!$A:$AP,40,FALSE) -> 2.625 | C28: =VLOOKUP($A28,'KD2.2 Agriculture'!$A:$W,21,FALSE) -> 3 | D28: =VLOOKUP($A28,'KD2.3 Energy'!$A:$W,21,FALSE) -> 4.666666667 | E28: =VLOOKUP($A28,'KD2.4 Industry'!$A:$W,21,FALSE) -> 5 | F28: 15.29166667 | G28: 3 | H28: =VLOOKUP($A28,'KD2.1 Broad Economy'!$A:$AP,41,FALSE) -> 2.375 | I28: =VLOOKUP($A28,'KD2.2 Agriculture'!$A:$W,22,FALSE) -> 3.333333333 | J28: =VLOOKUP($A28,'KD2.3 Energy'!$A:$W,22,FALSE) -> 4.666666667 | K28: =VLOOKUP($A28,'KD2.4 Industry'!$A:$W,22,FALSE) -> 5 | L28: 15.375 | M28: 3 | N28: =VLOOKUP($A28,'KD2.1 Broad Economy'!$A:$AP,42,FALSE) -> 2.625 | O28: =VLOOKUP($A28,'KD2.2 Agriculture'!$A:$W,23,FALSE) -> 3.333333333 | P28: =VLOOKUP($A28,'KD2.3 Energy'!$A:$W,23,FALSE) -> 4.666666667 | Q28: =VLOOKUP($A28,'KD2.4 Industry'!$A:$W,23,FALSE) -> 5 | R28: 15.625 | S28: 4
A29: Kyrgyz Republic | B29: =VLOOKUP($A29,'KD2.1 Broad Economy'!$A:$AP,40,FALSE) -> 3.375 | C29: =VLOOKUP($A29,'KD2.2 Agriculture'!$A:$W,21,FALSE) -> 3.333333333 | D29: =VLOOKUP($A29,'KD2.3 Energy'!$A:$W,21,FALSE) -> 3.333333333 | E29: =VLOOKUP($A29,'KD2.4 Industry'!$A:$W,21,FALSE) -> 1.333333333 | F29: 11.375 | G29: 2 | H29: =VLOOKUP($A29,'KD2.1 Broad Economy'!$A:$AP,41,FALSE) -> 3.125 | I29: =VLOOKUP($A29,'KD2.2 Agriculture'!$A:$W,22,FALSE) -> 3.333333333 | J29: =VLOOKUP($A29,'KD2.3 Energy'!$A:$W,22,FALSE) -> 3 | K29: =VLOOKUP($A29,'KD2.4 Industry'!$A:$W,22,FALSE) -> 1.333333333 | L29: 10.79166667 | M29: 2 | N29: =VLOOKUP($A29,'KD2.1 Broad Economy'!$A:$AP,42,FALSE) -> 3.125 | O29: =VLOOKUP($A29,'KD2.2 Agriculture'!$A:$W,23,FALSE) -> 3 | P29: =VLOOKUP($A29,'KD2.3 Energy'!$A:$W,23,FALSE) -> 2.666666667 | Q29: =VLOOKUP($A29,'KD2.4 Industry'!$A:$W,23,FALSE) -> 2 | R29: 10.79166667 | S29: 2
A30: Lao People’s Democratic Republic | B30: =VLOOKUP($A30,'KD2.1 Broad Economy'!$A:$AP,40,FALSE) -> 2.3125 | C30: =VLOOKUP($A30,'KD2.2 Agriculture'!$A:$W,21,FALSE) -> 2.666666667 | D30: =VLOOKUP($A30,'KD2.3 Energy'!$A:$W,21,FALSE) -> 1 | E30: =VLOOKUP($A30,'KD2.4 Industry'!$A:$W,21,FALSE) -> 2 | F30: 7.979166667 | G30: 1 | H30: =VLOOKUP($A30,'KD2.1 Broad Economy'!$A:$AP,41,FALSE) -> 2.0625 | I30: =VLOOKUP($A30,'KD2.2 Agriculture'!$A:$W,22,FALSE) -> 3.333333333 | J30: =VLOOKUP($A30,'KD2.3 Energy'!$A:$W,22,FALSE) -> 2 | K30: =VLOOKUP($A30,'KD2.4 Industry'!$A:$W,22,FALSE) -> 2.5 | L30: 9.895833333 | M30: 2 | N30: =VLOOKUP($A30,'KD2.1 Broad Economy'!$A:$AP,42,FALSE) -> 2.0625 | O30: =VLOOKUP($A30,'KD2.2 Agriculture'!$A:$W,23,FALSE) -> 3.666666667 | P30: =VLOOKUP($A30,'KD2.3 Energy'!$A:$W,23,FALSE) -> 1 | Q30: =VLOOKUP($A30,'KD2.4 Industry'!$A:$W,23,FALSE) -> 2.5 | R30: 9.229166667 | S30: 2
A31: Malaysia | B31: =VLOOKUP($A31,'KD2.1 Broad Economy'!$A:$AP,40,FALSE) -> 3.125 | C31: =VLOOKUP($A31,'KD2.2 Agriculture'!$A:$W,21,FALSE) -> 3.666666667 | D31: =VLOOKUP($A31,'KD2.3 Energy'!$A:$W,21,FALSE) -> 4.666666667 | E31: =VLOOKUP($A31,'KD2.4 Industry'!$A:$W,21,FALSE) -> 4 | F31: 15.45833333 | G31: 3 | H31: =VLOOKUP($A31,'KD2.1 Broad Economy'!$A:$AP,41,FALSE) -> 3.1875 | I31: =VLOOKUP($A31,'KD2.2 Agriculture'!$A:$W,22,FALSE) -> 3.666666667 | J31: =VLOOKUP($A31,'KD2.3 Energy'!$A:$W,22,FALSE) -> 4.333333333 | K31: =VLOOKUP($A31,'KD2.4 Industry'!$A:$W,22,FALSE) -> 4.666666667 | L31: 15.85416667 | M31: 4 | N31: =VLOOKUP($A31,'KD2.1 Broad Economy'!$A:$AP,42,FALSE) -> 3.1875 | O31: =VLOOKUP($A31,'KD2.2 Agriculture'!$A:$W,23,FALSE) -> 3.666666667 | P31: =VLOOKUP($A31,'KD2.3 Energy'!$A:$W,23,FALSE) -> 4 | Q31: =VLOOKUP($A31,'KD2.4 Industry'!$A:$W,23,FALSE) -> 4.666666667 | R31: 15.52083333 | S31: 3
A32: Maldives | B32: =VLOOKUP($A32,'KD2.1 Broad Economy'!$A:$AP,40,FALSE) -> 2.666666667 | C32: =VLOOKUP($A32,'KD2.2 Agriculture'!$A:$W,21,FALSE) -> 2.5 | D32: =VLOOKUP($A32,'KD2.3 Energy'!$A:$W,21,FALSE) -> 2.5 | E32: =VLOOKUP($A32,'KD2.4 Industry'!$A:$W,21,FALSE) -> 3 | F32: 10.66666667 | G32: 2 | H32: =VLOOKUP($A32,'KD2.1 Broad Economy'!$A:$AP,41,FALSE) -> 2.666666667 | I32: =VLOOKUP($A32,'KD2.2 Agriculture'!$A:$W,22,FALSE) -> 2.5 | J32: =VLOOKUP($A32,'KD2.3 Energy'!$A:$W,22,FALSE) -> 2.5 | K32: =VLOOKUP($A32,'KD2.4 Industry'!$A:$W,22,FALSE) -> 3 | L32: 10.66666667 | M32: 2 | N32: =VLOOKUP($A32,'KD2.1 Broad Economy'!$A:$AP,42,FALSE) -> 2.666666667 | O32: =VLOOKUP($A32,'KD2.2 Agriculture'!$A:$W,23,FALSE) -> 2.5 | P32: =VLOOKUP($A32,'KD2.3 Energy'!$A:$W,23,FALSE) -> 2.5 | Q32: =VLOOKUP($A32,'KD2.4 Industry'!$A:$W,23,FALSE) -> 3 | R32: 10.66666667 | S32: 2
A33: Marshall Islands | B33: =VLOOKUP($A33,'KD2.1 Broad Economy'!$A:$AP,40,FALSE) -> 2.25 | C33: =VLOOKUP($A33,'KD2.2 Agriculture'!$A:$W,21,FALSE) -> ND | D33: =VLOOKUP($A33,'KD2.3 Energy'!$A:$W,21,FALSE) -> 2 | E33: =VLOOKUP($A33,'KD2.4 Industry'!$A:$W,21,FALSE) -> 1 | F33: 7 | G33: 1 | H33: =VLOOKUP($A33,'KD2.1 Broad Economy'!$A:$AP,41,FALSE) -> 2.25 | I33: =VLOOKUP($A33,'KD2.2 Agriculture'!$A:$W,22,FALSE) -> ND | J33: =VLOOKUP($A33,'KD2.3 Energy'!$A:$W,22,FALSE) -> 2.5 | K33: =VLOOKUP($A33,'KD2.4 Industry'!$A:$W,22,FALSE) -> 1 | L33: 7.666666667 | M33: 1 | N33: =VLOOKUP($A33,'KD2.1 Broad Economy'!$A:$AP,42,FALSE) -> 2.25 | O33: =VLOOKUP($A33,'KD2.2 Agriculture'!$A:$W,23,FALSE) -> ND | P33: =VLOOKUP($A33,'KD2.3 Energy'!$A:$W,23,FALSE) -> 2 | Q33: =VLOOKUP($A33,'KD2.4 Industry'!$A:$W,23,FALSE) -> 1 | R33: 7 | S33: 1
A34: Micronesia, Federated States of | B34: 1 | C34: 1.5 | D34: =VLOOKUP($A34,'KD2.3 Energy'!$A:$W,21,FALSE) -> 2.5 | E34: =VLOOKUP($A34,'KD2.4 Industry'!$A:$W,21,FALSE) -> 1 | F34: 6 | G34: 1 | H34: 1 | I34: 1.5 | J34: =VLOOKUP($A34,'KD2.3 Energy'!$A:$W,22,FALSE) -> 2.5 | K34: =VLOOKUP($A34,'KD2.4 Industry'!$A:$W,22,FALSE) -> 1 | L34: 6 | M34: 1 | N34: 1 | O34: 1.5 | P34: =VLOOKUP($A34,'KD2.3 Energy'!$A:$W,23,FALSE) -> 2.5 | Q34: =VLOOKUP($A34,'KD2.4 Industry'!$A:$W,23,FALSE) -> 1 | R34: 6 | S34: 1
A35: Mongolia | B35: =VLOOKUP($A35,'KD2.1 Broad Economy'!$A:$AP,40,FALSE) -> 2.5 | C35: =VLOOKUP($A35,'KD2.2 Agriculture'!$A:$W,21,FALSE) -> 1.666666667 | D35: =VLOOKUP($A35,'KD2.3 Energy'!$A:$W,21,FALSE) -> 3.333333333 | E35: =VLOOKUP($A35,'KD2.4 Industry'!$A:$W,21,FALSE) -> 2.666666667 | F35: 10.16666667 | G35: 2 | H35: =VLOOKUP($A35,'KD2.1 Broad Economy'!$A:$AP,41,FALSE) -> 2.5625 | I35: =VLOOKUP($A35,'KD2.2 Agriculture'!$A:$W,22,FALSE) -> 2 | J35: =VLOOKUP($A35,'KD2.3 Energy'!$A:$W,22,FALSE) -> 3.333333333 | K35: =VLOOKUP($A35,'KD2.4 Industry'!$A:$W,22,FALSE) -> 2.666666667 | L35: 10.5625 | M35: 2 | N35: =VLOOKUP($A35,'KD2.1 Broad Economy'!$A:$AP,42,FALSE) -> 2.5625 | O35: =VLOOKUP($A35,'KD2.2 Agriculture'!$A:$W,23,FALSE) -> 1.666666667 | P35: =VLOOKUP($A35,'KD2.3 Energy'!$A:$W,23,FALSE) -> 3.333333333 | Q35: =VLOOKUP($A35,'KD2.4 Industry'!$A:$W,23,FALSE) -> 3.333333333 | R35: 10.89583333 | S35: 2
A36: Myanmar | B36: =VLOOKUP($A36,'KD2.1 Broad Economy'!$A:$AP,40,FALSE) -> 2.875 | C36: =VLOOKUP($A36,'KD2.2 Agriculture'!$A:$W,21,FALSE) -> 3 | D36: =VLOOKUP($A36,'KD2.3 Energy'!$A:$W,21,FALSE) -> 2.333333333 | E36: =VLOOKUP($A36,'KD2.4 Industry'!$A:$W,21,FALSE) -> 2 | F36: 10.20833333 | G36: 2 | H36: =VLOOKUP($A36,'KD2.1 Broad Economy'!$A:$AP,41,FALSE) -> 2.625 | I36: =VLOOKUP($A36,'KD2.2 Agriculture'!$A:$W,22,FALSE) -> 3.333333333 | J36: =VLOOKUP($A36,'KD2.3 Energy'!$A:$W,22,FALSE) -> 2.333333333 | K36: =VLOOKUP($A36,'KD2.4 Industry'!$A:$W,22,FALSE) -> 2.5 | L36: 10.79166667 | M36: 2 | N36: =VLOOKUP($A36,'KD2.1 Broad Economy'!$A:$AP,42,FALSE) -> 2.625 | O36: =VLOOKUP($A36,'KD2.2 Agriculture'!$A:$W,23,FALSE) -> 3.333333333 | P36: =VLOOKUP($A36,'KD2.3 Energy'!$A:$W,23,FALSE) -> 2.333333333 | Q36: =VLOOKUP($A36,'KD2.4 Industry'!$A:$W,23,FALSE) -> 2.5 | R36: 10.79166667 | S36: 2
A37: Nauru | B37: =VLOOKUP($A37,'KD2.1 Broad Economy'!$A:$AP,40,FALSE) -> 1.25 | C37: =VLOOKUP($A37,'KD2.2 Agriculture'!$A:$W,21,FALSE) -> ND | D37: =VLOOKUP($A37,'KD2.3 Energy'!$A:$W,21,FALSE) -> 3 | E37: =VLOOKUP($A37,'KD2.4 Industry'!$A:$W,21,FALSE) -> 1 | F37: 7 | G37: 1 | H37: =VLOOKUP($A37,'KD2.1 Broad Economy'!$A:$AP,41,FALSE) -> 1.25 | I37: =VLOOKUP($A37,'KD2.2 Agriculture'!$A:$W,22,FALSE) -> ND | J37: =VLOOKUP($A37,'KD2.3 Energy'!$A:$W,22,FALSE) -> 3 | K37: =VLOOKUP($A37,'KD2.4 Industry'!$A:$W,22,FALSE) -> 4 | L37: 11 | M37: 2 | N37: =VLOOKUP($A37,'KD2.1 Broad Economy'!$A:$AP,42,FALSE) -> 1.25 | O37: =VLOOKUP($A37,'KD2.2 Agriculture'!$A:$W,23,FALSE) -> ND | P37: =VLOOKUP($A37,'KD2.3 Energy'!$A:$W,23,FALSE) -> 3 | Q37: =VLOOKUP($A37,'KD2.4 Industry'!$A:$W,23,FALSE) -> 1 | R37: 7 | S37: 1
A38: Nepal | B38: =VLOOKUP($A38,'KD2.1 Broad Economy'!$A:$AP,40,FALSE) -> 2.3125 | C38: =VLOOKUP($A38,'KD2.2 Agriculture'!$A:$W,21,FALSE) -> 2.666666667 | D38: =VLOOKUP($A38,'KD2.3 Energy'!$A:$W,21,FALSE) -> 2 | E38: =VLOOKUP($A38,'KD2.4 Industry'!$A:$W,21,FALSE) -> 3 | F38: 9.979166667 | G38: 2 | H38: =VLOOKUP($A38,'KD2.1 Broad Economy'!$A:$AP,41,FALSE) -> 2 | I38: =VLOOKUP($A38,'KD2.2 Agriculture'!$A:$W,22,FALSE) -> 3 | J38: =VLOOKUP($A38,'KD2.3 Energy'!$A:$W,22,FALSE) -> 2 | K38: =VLOOKUP($A38,'KD2.4 Industry'!$A:$W,22,FALSE) -> 2.666666667 | L38: 9.666666667 | M38: 2 | N38: =VLOOKUP($A38,'KD2.1 Broad Economy'!$A:$AP,42,FALSE) -> 2 | O38: =VLOOKUP($A38,'KD2.2 Agriculture'!$A:$W,23,FALSE) -> 3.333333333 | P38: =VLOOKUP($A38,'KD2.3 Energy'!$A:$W,23,FALSE) -> 1.666666667 | Q38: =VLOOKUP($A38,'KD2.4 Industry'!$A:$W,23,FALSE) -> 2.666666667 | R38: 9.666666667 | S38: 2
A39: New Zealand | B39: =VLOOKUP($A39,'KD2.1 Broad Economy'!$A:$AP,40,FALSE) -> 3.5625 | C39: =VLOOKUP($A39,'KD2.2 Agriculture'!$A:$W,21,FALSE) -> 3.333333333 | D39: =VLOOKUP($A39,'KD2.3 Energy'!$A:$W,21,FALSE) -> 3.5 | E39: =VLOOKUP($A39,'KD2.4 Industry'!$A:$W,21,FALSE) -> 4.333333333 | F39: 14.72916667 | G39: 3 | H39: =VLOOKUP($A39,'KD2.1 Broad Economy'!$A:$AP,41,FALSE) -> 3.8125 | I39: =VLOOKUP($A39,'KD2.2 Agriculture'!$A:$W,22,FALSE) -> 3.333333333 | J39: =VLOOKUP($A39,'KD2.3 Energy'!$A:$W,22,FALSE) -> 3.666666667 | K39: =VLOOKUP($A39,'KD2.4 Industry'!$A:$W,22,FALSE) -> 4.333333333 | L39: 15.14583333 | M39: 3 | N39: =VLOOKUP($A39,'KD2.1 Broad Economy'!$A:$AP,42,FALSE) -> 3.5625 | O39: =VLOOKUP($A39,'KD2.2 Agriculture'!$A:$W,23,FALSE) -> 3.333333333 | P39: =VLOOKUP($A39,'KD2.3 Energy'!$A:$W,23,FALSE) -> 3.666666667 | Q39: =VLOOKUP($A39,'KD2.4 Industry'!$A:$W,23,FALSE) -> 4.333333333 | R39: 14.89583333 | S39: 3
A40: Niue | B40: =VLOOKUP($A40,'KD2.1 Broad Economy'!$A:$AP,40,FALSE) -> ND | C40: =VLOOKUP($A40,'KD2.2 Agriculture'!$A:$W,21,FALSE) -> ND | D40: =VLOOKUP($A40,'KD2.3 Energy'!$A:$W,21,FALSE) -> ND | E40: =VLOOKUP($A40,'KD2.4 Industry'!$A:$W,21,FALSE) -> ND | F40: 4 | G40: 1 | H40: =VLOOKUP($A40,'KD2.1 Broad Economy'!$A:$AP,41,FALSE) -> ND | I40: =VLOOKUP($A40,'KD2.2 Agriculture'!$A:$W,22,FALSE) -> ND | J40: =VLOOKUP($A40,'KD2.3 Energy'!$A:$W,22,FALSE) -> ND | K40: =VLOOKUP($A40,'KD2.4 Industry'!$A:$W,22,FALSE) -> ND | L40: 4 | M40: 1 | N40: =VLOOKUP($A40,'KD2.1 Broad Economy'!$A:$AP,42,FALSE) -> ND | O40: =VLOOKUP($A40,'KD2.2 Agriculture'!$A:$W,23,FALSE) -> ND | P40: =VLOOKUP($A40,'KD2.3 Energy'!$A:$W,23,FALSE) -> ND | Q40: =VLOOKUP($A40,'KD2.4 Industry'!$A:$W,23,FALSE) -> ND | R40: 4 | S40: 1
A41: Pakistan | B41: =VLOOKUP($A41,'KD2.1 Broad Economy'!$A:$AP,40,FALSE) -> 1.75 | C41: =VLOOKUP($A41,'KD2.2 Agriculture'!$A:$W,21,FALSE) -> 2.666666667 | D41: =VLOOKUP($A41,'KD2.3 Energy'!$A:$W,21,FALSE) -> 2.666666667 | E41: =VLOOKUP($A41,'KD2.4 Industry'!$A:$W,21,FALSE) -> 2 | F41: 9.083333333 | G41: 2 | H41: =VLOOKUP($A41,'KD2.1 Broad Economy'!$A:$AP,41,FALSE) -> 2 | I41: =VLOOKUP($A41,'KD2.2 Agriculture'!$A:$W,22,FALSE) -> 3 | J41: =VLOOKUP($A41,'KD2.3 Energy'!$A:$W,22,FALSE) -> 2.666666667 | K41: =VLOOKUP($A41,'KD2.4 Industry'!$A:$W,22,FALSE) -> 2.5 | L41: 10.16666667 | M41: 2 | N41: =VLOOKUP($A41,'KD2.1 Broad Economy'!$A:$AP,42,FALSE) -> 1.75 | O41: =VLOOKUP($A41,'KD2.2 Agriculture'!$A:$W,23,FALSE) -> 3 | P41: =VLOOKUP($A41,'KD2.3 Energy'!$A:$W,23,FALSE) -> 2.666666667 | Q41: =VLOOKUP($A41,'KD2.4 Industry'!$A:$W,23,FALSE) -> 2.5 | R41: 9.916666667 | S41: 2
A42: Palau | B42: =VLOOKUP($A42,'KD2.1 Broad Economy'!$A:$AP,40,FALSE) -> 1.75 | C42: =VLOOKUP($A42,'KD2.2 Agriculture'!$A:$W,21,FALSE) -> ND | D42: =VLOOKUP($A42,'KD2.3 Energy'!$A:$W,21,FALSE) -> 4 | E42: =VLOOKUP($A42,'KD2.4 Industry'!$A:$W,21,FALSE) -> 1 | F42: 9 | G42: =VLOOKUP(F42,$B$60:$C$64,2) -> 2 | H42: =VLOOKUP($A42,'KD2.1 Broad Economy'!$A:$AP,41,FALSE) -> 1.75 | I42: =VLOOKUP($A42,'KD2.2 Agriculture'!$A:$W,22,FALSE) -> ND | J42: =VLOOKUP($A42,'KD2.3 Energy'!$A:$W,22,FALSE) -> 4.5 | K42: =VLOOKUP($A42,'KD2.4 Industry'!$A:$W,22,FALSE) -> 1 | L42: 9.666666667 | M42: =VLOOKUP(L42,$B$60:$C$64,2) -> 2 | N42: =VLOOKUP($A42,'KD2.1 Broad Economy'!$A:$AP,42,FALSE) -> 1.75 | O42: =VLOOKUP($A42,'KD2.2 Agriculture'!$A:$W,23,FALSE) -> ND | P42: =VLOOKUP($A42,'KD2.3 Energy'!$A:$W,23,FALSE) -> 4.5 | Q42: =VLOOKUP($A42,'KD2.4 Industry'!$A:$W,23,FALSE) -> 1 | R42: 9.666666667 | S42: =VLOOKUP(R42,$B$60:$C$64,2) -> 2
A43: Papua New Guinea | B43: =VLOOKUP($A43,'KD2.1 Broad Economy'!$A:$AP,40,FALSE) -> 2.875 | C43: =VLOOKUP($A43,'KD2.2 Agriculture'!$A:$W,21,FALSE) -> 1 | D43: =VLOOKUP($A43,'KD2.3 Energy'!$A:$W,21,FALSE) -> 2.5 | E43: =VLOOKUP($A43,'KD2.4 Industry'!$A:$W,21,FALSE) -> 2.5 | F43: 8.875 | G43: 2 | H43: =VLOOKUP($A43,'KD2.1 Broad Economy'!$A:$AP,41,FALSE) -> 2.75 | I43: =VLOOKUP($A43,'KD2.2 Agriculture'!$A:$W,22,FALSE) -> 1 | J43: =VLOOKUP($A43,'KD2.3 Energy'!$A:$W,22,FALSE) -> 2.5 | K43: =VLOOKUP($A43,'KD2.4 Industry'!$A:$W,22,FALSE) -> 2.5 | L43: 8.75 | M43: 2 | N43: =VLOOKUP($A43,'KD2.1 Broad Economy'!$A:$AP,42,FALSE) -> 2.75 | O43: =VLOOKUP($A43,'KD2.2 Agriculture'!$A:$W,23,FALSE) -> 1 | P43: =VLOOKUP($A43,'KD2.3 Energy'!$A:$W,23,FALSE) -> 2.5 | Q43: =VLOOKUP($A43,'KD2.4 Industry'!$A:$W,23,FALSE) -> 2.5 | R43: 8.75 | S43: 2
A44: Philippines | B44: =VLOOKUP($A44,'KD2.1 Broad Economy'!$A:$AP,40,FALSE) -> 2.4375 | C44: =VLOOKUP($A44,'KD2.2 Agriculture'!$A:$W,21,FALSE) -> 3 | D44: =VLOOKUP($A44,'KD2.3 Energy'!$A:$W,21,FALSE) -> 3 | E44: =VLOOKUP($A44,'KD2.4 Industry'!$A:$W,21,FALSE) -> 2.666666667 | F44: 11.10416667 | G44: 2 | H44: =VLOOKUP($A44,'KD2.1 Broad Economy'!$A:$AP,41,FALSE) -> 2.1875 | I44: =VLOOKUP($A44,'KD2.2 Agriculture'!$A:$W,22,FALSE) -> 3.666666667 | J44: =VLOOKUP($A44,'KD2.3 Energy'!$A:$W,22,FALSE) -> 3 | K44: =VLOOKUP($A44,'KD2.4 Industry'!$A:$W,22,FALSE) -> 2.666666667 | L44: 11.52083333 | M44: 2 | N44: =VLOOKUP($A44,'KD2.1 Broad Economy'!$A:$AP,42,FALSE) -> 2.25 | O44: =VLOOKUP($A44,'KD2.2 Agriculture'!$A:$W,23,FALSE) -> 3.666666667 | P44: =VLOOKUP($A44,'KD2.3 Energy'!$A:$W,23,FALSE) -> 3 | Q44: =VLOOKUP($A44,'KD2.4 Industry'!$A:$W,23,FALSE) -> 2.333333333 | R44: 11.25 | S44: 2
A45: Samoa | B45: =VLOOKUP($A45,'KD2.1 Broad Economy'!$A:$AP,40,FALSE) -> 2 | C45: =VLOOKUP($A45,'KD2.2 Agriculture'!$A:$W,21,FALSE) -> 4.5 | D45: =VLOOKUP($A45,'KD2.3 Energy'!$A:$W,21,FALSE) -> 2.5 | E45: =VLOOKUP($A45,'KD2.4 Industry'!$A:$W,21,FALSE) -> 1 | F45: 10 | G45: 2 | H45: =VLOOKUP($A45,'KD2.1 Broad Economy'!$A:$AP,41,FALSE) -> 2 | I45: =VLOOKUP($A45,'KD2.2 Agriculture'!$A:$W,22,FALSE) -> 4.5 | J45: =VLOOKUP($A45,'KD2.3 Energy'!$A:$W,22,FALSE) -> 2.5 | K45: =VLOOKUP($A45,'KD2.4 Industry'!$A:$W,22,FALSE) -> 1 | L45: 10 | M45: 2 | N45: =VLOOKUP($A45,'KD2.1 Broad Economy'!$A:$AP,42,FALSE) -> 2.25 | O45: =VLOOKUP($A45,'KD2.2 Agriculture'!$A:$W,23,FALSE) -> 4.5 | P45: =VLOOKUP($A45,'KD2.3 Energy'!$A:$W,23,FALSE) -> 2.5 | Q45: =VLOOKUP($A45,'KD2.4 Industry'!$A:$W,23,FALSE) -> 1 | R45: 10.25 | S45: 2
A46: Singapore | B46: =VLOOKUP($A46,'KD2.1 Broad Economy'!$A:$AP,40,FALSE) -> 1.916666667 | C46: ND | D46: =VLOOKUP($A46,'KD2.3 Energy'!$A:$W,21,FALSE) -> 4.666666667 | E46: =VLOOKUP($A46,'KD2.4 Industry'!$A:$W,21,FALSE) -> 4.666666667 | F46: 15 | G46: 3 | H46: =VLOOKUP($A46,'KD2.1 Broad Economy'!$A:$AP,41,FALSE) -> 1.916666667 | I46: =VLOOKUP($A46,'KD2.2 Agriculture'!$A:$W,22,FALSE) -> ND | J46: =VLOOKUP($A46,'KD2.3 Energy'!$A:$W,22,FALSE) -> 4.666666667 | K46: =VLOOKUP($A46,'KD2.4 Industry'!$A:$W,22,FALSE) -> 5 | L46: 15.44444444 | M46: 3 | N46: =VLOOKUP($A46,'KD2.1 Broad Economy'!$A:$AP,42,FALSE) -> 1.916666667 | O46: =VLOOKUP($A46,'KD2.2 Agriculture'!$A:$W,23,FALSE) -> ND | P46: =VLOOKUP($A46,'KD2.3 Energy'!$A:$W,23,FALSE) -> 4.666666667 | Q46: =VLOOKUP($A46,'KD2.4 Industry'!$A:$W,23,FALSE) -> 5 | R46: 15.44444444 | S46: 3
A47: Solomon Islands | B47: =VLOOKUP($A47,'KD2.1 Broad Economy'!$A:$AP,40,FALSE) -> 2.5 | C47: =VLOOKUP($A47,'KD2.2 Agriculture'!$A:$W,21,FALSE) -> 4.5 | D47: =VLOOKUP($A47,'KD2.3 Energy'!$A:$W,21,FALSE) -> 2.5 | E47: =VLOOKUP($A47,'KD2.4 Industry'!$A:$W,21,FALSE) -> 4 | F47: 13.5 | G47: 3 | H47: =VLOOKUP($A47,'KD2.1 Broad Economy'!$A:$AP,41,FALSE) -> 2.5 | I47: =VLOOKUP($A47,'KD2.2 Agriculture'!$A:$W,22,FALSE) -> 4 | J47: =VLOOKUP($A47,'KD2.3 Energy'!$A:$W,22,FALSE) -> 2.5 | K47: =VLOOKUP($A47,'KD2.4 Industry'!$A:$W,22,FALSE) -> 5 | L47: 14 | M47: 3 | N47: =VLOOKUP($A47,'KD2.1 Broad Economy'!$A:$AP,42,FALSE) -> 2.5 | O47: =VLOOKUP($A47,'KD2.2 Agriculture'!$A:$W,23,FALSE) -> 4 | P47: =VLOOKUP($A47,'KD2.3 Energy'!$A:$W,23,FALSE) -> 2.5 | Q47: =VLOOKUP($A47,'KD2.4 Industry'!$A:$W,23,FALSE) -> 5 | R47: 14 | S47: 3
A48: Sri Lanka | B48: =VLOOKUP($A48,'KD2.1 Broad Economy'!$A:$AP,40,FALSE) -> 2.0625 | C48: =VLOOKUP($A48,'KD2.2 Agriculture'!$A:$W,21,FALSE) -> 2.666666667 | D48: =VLOOKUP($A48,'KD2.3 Energy'!$A:$W,21,FALSE) -> 2.333333333 | E48: =VLOOKUP($A48,'KD2.4 Industry'!$A:$W,21,FALSE) -> 2 | F48: 9.0625 | G48: 2 | H48: =VLOOKUP($A48,'KD2.1 Broad Economy'!$A:$AP,41,FALSE) -> 1.875 | I48: =VLOOKUP($A48,'KD2.2 Agriculture'!$A:$W,22,FALSE) -> 3 | J48: =VLOOKUP($A48,'KD2.3 Energy'!$A:$W,22,FALSE) -> 2.666666667 | K48: =VLOOKUP($A48,'KD2.4 Industry'!$A:$W,22,FALSE) -> 2.5 | L48: 10.04166667 | M48: 2 | N48: =VLOOKUP($A48,'KD2.1 Broad Economy'!$A:$AP,42,FALSE) -> 1.875 | O48: =VLOOKUP($A48,'KD2.2 Agriculture'!$A:$W,23,FALSE) -> 3 | P48: =VLOOKUP($A48,'KD2.3 Energy'!$A:$W,23,FALSE) -> 2.666666667 | Q48: =VLOOKUP($A48,'KD2.4 Industry'!$A:$W,23,FALSE) -> 2.5 | R48: 10.04166667 | S48: 2
A49: Taipei, China | B49: 1 | C49: =VLOOKUP($A49,'KD2.2 Agriculture'!$A:$W,21,FALSE) -> 5 | D49: =VLOOKUP($A49,'KD2.3 Energy'!$A:$W,21,FALSE) -> 4.666666667 | E49: 3.5 | F49: 14.16666667 | G49: 3 | H49: 1 | I49: =VLOOKUP($A49,'KD2.2 Agriculture'!$A:$W,22,FALSE) -> 5 | J49: =VLOOKUP($A49,'KD2.3 Energy'!$A:$W,22,FALSE) -> 4.666666667 | K49: 3.5 | L49: 14.16666667 | M49: 3 | N49: 1 | O49: =VLOOKUP($A49,'KD2.2 Agriculture'!$A:$W,23,FALSE) -> 5 | P49: =VLOOKUP($A49,'KD2.3 Energy'!$A:$W,23,FALSE) -> 4.666666667 | Q49: 3.5 | R49: 14.16666667 | S49: 3
A50: Tajikistan | B50: =VLOOKUP($A50,'KD2.1 Broad Economy'!$A:$AP,40,FALSE) -> 2.75 | C50: =VLOOKUP($A50,'KD2.2 Agriculture'!$A:$W,21,FALSE) -> 1.666666667 | D50: =VLOOKUP($A50,'KD2.3 Energy'!$A:$W,21,FALSE) -> 2.333333333 | E50: =VLOOKUP($A50,'KD2.4 Industry'!$A:$W,21,FALSE) -> 1.5 | F50: 8.25 | G50: 1 | H50: =VLOOKUP($A50,'KD2.1 Broad Economy'!$A:$AP,41,FALSE) -> 2.75 | I50: =VLOOKUP($A50,'KD2.2 Agriculture'!$A:$W,22,FALSE) -> 2.333333333 | J50: =VLOOKUP($A50,'KD2.3 Energy'!$A:$W,22,FALSE) -> 2 | K50: =VLOOKUP($A50,'KD2.4 Industry'!$A:$W,22,FALSE) -> 1.5 | L50: 8.583333333 | M50: 2 | N50: =VLOOKUP($A50,'KD2.1 Broad Economy'!$A:$AP,42,FALSE) -> 2.5625 | O50: =VLOOKUP($A50,'KD2.2 Agriculture'!$A:$W,23,FALSE) -> 2 | P50: =VLOOKUP($A50,'KD2.3 Energy'!$A:$W,23,FALSE) -> 2.333333333 | Q50: =VLOOKUP($A50,'KD2.4 Industry'!$A:$W,23,FALSE) -> 1.5 | R50: 8.395833333 | S50: 1
A51: Thailand | B51: =VLOOKUP($A51,'KD2.1 Broad Economy'!$A:$AP,40,FALSE) -> 3.1875 | C51: =VLOOKUP($A51,'KD2.2 Agriculture'!$A:$W,21,FALSE) -> 3.666666667 | D51: =VLOOKUP($A51,'KD2.3 Energy'!$A:$W,21,FALSE) -> 3.666666667 | E51: =VLOOKUP($A51,'KD2.4 Industry'!$A:$W,21,FALSE) -> 3.333333333 | F51: 13.85416667 | G51: 3 | H51: =VLOOKUP($A51,'KD2.1 Broad Economy'!$A:$AP,41,FALSE) -> 2.9375 | I51: =VLOOKUP($A51,'KD2.2 Agriculture'!$A:$W,22,FALSE) -> 3.666666667 | J51: =VLOOKUP($A51,'KD2.3 Energy'!$A:$W,22,FALSE) -> 3.666666667 | K51: =VLOOKUP($A51,'KD2.4 Industry'!$A:$W,22,FALSE) -> 3.666666667 | L51: 13.9375 | M51: 3 | N51: =VLOOKUP($A51,'KD2.1 Broad Economy'!$A:$AP,42,FALSE) -> 2.6875 | O51: =VLOOKUP($A51,'KD2.2 Agriculture'!$A:$W,23,FALSE) -> 3.666666667 | P51: =VLOOKUP($A51,'KD2.3 Energy'!$A:$W,23,FALSE) -> 3.666666667 | Q51: =VLOOKUP($A51,'KD2.4 Industry'!$A:$W,23,FALSE) -> 4.666666667 | R51: 14.6875 | S51: 3
A52: Timor-Leste | B52: =VLOOKUP($A52,'KD2.1 Broad Economy'!$A:$AP,40,FALSE) -> 2.5 | C52: =VLOOKUP($A52,'KD2.2 Agriculture'!$A:$W,21,FALSE) -> 2 | D52: =VLOOKUP($A52,'KD2.3 Energy'!$A:$W,21,FALSE) -> 3 | E52: =VLOOKUP($A52,'KD2.4 Industry'!$A:$W,21,FALSE) -> 5 | F52: 12.5 | G52: 3 | H52: =VLOOKUP($A52,'KD2.1 Broad Economy'!$A:$AP,41,FALSE) -> 2 | I52: =VLOOKUP($A52,'KD2.2 Agriculture'!$A:$W,22,FALSE) -> 2 | J52: =VLOOKUP($A52,'KD2.3 Energy'!$A:$W,22,FALSE) -> 3 | K52: =VLOOKUP($A52,'KD2.4 Industry'!$A:$W,22,FALSE) -> 5 | L52: 12 | M52: 3 | N52: =VLOOKUP($A52,'KD2.1 Broad Economy'!$A:$AP,42,FALSE) -> 2 | O52: =VLOOKUP($A52,'KD2.2 Agriculture'!$A:$W,23,FALSE) -> 2 | P52: =VLOOKUP($A52,'KD2.3 Energy'!$A:$W,23,FALSE) -> 3 | Q52: =VLOOKUP($A52,'KD2.4 Industry'!$A:$W,23,FALSE) -> 3.666666667 | R52: 10.66666667 | S52: 2
A53: Tonga | B53: =VLOOKUP($A53,'KD2.1 Broad Economy'!$A:$AP,40,FALSE) -> 2.25 | C53: =VLOOKUP($A53,'KD2.2 Agriculture'!$A:$W,21,FALSE) -> ND | D53: =VLOOKUP($A53,'KD2.3 Energy'!$A:$W,21,FALSE) -> 2.5 | E53: =VLOOKUP($A53,'KD2.4 Industry'!$A:$W,21,FALSE) -> 1.5 | F53: 8.333333333 | G53: 1 | H53: =VLOOKUP($A53,'KD2.1 Broad Economy'!$A:$AP,41,FALSE) -> 2.25 | I53: =VLOOKUP($A53,'KD2.2 Agriculture'!$A:$W,22,FALSE) -> ND | J53: =VLOOKUP($A53,'KD2.3 Energy'!$A:$W,22,FALSE) -> 2.5 | K53: =VLOOKUP($A53,'KD2.4 Industry'!$A:$W,22,FALSE) -> 1.5 | L53: 8.333333333 | M53: 1 | N53: =VLOOKUP($A53,'KD2.1 Broad Economy'!$A:$AP,42,FALSE) -> 2.75 | O53: =VLOOKUP($A53,'KD2.2 Agriculture'!$A:$W,23,FALSE) -> ND | P53: =VLOOKUP($A53,'KD2.3 Energy'!$A:$W,23,FALSE) -> 2.5 | Q53: =VLOOKUP($A53,'KD2.4 Industry'!$A:$W,23,FALSE) -> 1 | R53: 8.333333333 | S53: 1
A54: Turkmenistan | B54: =VLOOKUP($A54,'KD2.1 Broad Economy'!$A:$AP,40,FALSE) -> 2.125 | C54: =VLOOKUP($A54,'KD2.2 Agriculture'!$A:$W,21,FALSE) -> 3.333333333 | D54: =VLOOKUP($A54,'KD2.3 Energy'!$A:$W,21,FALSE) -> 4.666666667 | E54: =VLOOKUP($A54,'KD2.4 Industry'!$A:$W,21,FALSE) -> 2 | F54: 12.125 | G54: 3 | H54: =VLOOKUP($A54,'KD2.1 Broad Economy'!$A:$AP,41,FALSE) -> 1.875 | I54: =VLOOKUP($A54,'KD2.2 Agriculture'!$A:$W,22,FALSE) -> 3.666666667 | J54: =VLOOKUP($A54,'KD2.3 Energy'!$A:$W,22,FALSE) -> 4.666666667 | K54: =VLOOKUP($A54,'KD2.4 Industry'!$A:$W,22,FALSE) -> 4.5 | L54: 14.70833333 | M54: 3 | N54: =VLOOKUP($A54,'KD2.1 Broad Economy'!$A:$AP,42,FALSE) -> 1.625 | O54: =VLOOKUP($A54,'KD2.2 Agriculture'!$A:$W,23,FALSE) -> 3.666666667 | P54: =VLOOKUP($A54,'KD2.3 Energy'!$A:$W,23,FALSE) -> 4.666666667 | Q54: =VLOOKUP($A54,'KD2.4 Industry'!$A:$W,23,FALSE) -> 4.5 | R54: 14.45833333 | S54: 3
A55: Tuvalu | B55: =VLOOKUP($A55,'KD2.1 Broad Economy'!$A:$AP,40,FALSE) -> 2 | C55: =VLOOKUP($A55,'KD2.2 Agriculture'!$A:$W,21,FALSE) -> ND | D55: =VLOOKUP($A55,'KD2.3 Energy'!$A:$W,21,FALSE) -> ND | E55: =VLOOKUP($A55,'KD2.4 Industry'!$A:$W,21,FALSE) -> 1 | F55: 6 | G55: 1 | H55: =VLOOKUP($A55,'KD2.1 Broad Economy'!$A:$AP,41,FALSE) -> 2 | I55: =VLOOKUP($A55,'KD2.2 Agriculture'!$A:$W,22,FALSE) -> ND | J55: =VLOOKUP($A55,'KD2.3 Energy'!$A:$W,22,FALSE) -> ND | K55: =VLOOKUP($A55,'KD2.4 Industry'!$A:$W,22,FALSE) -> 1 | L55: 6 | M55: 1 | N55: =VLOOKUP($A55,'KD2.1 Broad Economy'!$A:$AP,42,FALSE) -> 2 | O55: =VLOOKUP($A55,'KD2.2 Agriculture'!$A:$W,23,FALSE) -> ND | P55: =VLOOKUP($A55,'KD2.3 Energy'!$A:$W,23,FALSE) -> ND | Q55: =VLOOKUP($A55,'KD2.4 Industry'!$A:$W,23,FALSE) -> 1 | R55: 6 | S55: 1
A56: Uzbekistan | B56: =VLOOKUP($A56,'KD2.1 Broad Economy'!$A:$AP,40,FALSE) -> 2.125 | C56: =VLOOKUP($A56,'KD2.2 Agriculture'!$A:$W,21,FALSE) -> 3 | D56: =VLOOKUP($A56,'KD2.3 Energy'!$A:$W,21,FALSE) -> 2.666666667 | E56: =VLOOKUP($A56,'KD2.4 Industry'!$A:$W,21,FALSE) -> 1.5 | F56: 9.291666667 | G56: 2 | H56: =VLOOKUP($A56,'KD2.1 Broad Economy'!$A:$AP,41,FALSE) -> 2.125 | I56: =VLOOKUP($A56,'KD2.2 Agriculture'!$A:$W,22,FALSE) -> 4 | J56: =VLOOKUP($A56,'KD2.3 Energy'!$A:$W,22,FALSE) -> 2.666666667 | K56: =VLOOKUP($A56,'KD2.4 Industry'!$A:$W,22,FALSE) -> 3 | L56: 11.79166667 | M56: 2 | N56: =VLOOKUP($A56,'KD2.1 Broad Economy'!$A:$AP,42,FALSE) -> 2.125 | O56: =VLOOKUP($A56,'KD2.2 Agriculture'!$A:$W,23,FALSE) -> 4 | P56: =VLOOKUP($A56,'KD2.3 Energy'!$A:$W,23,FALSE) -> 3 | Q56: =VLOOKUP($A56,'KD2.4 Industry'!$A:$W,23,FALSE) -> 2.666666667 | R56: 11.79166667 | S56: 2
A57: Vanuatu | B57: =VLOOKUP($A57,'KD2.1 Broad Economy'!$A:$AP,40,FALSE) -> 2 | C57: =VLOOKUP($A57,'KD2.2 Agriculture'!$A:$W,21,FALSE) -> 5 | D57: =VLOOKUP($A57,'KD2.3 Energy'!$A:$W,21,FALSE) -> 2 | E57: =VLOOKUP($A57,'KD2.4 Industry'!$A:$W,21,FALSE) -> 1 | F57: 10 | G57: 2 | H57: =VLOOKUP($A57,'KD2.1 Broad Economy'!$A:$AP,41,FALSE) -> 2.5 | I57: =VLOOKUP($A57,'KD2.2 Agriculture'!$A:$W,22,FALSE) -> 5 | J57: =VLOOKUP($A57,'KD2.3 Energy'!$A:$W,22,FALSE) -> 2 | K57: =VLOOKUP($A57,'KD2.4 Industry'!$A:$W,22,FALSE) -> 1 | L57: 10.5 | M57: 2 | N57: =VLOOKUP($A57,'KD2.1 Broad Economy'!$A:$AP,42,FALSE) -> 2.25 | O57: =VLOOKUP($A57,'KD2.2 Agriculture'!$A:$W,23,FALSE) -> 4.5 | P57: =VLOOKUP($A57,'KD2.3 Energy'!$A:$W,23,FALSE) -> 2 | Q57: =VLOOKUP($A57,'KD2.4 Industry'!$A:$W,23,FALSE) -> 1 | R57: 9.75 | S57: 2
A58: Viet Nam | B58: =VLOOKUP($A58,'KD2.1 Broad Economy'!$A:$AP,40,FALSE) -> 2.5 | C58: =VLOOKUP($A58,'KD2.2 Agriculture'!$A:$W,21,FALSE) -> 3 | D58: =VLOOKUP($A58,'KD2.3 Energy'!$A:$W,21,FALSE) -> 2 | E58: =VLOOKUP($A58,'KD2.4 Industry'!$A:$W,21,FALSE) -> 2 | F58: 9.5 | G58: 2 | H58: =VLOOKUP($A58,'KD2.1 Broad Economy'!$A:$AP,41,FALSE) -> 1.8125 | I58: =VLOOKUP($A58,'KD2.2 Agriculture'!$A:$W,22,FALSE) -> 3.666666667 | J58: =VLOOKUP($A58,'KD2.3 Energy'!$A:$W,22,FALSE) -> 1.5 | K58: =VLOOKUP($A58,'KD2.4 Industry'!$A:$W,22,FALSE) -> 2 | L58: 8.979166667 | M58: 2 | N58: =VLOOKUP($A58,'KD2.1 Broad Economy'!$A:$AP,42,FALSE) -> 1.8125 | O58: =VLOOKUP($A58,'KD2.2 Agriculture'!$A:$W,23,FALSE) -> 3.666666667 | P58: =VLOOKUP($A58,'KD2.3 Energy'!$A:$W,23,FALSE) -> 1.5 | Q58: =VLOOKUP($A58,'KD2.4 Industry'!$A:$W,23,FALSE) -> 2.5 | R58: 9.479166667 | S58: 2
A59: Stages
A60: 0 | B60: 0 | C60: 1
A61: 42 | B61: 8.4 | C61: 2
A62: 60 | B62: 12 | C62: 3
A63: 78 | B63: 15.6 | C63: 4
A64: 96 | B64: 19.2 | C64: 5

Sheet KD2.1 Broad Economy
A1: KD 2.1 - Broad economy
A7: Economies | B7: Reliability - Intra-annual and Inter-annual Precipitation Variability | N7: Resiliency - Storage/TRWR | T7: Water stress - withdrawal/availability | Z7: SLI | AF7: Data Availability | AN7: Component score
B8: 2013 | F8: 2016 | J8: 2020 | N8: 2013 | P8: 2016 | R8: 2020 | T8: 2013 | V8: 2016 | X8: 2020 | Z8: 2013 | AB8: 2016 | AD8: 2020 | AF8: 2013 | AH8: 2016 | AJ8: 2020 | AN8: 2013 | AO8: 2016 | AP8: 2020
B9: Intra | C9: Score | D9: Inter | E9: Score | F9: Intra | G9: Score | H9: Inter | I9: Score | J9: Intra | K9: Score | L9: Inter | M9: Score | N9: Storage/TRWR, % | O9: Score | P9: Storage/TRWR, % | Q9: Score | R9: Storage/TRWR, % | S9: Score | T9: % | U9: Score | V9: % | W9: Score | X9: % | Y9: Score | Z9: SLI | AA9: Score | AB9: SLI | AC9: Score | AD9: SLI | AE9: Score | AF9: Data Avail | AG9: Score | AH9: Data Avail | AI9: Score | AJ9: Data Avail | AK9: Score
A10: Afghanistan | B10: =VLOOKUP($A10,'KD2.1.1.1 Rainfall calcs'!$A:$G,7,FALSE) -> 0.8597969724 | C10: =IF(B10="ND","ND",(IF(B10>$B$62,IF(B10>$B$63,IF(B10>$B$64,IF(B10>$B$65,$C$65,$C$64),$C$63),$C$62),$C$61))) -> 1 | D10: =VLOOKUP($A10,'KD2.1.1.1 Rainfall calcs'!$A:$G,4,FALSE) -> 0.1417249046 | E10: =IF(D10="ND","ND",(IF(D10>$D$62,IF(D10>$D$63,IF(D10>$D$64,IF(D10>$D$65,$E$65,$E$64),$E$63),$E$62),$E$61))) -> 2 | F10: =VLOOKUP($A10,'KD2.1.1.1 Rainfall calcs'!$A:$G,6,FALSE) -> 0.8518686216 | G10: =IF(F10="ND","ND",(IF(F10>$B$62,IF(F10>$B$63,IF(F10>$B$64,IF(F10>$B$65,$C$65,$C$64),$C$63),$C$62),$C$61))) -> 1 | H10: =VLOOKUP($A10,'KD2.1.1.1 Rainfall calcs'!$A:$G,3,FALSE) -> 0.1256159426 | I10: =IF(H10="ND","ND",(IF(H10>$D$62,IF(H10>$D$63,IF(H10>$D$64,IF(H10>$D$65,$E$65,$E$64),$E$63),$E$62),$E$61))) -> 2 | J10: =VLOOKUP($A10,'KD2.1.1.1 Rainfall calcs'!$A:$G,5,FALSE) -> 0.8417566701 | K10: =IF(J10="ND","ND",(IF(J10>$B$62,IF(J10>$B$63,IF(J10>$B$64,IF(J10>$B$65,$C$65,$C$64),$C$63),$C$62),$C$61))) -> 1 | L10: =VLOOKUP($A10,'KD2.1.1.1 Rainfall calcs'!$A:$G,2,FALSE) -> 0.1396662915 | M10: =IF(L10="ND","ND",(IF(L10>$D$62,IF(L10>$D$63,IF(L10>$D$64,IF(L10>$D$65,$E$65,$E$64),$E$63),$E$62),$E$61))) -> 2 | N10: =VLOOKUP($A10,'KD2.1.1.2 Storage'!$A:$J,4,FALSE) -> 3.075156896 | O10: =IF(N10="ND","ND",(IF(N10>$N$63,IF(N10>$N$64,IF(N10>$N$65,IF(N10>$N$66,$O$66,$O$65),$O$64),$O$63),$O$62))) -> 2 | P10: =VLOOKUP($A10,'KD2.1.1.2 Storage'!$A:$J,7,FALSE) -> 3.075156896 | Q10: =IF(P10="ND","ND",(IF(P10>$N$63,IF(P10>$N$64,IF(P10>$N$65,IF(P10>$N$66,$O$66,$O$65),$O$64),$O$63),$O$62))) -> 2 | R10: =VLOOKUP($A10,'KD2.1.1.2 Storage'!$A:$J,10,FALSE) -> 3.075156896 | S10: =IF(R10="ND","ND",(IF(R10>$N$63,IF(R10>$N$64,IF(R10>$N$65,IF(R10>$N$66,$O$66,$O$65),$O$64),$O$63),$O$62))) -> 2 | T10: =VLOOKUP($A10,'KD2.1.2 Water Stress'!$A:$K,9,FALSE) -> 0.7173458737 | U10: =IF(T10="ND","ND",(IF(T10>$T$62,IF(T10>$T$63,IF(T10>$T$64,IF(T10>$T$65,$U$65,$U$64),$U$63),$U$62),$U$61))) -> 2 | V10: =VLOOKUP($A10,'KD2.1.2 Water Stress'!$A:$K,10,FALSE) -> 0.7663713319 | W10: =IF(V10="ND","ND",(IF(V10>$T$62,IF(V10>$T$63,IF(V10>$T$64,IF(V10>$T$65,$U$65,$U$64),$U$63),$U$62),$U$61))) -> 2 | X10: =VLOOKUP($A10,'KD2.1.2 Water Stress'!$A:$K,11,FALSE) -> 0.7129842899 | Y10: =IF(X10="ND","ND",(IF(X10>$T$62,IF(X10>$T$63,IF(X10>$T$64,IF(X10>$T$65,$U$65,$U$64),$U$63),$U$62),$U$61))) -> 2 | Z10: =VLOOKUP($A10,'KD2.1.3 SLI'!$A:$Q,15,FALSE) -> 0.1377241705 | AA10: =IF(Z10="ND","ND",(IF(Z10>$Z$62,IF(Z10>$Z$63,IF(Z10>$Z$64,IF(Z10>$Z$65,$AA$65,$AA$64),$AA$63),$AA$62),$AA$61))) -> 1 | AB10: =VLOOKUP($A10,'KD2.1.3 SLI'!$A:$Q,16,FALSE) -> 0.1174685452 | AC10: =IF(AB10="ND","ND",(IF(AB10>$Z$62,IF(AB10>$Z$63,IF(AB10>$Z$64,IF(AB10>$Z$65,$AA$65,$AA$64),$AA$63),$AA$62),$AA$61))) -> 1 | AD10: =VLOOKUP($A10,'KD2.1.3 SLI'!$A:$Q,17,FALSE) -> 0.1398698795 | AE10: =IF(AD10="ND","ND",(IF(AD10>$Z$62,IF(AD10>$Z$63,IF(AD10>$Z$64,IF(AD10>$Z$65,$AA$65,$AA$64),$AA$63),$AA$62),$AA$61))) -> 1 | AF10: 18 | AG10: =IF(AF10="ND","ND",(IF(AF10>$AF$62,IF(AF10>$AF$63,IF(AF10>$AF$64,IF(AF10>$AF$65,$AG$65,$AG$64),$AG$63),$AG$62),$AG$61))) -> 5 | AH10: 16 | AI10: =IF(AH10="ND","ND",(IF(AH10>$AF$62,IF(AH10>$AF$63,IF(AH10>$AF$64,IF(AH10>$AF$65,$AG$65,$AG$64),$AG$63),$AG$62),$AG$61))) -> 4 | AJ10: 16 | AK10: =IF(AJ10="ND","ND",(IF(AJ10>$AF$62,IF(AJ10>$AF$63,IF(AJ10>$AF$64,IF(AJ10>$AF$65,$AG$65,$AG$64),$AG$63),$AG$62),$AG$61))) -> 4 | AN10: =IFERROR(AVERAGE(AVERAGE(AVERAGE(C10,E10),O10),U10,AA10,AG10),AVERAGE(C10,E10,O10,U10,AA10,AG10)) -> 2.4375 | AO10: =IFERROR(AVERAGE(AVERAGE(AVERAGE(G10,I10),Q10),W10,AC10,AI10),AVERAGE(G10,I10,Q10,W10,AC10,AI10)) -> 2.1875 | AP10: =IFERROR(AVERAGE(AVERAGE(AVERAGE(K10,M10),S10),Y10,AE10,AK10),AVERAGE(K10,M10,S10,Y10,AE10,AK10)) -> 2.1875
A11: Armenia | B11: =VLOOKUP($A11,'KD2.1.1.1 Rainfall calcs'!$A:$G,7,FALSE) -> 0.6270108641 | C11: 2 | D11: =VLOOKUP($A11,'KD2.1.1.1 Rainfall calcs'!$A:$G,4,FALSE) -> 0.1633909563 | E11: 1 | F11: =VLOOKUP($A11,'KD2.1.1.1 Rainfall calcs'!$A:$G,6,FALSE) -> 0.6384690196 | G11: 2 | H11: =VLOOKUP($A11,'KD2.1.1.1 Rainfall calcs'!$A:$G,3,FALSE) -> 0.1622399457 | I11: =IF(H11="ND","ND",(IF(H11>$D$62,IF(H11>$D$63,IF(H11>$D$64,IF(H11>$D$65,$E$65,$E$64),$E$63),$E$62),$E$61))) -> 1 | J11: =VLOOKUP($A11,'KD2.1.1.1 Rainfall calcs'!$A:$G,5,FALSE) -> 0.6185806064 | K11: 2 | L11: =VLOOKUP($A11,'KD2.1.1.1 Rainfall calcs'!$A:$G,2,FALSE) -> 0.1561409085 | M11: 1 | N11: =VLOOKUP($A11,'KD2.1.1.2 Storage'!$A:$J,4,FALSE) -> 18.00746557 | O11: 3 | P11: =VLOOKUP($A11,'KD2.1.1.2 Storage'!$A:$J,7,FALSE) -> 18.00746557 | Q11: 3 | R11: =VLOOKUP($A11,'KD2.1.1.2 Storage'!$A:$J,10,FALSE) -> 18.00746557 | S11: 3 | T11: =VLOOKUP($A11,'KD2.1.2 Water Stress'!$A:$K,9,FALSE) -> 0.743629678 | U11: 2 | V11: =VLOOKUP($A11,'KD2.1.2 Water Stress'!$A:$K,10,FALSE) -> 0.6435970016 | W11: 2 | X11: =VLOOKUP($A11,'KD2.1.2 Water Stress'!$A:$K,11,FALSE) -> 0.6655239975 | Y11: 2 | Z11: =VLOOKUP($A11,'KD2.1.3 SLI'!$A:$Q,15,FALSE) -> 0.6416205496 | AA11: 2 | AB11: =VLOOKUP($A11,'KD2.1.3 SLI'!$A:$Q,16,FALSE) -> 0.869506261 | AC11: 2 | AD11: =VLOOKUP($A11,'KD2.1.3 SLI'!$A:$Q,17,FALSE) -> 0.8067019864 | AE11: 2 | AF11: 16 | AG11: 4 | AH11: 17 | AI11: 4 | AJ11: 17 | AK11: 4 | AN11: 2.5625 | AO11: 2.5625 | AP11: =IFERROR(AVERAGE(AVERAGE(AVERAGE(K11,M11),S11),Y11,AE11,AK11),AVERAGE(K11,M11,S11,Y11,AE11,AK11)) -> 2.5625
A12: Australia | B12: =VLOOKUP($A12,'KD2.1.1.1 Rainfall calcs'!$A:$G,7,FALSE) -> 0.7048302392 | C12: 2 | D12: =VLOOKUP($A12,'KD2.1.1.1 Rainfall calcs'!$A:$G,4,FALSE) -> 0.1376923044 | E12: 2 | F12: =VLOOKUP($A12,'KD2.1.1.1 Rainfall calcs'!$A:$G,6,FALSE) -> 0.7247731726 | G12: 2 | H12: =VLOOKUP($A12,'KD2.1.1.1 Rainfall calcs'!$A:$G,3,FALSE) -> 0.1390988588 | I12: 2 | J12: =VLOOKUP($A12,'KD2.1.1.1 Rainfall calcs'!$A:$G,5,FALSE) -> 0.7373428221 | K12: 2 | L12: =VLOOKUP($A12,'KD2.1.1.1 Rainfall calcs'!$A:$G,2,FALSE) -> 0.1414280215 | M12: 2 | N12: =VLOOKUP($A12,'KD2.1.1.2 Storage'!$A:$J,4,FALSE) -> 15.81097561 | O12: 3 | P12: =VLOOKUP($A12,'KD2.1.1.2 Storage'!$A:$J,7,FALSE) -> 15.81097561 | Q12: 3 | R12: =VLOOKUP($A12,'KD2.1.1.2 Storage'!$A:$J,10,FALSE) -> 15.81097561 | S12: 3 | T12: =VLOOKUP($A12,'KD2.1.2 Water Stress'!$A:$K,9,FALSE) -> 0.5288799765 | U12: 2 | V12: =VLOOKUP($A12,'KD2.1.2 Water Stress'!$A:$K,10,FALSE) -> 0.5319779466 | W12: 2 | X12: =VLOOKUP($A12,'KD2.1.2 Water Stress'!$A:$K,11,FALSE) -> 0.533981571 | Y12: 2 | Z12: =VLOOKUP($A12,'KD2.1.3 SLI'!$A:$Q,15,FALSE) -> 5.332445681 | AA12: 5 | AB12: =VLOOKUP($A12,'KD2.1.3 SLI'!$A:$Q,16,FALSE) -> 4.89151612 | AC12: 4 | AD12: =VLOOKUP($A12,'KD2.1.3 SLI'!$A:$Q,17,FALSE) -> 4.643203081 | AE12: 4 | AF12: 18 | AG12: 5 | AH12: 18 | AI12: 5 | AJ12: 18 | AK12: 5 | AN12: 3.625 | AO12: 3.375 | AP12: 3.375
A13: Azerbaijan | B13: =VLOOKUP($A13,'KD2.1.1.1 Rainfall calcs'!$A:$G,7,FALSE) -> 0.494715048 | C13: 3 | D13: =VLOOKUP($A13,'KD2.1.1.1 Rainfall calcs'!$A:$G,4,FALSE) -> 0.1327698888 | E13: 2 | F13: =VLOOKUP($A13,'KD2.1.1.1 Rainfall calcs'!$A:$G,6,FALSE) -> 0.4946556763 | G13: 3 | H13: =VLOOKUP($A13,'KD2.1.1.1 Rainfall calcs'!$A:$G,3,FALSE) -> 0.1182414149 | I13: 2 | J13: =VLOOKUP($A13,'KD2.1.1.1 Rainfall calcs'!$A:$G,5,FALSE) -> 0.5086037933 | K13: 3 | L13: =VLOOKUP($A13,'KD2.1.1.1 Rainfall calcs'!$A:$G,2,FALSE) -> 0.1149971695 | M13: 2 | N13: =VLOOKUP($A13,'KD2.1.1.2 Storage'!$A:$J,4,FALSE) -> 61.99538639 | O13: 5 | P13: =VLOOKUP($A13,'KD2.1.1.2 Storage'!$A:$J,7,FALSE) -> 61.99538639 | Q13: 5 | R13: =VLOOKUP($A13,'KD2.1.1.2 Storage'!$A:$J,10,FALSE) -> 61.99538639 | S13: 5 | T13: =VLOOKUP($A13,'KD2.1.2 Water Stress'!$A:$K,9,FALSE) -> 0.6992487004 | U13: 2 | V13: =VLOOKUP($A13,'KD2.1.2 Water Stress'!$A:$K,10,FALSE) -> 0.686576671 | W13: 2 | X13: =VLOOKUP($A13,'KD2.1.2 Water Stress'!$A:$K,11,FALSE) -> 0.7049403648 | Y13: 2 | Z13: =VLOOKUP($A13,'KD2.1.3 SLI'!$A:$Q,15,FALSE) -> 2.361421926 | AA13: 3 | AB13: =VLOOKUP($A13,'KD2.1.3 SLI'!$A:$Q,16,FALSE) -> 2.449513811 | AC13: 3 | AD13: =VLOOKUP($A13,'KD2.1.3 SLI'!$A:$Q,17,FALSE) -> 2.32388457 | AE13: 3 | AF13: 18 | AG13: 5 | AH13: 18 | AI13: 5 | AJ13: 18 | AK13: 5 | AN13: 3.4375 | AO13: 3.4375 | AP13: 3.4375
A14: Bangladesh | B14: =VLOOKUP($A14,'KD2.1.1.1 Rainfall calcs'!$A:$G,7,FALSE) -> 0.9666025548 | C14: 1 | D14: =VLOOKUP($A14,'KD2.1.1.1 Rainfall calcs'!$A:$G,4,FALSE) -> 0.132667773 | E14: 2 | F14: =VLOOKUP($A14,'KD2.1.1.1 Rainfall calcs'!$A:$G,6,FALSE) -> 1.001716986 | G14: 1 | H14: =VLOOKUP($A14,'KD2.1.1.1 Rainfall calcs'!$A:$G,3,FALSE) -> 0.1020190463 | I14: 2 | J14: =VLOOKUP($A14,'KD2.1.1.1 Rainfall calcs'!$A:$G,5,FALSE) -> 1.017039324 | K14: 1 | L14: =VLOOKUP($A14,'KD2.1.1.1 Rainfall calcs'!$A:$G,2,FALSE) -> 0.1217739672 | M14: 2 | N14: =VLOOKUP($A14,'KD2.1.1.2 Storage'!$A:$J,4,FALSE) -> 0.5278728606 | O14: 1 | P14: =VLOOKUP($A14,'KD2.1.1.2 Storage'!$A:$J,7,FALSE) -> 0.5278728606 | Q14: 1 | R14: =VLOOKUP($A14,'KD2.1.1.2 Storage'!$A:$J,10,FALSE) -> 0.5278728606 | S14: 1 | T14: =VLOOKUP($A14,'KD2.1.2 Water Stress'!$A:$K,9,FALSE) -> 0.5182153551 | U14: 2 | V14: =VLOOKUP($A14,'KD2.1.2 Water Stress'!$A:$K,10,FALSE) -> 0.5183798716 | W14: 2 | X14: =VLOOKUP($A14,'KD2.1.2 Water Stress'!$A:$K,11,FALSE) -> 0.5188776906 | Y14: 2 | Z14: =VLOOKUP($A14,'KD2.1.3 SLI'!$A:$Q,15,FALSE) -> 0.293037488 | AA14: 1 | AB14: =VLOOKUP($A14,'KD2.1.3 SLI'!$A:$Q,16,FALSE) -> 0.2913829541 | AC14: 1 | AD14: =VLOOKUP($A14,'KD2.1.3 SLI'!$A:$Q,17,FALSE) -> 0.2864883073 | AE14: 1 | AF14: 14 | AG14: 3 | AH14: 16 | AI14: 4 | AJ14: 14 | AK14: 3 | AN14: 1.8125 | AO14: 2.0625 | AP14: 1.8125
A15: Bhutan | B15: =VLOOKUP($A15,'KD2.1.1.1 Rainfall calcs'!$A:$G,7,FALSE) -> 1.076633703 | C15: 1 | D15: =VLOOKUP($A15,'KD2.1.1.1 Rainfall calcs'!$A:$G,4,FALSE) -> 0.08640193822 | E15: 3 | F15: =VLOOKUP($A15,'KD2.1.1.1 Rainfall calcs'!$A:$G,6,FALSE) -> 1.090162648 | G15: 1 | H15: =VLOOKUP($A15,'KD2.1.1.1 Rainfall calcs'!$A:$G,3,FALSE) -> 0.09341567511 | I15: 3 | J15: =VLOOKUP($A15,'KD2.1.1.1 Rainfall calcs'!$A:$G,5,FALSE) -> 1.09175944 | K15: 1 | L15: =VLOOKUP($A15,'KD2.1.1.1 Rainfall calcs'!$A:$G,2,FALSE) -> 0.1076511381 | M15: 2 | N15: =VLOOKUP($A15,'KD2.1.1.2 Storage'!$A:$J,4,FALSE) -> ND | O15: ND | P15: =VLOOKUP($A15,'KD2.1.1.2 Storage'!$A:$J,7,FALSE) -> ND | Q15: ND | R15: =VLOOKUP($A15,'KD2.1.1.2 Storage'!$A:$J,10,FALSE) -> ND | S15: ND | T15: =VLOOKUP($A15,'KD2.1.2 Water Stress'!$A:$K,9,FALSE) -> 0.6979328068 | U15: 2 | V15: =VLOOKUP($A15,'KD2.1.2 Water Stress'!$A:$K,10,FALSE) -> 0.6979816574 | W15: 2 | X15: =VLOOKUP($A15,'KD2.1.2 Water Stress'!$A:$K,11,FALSE) -> 0.69798751 | Y15: 2 | Z15: =VLOOKUP($A15,'KD2.1.3 SLI'!$A:$Q,15,FALSE) -> ND | AA15: ND | AB15: =VLOOKUP($A15,'KD2.1.3 SLI'!$A:$Q,16,FALSE) -> ND | AC15: ND | AD15: =VLOOKUP($A15,'KD2.1.3 SLI'!$A:$Q,17,FALSE) -> ND | AE15: ND | AF15: 12 | AG15: 2 | AH15: 16 | AI15: 4 | AJ15: 14 | AK15: 3 | AN15: 2 | AO15: 2.666666667 | AP15: 2.166666667
A16: Brunei Darussalam | B16: =VLOOKUP($A16,'KD2.1.1.1 Rainfall calcs'!$A:$G,7,FALSE) -> 0.4054291784 | C16: 3 | D16: =VLOOKUP($A16,'KD2.1.1.1 Rainfall calcs'!$A:$G,4,FALSE) -> 0.1500204214 | E16: 1 | F16: =VLOOKUP($A16,'KD2.1.1.1 Rainfall calcs'!$A:$G,6,FALSE) -> 0.4022306194 | G16: 3 | H16: =VLOOKUP($A16,'KD2.1.1.1 Rainfall calcs'!$A:$G,3,FALSE) -> 0.1162389017 | I16: 2 | J16: =VLOOKUP($A16,'KD2.1.1.1 Rainfall calcs'!$A:$G,5,FALSE) -> 0.3869607174 | K16: 4 | L16: =VLOOKUP($A16,'KD2.1.1.1 Rainfall calcs'!$A:$G,2,FALSE) -> 0.12532979 | M16: 2 | N16: =VLOOKUP($A16,'KD2.1.1.2 Storage'!$A:$J,4,FALSE) -> 0.5294117647 | O16: 1 | P16: =VLOOKUP($A16,'KD2.1.1.2 Storage'!$A:$J,7,FALSE) -> 0.5294117647 | Q16: 1 | R16: =VLOOKUP($A16,'KD2.1.1.2 Storage'!$A:$J,10,FALSE) -> 0.5294117647 | S16: 1 | T16: =VLOOKUP($A16,'KD2.1.2 Water Stress'!$A:$K,9,FALSE) -> 0.7052919631 | U16: 2 | V16: =VLOOKUP($A16,'KD2.1.2 Water Stress'!$A:$K,10,FALSE) -> 0.7067663578 | W16: 2 | X16: =VLOOKUP($A16,'KD2.1.2 Water Stress'!$A:$K,11,FALSE) -> 0.7067619586 | Y16: 2 | Z16: =VLOOKUP($A16,'KD2.1.3 SLI'!$A:$Q,15,FALSE) -> 0.6260116052 | AA16: 2 | AB16: =VLOOKUP($A16,'KD2.1.3 SLI'!$A:$Q,16,FALSE) -> 0.5774375035 | AC16: 2 | AD16: =VLOOKUP($A16,'KD2.1.3 SLI'!$A:$Q,17,FALSE) -> 0.5775712202 | AE16: 2 | AF16: 15 | AG16: 3 | AH16: 17 | AI16: 4 | AJ16: 15 | AK16: 3 | AN16: 2.125 | AO16: 2.4375 | AP16: 2.25
A17: Cambodia | B17: =VLOOKUP($A17,'KD2.1.1.1 Rainfall calcs'!$A:$G,7,FALSE) -> 0.8076891231 | C17: 1 | D17: =VLOOKUP($A17,'KD2.1.1.1 Rainfall calcs'!$A:$G,4,FALSE) -> 0.09229021497 | E17: 3 | F17: =VLOOKUP($A17,'KD2.1.1.1 Rainfall calcs'!$A:$G,6,FALSE) -> 0.790622644 | G17: 1 | H17: =VLOOKUP($A17,'KD2.1.1.1 Rainfall calcs'!$A:$G,3,FALSE) -> 0.07293495866 | I17: 3 | J17: =VLOOKUP($A17,'KD2.1.1.1 Rainfall calcs'!$A:$G,5,FALSE) -> 0.7856729282 | K17: 1 | L17: =VLOOKUP($A17,'KD2.1.1.1 Rainfall calcs'!$A:$G,2,FALSE) -> 0.07688118867 | M17: 3 | N17: =VLOOKUP($A17,'KD2.1.1.2 Storage'!$A:$J,4,FALSE) -> ND | O17: ND | P17: =VLOOKUP($A17,'KD2.1.1.2 Storage'!$A:$J,7,FALSE) -> ND | Q17: ND | R17: =VLOOKUP($A17,'KD2.1.1.2 Storage'!$A:$J,10,FALSE) -> ND | S17: ND | T17: =VLOOKUP($A17,'KD2.1.2 Water Stress'!$A:$K,9,FALSE) -> 0.5620553646 | U17: 2 | V17: =VLOOKUP($A17,'KD2.1.2 Water Stress'!$A:$K,10,FALSE) -> 0.5620957701 | W17: 2 | X17: =VLOOKUP($A17,'KD2.1.2 Water Stress'!$A:$K,11,FALSE) -> 0.5620526726 | Y17: 2 | Z17: =VLOOKUP($A17,'KD2.1.3 SLI'!$A:$Q,15,FALSE) -> ND | AA17: ND | AB17: =VLOOKUP($A17,'KD2.1.3 SLI'!$A:$Q,16,FALSE) -> ND | AC17: ND | AD17: =VLOOKUP($A17,'KD2.1.3 SLI'!$A:$Q,17,FALSE) -> ND | AE17: ND | AF17: 16 | AG17: 4 | AH17: 15 | AI17: 3 | AJ17: 13 | AK17: 2 | AN17: 2.666666667 | AO17: 2.333333333 | AP17: 2
A18: China, People’s Republic of | B18: =VLOOKUP($A18,'KD2.1.1.1 Rainfall calcs'!$A:$G,7,FALSE) -> 0.734056939 | C18: 2 | D18: =VLOOKUP($A18,'KD2.1.1.1 Rainfall calcs'!$A:$G,4,FALSE) -> 0.04389280833 | E18: 4 | F18: =VLOOKUP($A18,'KD2.1.1.1 Rainfall calcs'!$A:$G,6,FALSE) -> 0.7403729928 | G18: 2 | H18: =VLOOKUP($A18,'KD2.1.1.1 Rainfall calcs'!$A:$G,3,FALSE) -> 0.0521885546 | I18: 3 | J18: =VLOOKUP($A18,'KD2.1.1.1 Rainfall calcs'!$A:$G,5,FALSE) -> 0.7336249728 | K18: 2 | L18: =VLOOKUP($A18,'KD2.1.1.1 Rainfall calcs'!$A:$G,2,FALSE) -> 0.0571701009 | M18: 3 | N18: =VLOOKUP($A18,'KD2.1.1.2 Storage'!$A:$J,4,FALSE) -> 19.8028169 | O18: 3 | P18: =VLOOKUP($A18,'KD2.1.1.2 Storage'!$A:$J,7,FALSE) -> 19.8028169 | Q18: 3 | R18: =VLOOKUP($A18,'KD2.1.1.2 Storage'!$A:$J,10,FALSE) -> 29.21830986 | S18: 4 | T18: =VLOOKUP($A18,'KD2.1.2 Water Stress'!$A:$K,9,FALSE) -> 0.727542203 | U18: 2 | V18: =VLOOKUP($A18,'KD2.1.2 Water Stress'!$A:$K,10,FALSE) -> 0.7368665821 | W18: 2 | X18: =VLOOKUP($A18,'KD2.1.2 Water Stress'!$A:$K,11,FALSE) -> 0.7220061188 | Y18: 2 | Z18: =VLOOKUP($A18,'KD2.1.3 SLI'!$A:$Q,15,FALSE) -> 1.291695072 | AA18: 3 | AB18: =VLOOKUP($A18,'KD2.1.3 SLI'!$A:$Q,16,FALSE) -> 1.236675572 | AC18: 3 | AD18: =VLOOKUP($A18,'KD2.1.3 SLI'!$A:$Q,17,FALSE) -> 1.957555379 | AE18: 3 | AF18: 16 | AG18: 4 | AH18: 17 | AI18: 4 | AJ18: 16 | AK18: 4 | AN18: 3 | AO18: 2.9375 | AP18: 3.0625
A19: Cook Islands | B19: =VLOOKUP($A19,'KD2.1.1.1 Rainfall calcs'!$A:$G,7,FALSE) -> 0.4887266891 | C19: 3 | D19: =VLOOKUP($A19,'KD2.1.1.1 Rainfall calcs'!$A:$G,4,FALSE) -> 0.1277360317 | E19: 2 | F19: =VLOOKUP($A19,'KD2.1.1.1 Rainfall calcs'!$A:$G,6,FALSE) -> 0.4096670554 | G19: 3 | H19: =VLOOKUP($A19,'KD2.1.1.1 Rainfall calcs'!$A:$G,3,FALSE) -> 0.09753504037 | I19: 3 | J19: =VLOOKUP($A19,'KD2.1.1.1 Rainfall calcs'!$A:$G,5,FALSE) -> 0.3736933052 | K19: 4 | L19: =VLOOKUP($A19,'KD2.1.1.1 Rainfall calcs'!$A:$G,2,FALSE) -> 0.04512579585 | M19: 4 | N19: =VLOOKUP($A19,'KD2.1.1.2 Storage'!$A:$J,4,FALSE) -> ND | O19: ND | P19: =VLOOKUP($A19,'KD2.1.1.2 Storage'!$A:$J,7,FALSE) -> ND | Q19: ND | R19: =VLOOKUP($A19,'KD2.1.1.2 Storage'!$A:$J,10,FALSE) -> ND | S19: ND | T19: =VLOOKUP($A19,'KD2.1.2 Water Stress'!$A:$K,9,FALSE) -> ND | U19: ND | V19: =VLOOKUP($A19,'KD2.1.2 Water Stress'!$A:$K,10,FALSE) -> ND | W19: ND | X19: =VLOOKUP($A19,'KD2.1.2 Water Stress'!$A:$K,11,FALSE) -> ND | Y19: ND | Z19: =VLOOKUP($A19,'KD2.1.3 SLI'!$A:$Q,15,FALSE) -> ND | AA19: ND | AB19: =VLOOKUP($A19,'KD2.1.3 SLI'!$A:$Q,16,FALSE) -> ND | AC19: ND | AD19: =VLOOKUP($A19,'KD2.1.3 SLI'!$A:$Q,17,FALSE) -> ND | AE19: ND | AF19: 7 | AG19: 1 | AH19: 7 | AI19: 1 | AJ19: 7 | AK19: 1 | AN19: 1.75 | AO19: 2 | AP19: 2.5
A20: Fiji | B20: =VLOOKUP($A20,'KD2.1.1.1 Rainfall calcs'!$A:$G,7,FALSE) -> 0.687788286 | C20: 2 | D20: =VLOOKUP($A20,'KD2.1.1.1 Rainfall calcs'!$A:$G,4,FALSE) -> 0.2351724204 | E20: 1 | F20: =VLOOKUP($A20,'KD2.1.1.1 Rainfall calcs'!$A:$G,6,FALSE) -> 0.6674240294 | G20: 2 | H20: =VLOOKUP($A20,'KD2.1.1.1 Rainfall calcs'!$A:$G,3,FALSE) -> 0.2533127036 | I20: 1 | J20: =VLOOKUP($A20,'KD2.1.1.1 Rainfall calcs'!$A:$G,5,FALSE) -> 0.6736436876 | K20: 2 | L20: =VLOOKUP($A20,'KD2.1.1.1 Rainfall calcs'!$A:$G,2,FALSE) -> 0.2376035642 | M20: 1 | N20: =VLOOKUP($A20,'KD2.1.1.2 Storage'!$A:$J,4,FALSE) -> 0.465849387 | O20: 1 | P20: =VLOOKUP($A20,'KD2.1.1.2 Storage'!$A:$J,7,FALSE) -> 0.465849387 | Q20: 1 | R20: =VLOOKUP($A20,'KD2.1.1.2 Storage'!$A:$J,10,FALSE) -> 0.465849387 | S20: 1 | T20: =VLOOKUP($A20,'KD2.1.2 Water Stress'!$A:$K,9,FALSE) -> 0.001222416813 | U20: 5 | V20: =VLOOKUP($A20,'KD2.1.2 Water Stress'!$A:$K,10,FALSE) -> 0.001222416813 | W20: 5 | X20: =VLOOKUP($A20,'KD2.1.2 Water Stress'!$A:$K,11,FALSE) -> 0.001222416813 | Y20: 5 | Z20: =VLOOKUP($A20,'KD2.1.3 SLI'!$A:$Q,15,FALSE) -> 6.138344317 | AA20: 5 | AB20: =VLOOKUP($A20,'KD2.1.3 SLI'!$A:$Q,16,FALSE) -> 6.138344317 | AC20: 5 | AD20: =VLOOKUP($A20,'KD2.1.3 SLI'!$A:$Q,17,FALSE) -> 6.138344317 | AE20: 5 | AF20: 14 | AG20: 3 | AH20: 14 | AI20: 3 | AJ20: 14 | AK20: 3 | AN20: 3.5625 | AO20: 3.5625 | AP20: 3.5625
A21: Georgia | B21: =VLOOKUP($A21,'KD2.1.1.1 Rainfall calcs'!$A:$G,7,FALSE) -> 0.3573514745 | C21: 4 | D21: =VLOOKUP($A21,'KD2.1.1.1 Rainfall calcs'!$A:$G,4,FALSE) -> 0.1131853811 | E21: 2 | F21: =VLOOKUP($A21,'KD2.1.1.1 Rainfall calcs'!$A:$G,6,FALSE) -> 0.3834193294 | G21: 4 | H21: =VLOOKUP($A21,'KD2.1.1.1 Rainfall calcs'!$A:$G,3,FALSE) -> 0.09777756904 | I21: 3 | J21: =VLOOKUP($A21,'KD2.1.1.1 Rainfall calcs'!$A:$G,5,FALSE) -> 0.3773616164 | K21: 4 | L21: =VLOOKUP($A21,'KD2.1.1.1 Rainfall calcs'!$A:$G,2,FALSE) -> 0.100576778 | M21: 2 | N21: =VLOOKUP($A21,'KD2.1.1.2 Storage'!$A:$J,4,FALSE) -> 5.390810043 | O21: 3 | P21: =VLOOKUP($A21,'KD2.1.1.2 Storage'!$A:$J,7,FALSE) -> 5.390810043 | Q21: 3 | R21: =VLOOKUP($A21,'KD2.1.1.2 Storage'!$A:$J,10,FALSE) -> 5.390810043 | S21: 3 | T21: =VLOOKUP($A21,'KD2.1.2 Water Stress'!$A:$K,9,FALSE) -> 0.5438526347 | U21: 2 | V21: =VLOOKUP($A21,'KD2.1.2 Water Stress'!$A:$K,10,FALSE) -> 0.5435023287 | W21: 2 | X21: =VLOOKUP($A21,'KD2.1.2 Water Stress'!$A:$K,11,FALSE) -> 0.5439839745 | Y21: 2 | Z21: =VLOOKUP($A21,'KD2.1.3 SLI'!$A:$Q,15,FALSE) -> 2.698056451 | AA21: 3 | AB21: =VLOOKUP($A21,'KD2.1.3 SLI'!$A:$Q,16,FALSE) -> 2.73149554 | AC21: 3 | AD21: =VLOOKUP($A21,'KD2.1.3 SLI'!$A:$Q,17,FALSE) -> 2.68572923 | AE21: 3 | AF21: 18 | AG21: 5 | AH21: 16 | AI21: 4 | AJ21: 16 | AK21: 4 | AN21: 3.25 | AO21: 3.0625 | AP21: 3
A22: Hong Kong, China | B22: =VLOOKUP($A22,'KD2.1.1.1 Rainfall calcs'!$A:$G,7,FALSE) -> 1.006008698 | C22: 1 | D22: =VLOOKUP($A22,'KD2.1.1.1 Rainfall calcs'!$A:$G,4,FALSE) -> 0.1655628212 | E22: 1 | F22: =VLOOKUP($A22,'KD2.1.1.1 Rainfall calcs'!$A:$G,6,FALSE) -> 0.9573746657 | G22: 1 | H22: =VLOOKUP($A22,'KD2.1.1.1 Rainfall calcs'!$A:$G,3,FALSE) -> 0.1621533615 | I22: 1 | J22: =VLOOKUP($A22,'KD2.1.1.1 Rainfall calcs'!$A:$G,5,FALSE) -> 0.9409786894 | K22: 1 | L22: =VLOOKUP($A22,'KD2.1.1.1 Rainfall calcs'!$A:$G,2,FALSE) -> 0.1625908949 | M22: 1 | N22: =VLOOKUP($A22,'KD2.1.1.2 Storage'!$A:$J,4,FALSE) -> ND | O22: ND | P22: =VLOOKUP($A22,'KD2.1.1.2 Storage'!$A:$J,7,FALSE) -> ND | Q22: ND | R22: =VLOOKUP($A22,'KD2.1.1.2 Storage'!$A:$J,10,FALSE) -> ND | S22: ND | T22: =VLOOKUP($A22,'KD2.1.2 Water Stress'!$A:$K,9,FALSE) -> ND | U22: ND | V22: =VLOOKUP($A22,'KD2.1.2 Water Stress'!$A:$K,10,FALSE) -> ND | W22: ND | X22: =VLOOKUP($A22,'KD2.1.2 Water Stress'!$A:$K,11,FALSE) -> ND | Y22: ND | Z22: =VLOOKUP($A22,'KD2.1.3 SLI'!$A:$Q,15,FALSE) -> ND | AA22: ND | AB22: =VLOOKUP($A22,'KD2.1.3 SLI'!$A:$Q,16,FALSE) -> ND | AC22: ND | AD22: =VLOOKUP($A22,'KD2.1.3 SLI'!$A:$Q,17,FALSE) -> ND | AE22: ND | AF22: 12 | AG22: 2 | AH22: 12 | AI22: 2 | AJ22: 12 | AK22: 2 | AN22: 1.5 | AO22: 1.5 | AP22: 1.5
A23: India | B23: =VLOOKUP($A23,'KD2.1.1.1 Rainfall calcs'!$A:$G,7,FALSE) -> 1.035941126 | C23: 1 | D23: =VLOOKUP($A23,'KD2.1.1.1 Rainfall calcs'!$A:$G,4,FALSE) -> 0.07374431552 | E23: 3 | F23: =VLOOKUP($A23,'KD2.1.1.1 Rainfall calcs'!$A:$G,6,FALSE) -> 1.038992887 | G23: 1 | H23: =VLOOKUP($A23,'KD2.1.1.1 Rainfall calcs'!$A:$G,3,FALSE) -> 0.076628407 | I23: 3 | J23: =VLOOKUP($A23,'KD2.1.1.1 Rainfall calcs'!$A:$G,5,FALSE) -> 1.054972121 | K23: 1 | L23: =VLOOKUP($A23,'KD2.1.1.1 Rainfall calcs'!$A:$G,2,FALSE) -> 0.07755593982 | M23: 3 | N23: =VLOOKUP($A23,'KD2.1.1.2 Storage'!$A:$J,4,FALSE) -> 11.72161172 | O23: 3 | P23: =VLOOKUP($A23,'KD2.1.1.2 Storage'!$A:$J,7,FALSE) -> 11.72161172 | Q23: 3 | R23: =VLOOKUP($A23,'KD2.1.1.2 Storage'!$A:$J,10,FALSE) -> 11.72161172 | S23: 3 | T23: =VLOOKUP($A23,'KD2.1.2 Water Stress'!$A:$K,9,FALSE) -> 0.8254977081 | U23: 1 | V23: =VLOOKUP($A23,'KD2.1.2 Water Stress'!$A:$K,10,FALSE) -> 0.8387392673 | W23: 1 | X23: =VLOOKUP($A23,'KD2.1.2 Water Stress'!$A:$K,11,FALSE) -> 0.8254215718 | Y23: 1 | Z23: =VLOOKUP($A23,'KD2.1.3 SLI'!$A:$Q,15,FALSE) -> 0.4744970004 | AA23: 1 | AB23: =VLOOKUP($A23,'KD2.1.3 SLI'!$A:$Q,16,FALSE) -> 0.456461231 | AC23: 1 | AD23: =VLOOKUP($A23,'KD2.1.3 SLI'!$A:$Q,17,FALSE) -> 0.4746048243 | AE23: 1 | AF23: 14 | AG23: 3 | AH23: 17 | AI23: 4 | AJ23: 15 | AK23: 3 | AN23: 1.875 | AO23: 2.125 | AP23: 1.875
A24: Indonesia | B24: =VLOOKUP($A24,'KD2.1.1.1 Rainfall calcs'!$A:$G,7,FALSE) -> 0.2413470957 | C24: 4 | D24: =VLOOKUP($A24,'KD2.1.1.1 Rainfall calcs'!$A:$G,4,FALSE) -> 0.072487665 | E24: 3 | F24: =VLOOKUP($A24,'KD2.1.1.1 Rainfall calcs'!$A:$G,6,FALSE) -> 0.2329056343 | G24: 4 | H24: =VLOOKUP($A24,'KD2.1.1.1 Rainfall calcs'!$A:$G,3,FALSE) -> 0.07374999071 | I24: 3 | J24: =VLOOKUP($A24,'KD2.1.1.1 Rainfall calcs'!$A:$G,5,FALSE) -> 0.2357374346 | K24: 4 | L24: =VLOOKUP($A24,'KD2.1.1.1 Rainfall calcs'!$A:$G,2,FALSE) -> 0.06705351701 | M24: 3 | N24: =VLOOKUP($A24,'KD2.1.1.2 Storage'!$A:$J,4,FALSE) -> 1.113917781 | O24: 1 | P24: =VLOOKUP($A24,'KD2.1.1.2 Storage'!$A:$J,7,FALSE) -> 1.1401684 | Q24: 1 | R24: =VLOOKUP($A24,'KD2.1.1.2 Storage'!$A:$J,10,FALSE) -> 1.1401684 | S24: 1 | T24: =VLOOKUP($A24,'KD2.1.2 Water Stress'!$A:$K,9,FALSE) -> 0.7047709683 | U24: 2 | V24: =VLOOKUP($A24,'KD2.1.2 Water Stress'!$A:$K,10,FALSE) -> 0.7063528569 | W24: 2 | X24: =VLOOKUP($A24,'KD2.1.2 Water Stress'!$A:$K,11,FALSE) -> 0.7037824496 | Y24: 2 | Z24: =VLOOKUP($A24,'KD2.1.3 SLI'!$A:$Q,15,FALSE) -> 0.2775687144 | AA24: 1 | AB24: =VLOOKUP($A24,'KD2.1.3 SLI'!$A:$Q,16,FALSE) -> 0.2783349416 | AC24: 1 | AD24: =VLOOKUP($A24,'KD2.1.3 SLI'!$A:$Q,17,FALSE) -> 0.2878419332 | AE24: 1 | AF24: 16 | AG24: 4 | AH24: 16 | AI24: 4 | AJ24: 18 | AK24: 5 | AN24: 2.3125 | AO24: 2.3125 | AP24: 2.5625
A25: Japan | B25: =VLOOKUP($A25,'KD2.1.1.1 Rainfall calcs'!$A:$G,7,FALSE) -> 0.4964189317 | C25: 3 | D25: =VLOOKUP($A25,'KD2.1.1.1 Rainfall calcs'!$A:$G,4,FALSE) -> 0.1176558083 | E25: 2 | F25: =VLOOKUP($A25,'KD2.1.1.1 Rainfall calcs'!$A:$G,6,FALSE) -> 0.4928737356 | G25: 3 | H25: =VLOOKUP($A25,'KD2.1.1.1 Rainfall calcs'!$A:$G,3,FALSE) -> 0.08833159256 | I25: 3 | J25: =VLOOKUP($A25,'KD2.1.1.1 Rainfall calcs'!$A:$G,5,FALSE) -> 0.4906217978 | K25: 3 | L25: =VLOOKUP($A25,'KD2.1.1.1 Rainfall calcs'!$A:$G,2,FALSE) -> 0.07961374584 | M25: 3 | N25: =VLOOKUP($A25,'KD2.1.1.2 Storage'!$A:$J,4,FALSE) -> 6.739534884 | O25: 3 | P25: =VLOOKUP($A25,'KD2.1.1.2 Storage'!$A:$J,7,FALSE) -> 6.739534884 | Q25: 3 | R25: =VLOOKUP($A25,'KD2.1.1.2 Storage'!$A:$J,10,FALSE) -> 6.739534884 | S25: 3 | T25: =VLOOKUP($A25,'KD2.1.2 Water Stress'!$A:$K,9,FALSE) -> 0.6923419995 | U25: 2 | V25: =VLOOKUP($A25,'KD2.1.2 Water Stress'!$A:$K,10,FALSE) -> 0.6891046453 | W25: 2 | X25: =VLOOKUP($A25,'KD2.1.2 Water Stress'!$A:$K,11,FALSE) -> 0.6860009961 | Y25: 2 | Z25: =VLOOKUP($A25,'KD2.1.3 SLI'!$A:$Q,15,FALSE) -> 0.5911756507 | AA25: 2 | AB25: =VLOOKUP($A25,'KD2.1.3 SLI'!$A:$Q,16,FALSE) -> 0.6009943391 | AC25: 2 | AD25: =VLOOKUP($A25,'KD2.1.3 SLI'!$A:$Q,17,FALSE) -> 0.6107186884 | AE25: 2 | AF25: 17 | AG25: 4 | AH25: 17 | AI25: 4 | AJ25: 13 | AK25: 2 | AN25: 2.6875 | AO25: 2.75 | AP25: 2.25
A26: Kazakhstan | B26: =VLOOKUP($A26,'KD2.1.1.1 Rainfall calcs'!$A:$G,7,FALSE) -> 0.363507088 | C26: 4 | D26: =VLOOKUP($A26,'KD2.1.1.1 Rainfall calcs'!$A:$G,4,FALSE) -> 0.1131882724 | E26: 2 | F26: =VLOOKUP($A26,'KD2.1.1.1 Rainfall calcs'!$A:$G,6,FALSE) -> 0.3464209143 | G26: 4 | H26: =VLOOKUP($A26,'KD2.1.1.1 Rainfall calcs'!$A:$G,3,FALSE) -> 0.1042422339 | I26: 2 | J26: =VLOOKUP($A26,'KD2.1.1.1 Rainfall calcs'!$A:$G,5,FALSE) -> 0.3371149783 | K26: 4 | L26: =VLOOKUP($A26,'KD2.1.1.1 Rainfall calcs'!$A:$G,2,FALSE) -> 0.1069024357 | M26: 2 | N26: =VLOOKUP($A26,'KD2.1.1.2 Storage'!$A:$J,4,FALSE) -> 73.75461255 | O26: 5 | P26: =VLOOKUP($A26,'KD2.1.1.2 Storage'!$A:$J,7,FALSE) -> 73.75461255 | Q26: 5 | R26: =VLOOKUP($A26,'KD2.1.1.2 Storage'!$A:$J,10,FALSE) -> 73.75461255 | S26: 5 | T26: =VLOOKUP($A26,'KD2.1.2 Water Stress'!$A:$K,9,FALSE) -> 0.5508618951 | U26: 2 | V26: =VLOOKUP($A26,'KD2.1.2 Water Stress'!$A:$K,10,FALSE) -> 0.5573807074 | W26: 2 | X26: =VLOOKUP($A26,'KD2.1.2 Water Stress'!$A:$K,11,FALSE) -> 0.5787825316 | Y26: 2 | Z26: =VLOOKUP($A26,'KD2.1.3 SLI'!$A:$Q,15,FALSE) -> 4.193960432 | AA26: 4 | AB26: =VLOOKUP($A26,'KD2.1.3 SLI'!$A:$Q,16,FALSE) -> 4.071040122 | AC26: 4 | AD26: =VLOOKUP($A26,'KD2.1.3 SLI'!$A:$Q,17,FALSE) -> 3.713694999 | AE26: 4 | AF26: 18 | AG26: 5 | AH26: 18 | AI26: 5 | AJ26: 18 | AK26: 5 | AN26: 3.75 | AO26: 3.75 | AP26: 3.75
A27: Kiribati | B27: =VLOOKUP($A27,'KD2.1.1.1 Rainfall calcs'!$A:$G,7,FALSE) -> 0.4381485235 | C27: 3 | D27: =VLOOKUP($A27,'KD2.1.1.1 Rainfall calcs'!$A:$G,4,FALSE) -> 0.3175741777 | E27: 1 | F27: =VLOOKUP($A27,'KD2.1.1.1 Rainfall calcs'!$A:$G,6,FALSE) -> 0.3257422175 | G27: 4 | H27: =VLOOKUP($A27,'KD2.1.1.1 Rainfall calcs'!$A:$G,3,FALSE) -> 0.1611574006 | I27: 1 | J27: =VLOOKUP($A27,'KD2.1.1.1 Rainfall calcs'!$A:$G,5,FALSE) -> 0.269020219 | K27: 4 | L27: =VLOOKUP($A27,'KD2.1.1.1 Rainfall calcs'!$A:$G,2,FALSE) -> 0.07266390273 | M27: 3 | N27: =VLOOKUP($A27,'KD2.1.1.2 Storage'!$A:$J,4,FALSE) -> ND | O27: ND | P27: =VLOOKUP($A27,'KD2.1.1.2 Storage'!$A:$J,7,FALSE) -> ND | Q27: ND | R27: =VLOOKUP($A27,'KD2.1.1.2 Storage'!$A:$J,10,FALSE) -> ND | S27: ND | T27: =VLOOKUP($A27,'KD2.1.2 Water Stress'!$A:$K,9,FALSE) -> ND | U27: ND | V27: =VLOOKUP($A27,'KD2.1.2 Water Stress'!$A:$K,10,FALSE) -> ND | W27: ND | X27: =VLOOKUP($A27,'KD2.1.2 Water Stress'!$A:$K,11,FALSE) -> ND | Y27: ND | Z27: =VLOOKUP($A27,'KD2.1.3 SLI'!$A:$Q,15,FALSE) -> ND | AA27: ND | AB27: =VLOOKUP($A27,'KD2.1.3 SLI'!$A:$Q,16,FALSE) -> ND | AC27: ND | AD27: =VLOOKUP($A27,'KD2.1.3 SLI'!$A:$Q,17,FALSE) -> ND | AE27: ND | AF27: 10 | AG27: 2 | AH27: 10 | AI27: 2 | AJ27: 10 | AK27: 2 | AN27: 2 | AO27: 2.25 | AP27: 2.75
A28: Korea, Republic of | B28: =VLOOKUP($A28,'KD2.1.1.1 Rainfall calcs'!$A:$G,7,FALSE) -> 0.9187626977 | C28: 1 | D28: =VLOOKUP($A28,'KD2.1.1.1 Rainfall calcs'!$A:$G,4,FALSE) -> 0.1983157694 | E28: 1 | F28: =VLOOKUP($A28,'KD2.1.1.1 Rainfall calcs'!$A:$G,6,FALSE) -> 0.931011952 | G28: 1 | H28: =VLOOKUP($A28,'KD2.1.1.1 Rainfall calcs'!$A:$G,3,FALSE) -> 0.1646458662 | I28: 1 | J28: =VLOOKUP($A28,'KD2.1.1.1 Rainfall calcs'!$A:$G,5,FALSE) -> 0.8794212845 | K28: 1 | L28: =VLOOKUP($A28,'KD2.1.1.1 Rainfall calcs'!$A:$G,2,FALSE) -> 0.166276152 | M28: 1 | N28: =VLOOKUP($A28,'KD2.1.1.2 Storage'!$A:$J,4,FALSE) -> 23.24246772 | O28: 4 | P28: =VLOOKUP($A28,'KD2.1.1.2 Storage'!$A:$J,7,FALSE) -> 23.24246772 | Q28: 4 | R28: =VLOOKUP($A28,'KD2.1.1.2 Storage'!$A:$J,10,FALSE) -> 23.24246772 | S28: 4 | T28: =VLOOKUP($A28,'KD2.1.2 Water Stress'!$A:$K,9,FALSE) -> 0.8295015842 | U28: 1 | V28: =VLOOKUP($A28,'KD2.1.2 Water Stress'!$A:$K,10,FALSE) -> 0.8295760558 | W28: 1 | X28: =VLOOKUP($A28,'KD2.1.2 Water Stress'!$A:$K,11,FALSE) -> 0.8151261842 | Y28: 1 | Z28: =VLOOKUP($A28,'KD2.1.3 SLI'!$A:$Q,15,FALSE) -> 1.103805846 | AA28: 3 | AB28: =VLOOKUP($A28,'KD2.1.3 SLI'!$A:$Q,16,FALSE) -> 1.103549853 | AC28: 3 | AD28: =VLOOKUP($A28,'KD2.1.3 SLI'!$A:$Q,17,FALSE) -> 1.155549084 | AE28: 3 | AF28: 17 | AG28: 4 | AH28: 15 | AI28: 3 | AJ28: 17 | AK28: 4 | AN28: 2.625 | AO28: 2.375 | AP28: 2.625
A29: Kyrgyz Republic | B29: =VLOOKUP($A29,'KD2.1.1.1 Rainfall calcs'!$A:$G,7,FALSE) -> 0.5694531887 | C29: 3 | D29: =VLOOKUP($A29,'KD2.1.1.1 Rainfall calcs'!$A:$G,4,FALSE) -> 0.19182609 | E29: 1 | F29: =VLOOKUP($A29,'KD2.1.1.1 Rainfall calcs'!$A:$G,6,FALSE) -> 0.5664795807 | G29: 3 | H29: =VLOOKUP($A29,'KD2.1.1.1 Rainfall calcs'!$A:$G,3,FALSE) -> 0.1887363525 | I29: 1 | J29: =VLOOKUP($A29,'KD2.1.1.1 Rainfall calcs'!$A:$G,5,FALSE) -> 0.5552361156 | K29: 3 | L29: =VLOOKUP($A29,'KD2.1.1.1 Rainfall calcs'!$A:$G,2,FALSE) -> 0.1628148256 | M29: 1 | N29: =VLOOKUP($A29,'KD2.1.1.2 Storage'!$A:$J,4,FALSE) -> 99.49195597 | O29: 5 | P29: =VLOOKUP($A29,'KD2.1.1.2 Storage'!$A:$J,7,FALSE) -> 99.49195597 | Q29: 5 | R29: =VLOOKUP($A29,'KD2.1.1.2 Storage'!$A:$J,10,FALSE) -> 99.49195597 | S29: 5 | T29: =VLOOKUP($A29,'KD2.1.2 Water Stress'!$A:$K,9,FALSE) -> 0.6873229244 | U29: 2 | V29: =VLOOKUP($A29,'KD2.1.2 Water Stress'!$A:$K,10,FALSE) -> 0.7330259165 | W29: 2 | X29: =VLOOKUP($A29,'KD2.1.2 Water Stress'!$A:$K,11,FALSE) -> 0.7406969996 | Y29: 2 | Z29: =VLOOKUP($A29,'KD2.1.3 SLI'!$A:$Q,15,FALSE) -> 3.890914015 | AA29: 4 | AB29: =VLOOKUP($A29,'KD2.1.3 SLI'!$A:$Q,16,FALSE) -> 3.429249193 | AC29: 4 | AD29: =VLOOKUP($A29,'KD2.1.3 SLI'!$A:$Q,17,FALSE) -> 3.362288161 | AE29: 4 | AF29: 17 | AG29: 4 | AH29: 15 | AI29: 3 | AJ29: 15 | AK29: 3 | AN29: 3.375 | AO29: 3.125 | AP29: 3.125
A30: Lao People’s Democratic Republic | B30: =VLOOKUP($A30,'KD2.1.1.1 Rainfall calcs'!$A:$G,7,FALSE) -> 0.7842172072 | C30: 1 | D30: =VLOOKUP($A30,'KD2.1.1.1 Rainfall calcs'!$A:$G,4,FALSE) -> 0.1012050313 | E30: 2 | F30: =VLOOKUP($A30,'KD2.1.1.1 Rainfall calcs'!$A:$G,6,FALSE) -> 0.7857027983 | G30: 1 | H30: =VLOOKUP($A30,'KD2.1.1.1 Rainfall calcs'!$A:$G,3,FALSE) -> 0.1110270526 | I30: 2 | J30: =VLOOKUP($A30,'KD2.1.1.1 Rainfall calcs'!$A:$G,5,FALSE) -> 0.7727391432 | K30: 1 | L30: =VLOOKUP($A30,'KD2.1.1.1 Rainfall calcs'!$A:$G,2,FALSE) -> 0.112548839 | M30: 2 | N30: =VLOOKUP($A30,'KD2.1.1.2 Storage'!$A:$J,4,FALSE) -> 2.342128936 | O30: 1 | P30: =VLOOKUP($A30,'KD2.1.1.2 Storage'!$A:$J,7,FALSE) -> 2.342128936 | Q30: 1 | R30: =VLOOKUP($A30,'KD2.1.1.2 Storage'!$A:$J,10,FALSE) -> 2.342128936 | S30: 1 | T30: =VLOOKUP($A30,'KD2.1.2 Water Stress'!$A:$K,9,FALSE) -> 0.5569584169 | U30: 2 | V30: =VLOOKUP($A30,'KD2.1.2 Water Stress'!$A:$K,10,FALSE) -> 0.5567974206 | W30: 2 | X30: =VLOOKUP($A30,'KD2.1.2 Water Stress'!$A:$K,11,FALSE) -> 0.5564615935 | Y30: 2 | Z30: =VLOOKUP($A30,'KD2.1.3 SLI'!$A:$Q,15,FALSE) -> 2.308178978 | AA30: 3 | AB30: =VLOOKUP($A30,'KD2.1.3 SLI'!$A:$Q,16,FALSE) -> 2.330341482 | AC30: 3 | AD30: =VLOOKUP($A30,'KD2.1.3 SLI'!$A:$Q,17,FALSE) -> 2.377968701 | AE30: 3 | AF30: 15 | AG30: 3 | AH30: 13 | AI30: 2 | AJ30: 11 | AK30: 2 | AN30: 2.3125 | AO30: 2.0625 | AP30: 2.0625
A31: Malaysia | B31: =VLOOKUP($A31,'KD2.1.1.1 Rainfall calcs'!$A:$G,7,FALSE) -> 0.2993259247 | C31: 4 | D31: =VLOOKUP($A31,'KD2.1.1.1 Rainfall calcs'!$A:$G,4,FALSE) -> 0.1079103143 | E31: 2 | F31: =VLOOKUP($A31,'KD2.1.1.1 Rainfall calcs'!$A:$G,6,FALSE) -> 0.309439314 | G31: 4 | H31: =VLOOKUP($A31,'KD2.1.1.1 Rainfall calcs'!$A:$G,3,FALSE) -> 0.09375110625 | I31: 3 | J31: =VLOOKUP($A31,'KD2.1.1.1 Rainfall calcs'!$A:$G,5,FALSE) -> 0.3038785979 | K31: 4 | L31: =VLOOKUP($A31,'KD2.1.1.1 Rainfall calcs'!$A:$G,2,FALSE) -> 0.08740255765 | M31: 3 | N31: =VLOOKUP($A31,'KD2.1.1.2 Storage'!$A:$J,4,FALSE) -> 3.870689655 | O31: 2 | P31: =VLOOKUP($A31,'KD2.1.1.2 Storage'!$A:$J,7,FALSE) -> 3.870689655 | Q31: 2 | R31: =VLOOKUP($A31,'KD2.1.1.2 Storage'!$A:$J,10,FALSE) -> 3.870689655 | S31: 2 | T31: =VLOOKUP($A31,'KD2.1.2 Water Stress'!$A:$K,9,FALSE) -> 0.6856408119 | U31: 2 | V31: =VLOOKUP($A31,'KD2.1.2 Water Stress'!$A:$K,10,FALSE) -> 0.6855566685 | W31: 2 | X31: =VLOOKUP($A31,'KD2.1.2 Water Stress'!$A:$K,11,FALSE) -> 0.6855441014 | Y31: 2 | Z31: =VLOOKUP($A31,'KD2.1.3 SLI'!$A:$Q,15,FALSE) -> 3.174763357 | AA31: 4 | AB31: =VLOOKUP($A31,'KD2.1.3 SLI'!$A:$Q,16,FALSE) -> 3.187037775 | AC31: 4 | AD31: =VLOOKUP($A31,'KD2.1.3 SLI'!$A:$Q,17,FALSE) -> 3.188879153 | AE31: 4 | AF31: 16 | AG31: 4 | AH31: 16 | AI31: 4 | AJ31: 16 | AK31: 4 | AN31: 3.125 | AO31: 3.1875 | AP31: 3.1875
A32: Maldives | B32: =VLOOKUP($A32,'KD2.1.1.1 Rainfall calcs'!$A:$G,7,FALSE) -> 0.4505098729 | C32: 3 | D32: =VLOOKUP($A32,'KD2.1.1.1 Rainfall calcs'!$A:$G,4,FALSE) -> 0.06897263348 | E32: 3 | F32: =VLOOKUP($A32,'KD2.1.1.1 Rainfall calcs'!$A:$G,6,FALSE) -> 0.4163422628 | G32: 3 | H32: =VLOOKUP($A32,'KD2.1.1.1 Rainfall calcs'!$A:$G,3,FALSE) -> 0.06452926041 | I32: 3 | J32: =VLOOKUP($A32,'KD2.1.1.1 Rainfall calcs'!$A:$G,5,FALSE) -> 0.4091703028 | K32: 3 | L32: =VLOOKUP($A32,'KD2.1.1.1 Rainfall calcs'!$A:$G,2,FALSE) -> 0.05954727043 | M32: 3 | N32: =VLOOKUP($A32,'KD2.1.1.2 Storage'!$A:$J,4,FALSE) -> 0 | O32: 1 | P32: =VLOOKUP($A32,'KD2.1.1.2 Storage'!$A:$J,7,FALSE) -> 0 | Q32: 1 | R32: =VLOOKUP($A32,'KD2.1.1.2 Storage'!$A:$J,10,FALSE) -> 0 | S32: 1 | T32: =VLOOKUP($A32,'KD2.1.2 Water Stress'!$A:$K,9,FALSE) -> 0.1966666667 | U32: 4 | V32: =VLOOKUP($A32,'KD2.1.2 Water Stress'!$A:$K,10,FALSE) -> 0.1966666667 | W32: 4 | X32: =VLOOKUP($A32,'KD2.1.2 Water Stress'!$A:$K,11,FALSE) -> 0.1966666667 | Y32: 4 | Z32: =VLOOKUP($A32,'KD2.1.3 SLI'!$A:$Q,15,FALSE) -> ND | AA32: ND | AB32: =VLOOKUP($A32,'KD2.1.3 SLI'!$A:$Q,16,FALSE) -> ND | AC32: ND | AD32: =VLOOKUP($A32,'KD2.1.3 SLI'!$A:$Q,17,FALSE) -> ND | AE32: ND | AF32: 11 | AG32: 2 | AH32: 13 | AI32: 2 | AJ32: 11 | AK32: 2 | AN32: 2.666666667 | AO32: 2.666666667 | AP32: 2.666666667
A33: Marshall Islands | B33: =VLOOKUP($A33,'KD2.1.1.1 Rainfall calcs'!$A:$G,7,FALSE) -> 0.2936600719 | C33: 4 | D33: =VLOOKUP($A33,'KD2.1.1.1 Rainfall calcs'!$A:$G,4,FALSE) -> 0.07514730302 | E33: 3 | F33: =VLOOKUP($A33,'KD2.1.1.1 Rainfall calcs'!$A:$G,6,FALSE) -> 0.2875607642 | G33: 4 | H33: =VLOOKUP($A33,'KD2.1.1.1 Rainfall calcs'!$A:$G,3,FALSE) -> 0.07209636057 | I33: 3 | J33: =VLOOKUP($A33,'KD2.1.1.1 Rainfall calcs'!$A:$G,5,FALSE) -> 0.2857313004 | K33: 4 | L33: =VLOOKUP($A33,'KD2.1.1.1 Rainfall calcs'!$A:$G,2,FALSE) -> 0.09094289104 | M33: 3 | N33: =VLOOKUP($A33,'KD2.1.1.2 Storage'!$A:$J,4,FALSE) -> ND | O33: ND | P33: =VLOOKUP($A33,'KD2.1.1.2 Storage'!$A:$J,7,FALSE) -> ND | Q33: ND | R33: =VLOOKUP($A33,'KD2.1.1.2 Storage'!$A:$J,10,FALSE) -> ND | S33: ND | T33: =VLOOKUP($A33,'KD2.1.2 Water Stress'!$A:$K,9,FALSE) -> ND | U33: ND | V33: =VLOOKUP($A33,'KD2.1.2 Water Stress'!$A:$K,10,FALSE) -> ND | W33: ND | X33: =VLOOKUP($A33,'KD2.1.2 Water Stress'!$A:$K,11,FALSE) -> ND | Y33: ND | Z33: =VLOOKUP($A33,'KD2.1.3 SLI'!$A:$Q,15,FALSE) -> ND | AA33: ND | AB33: =VLOOKUP($A33,'KD2.1.3 SLI'!$A:$Q,16,FALSE) -> ND | AC33: ND | AD33: =VLOOKUP($A33,'KD2.1.3 SLI'!$A:$Q,17,FALSE) -> ND | AE33: ND | AF33: 9 | AG33: 1 | AH33: 9 | AI33: 1 | AJ33: 9 | AK33: 1 | AN33: 2.25 | AO33: 2.25 | AP33: 2.25
A34: Micronesia, Federated States of | B34: ND | C34: ND | D34: =VLOOKUP($A34,'KD2.1.1.1 Rainfall calcs'!$A:$G,4,FALSE) -> ND | E34: ND | F34: =VLOOKUP($A34,'KD2.1.1.1 Rainfall calcs'!$A:$G,6,FALSE) -> ND | G34: ND | H34: =VLOOKUP($A34,'KD2.1.1.1 Rainfall calcs'!$A:$G,3,FALSE) -> ND | I34: ND | J34: =VLOOKUP($A34,'KD2.1.1.1 Rainfall calcs'!$A:$G,5,FALSE) -> ND | K34: ND | L34: =VLOOKUP($A34,'KD2.1.1.1 Rainfall calcs'!$A:$G,2,FALSE) -> ND | M34: ND | N34: =VLOOKUP($A34,'KD2.1.1.2 Storage'!$A:$J,4,FALSE) -> ND | O34: ND | P34: =VLOOKUP($A34,'KD2.1.1.2 Storage'!$A:$J,7,FALSE) -> ND | Q34: ND | R34: =VLOOKUP($A34,'KD2.1.1.2 Storage'!$A:$J,10,FALSE) -> ND | S34: ND | T34: =VLOOKUP($A34,'KD2.1.2 Water Stress'!$A:$K,9,FALSE) -> ND | U34: ND | V34: =VLOOKUP($A34,'KD2.1.2 Water Stress'!$A:$K,10,FALSE) -> ND | W34: ND | X34: =VLOOKUP($A34,'KD2.1.2 Water Stress'!$A:$K,11,FALSE) -> ND | Y34: ND | Z34: =VLOOKUP($A34,'KD2.1.3 SLI'!$A:$Q,15,FALSE) -> ND | AA34: ND | AB34: =VLOOKUP($A34,'KD2.1.3 SLI'!$A:$Q,16,FALSE) -> ND | AC34: ND | AD34: =VLOOKUP($A34,'KD2.1.3 SLI'!$A:$Q,17,FALSE) -> ND | AE34: ND | AF34: 6 | AG34: 1 | AH34: 5 | AI34: 1 | AJ34: 5 | AK34: 1 | AN34: ND | AO34: ND | AP34: ND
A35: Mongolia | B35: =VLOOKUP($A35,'KD2.1.1.1 Rainfall calcs'!$A:$G,7,FALSE) -> 1.130426474 | C35: 1 | D35: =VLOOKUP($A35,'KD2.1.1.1 Rainfall calcs'!$A:$G,4,FALSE) -> 0.1562436421 | E35: 1 | F35: =VLOOKUP($A35,'KD2.1.1.1 Rainfall calcs'!$A:$G,6,FALSE) -> 1.081869949 | G35: 1 | H35: =VLOOKUP($A35,'KD2.1.1.1 Rainfall calcs'!$A:$G,3,FALSE) -> 0.1234126724 | I35: 2 | J35: =VLOOKUP($A35,'KD2.1.1.1 Rainfall calcs'!$A:$G,5,FALSE) -> 1.044711321 | K35: 1 | L35: =VLOOKUP($A35,'KD2.1.1.1 Rainfall calcs'!$A:$G,2,FALSE) -> 0.1369621547 | M35: 2 | N35: =VLOOKUP($A35,'KD2.1.1.2 Storage'!$A:$J,4,FALSE) -> 0.7183908046 | O35: 1 | P35: =VLOOKUP($A35,'KD2.1.1.2 Storage'!$A:$J,7,FALSE) -> 0.7183908046 | Q35: 1 | R35: =VLOOKUP($A35,'KD2.1.1.2 Storage'!$A:$J,10,FALSE) -> 0.7183908046 | S35: 1 | T35: =VLOOKUP($A35,'KD2.1.2 Water Stress'!$A:$K,9,FALSE) -> 0.6235611042 | U35: 2 | V35: =VLOOKUP($A35,'KD2.1.2 Water Stress'!$A:$K,10,FALSE) -> 0.6253893098 | W35: 2 | X35: =VLOOKUP($A35,'KD2.1.2 Water Stress'!$A:$K,11,FALSE) -> 0.6208337985 | Y35: 2 | Z35: =VLOOKUP($A35,'KD2.1.3 SLI'!$A:$Q,15,FALSE) -> 0.5843719532 | AA35: 2 | AB35: =VLOOKUP($A35,'KD2.1.3 SLI'!$A:$Q,16,FALSE) -> 0.5206605633 | AC35: 2 | AD35: =VLOOKUP($A35,'KD2.1.3 SLI'!$A:$Q,17,FALSE) -> 0.7148678793 | AE35: 2 | AF35: 18 | AG35: 5 | AH35: 18 | AI35: 5 | AJ35: 18 | AK35: 5 | AN35: 2.5 | AO35: 2.5625 | AP35: 2.5625
A36: Myanmar | B36: =VLOOKUP($A36,'KD2.1.1.1 Rainfall calcs'!$A:$G,7,FALSE) -> 0.9837544365 | C36: 1 | D36: =VLOOKUP($A36,'KD2.1.1.1 Rainfall calcs'!$A:$G,4,FALSE) -> 0.06236049357 | E36: 3 | F36: =VLOOKUP($A36,'KD2.1.1.1 Rainfall calcs'!$A:$G,6,FALSE) -> 0.9931070511 | G36: 1 | H36: =VLOOKUP($A36,'KD2.1.1.1 Rainfall calcs'!$A:$G,3,FALSE) -> 0.07574857305 | I36: 3 | J36: =VLOOKUP($A36,'KD2.1.1.1 Rainfall calcs'!$A:$G,5,FALSE) -> 0.9800885602 | K36: 1 | L36: =VLOOKUP($A36,'KD2.1.1.1 Rainfall calcs'!$A:$G,2,FALSE) -> 0.07819136375 | M36: 3 | N36: =VLOOKUP($A36,'KD2.1.1.2 Storage'!$A:$J,4,FALSE) -> 1.323630137 | O36: 1 | P36: =VLOOKUP($A36,'KD2.1.1.2 Storage'!$A:$J,7,FALSE) -> 1.323630137 | Q36: 1 | R36: =VLOOKUP($A36,'KD2.1.1.2 Storage'!$A:$J,10,FALSE) -> 1.323630137 | S36: 1 | T36: =VLOOKUP($A36,'KD2.1.2 Water Stress'!$A:$K,9,FALSE) -> 0.5354095449 | U36: 2 | V36: =VLOOKUP($A36,'KD2.1.2 Water Stress'!$A:$K,10,FALSE) -> 0.5349722298 | W36: 2 | X36: =VLOOKUP($A36,'KD2.1.2 Water Stress'!$A:$K,11,FALSE) -> 0.5360453881 | Y36: 2 | Z36: =VLOOKUP($A36,'KD2.1.3 SLI'!$A:$Q,15,FALSE) -> 5.214745985 | AA36: 5 | AB36: =VLOOKUP($A36,'KD2.1.3 SLI'!$A:$Q,16,FALSE) -> 5.303986391 | AC36: 5 | AD36: =VLOOKUP($A36,'KD2.1.3 SLI'!$A:$Q,17,FALSE) -> 5.090222425 | AE36: 5 | AF36: 15 | AG36: 3 | AH36: 13 | AI36: 2 | AJ36: 13 | AK36: 2 | AN36: 2.875 | AO36: 2.625 | AP36: 2.625
A37: Nauru | B37: =VLOOKUP($A37,'KD2.1.1.1 Rainfall calcs'!$A:$G,7,FALSE) -> 0.6923198616 | C37: 2 | D37: =VLOOKUP($A37,'KD2.1.1.1 Rainfall calcs'!$A:$G,4,FALSE) -> 0.4554369068 | E37: 1 | F37: =VLOOKUP($A37,'KD2.1.1.1 Rainfall calcs'!$A:$G,6,FALSE) -> 0.6923198616 | G37: 2 | H37: =VLOOKUP($A37,'KD2.1.1.1 Rainfall calcs'!$A:$G,3,FALSE) -> 0.4554369068 | I37: 1 | J37: =VLOOKUP($A37,'KD2.1.1.1 Rainfall calcs'!$A:$G,5,FALSE) -> 0.6923198616 | K37: 2 | L37: =VLOOKUP($A37,'KD2.1.1.1 Rainfall calcs'!$A:$G,2,FALSE) -> 0.4554369068 | M37: 1 | N37: =VLOOKUP($A37,'KD2.1.1.2 Storage'!$A:$J,4,FALSE) -> ND | O37: ND | P37: =VLOOKUP($A37,'KD2.1.1.2 Storage'!$A:$J,7,FALSE) -> ND | Q37: ND | R37: =VLOOKUP($A37,'KD2.1.1.2 Storage'!$A:$J,10,FALSE) -> ND | S37: ND | T37: =VLOOKUP($A37,'KD2.1.2 Water Stress'!$A:$K,9,FALSE) -> ND | U37: ND | V37: =VLOOKUP($A37,'KD2.1.2 Water Stress'!$A:$K,10,FALSE) -> ND | W37: ND | X37: =VLOOKUP($A37,'KD2.1.2 Water Stress'!$A:$K,11,FALSE) -> ND | Y37: ND | Z37: =VLOOKUP($A37,'KD2.1.3 SLI'!$A:$Q,15,FALSE) -> ND | AA37: ND | AB37: =VLOOKUP($A37,'KD2.1.3 SLI'!$A:$Q,16,FALSE) -> ND | AC37: ND | AD37: =VLOOKUP($A37,'KD2.1.3 SLI'!$A:$Q,17,FALSE) -> ND | AE37: ND | AF37: 5 | AG37: 1 | AH37: 7 | AI37: 1 | AJ37: 6 | AK37: 1 | AN37: 1.25 | AO37: 1.25 | AP37: 1.25
A38: Nepal | B38: =VLOOKUP($A38,'KD2.1.1.1 Rainfall calcs'!$A:$G,7,FALSE) -> 1.025072009 | C38: 1 | D38: =VLOOKUP($A38,'KD2.1.1.1 Rainfall calcs'!$A:$G,4,FALSE) -> 0.1122714394 | E38: 2 | F38: =VLOOKUP($A38,'KD2.1.1.1 Rainfall calcs'!$A:$G,6,FALSE) -> 1.03312646 | G38: 1 | H38: =VLOOKUP($A38,'KD2.1.1.1 Rainfall calcs'!$A:$G,3,FALSE) -> 0.1632153036 | I38: 1 | J38: =VLOOKUP($A38,'KD2.1.1.1 Rainfall calcs'!$A:$G,5,FALSE) -> 1.039149008 | K38: 1 | L38: =VLOOKUP($A38,'KD2.1.1.1 Rainfall calcs'!$A:$G,2,FALSE) -> 0.1569448406 | M38: 1 | N38: =VLOOKUP($A38,'KD2.1.1.2 Storage'!$A:$J,4,FALSE) -> 0.04058039962 | O38: 1 | P38: =VLOOKUP($A38,'KD2.1.1.2 Storage'!$A:$J,7,FALSE) -> 0.04058039962 | Q38: 1 | R38: =VLOOKUP($A38,'KD2.1.1.2 Storage'!$A:$J,10,FALSE) -> 0.04058039962 | S38: 1 | T38: =VLOOKUP($A38,'KD2.1.2 Water Stress'!$A:$K,9,FALSE) -> 0.5013411188 | U38: 2 | V38: =VLOOKUP($A38,'KD2.1.2 Water Stress'!$A:$K,10,FALSE) -> 0.5009305333 | W38: 2 | X38: =VLOOKUP($A38,'KD2.1.2 Water Stress'!$A:$K,11,FALSE) -> 0.5024427041 | Y38: 2 | Z38: =VLOOKUP($A38,'KD2.1.3 SLI'!$A:$Q,15,FALSE) -> 0.01349129255 | AA38: 1 | AB38: =VLOOKUP($A38,'KD2.1.3 SLI'!$A:$Q,16,FALSE) -> 0.01361574925 | AC38: 1 | AD38: =VLOOKUP($A38,'KD2.1.3 SLI'!$A:$Q,17,FALSE) -> 0.01316835189 | AE38: 1 | AF38: 18 | AG38: 5 | AH38: 16 | AI38: 4 | AJ38: 16 | AK38: 4 | AN38: 2.3125 | AO38: 2 | AP38: 2
A39: New Zealand | B39: =VLOOKUP($A39,'KD2.1.1.1 Rainfall calcs'!$A:$G,7,FALSE) -> 0.2696823766 | C39: 4 | D39: =VLOOKUP($A39,'KD2.1.1.1 Rainfall calcs'!$A:$G,4,FALSE) -> 0.0687989403 | E39: 3 | F39: =VLOOKUP($A39,'KD2.1.1.1 Rainfall calcs'!$A:$G,6,FALSE) -> 0.2759523354 | G39: 4 | H39: =VLOOKUP($A39,'KD2.1.1.1 Rainfall calcs'!$A:$G,3,FALSE) -> 0.07140779443 | I39: 3 | J39: =VLOOKUP($A39,'KD2.1.1.1 Rainfall calcs'!$A:$G,5,FALSE) -> 0.2746982959 | K39: 4 | L39: =VLOOKUP($A39,'KD2.1.1.1 Rainfall calcs'!$A:$G,2,FALSE) -> 0.05402604925 | M39: 3 | N39: =VLOOKUP($A39,'KD2.1.1.2 Storage'!$A:$J,4,FALSE) -> 5.165137615 | O39: 3 | P39: =VLOOKUP($A39,'KD2.1.1.2 Storage'!$A:$J,7,FALSE) -> 5.165137615 | Q39: 3 | R39: =VLOOKUP($A39,'KD2.1.1.2 Storage'!$A:$J,10,FALSE) -> 5.165137615 | S39: 3 | T39: =VLOOKUP($A39,'KD2.1.2 Water Stress'!$A:$K,9,FALSE) -> 0.6403499187 | U39: 2 | V39: =VLOOKUP($A39,'KD2.1.2 Water Stress'!$A:$K,10,FALSE) -> 0.6402603582 | W39: 2 | X39: =VLOOKUP($A39,'KD2.1.2 Water Stress'!$A:$K,11,FALSE) -> 0.6401539547 | Y39: 2 | Z39: =VLOOKUP($A39,'KD2.1.3 SLI'!$A:$Q,15,FALSE) -> 6.219651538 | AA39: 5 | AB39: =VLOOKUP($A39,'KD2.1.3 SLI'!$A:$Q,16,FALSE) -> 6.25561312 | AC39: 5 | AD39: =VLOOKUP($A39,'KD2.1.3 SLI'!$A:$Q,17,FALSE) -> 6.29888206 | AE39: 5 | AF39: 17 | AG39: 4 | AH39: 18 | AI39: 5 | AJ39: 16 | AK39: 4 | AN39: 3.5625 | AO39: 3.8125 | AP39: 3.5625
